{"text_format":"1","workbook":"xlsx","n_sheets":14,"sheets":["Azonosítás","Nyilatkozat","Partnerek","Ki- és beutazó hallgatók","Ki- és beutazó okt, személyzet","Pénzügyi elszámolás","Pályázói adatok","Kieg.tám.","Segédadatok","Segédadatok2","Negyedhónapok","ráták","Erasmus_kodok","NORA"],"not_rendered":{"charts":0,"images":0,"macros":0,"external_links":0,"defined_names":111,"comments":8,"pivot_tables":0},"unopened":[],"bounds":{"document_bytes":16777216,"sheet_cells":100000,"rows_first":2000,"rows_last":500,"rows_between":2000,"halvings":0,"cell_chars":16384,"cell_head_chars":4096},"cells_cut":0,"cells_raw":0,"read":"whole","date_system":"1900"}

{"sheet":"Azonosítás","index":0,"n_rows":37,"n_cols":3,"rows_kept":37,"cut":false,"hidden":false,"merged":[[36,0,36,2],[5,0,5,2],[11,0,11,2],[34,0,34,2],[2,0,2,2],[3,0,3,2],[7,0,7,2],[8,0,8,2],[10,0,10,2],[6,0,6,2],[4,0,4,2],[35,0,35,2],[31,0,31,2],[32,0,32,2],[33,0,33,2]]}
[]
[null,"Beszámoló típusa:","Verzió: 3.0"]
[]
[]
["Szerződésszám:"]
[]
[]
[{"$f":"IF(A9=\"\",\"\",\"Intézmény neve:\")","v":""}]
[{"$f":"IFERROR(INDEX(Alapadatok,MATCH($A$6,Szerzodesszam),3),\"\")","v":""}]
[]
[{"$f":"IF(Erasmus_kod=\"\",\"\",\"Erasmus kód\")","v":""}]
[{"$f":"IFERROR(INDEX(Alapadatok,MATCH($A$6,Szerzodesszam),2),\"\")","v":""}]
[]
[]
[]
[]
[]
[]
[]
[]
[]
[]
[]
[]
[]
[]
[]
[]
[]
[]
[]
["Benyújtási határidő : 2014. április 30."]
[]
["Benyújtási határidő : 2014. október 30."]
["Erasmus évközi beszámoló 2013/2014"]
["Erasmus módosított évközi beszámoló 2013/2014"]
["Erasmus éves beszámoló 2013/2014"]

{"sheet":"Nyilatkozat","index":1,"n_rows":28,"n_cols":6,"rows_kept":28,"cut":false,"hidden":false,"merged":[[27,5,27,7],[17,0,18,7],[14,0,16,7],[22,4,22,6],[1,0,1,7],[3,0,3,7],[5,0,7,7],[9,0,12,7],[21,4,21,6],[25,4,25,6]]}
[]
["Nyilatkozat"]
[]
[]
[]
["Alulírott, mint a pályázó intézmény hivatalos képviselője aláírásommal igazolom, hogy a beszámolóban megadott adatok – legjobb tudomásom és ismereteim szerint – valósak és helytállók, a mobilitásban résztvevőkkel a szükséges szerződéseket minden esetben megkötöttük."]
[]
[]
[]
["Aláírásommal hozzájárulok, hogy a Tempus Közalapítvány a beszámolóban megadott adatokat kizárólag a beszámoló feldolgozása  érdekében kezelje, feldolgozza és azokat legalább 5 évig megőrizze. Hozzájárulok ahhoz, hogy az adatok feldolgozását követően az intézmény e beszámolóban feltüntetett főbb adatait a Tempus Közalapítvány nyilvánosságra hozza. "]
[]
[]
[]
[]
["Aláírásommal igazolom, hogy tanulmányi célú hallgatói és oktatói mobilitást csak érvényes kétoldalú megállapodás birtokában hajtunk végre olyan intézménnyel, mely jóváhagyott Erasmus Charter for Higher Education dokumentummal rendelkezik."]
[]
[]
[]
[]
["Kelt:"]
[]
["Név:",null,null,null,"Aláírás"]
["Beosztás:"]
[]
[]
["Név:",null,null,null,"Ellenjegyző aláírás (ha szükséges)"]
["Beosztás:"]
[null,null,null,null,null,"PH."]

{"sheet":"Partnerek","index":2,"n_rows":106,"n_cols":17,"rows_kept":106,"cut":false,"hidden":false,"merged":[[2,2,2,3],[3,2,3,3]]}
[]
[null,"Intézményi partnerek"]
[]
[null,null,"EGT koordinátor aláírása"]
[null,"Intézmény neve:",{"$f":"IFERROR(IF(Azonosítás!$A$9=\"\",\"\",Azonosítás!$A$9),\"\")","v":""}]
[null,"Szerződésszám:",{"$f":"IFERROR(Azonosítás!$A$6,\"\")","v":0},{"$f":"TODAY()","v":"2016-10-13"}]
[]
["Partnerazonosító","Partner Erasmus-kódja","Partner hivatalos neve (eredeti neve)","Partner angol neve","Intézmény típusa","Tevékenység jellege","Jogi státusz","Gazdasági\nágazat","Irányító-\nszám","Város","Ország","NUTS kód","Adószám","Kétoldalú egyezmény létrejötte (ÉÉÉÉ/HH/NN)","Partner kontaktszemély neve","Partnerszemély telefonszáma","Partner kontaktszemély e-mailcíme"]
[null,{"$f":"IF(Erasmus_kod=\"\",\"\",Erasmus_kod)","v":""},{"$f":"IF(Azonosítás!A9=\"\",\"\",Azonosítás!A9)","v":""},null,{"$f":"IF(B9<>\"\",\"EDU.4\",\"\")","v":""},{"$f":"IFERROR(IF(B9<>\"\",VLOOKUP(B9,'Pályázói adatok'!B:BD,46,FALSE),\"\"),\"\")","v":""},{"$f":"IFERROR(IF(B9<>\"\",VLOOKUP(B9,'Pályázói adatok'!B:BD,47,FALSE),\"\"),\"\")","v":""},{"$f":"IFERROR(IF(B9<>\"\",VLOOKUP(B9,'Pályázói adatok'!B:BD,48,FALSE),\"\"),\"\")","v":""},{"$f":"IFERROR(IF(B9<>\"\",VLOOKUP(B9,'Pályázói adatok'!B:BD,53,FALSE),\"\"),\"\")","v":""},{"$f":"IFERROR(IF(B9<>\"\",VLOOKUP(B9,'Pályázói adatok'!B:D,3,FALSE),\"\"),\"\")","v":""},{"$f":"IF(B9<>\"\",\"HU\",\"\")","v":""},{"$f":"IFERROR(IF(B9<>\"\",VLOOKUP(B9,'Pályázói adatok'!B:BH,59,FALSE),\"\"),\"\")","v":""},null,{"$f":"IF(B9<>\"\",\"---\",\"\")","v":""},{"$f":"IFERROR(IF(B9<>\"\",VLOOKUP(B9,'Pályázói adatok'!B:BI,60,FALSE),\"\"),\"\")","v":""},{"$f":"IFERROR(IF(B9<>\"\",VLOOKUP(B9,'Pályázói adatok'!B:BK,61,FALSE),\"\"),\"\")","v":""},{"$f":"IFERROR(IF(B9<>\"\",VLOOKUP(B9,'Pályázói adatok'!B:BK,62,FALSE),\"\"),\"\")","v":""}]
[null,null,{"$f":"IFERROR(PROPER(INDEX(Erasmus_kodok!B$2:B$52,MATCH(B10,EUC_osszes))),\"\")","v":""},null,{"$f":"IF(B10<>\"\",\"EDU.4\",\"\")","v":""},null,null,null,null,{"$f":"IFERROR(VLOOKUP(B10,Erasmus_kodok!C$1:F$52,4,FALSE),\"\")","v":""},{"$f":"IFERROR(VLOOKUP(B10,Erasmus_kodok!C$1:F$52,3,FALSE),\"\")","v":""}]
[null,null,{"$f":"IFERROR(PROPER(INDEX(Erasmus_kodok!B$2:B$52,MATCH(B11,EUC_osszes))),\"\")","v":""},null,{"$f":"IF(B11<>\"\",\"EDU.4\",\"\")","v":""},null,null,null,null,{"$f":"IFERROR(VLOOKUP(B11,Erasmus_kodok!C$1:F$52,4,FALSE),\"\")","v":""},{"$f":"IFERROR(VLOOKUP(B11,Erasmus_kodok!C$1:F$52,3,FALSE),\"\")","v":""}]
[null,null,{"$f":"IFERROR(PROPER(INDEX(Erasmus_kodok!B$2:B$52,MATCH(B12,EUC_osszes))),\"\")","v":""},null,"",null,null,null,null,{"$f":"IFERROR(VLOOKUP(B12,Erasmus_kodok!C$1:F$52,4,FALSE),\"\")","v":""},{"$f":"IFERROR(VLOOKUP(B12,Erasmus_kodok!C$1:F$52,3,FALSE),\"\")","v":""}]
[null,null,{"$f":"IFERROR(PROPER(INDEX(Erasmus_kodok!B$2:B$52,MATCH(B13,EUC_osszes))),\"\")","v":""},null,"",null,null,null,null,{"$f":"IFERROR(VLOOKUP(B13,Erasmus_kodok!C$1:F$52,4,FALSE),\"\")","v":""},{"$f":"IFERROR(VLOOKUP(B13,Erasmus_kodok!C$1:F$52,3,FALSE),\"\")","v":""}]
[null,null,{"$f":"IFERROR(PROPER(INDEX(Erasmus_kodok!B$2:B$52,MATCH(B14,EUC_osszes))),\"\")","v":""},null,"",null,null,null,null,{"$f":"IFERROR(VLOOKUP(B14,Erasmus_kodok!C$1:F$52,4,FALSE),\"\")","v":""},{"$f":"IFERROR(VLOOKUP(B14,Erasmus_kodok!C$1:F$52,3,FALSE),\"\")","v":""}]
[null,null,{"$f":"IFERROR(PROPER(INDEX(Erasmus_kodok!B$2:B$52,MATCH(B15,EUC_osszes))),\"\")","v":""},null,"",null,null,null,null,{"$f":"IFERROR(VLOOKUP(B15,Erasmus_kodok!C$1:F$52,4,FALSE),\"\")","v":""},{"$f":"IFERROR(VLOOKUP(B15,Erasmus_kodok!C$1:F$52,3,FALSE),\"\")","v":""}]
[null,null,{"$f":"IFERROR(PROPER(INDEX(Erasmus_kodok!B$2:B$52,MATCH(B16,EUC_osszes))),\"\")","v":""},null,"",null,null,null,null,{"$f":"IFERROR(VLOOKUP(B16,Erasmus_kodok!C$1:F$52,4,FALSE),\"\")","v":""},{"$f":"IFERROR(VLOOKUP(B16,Erasmus_kodok!C$1:F$52,3,FALSE),\"\")","v":""}]
[null,null,{"$f":"IFERROR(PROPER(INDEX(Erasmus_kodok!B$2:B$52,MATCH(B17,EUC_osszes))),\"\")","v":""},null,"",null,null,null,null,{"$f":"IFERROR(VLOOKUP(B17,Erasmus_kodok!C$1:F$52,4,FALSE),\"\")","v":""},{"$f":"IFERROR(VLOOKUP(B17,Erasmus_kodok!C$1:F$52,3,FALSE),\"\")","v":""}]
[null,null,{"$f":"IFERROR(PROPER(INDEX(Erasmus_kodok!B$2:B$52,MATCH(B18,EUC_osszes))),\"\")","v":""},null,"",null,null,null,null,{"$f":"IFERROR(VLOOKUP(B18,Erasmus_kodok!C$1:F$52,4,FALSE),\"\")","v":""},{"$f":"IFERROR(VLOOKUP(B18,Erasmus_kodok!C$1:F$52,3,FALSE),\"\")","v":""}]
[null,null,{"$f":"IFERROR(PROPER(INDEX(Erasmus_kodok!B$2:B$52,MATCH(B19,EUC_osszes))),\"\")","v":""},null,"",null,null,null,null,{"$f":"IFERROR(VLOOKUP(B19,Erasmus_kodok!C$1:F$52,4,FALSE),\"\")","v":""},{"$f":"IFERROR(VLOOKUP(B19,Erasmus_kodok!C$1:F$52,3,FALSE),\"\")","v":""}]
[null,null,{"$f":"IFERROR(PROPER(INDEX(Erasmus_kodok!B$2:B$52,MATCH(B20,EUC_osszes))),\"\")","v":""},null,"",null,null,null,null,{"$f":"IFERROR(VLOOKUP(B20,Erasmus_kodok!C$1:F$52,4,FALSE),\"\")","v":""},{"$f":"IFERROR(VLOOKUP(B20,Erasmus_kodok!C$1:F$52,3,FALSE),\"\")","v":""}]
[null,null,{"$f":"IFERROR(PROPER(INDEX(Erasmus_kodok!B$2:B$52,MATCH(B21,EUC_osszes))),\"\")","v":""},null,"",null,null,null,null,{"$f":"IFERROR(VLOOKUP(B21,Erasmus_kodok!C$1:F$52,4,FALSE),\"\")","v":""},{"$f":"IFERROR(VLOOKUP(B21,Erasmus_kodok!C$1:F$52,3,FALSE),\"\")","v":""}]
[null,null,{"$f":"IFERROR(PROPER(INDEX(Erasmus_kodok!B$2:B$52,MATCH(B22,EUC_osszes))),\"\")","v":""},null,"",null,null,null,null,{"$f":"IFERROR(VLOOKUP(B22,Erasmus_kodok!C$1:F$52,4,FALSE),\"\")","v":""},{"$f":"IFERROR(VLOOKUP(B22,Erasmus_kodok!C$1:F$52,3,FALSE),\"\")","v":""}]
[null,null,{"$f":"IFERROR(PROPER(INDEX(Erasmus_kodok!B$2:B$52,MATCH(B23,EUC_osszes))),\"\")","v":""},null,"",null,null,null,null,{"$f":"IFERROR(VLOOKUP(B23,Erasmus_kodok!C$1:F$52,4,FALSE),\"\")","v":""},{"$f":"IFERROR(VLOOKUP(B23,Erasmus_kodok!C$1:F$52,3,FALSE),\"\")","v":""}]
[null,null,{"$f":"IFERROR(PROPER(INDEX(Erasmus_kodok!B$2:B$52,MATCH(B24,EUC_osszes))),\"\")","v":""},null,"",null,null,null,null,{"$f":"IFERROR(VLOOKUP(B24,Erasmus_kodok!C$1:F$52,4,FALSE),\"\")","v":""},{"$f":"IFERROR(VLOOKUP(B24,Erasmus_kodok!C$1:F$52,3,FALSE),\"\")","v":""}]
[null,null,{"$f":"IFERROR(PROPER(INDEX(Erasmus_kodok!B$2:B$52,MATCH(B25,EUC_osszes))),\"\")","v":""},null,"",null,null,null,null,{"$f":"IFERROR(VLOOKUP(B25,Erasmus_kodok!C$1:F$52,4,FALSE),\"\")","v":""},{"$f":"IFERROR(VLOOKUP(B25,Erasmus_kodok!C$1:F$52,3,FALSE),\"\")","v":""}]
[null,null,{"$f":"IFERROR(PROPER(INDEX(Erasmus_kodok!B$2:B$52,MATCH(B26,EUC_osszes))),\"\")","v":""},null,"",null,null,null,null,{"$f":"IFERROR(VLOOKUP(B26,Erasmus_kodok!C$1:F$52,4,FALSE),\"\")","v":""},{"$f":"IFERROR(VLOOKUP(B26,Erasmus_kodok!C$1:F$52,3,FALSE),\"\")","v":""}]
[null,null,{"$f":"IFERROR(PROPER(INDEX(Erasmus_kodok!B$2:B$52,MATCH(B27,EUC_osszes))),\"\")","v":""},null,"",null,null,null,null,{"$f":"IFERROR(VLOOKUP(B27,Erasmus_kodok!C$1:F$52,4,FALSE),\"\")","v":""},{"$f":"IFERROR(VLOOKUP(B27,Erasmus_kodok!C$1:F$52,3,FALSE),\"\")","v":""}]
[null,null,{"$f":"IFERROR(PROPER(INDEX(Erasmus_kodok!B$2:B$52,MATCH(B28,EUC_osszes))),\"\")","v":""},null,"",null,null,null,null,{"$f":"IFERROR(VLOOKUP(B28,Erasmus_kodok!C$1:F$52,4,FALSE),\"\")","v":""},{"$f":"IFERROR(VLOOKUP(B28,Erasmus_kodok!C$1:F$52,3,FALSE),\"\")","v":""}]
[null,null,{"$f":"IFERROR(PROPER(INDEX(Erasmus_kodok!B$2:B$52,MATCH(B29,EUC_osszes))),\"\")","v":""},null,"",null,null,null,null,{"$f":"IFERROR(VLOOKUP(B29,Erasmus_kodok!C$1:F$52,4,FALSE),\"\")","v":""},{"$f":"IFERROR(VLOOKUP(B29,Erasmus_kodok!C$1:F$52,3,FALSE),\"\")","v":""}]
[null,null,{"$f":"IFERROR(PROPER(INDEX(Erasmus_kodok!B$2:B$52,MATCH(B30,EUC_osszes))),\"\")","v":""},null,"",null,null,null,null,{"$f":"IFERROR(VLOOKUP(B30,Erasmus_kodok!C$1:F$52,4,FALSE),\"\")","v":""},{"$f":"IFERROR(VLOOKUP(B30,Erasmus_kodok!C$1:F$52,3,FALSE),\"\")","v":""}]
[null,null,{"$f":"IFERROR(PROPER(INDEX(Erasmus_kodok!B$2:B$52,MATCH(B31,EUC_osszes))),\"\")","v":""},null,"",null,null,null,null,{"$f":"IFERROR(VLOOKUP(B31,Erasmus_kodok!C$1:F$52,4,FALSE),\"\")","v":""},{"$f":"IFERROR(VLOOKUP(B31,Erasmus_kodok!C$1:F$52,3,FALSE),\"\")","v":""}]
[null,null,{"$f":"IFERROR(PROPER(INDEX(Erasmus_kodok!B$2:B$52,MATCH(B32,EUC_osszes))),\"\")","v":""},null,"",null,null,null,null,{"$f":"IFERROR(VLOOKUP(B32,Erasmus_kodok!C$1:F$52,4,FALSE),\"\")","v":""},{"$f":"IFERROR(VLOOKUP(B32,Erasmus_kodok!C$1:F$52,3,FALSE),\"\")","v":""}]
[null,null,{"$f":"IFERROR(PROPER(INDEX(Erasmus_kodok!B$2:B$52,MATCH(B33,EUC_osszes))),\"\")","v":""},null,"",null,null,null,null,{"$f":"IFERROR(VLOOKUP(B33,Erasmus_kodok!C$1:F$52,4,FALSE),\"\")","v":""},{"$f":"IFERROR(VLOOKUP(B33,Erasmus_kodok!C$1:F$52,3,FALSE),\"\")","v":""}]
[null,null,{"$f":"IFERROR(PROPER(INDEX(Erasmus_kodok!B$2:B$52,MATCH(B34,EUC_osszes))),\"\")","v":""},null,"",null,null,null,null,{"$f":"IFERROR(VLOOKUP(B34,Erasmus_kodok!C$1:F$52,4,FALSE),\"\")","v":""},{"$f":"IFERROR(VLOOKUP(B34,Erasmus_kodok!C$1:F$52,3,FALSE),\"\")","v":""}]
[null,null,{"$f":"IFERROR(PROPER(INDEX(Erasmus_kodok!B$2:B$52,MATCH(B35,EUC_osszes))),\"\")","v":""},null,"",null,null,null,null,{"$f":"IFERROR(VLOOKUP(B35,Erasmus_kodok!C$1:F$52,4,FALSE),\"\")","v":""},{"$f":"IFERROR(VLOOKUP(B35,Erasmus_kodok!C$1:F$52,3,FALSE),\"\")","v":""}]
[null,null,{"$f":"IFERROR(PROPER(INDEX(Erasmus_kodok!B$2:B$52,MATCH(B36,EUC_osszes))),\"\")","v":""},null,"",null,null,null,null,{"$f":"IFERROR(VLOOKUP(B36,Erasmus_kodok!C$1:F$52,4,FALSE),\"\")","v":""},{"$f":"IFERROR(VLOOKUP(B36,Erasmus_kodok!C$1:F$52,3,FALSE),\"\")","v":""}]
[null,null,{"$f":"IFERROR(PROPER(INDEX(Erasmus_kodok!B$2:B$52,MATCH(B37,EUC_osszes))),\"\")","v":""},null,"",null,null,null,null,{"$f":"IFERROR(VLOOKUP(B37,Erasmus_kodok!C$1:F$52,4,FALSE),\"\")","v":""},{"$f":"IFERROR(VLOOKUP(B37,Erasmus_kodok!C$1:F$52,3,FALSE),\"\")","v":""}]
[null,null,{"$f":"IFERROR(PROPER(INDEX(Erasmus_kodok!B$2:B$52,MATCH(B38,EUC_osszes))),\"\")","v":""},null,"",null,null,null,null,{"$f":"IFERROR(VLOOKUP(B38,Erasmus_kodok!C$1:F$52,4,FALSE),\"\")","v":""},{"$f":"IFERROR(VLOOKUP(B38,Erasmus_kodok!C$1:F$52,3,FALSE),\"\")","v":""}]
[null,null,{"$f":"IFERROR(PROPER(INDEX(Erasmus_kodok!B$2:B$52,MATCH(B39,EUC_osszes))),\"\")","v":""},null,"",null,null,null,null,{"$f":"IFERROR(VLOOKUP(B39,Erasmus_kodok!C$1:F$52,4,FALSE),\"\")","v":""},{"$f":"IFERROR(VLOOKUP(B39,Erasmus_kodok!C$1:F$52,3,FALSE),\"\")","v":""}]
[null,null,{"$f":"IFERROR(PROPER(INDEX(Erasmus_kodok!B$2:B$52,MATCH(B40,EUC_osszes))),\"\")","v":""},null,"",null,null,null,null,{"$f":"IFERROR(VLOOKUP(B40,Erasmus_kodok!C$1:F$52,4,FALSE),\"\")","v":""},{"$f":"IFERROR(VLOOKUP(B40,Erasmus_kodok!C$1:F$52,3,FALSE),\"\")","v":""}]
[null,null,{"$f":"IFERROR(PROPER(INDEX(Erasmus_kodok!B$2:B$52,MATCH(B41,EUC_osszes))),\"\")","v":""},null,"",null,null,null,null,{"$f":"IFERROR(VLOOKUP(B41,Erasmus_kodok!C$1:F$52,4,FALSE),\"\")","v":""},{"$f":"IFERROR(VLOOKUP(B41,Erasmus_kodok!C$1:F$52,3,FALSE),\"\")","v":""}]
[null,null,{"$f":"IFERROR(PROPER(INDEX(Erasmus_kodok!B$2:B$52,MATCH(B42,EUC_osszes))),\"\")","v":""},null,"",null,null,null,null,{"$f":"IFERROR(VLOOKUP(B42,Erasmus_kodok!C$1:F$52,4,FALSE),\"\")","v":""},{"$f":"IFERROR(VLOOKUP(B42,Erasmus_kodok!C$1:F$52,3,FALSE),\"\")","v":""}]
[null,null,{"$f":"IFERROR(PROPER(INDEX(Erasmus_kodok!B$2:B$52,MATCH(B43,EUC_osszes))),\"\")","v":""},null,"",null,null,null,null,{"$f":"IFERROR(VLOOKUP(B43,Erasmus_kodok!C$1:F$52,4,FALSE),\"\")","v":""},{"$f":"IFERROR(VLOOKUP(B43,Erasmus_kodok!C$1:F$52,3,FALSE),\"\")","v":""}]
[null,null,{"$f":"IFERROR(PROPER(INDEX(Erasmus_kodok!B$2:B$52,MATCH(B44,EUC_osszes))),\"\")","v":""},null,"",null,null,null,null,{"$f":"IFERROR(VLOOKUP(B44,Erasmus_kodok!C$1:F$52,4,FALSE),\"\")","v":""},{"$f":"IFERROR(VLOOKUP(B44,Erasmus_kodok!C$1:F$52,3,FALSE),\"\")","v":""}]
[null,null,{"$f":"IFERROR(PROPER(INDEX(Erasmus_kodok!B$2:B$52,MATCH(B45,EUC_osszes))),\"\")","v":""},null,"",null,null,null,null,{"$f":"IFERROR(VLOOKUP(B45,Erasmus_kodok!C$1:F$52,4,FALSE),\"\")","v":""},{"$f":"IFERROR(VLOOKUP(B45,Erasmus_kodok!C$1:F$52,3,FALSE),\"\")","v":""}]
[null,null,{"$f":"IFERROR(PROPER(INDEX(Erasmus_kodok!B$2:B$52,MATCH(B46,EUC_osszes))),\"\")","v":""},null,"",null,null,null,null,{"$f":"IFERROR(VLOOKUP(B46,Erasmus_kodok!C$1:F$52,4,FALSE),\"\")","v":""},{"$f":"IFERROR(VLOOKUP(B46,Erasmus_kodok!C$1:F$52,3,FALSE),\"\")","v":""}]
[null,null,{"$f":"IFERROR(PROPER(INDEX(Erasmus_kodok!B$2:B$52,MATCH(B47,EUC_osszes))),\"\")","v":""},null,"",null,null,null,null,{"$f":"IFERROR(VLOOKUP(B47,Erasmus_kodok!C$1:F$52,4,FALSE),\"\")","v":""},{"$f":"IFERROR(VLOOKUP(B47,Erasmus_kodok!C$1:F$52,3,FALSE),\"\")","v":""}]
[null,null,{"$f":"IFERROR(PROPER(INDEX(Erasmus_kodok!B$2:B$52,MATCH(B48,EUC_osszes))),\"\")","v":""},null,"",null,null,null,null,{"$f":"IFERROR(VLOOKUP(B48,Erasmus_kodok!C$1:F$52,4,FALSE),\"\")","v":""},{"$f":"IFERROR(VLOOKUP(B48,Erasmus_kodok!C$1:F$52,3,FALSE),\"\")","v":""}]
[null,null,{"$f":"IFERROR(PROPER(INDEX(Erasmus_kodok!B$2:B$52,MATCH(B49,EUC_osszes))),\"\")","v":""},null,"",null,null,null,null,{"$f":"IFERROR(VLOOKUP(B49,Erasmus_kodok!C$1:F$52,4,FALSE),\"\")","v":""},{"$f":"IFERROR(VLOOKUP(B49,Erasmus_kodok!C$1:F$52,3,FALSE),\"\")","v":""}]
[null,null,{"$f":"IFERROR(PROPER(INDEX(Erasmus_kodok!B$2:B$52,MATCH(B50,EUC_osszes))),\"\")","v":""},null,"",null,null,null,null,{"$f":"IFERROR(VLOOKUP(B50,Erasmus_kodok!C$1:F$52,4,FALSE),\"\")","v":""},{"$f":"IFERROR(VLOOKUP(B50,Erasmus_kodok!C$1:F$52,3,FALSE),\"\")","v":""}]
[null,null,{"$f":"IFERROR(PROPER(INDEX(Erasmus_kodok!B$2:B$52,MATCH(B51,EUC_osszes))),\"\")","v":""},null,"",null,null,null,null,{"$f":"IFERROR(VLOOKUP(B51,Erasmus_kodok!C$1:F$52,4,FALSE),\"\")","v":""},{"$f":"IFERROR(VLOOKUP(B51,Erasmus_kodok!C$1:F$52,3,FALSE),\"\")","v":""}]
[null,null,{"$f":"IFERROR(PROPER(INDEX(Erasmus_kodok!B$2:B$52,MATCH(B52,EUC_osszes))),\"\")","v":""},null,"",null,null,null,null,{"$f":"IFERROR(VLOOKUP(B52,Erasmus_kodok!C$1:F$52,4,FALSE),\"\")","v":""},{"$f":"IFERROR(VLOOKUP(B52,Erasmus_kodok!C$1:F$52,3,FALSE),\"\")","v":""}]
[null,null,{"$f":"IFERROR(PROPER(INDEX(Erasmus_kodok!B$2:B$52,MATCH(B53,EUC_osszes))),\"\")","v":""},null,"",null,null,null,null,{"$f":"IFERROR(VLOOKUP(B53,Erasmus_kodok!C$1:F$52,4,FALSE),\"\")","v":""},{"$f":"IFERROR(VLOOKUP(B53,Erasmus_kodok!C$1:F$52,3,FALSE),\"\")","v":""}]
[null,null,{"$f":"IFERROR(PROPER(INDEX(Erasmus_kodok!B$2:B$52,MATCH(B54,EUC_osszes))),\"\")","v":""},null,"",null,null,null,null,{"$f":"IFERROR(VLOOKUP(B54,Erasmus_kodok!C$1:F$52,4,FALSE),\"\")","v":""},{"$f":"IFERROR(VLOOKUP(B54,Erasmus_kodok!C$1:F$52,3,FALSE),\"\")","v":""}]
[null,null,{"$f":"IFERROR(PROPER(INDEX(Erasmus_kodok!B$2:B$52,MATCH(B55,EUC_osszes))),\"\")","v":""},null,"",null,null,null,null,{"$f":"IFERROR(VLOOKUP(B55,Erasmus_kodok!C$1:F$52,4,FALSE),\"\")","v":""},{"$f":"IFERROR(VLOOKUP(B55,Erasmus_kodok!C$1:F$52,3,FALSE),\"\")","v":""}]
[null,null,{"$f":"IFERROR(PROPER(INDEX(Erasmus_kodok!B$2:B$52,MATCH(B56,EUC_osszes))),\"\")","v":""},null,"",null,null,null,null,{"$f":"IFERROR(VLOOKUP(B56,Erasmus_kodok!C$1:F$52,4,FALSE),\"\")","v":""},{"$f":"IFERROR(VLOOKUP(B56,Erasmus_kodok!C$1:F$52,3,FALSE),\"\")","v":""}]
[null,null,{"$f":"IFERROR(PROPER(INDEX(Erasmus_kodok!B$2:B$52,MATCH(B57,EUC_osszes))),\"\")","v":""},null,"",null,null,null,null,{"$f":"IFERROR(VLOOKUP(B57,Erasmus_kodok!C$1:F$52,4,FALSE),\"\")","v":""},{"$f":"IFERROR(VLOOKUP(B57,Erasmus_kodok!C$1:F$52,3,FALSE),\"\")","v":""}]
[null,null,{"$f":"IFERROR(PROPER(INDEX(Erasmus_kodok!B$2:B$52,MATCH(B58,EUC_osszes))),\"\")","v":""},null,"",null,null,null,null,{"$f":"IFERROR(VLOOKUP(B58,Erasmus_kodok!C$1:F$52,4,FALSE),\"\")","v":""},{"$f":"IFERROR(VLOOKUP(B58,Erasmus_kodok!C$1:F$52,3,FALSE),\"\")","v":""}]
[null,null,{"$f":"IFERROR(PROPER(INDEX(Erasmus_kodok!B$2:B$52,MATCH(B59,EUC_osszes))),\"\")","v":""},null,"",null,null,null,null,{"$f":"IFERROR(VLOOKUP(B59,Erasmus_kodok!C$1:F$52,4,FALSE),\"\")","v":""},{"$f":"IFERROR(VLOOKUP(B59,Erasmus_kodok!C$1:F$52,3,FALSE),\"\")","v":""}]
[null,null,{"$f":"IFERROR(PROPER(INDEX(Erasmus_kodok!B$2:B$52,MATCH(B60,EUC_osszes))),\"\")","v":""},null,"",null,null,null,null,{"$f":"IFERROR(VLOOKUP(B60,Erasmus_kodok!C$1:F$52,4,FALSE),\"\")","v":""},{"$f":"IFERROR(VLOOKUP(B60,Erasmus_kodok!C$1:F$52,3,FALSE),\"\")","v":""}]
[null,null,{"$f":"IFERROR(PROPER(INDEX(Erasmus_kodok!B$2:B$52,MATCH(B61,EUC_osszes))),\"\")","v":""},null,"",null,null,null,null,{"$f":"IFERROR(VLOOKUP(B61,Erasmus_kodok!C$1:F$52,4,FALSE),\"\")","v":""},{"$f":"IFERROR(VLOOKUP(B61,Erasmus_kodok!C$1:F$52,3,FALSE),\"\")","v":""}]
[null,null,{"$f":"IFERROR(PROPER(INDEX(Erasmus_kodok!B$2:B$52,MATCH(B62,EUC_osszes))),\"\")","v":""},null,"",null,null,null,null,{"$f":"IFERROR(VLOOKUP(B62,Erasmus_kodok!C$1:F$52,4,FALSE),\"\")","v":""},{"$f":"IFERROR(VLOOKUP(B62,Erasmus_kodok!C$1:F$52,3,FALSE),\"\")","v":""}]
[null,null,{"$f":"IFERROR(PROPER(INDEX(Erasmus_kodok!B$2:B$52,MATCH(B63,EUC_osszes))),\"\")","v":""},null,"",null,null,null,null,{"$f":"IFERROR(VLOOKUP(B63,Erasmus_kodok!C$1:F$52,4,FALSE),\"\")","v":""},{"$f":"IFERROR(VLOOKUP(B63,Erasmus_kodok!C$1:F$52,3,FALSE),\"\")","v":""}]
[null,null,{"$f":"IFERROR(PROPER(INDEX(Erasmus_kodok!B$2:B$52,MATCH(B64,EUC_osszes))),\"\")","v":""},null,"",null,null,null,null,{"$f":"IFERROR(VLOOKUP(B64,Erasmus_kodok!C$1:F$52,4,FALSE),\"\")","v":""},{"$f":"IFERROR(VLOOKUP(B64,Erasmus_kodok!C$1:F$52,3,FALSE),\"\")","v":""}]
[null,null,{"$f":"IFERROR(PROPER(INDEX(Erasmus_kodok!B$2:B$52,MATCH(B65,EUC_osszes))),\"\")","v":""},null,"",null,null,null,null,{"$f":"IFERROR(VLOOKUP(B65,Erasmus_kodok!C$1:F$52,4,FALSE),\"\")","v":""},{"$f":"IFERROR(VLOOKUP(B65,Erasmus_kodok!C$1:F$52,3,FALSE),\"\")","v":""}]
[null,null,{"$f":"IFERROR(PROPER(INDEX(Erasmus_kodok!B$2:B$52,MATCH(B66,EUC_osszes))),\"\")","v":""},null,"",null,null,null,null,{"$f":"IFERROR(VLOOKUP(B66,Erasmus_kodok!C$1:F$52,4,FALSE),\"\")","v":""},{"$f":"IFERROR(VLOOKUP(B66,Erasmus_kodok!C$1:F$52,3,FALSE),\"\")","v":""}]
[null,null,{"$f":"IFERROR(PROPER(INDEX(Erasmus_kodok!B$2:B$52,MATCH(B67,EUC_osszes))),\"\")","v":""},null,"",null,null,null,null,{"$f":"IFERROR(VLOOKUP(B67,Erasmus_kodok!C$1:F$52,4,FALSE),\"\")","v":""},{"$f":"IFERROR(VLOOKUP(B67,Erasmus_kodok!C$1:F$52,3,FALSE),\"\")","v":""}]
[null,null,{"$f":"IFERROR(PROPER(INDEX(Erasmus_kodok!B$2:B$52,MATCH(B68,EUC_osszes))),\"\")","v":""},null,"",null,null,null,null,{"$f":"IFERROR(VLOOKUP(B68,Erasmus_kodok!C$1:F$52,4,FALSE),\"\")","v":""},{"$f":"IFERROR(VLOOKUP(B68,Erasmus_kodok!C$1:F$52,3,FALSE),\"\")","v":""}]
[null,null,{"$f":"IFERROR(PROPER(INDEX(Erasmus_kodok!B$2:B$52,MATCH(B69,EUC_osszes))),\"\")","v":""},null,"",null,null,null,null,{"$f":"IFERROR(VLOOKUP(B69,Erasmus_kodok!C$1:F$52,4,FALSE),\"\")","v":""},{"$f":"IFERROR(VLOOKUP(B69,Erasmus_kodok!C$1:F$52,3,FALSE),\"\")","v":""}]
[null,null,{"$f":"IFERROR(PROPER(INDEX(Erasmus_kodok!B$2:B$52,MATCH(B70,EUC_osszes))),\"\")","v":""},null,"",null,null,null,null,{"$f":"IFERROR(VLOOKUP(B70,Erasmus_kodok!C$1:F$52,4,FALSE),\"\")","v":""},{"$f":"IFERROR(VLOOKUP(B70,Erasmus_kodok!C$1:F$52,3,FALSE),\"\")","v":""}]
[null,null,{"$f":"IFERROR(PROPER(INDEX(Erasmus_kodok!B$2:B$52,MATCH(B71,EUC_osszes))),\"\")","v":""},null,"",null,null,null,null,{"$f":"IFERROR(VLOOKUP(B71,Erasmus_kodok!C$1:F$52,4,FALSE),\"\")","v":""},{"$f":"IFERROR(VLOOKUP(B71,Erasmus_kodok!C$1:F$52,3,FALSE),\"\")","v":""}]
[null,null,{"$f":"IFERROR(PROPER(INDEX(Erasmus_kodok!B$2:B$52,MATCH(B72,EUC_osszes))),\"\")","v":""},null,"",null,null,null,null,{"$f":"IFERROR(VLOOKUP(B72,Erasmus_kodok!C$1:F$52,4,FALSE),\"\")","v":""},{"$f":"IFERROR(VLOOKUP(B72,Erasmus_kodok!C$1:F$52,3,FALSE),\"\")","v":""}]
[null,null,{"$f":"IFERROR(PROPER(INDEX(Erasmus_kodok!B$2:B$52,MATCH(B73,EUC_osszes))),\"\")","v":""},null,{"$f":"IF(B73<>\"\",\"EDU.4\",\"\")","v":""},null,null,null,null,{"$f":"IFERROR(VLOOKUP(B73,Erasmus_kodok!C$1:F$52,4,FALSE),\"\")","v":""},{"$f":"IFERROR(VLOOKUP(B73,Erasmus_kodok!C$1:F$52,3,FALSE),\"\")","v":""}]
[null,null,{"$f":"IFERROR(PROPER(INDEX(Erasmus_kodok!B$2:B$52,MATCH(B74,EUC_osszes))),\"\")","v":""},null,"",null,null,null,null,{"$f":"IFERROR(VLOOKUP(B74,Erasmus_kodok!C$1:F$52,4,FALSE),\"\")","v":""},{"$f":"IFERROR(VLOOKUP(B74,Erasmus_kodok!C$1:F$52,3,FALSE),\"\")","v":""}]
[null,null,{"$f":"IFERROR(PROPER(INDEX(Erasmus_kodok!B$2:B$52,MATCH(B75,EUC_osszes))),\"\")","v":""},null,"",null,null,null,null,{"$f":"IFERROR(VLOOKUP(B75,Erasmus_kodok!C$1:F$52,4,FALSE),\"\")","v":""},{"$f":"IFERROR(VLOOKUP(B75,Erasmus_kodok!C$1:F$52,3,FALSE),\"\")","v":""}]
[null,null,{"$f":"IFERROR(PROPER(INDEX(Erasmus_kodok!B$2:B$52,MATCH(B76,EUC_osszes))),\"\")","v":""},null,"",null,null,null,null,{"$f":"IFERROR(VLOOKUP(B76,Erasmus_kodok!C$1:F$52,4,FALSE),\"\")","v":""},{"$f":"IFERROR(VLOOKUP(B76,Erasmus_kodok!C$1:F$52,3,FALSE),\"\")","v":""}]
[null,null,{"$f":"IFERROR(PROPER(INDEX(Erasmus_kodok!B$2:B$52,MATCH(B77,EUC_osszes))),\"\")","v":""},null,"",null,null,null,null,{"$f":"IFERROR(VLOOKUP(B77,Erasmus_kodok!C$1:F$52,4,FALSE),\"\")","v":""},{"$f":"IFERROR(VLOOKUP(B77,Erasmus_kodok!C$1:F$52,3,FALSE),\"\")","v":""}]
[null,null,{"$f":"IFERROR(PROPER(INDEX(Erasmus_kodok!B$2:B$52,MATCH(B78,EUC_osszes))),\"\")","v":""},null,"",null,null,null,null,{"$f":"IFERROR(VLOOKUP(B78,Erasmus_kodok!C$1:F$52,4,FALSE),\"\")","v":""},{"$f":"IFERROR(VLOOKUP(B78,Erasmus_kodok!C$1:F$52,3,FALSE),\"\")","v":""}]
[null,null,{"$f":"IFERROR(PROPER(INDEX(Erasmus_kodok!B$2:B$52,MATCH(B79,EUC_osszes))),\"\")","v":""},null,"",null,null,null,null,{"$f":"IFERROR(VLOOKUP(B79,Erasmus_kodok!C$1:F$52,4,FALSE),\"\")","v":""},{"$f":"IFERROR(VLOOKUP(B79,Erasmus_kodok!C$1:F$52,3,FALSE),\"\")","v":""}]
[null,null,{"$f":"IFERROR(PROPER(INDEX(Erasmus_kodok!B$2:B$52,MATCH(B80,EUC_osszes))),\"\")","v":""},null,"",null,null,null,null,{"$f":"IFERROR(VLOOKUP(B80,Erasmus_kodok!C$1:F$52,4,FALSE),\"\")","v":""},{"$f":"IFERROR(VLOOKUP(B80,Erasmus_kodok!C$1:F$52,3,FALSE),\"\")","v":""}]
[null,null,{"$f":"IFERROR(PROPER(INDEX(Erasmus_kodok!B$2:B$52,MATCH(B81,EUC_osszes))),\"\")","v":""},null,"",null,null,null,null,{"$f":"IFERROR(VLOOKUP(B81,Erasmus_kodok!C$1:F$52,4,FALSE),\"\")","v":""},{"$f":"IFERROR(VLOOKUP(B81,Erasmus_kodok!C$1:F$52,3,FALSE),\"\")","v":""}]
[null,null,{"$f":"IFERROR(PROPER(INDEX(Erasmus_kodok!B$2:B$52,MATCH(B82,EUC_osszes))),\"\")","v":""},null,"",null,null,null,null,{"$f":"IFERROR(VLOOKUP(B82,Erasmus_kodok!C$1:F$52,4,FALSE),\"\")","v":""},{"$f":"IFERROR(VLOOKUP(B82,Erasmus_kodok!C$1:F$52,3,FALSE),\"\")","v":""}]
[null,null,{"$f":"IFERROR(PROPER(INDEX(Erasmus_kodok!B$2:B$52,MATCH(B83,EUC_osszes))),\"\")","v":""},null,"",null,null,null,null,{"$f":"IFERROR(VLOOKUP(B83,Erasmus_kodok!C$1:F$52,4,FALSE),\"\")","v":""},{"$f":"IFERROR(VLOOKUP(B83,Erasmus_kodok!C$1:F$52,3,FALSE),\"\")","v":""}]
[null,null,{"$f":"IFERROR(PROPER(INDEX(Erasmus_kodok!B$2:B$52,MATCH(B84,EUC_osszes))),\"\")","v":""},null,"",null,null,null,null,{"$f":"IFERROR(VLOOKUP(B84,Erasmus_kodok!C$1:F$52,4,FALSE),\"\")","v":""},{"$f":"IFERROR(VLOOKUP(B84,Erasmus_kodok!C$1:F$52,3,FALSE),\"\")","v":""}]
[null,null,{"$f":"IFERROR(PROPER(INDEX(Erasmus_kodok!B$2:B$52,MATCH(B85,EUC_osszes))),\"\")","v":""},null,"",null,null,null,null,{"$f":"IFERROR(VLOOKUP(B85,Erasmus_kodok!C$1:F$52,4,FALSE),\"\")","v":""},{"$f":"IFERROR(VLOOKUP(B85,Erasmus_kodok!C$1:F$52,3,FALSE),\"\")","v":""}]
[null,null,{"$f":"IFERROR(PROPER(INDEX(Erasmus_kodok!B$2:B$52,MATCH(B86,EUC_osszes))),\"\")","v":""},null,"",null,null,null,null,{"$f":"IFERROR(VLOOKUP(B86,Erasmus_kodok!C$1:F$52,4,FALSE),\"\")","v":""},{"$f":"IFERROR(VLOOKUP(B86,Erasmus_kodok!C$1:F$52,3,FALSE),\"\")","v":""}]
[null,null,{"$f":"IFERROR(PROPER(INDEX(Erasmus_kodok!B$2:B$52,MATCH(B87,EUC_osszes))),\"\")","v":""},null,"",null,null,null,null,{"$f":"IFERROR(VLOOKUP(B87,Erasmus_kodok!C$1:F$52,4,FALSE),\"\")","v":""},{"$f":"IFERROR(VLOOKUP(B87,Erasmus_kodok!C$1:F$52,3,FALSE),\"\")","v":""}]
[null,null,{"$f":"IFERROR(PROPER(INDEX(Erasmus_kodok!B$2:B$52,MATCH(B88,EUC_osszes))),\"\")","v":""},null,"",null,null,null,null,{"$f":"IFERROR(VLOOKUP(B88,Erasmus_kodok!C$1:F$52,4,FALSE),\"\")","v":""},{"$f":"IFERROR(VLOOKUP(B88,Erasmus_kodok!C$1:F$52,3,FALSE),\"\")","v":""}]
[null,null,{"$f":"IFERROR(PROPER(INDEX(Erasmus_kodok!B$2:B$52,MATCH(B89,EUC_osszes))),\"\")","v":""},null,"",null,null,null,null,{"$f":"IFERROR(VLOOKUP(B89,Erasmus_kodok!C$1:F$52,4,FALSE),\"\")","v":""},{"$f":"IFERROR(VLOOKUP(B89,Erasmus_kodok!C$1:F$52,3,FALSE),\"\")","v":""}]
[null,null,{"$f":"IFERROR(PROPER(INDEX(Erasmus_kodok!B$2:B$52,MATCH(B90,EUC_osszes))),\"\")","v":""},null,"",null,null,null,null,{"$f":"IFERROR(VLOOKUP(B90,Erasmus_kodok!C$1:F$52,4,FALSE),\"\")","v":""},{"$f":"IFERROR(VLOOKUP(B90,Erasmus_kodok!C$1:F$52,3,FALSE),\"\")","v":""}]
[null,null,{"$f":"IFERROR(PROPER(INDEX(Erasmus_kodok!B$2:B$52,MATCH(B91,EUC_osszes))),\"\")","v":""},null,"",null,null,null,null,{"$f":"IFERROR(VLOOKUP(B91,Erasmus_kodok!C$1:F$52,4,FALSE),\"\")","v":""},{"$f":"IFERROR(VLOOKUP(B91,Erasmus_kodok!C$1:F$52,3,FALSE),\"\")","v":""}]
[null,null,{"$f":"IFERROR(PROPER(INDEX(Erasmus_kodok!B$2:B$52,MATCH(B92,EUC_osszes))),\"\")","v":""},null,"",null,null,null,null,{"$f":"IFERROR(VLOOKUP(B92,Erasmus_kodok!C$1:F$52,4,FALSE),\"\")","v":""},{"$f":"IFERROR(VLOOKUP(B92,Erasmus_kodok!C$1:F$52,3,FALSE),\"\")","v":""}]
[null,null,{"$f":"IFERROR(PROPER(INDEX(Erasmus_kodok!B$2:B$52,MATCH(B93,EUC_osszes))),\"\")","v":""},null,"",null,null,null,null,{"$f":"IFERROR(VLOOKUP(B93,Erasmus_kodok!C$1:F$52,4,FALSE),\"\")","v":""},{"$f":"IFERROR(VLOOKUP(B93,Erasmus_kodok!C$1:F$52,3,FALSE),\"\")","v":""}]
[null,null,{"$f":"IFERROR(PROPER(INDEX(Erasmus_kodok!B$2:B$52,MATCH(B94,EUC_osszes))),\"\")","v":""},null,"",null,null,null,null,{"$f":"IFERROR(VLOOKUP(B94,Erasmus_kodok!C$1:F$52,4,FALSE),\"\")","v":""},{"$f":"IFERROR(VLOOKUP(B94,Erasmus_kodok!C$1:F$52,3,FALSE),\"\")","v":""}]
[null,null,{"$f":"IFERROR(PROPER(INDEX(Erasmus_kodok!B$2:B$52,MATCH(B95,EUC_osszes))),\"\")","v":""},null,"",null,null,null,null,{"$f":"IFERROR(VLOOKUP(B95,Erasmus_kodok!C$1:F$52,4,FALSE),\"\")","v":""},{"$f":"IFERROR(VLOOKUP(B95,Erasmus_kodok!C$1:F$52,3,FALSE),\"\")","v":""}]
[null,null,{"$f":"IFERROR(PROPER(INDEX(Erasmus_kodok!B$2:B$52,MATCH(B96,EUC_osszes))),\"\")","v":""},null,"",null,null,null,null,{"$f":"IFERROR(VLOOKUP(B96,Erasmus_kodok!C$1:F$52,4,FALSE),\"\")","v":""},{"$f":"IFERROR(VLOOKUP(B96,Erasmus_kodok!C$1:F$52,3,FALSE),\"\")","v":""}]
[null,null,{"$f":"IFERROR(PROPER(INDEX(Erasmus_kodok!B$2:B$52,MATCH(B97,EUC_osszes))),\"\")","v":""},null,"",null,null,null,null,{"$f":"IFERROR(VLOOKUP(B97,Erasmus_kodok!C$1:F$52,4,FALSE),\"\")","v":""},{"$f":"IFERROR(VLOOKUP(B97,Erasmus_kodok!C$1:F$52,3,FALSE),\"\")","v":""}]
[null,null,{"$f":"IFERROR(PROPER(INDEX(Erasmus_kodok!B$2:B$52,MATCH(B98,EUC_osszes))),\"\")","v":""},null,"",null,null,null,null,{"$f":"IFERROR(VLOOKUP(B98,Erasmus_kodok!C$1:F$52,4,FALSE),\"\")","v":""},{"$f":"IFERROR(VLOOKUP(B98,Erasmus_kodok!C$1:F$52,3,FALSE),\"\")","v":""}]
[null,null,{"$f":"IFERROR(PROPER(INDEX(Erasmus_kodok!B$2:B$52,MATCH(B99,EUC_osszes))),\"\")","v":""},null,"",null,null,null,null,{"$f":"IFERROR(VLOOKUP(B99,Erasmus_kodok!C$1:F$52,4,FALSE),\"\")","v":""},{"$f":"IFERROR(VLOOKUP(B99,Erasmus_kodok!C$1:F$52,3,FALSE),\"\")","v":""}]
[null,null,{"$f":"IFERROR(PROPER(INDEX(Erasmus_kodok!B$2:B$52,MATCH(B100,EUC_osszes))),\"\")","v":""},null,"",null,null,null,null,{"$f":"IFERROR(VLOOKUP(B100,Erasmus_kodok!C$1:F$52,4,FALSE),\"\")","v":""},{"$f":"IFERROR(VLOOKUP(B100,Erasmus_kodok!C$1:F$52,3,FALSE),\"\")","v":""}]
[null,null,{"$f":"IFERROR(PROPER(INDEX(Erasmus_kodok!B$2:B$52,MATCH(B101,EUC_osszes))),\"\")","v":""},null,"",null,null,null,null,{"$f":"IFERROR(VLOOKUP(B101,Erasmus_kodok!C$1:F$52,4,FALSE),\"\")","v":""},{"$f":"IFERROR(VLOOKUP(B101,Erasmus_kodok!C$1:F$52,3,FALSE),\"\")","v":""}]
[null,null,{"$f":"IFERROR(PROPER(INDEX(Erasmus_kodok!B$2:B$52,MATCH(B102,EUC_osszes))),\"\")","v":""},null,"",null,null,null,null,{"$f":"IFERROR(VLOOKUP(B102,Erasmus_kodok!C$1:F$52,4,FALSE),\"\")","v":""},{"$f":"IFERROR(VLOOKUP(B102,Erasmus_kodok!C$1:F$52,3,FALSE),\"\")","v":""}]
[null,null,{"$f":"IFERROR(PROPER(INDEX(Erasmus_kodok!B$2:B$52,MATCH(B103,EUC_osszes))),\"\")","v":""},null,"",null,null,null,null,{"$f":"IFERROR(VLOOKUP(B103,Erasmus_kodok!C$1:F$52,4,FALSE),\"\")","v":""},{"$f":"IFERROR(VLOOKUP(B103,Erasmus_kodok!C$1:F$52,3,FALSE),\"\")","v":""}]
[null,null,{"$f":"IFERROR(PROPER(INDEX(Erasmus_kodok!B$2:B$52,MATCH(B104,EUC_osszes))),\"\")","v":""},null,"",null,null,null,null,{"$f":"IFERROR(VLOOKUP(B104,Erasmus_kodok!C$1:F$52,4,FALSE),\"\")","v":""},{"$f":"IFERROR(VLOOKUP(B104,Erasmus_kodok!C$1:F$52,3,FALSE),\"\")","v":""}]
[null,null,{"$f":"IFERROR(PROPER(INDEX(Erasmus_kodok!B$2:B$52,MATCH(B105,EUC_osszes))),\"\")","v":""},null,"",null,null,null,null,{"$f":"IFERROR(VLOOKUP(B105,Erasmus_kodok!C$1:F$52,4,FALSE),\"\")","v":""},{"$f":"IFERROR(VLOOKUP(B105,Erasmus_kodok!C$1:F$52,3,FALSE),\"\")","v":""}]
[null,null,{"$f":"IFERROR(PROPER(INDEX(Erasmus_kodok!B$2:B$52,MATCH(B106,EUC_osszes))),\"\")","v":""},null,"",null,null,null,null,{"$f":"IFERROR(VLOOKUP(B106,Erasmus_kodok!C$1:F$52,4,FALSE),\"\")","v":""},{"$f":"IFERROR(VLOOKUP(B106,Erasmus_kodok!C$1:F$52,3,FALSE),\"\")","v":""}]

{"sheet":"Ki- és beutazó hallgatók","index":3,"n_rows":108,"n_cols":38,"rows_kept":108,"cut":false,"hidden":false,"merged":[[2,4,2,7],[2,14,2,17],[3,4,3,7],[3,14,3,17]]}
[{"$f":"IF(Azonosítás!A3=\"\",\"\",Azonosítás!A3)","v":""}]
["Ki- és beutazó hallgatói mobilitás - tanulmányi célú, szakmai gyakorlat, nyári egyetem"]
[]
["Intézmény neve:",null,{"$f":"IF(Azonosítás!A9=\"\",\"\",Azonosítás!A9)","v":""},null,"EGT koordinátor aláírása",null,null,null,null,null,null,null,null,null,"intézményi koordinátor aláírása"]
["Szerződésszám:",null,{"$f":"Azonosítás!A6","v":0},null,null,null,null,{"$f":"TODAY()","v":"2016-10-13"},null,null,null,null,null,null,null,null,null,{"$f":"TODAY()","v":"2016-10-13"}]
[]
[]
["Mobilitás jellege","Egyéni támogatási szerződésszám","Tanulmányi \nazonosító kód","Családnév","Keresztnév","Születés időpontja\n(ÉÉÉÉ/HH/NN)","Neme","Állampolgárság","Szakterület kódja","Leendő végzettsége (magyarul)","A tanulmányok szintje","Évfolyam","Küldő partner azonosítója","Fogadó partner azonosítója","Tanulmányi célú mobilitás \nkezdete\n (ÉÉÉÉ/HH/NN)","Tanulmányi célú mobilitás \nvége\n (ÉÉÉÉ/HH/NN)","Tanulmányi célú mobilitás hossza","Szakmai gyakorlat  \nkezdete\n (ÉÉÉÉ/HH/NN)","Szakmai gyakorlat  \nvége\n (ÉÉÉÉ/HH/NN)","Szakmai \ngyakorlat  hossza","Nyári egyetem \nkezdete\n (ÉÉÉÉ/HH/NN)","Nyári egyetem\nvége\n (ÉÉÉÉ/HH/NN)","Nyári egyetem hossza","Tanulmányi ECTS kreditek száma","Gyakorlati ECTS kreditek száma","Kétoldalú megállapodás","Oktatás vagy munka nyelve","Hallgatói felkészítés","EGT ösztöndíj összesen (EUR)","Intézményi forrás \n(HUF)","Hallgató e-mail címe ","Költségtérítéses hallgató?","Megjegyzés",null,"Küldő ország","Fogadó ország","TÁMOGATÁS","TÁMOGATÁS hosszabbítás"]
[null,null,null,null,null,null,null,null,null,null,null,null,{"$f":"IF((IFERROR(RIGHT($A9,2),\"\")=\"KI\"),Erasmus_kod,\"\")","v":""},null,null,null,null,null,null,null,null,null,null,null,null,null,null,null,{"$f":"IFERROR(\n   IF( ((RIGHT(A9,2)=\"KI\")*(AI9=\"HU\")*(AJ9<>\"HU\"))+((RIGHT(A9,2)=\"BE\")*(AJ9=\"HU\")*(AJ9=\"HU\")),  IF(A9<>\"\",AK9,\"\"),\"\"),\"\")","v":""},null,null,null,null,null,{"$f":"IFERROR(\nIF(VLOOKUP($M9,Partnerek!$A$9:$K$106,11,FALSE)=\"\",\"\",VLOOKUP($M9,Partnerek!$A$9:$K$106,11,FALSE)),\"\")","v":""},{"$f":"IFERROR(\nIF(VLOOKUP($N9,Partnerek!$A$9:$K$106,11,FALSE)=\"\",\"\",VLOOKUP($N9,Partnerek!$A$9:$K$106,11,FALSE)),\"\")","v":""},{"$f":"IFERROR(VLOOKUP(AJ9,ráták!$A$10:$AX$13,MATCH(Q9+T9+W9,ráták!$C$9:$AX$9,1)+2,FALSE),\"\")","v":""},{"$f":"IFERROR(VLOOKUP(AJ9,ráták!$A$10:$AX$13,MATCH(#REF!+#REF!+#REF!,ráták!$C$9:$AX$9,1)+2,FALSE),\"\")","v":""}]
[null,null,null,null,null,null,null,null,null,null,null,null,{"$f":"IF((IFERROR(RIGHT($A10,2),\"\")=\"KI\"),Erasmus_kod,\"\")","v":""},null,null,null,null,null,null,null,null,null,null,null,null,null,null,null,"",null,null,null,null,null,{"$f":"IFERROR(\nIF(VLOOKUP($M10,Partnerek!$A$9:$K$106,11,FALSE)=\"\",\"\",VLOOKUP($M10,Partnerek!$A$9:$K$106,11,FALSE)),\"\")","v":""},{"$f":"IFERROR(\nIF(RIGHT($A10,2)=\"BE\",\"HU\",\nIF(VLOOKUP($N10,Partnerek!$A$9:$K$106,11,FALSE)=\"\",\"\",VLOOKUP($N10,Partnerek!$A$9:$K$106,11,FALSE))),\"\")","v":""},{"$f":"IFERROR(VLOOKUP(AJ10,ráták!$A$10:$AX$13,MATCH(Q10+T10+W10,ráták!$C$9:$AX$9,1)+2,FALSE),\"\")","v":""},{"$f":"IFERROR(VLOOKUP(AJ10,ráták!$A$10:$AX$13,MATCH(#REF!+#REF!+#REF!,ráták!$C$9:$AX$9,1)+2,FALSE),\"\")","v":""}]
[null,null,null,null,null,null,null,null,null,null,null,null,"",null,null,null,null,null,null,null,null,null,null,null,null,null,null,null,"",null,null,null,null,null,{"$f":"IFERROR(\nIF(VLOOKUP($M11,Partnerek!$A$9:$K$106,11,FALSE)=\"\",\"\",VLOOKUP($M11,Partnerek!$A$9:$K$106,11,FALSE)),\"\")","v":""},{"$f":"IFERROR(\nIF(RIGHT($A11,2)=\"BE\",\"HU\",\nIF(VLOOKUP($N11,Partnerek!$A$9:$K$106,11,FALSE)=\"\",\"\",VLOOKUP($N11,Partnerek!$A$9:$K$106,11,FALSE))),\"\")","v":""},{"$f":"IFERROR(VLOOKUP(AJ11,ráták!$A$10:$AX$13,MATCH(Q11+T11+W11,ráták!$C$9:$AX$9,1)+2,FALSE),\"\")","v":""},{"$f":"IFERROR(VLOOKUP(AJ11,ráták!$A$10:$AX$13,MATCH(#REF!+#REF!+#REF!,ráták!$C$9:$AX$9,1)+2,FALSE),\"\")","v":""}]
[null,null,null,null,null,null,null,null,null,null,null,null,"",null,null,null,null,null,null,null,null,null,null,null,null,null,null,null,"",null,null,null,null,null,{"$f":"IFERROR(\nIF(VLOOKUP($M12,Partnerek!$A$9:$K$106,11,FALSE)=\"\",\"\",VLOOKUP($M12,Partnerek!$A$9:$K$106,11,FALSE)),\"\")","v":""},{"$f":"IFERROR(\nIF(RIGHT($A12,2)=\"BE\",\"HU\",\nIF(VLOOKUP($N12,Partnerek!$A$9:$K$106,11,FALSE)=\"\",\"\",VLOOKUP($N12,Partnerek!$A$9:$K$106,11,FALSE))),\"\")","v":""},{"$f":"IFERROR(VLOOKUP(AJ12,ráták!$A$10:$AX$13,MATCH(Q12+T12+W12,ráták!$C$9:$AX$9,1)+2,FALSE),\"\")","v":""},{"$f":"IFERROR(VLOOKUP(AJ12,ráták!$A$10:$AX$13,MATCH(#REF!+#REF!+#REF!,ráták!$C$9:$AX$9,1)+2,FALSE),\"\")","v":""}]
[null,null,null,null,null,null,null,null,null,null,null,null,"",null,null,null,null,null,null,null,null,null,null,null,null,null,null,null,"",null,null,null,null,null,{"$f":"IFERROR(\nIF(VLOOKUP($M13,Partnerek!$A$9:$K$106,11,FALSE)=\"\",\"\",VLOOKUP($M13,Partnerek!$A$9:$K$106,11,FALSE)),\"\")","v":""},{"$f":"IFERROR(\nIF(RIGHT($A13,2)=\"BE\",\"HU\",\nIF(VLOOKUP($N13,Partnerek!$A$9:$K$106,11,FALSE)=\"\",\"\",VLOOKUP($N13,Partnerek!$A$9:$K$106,11,FALSE))),\"\")","v":""},{"$f":"IFERROR(VLOOKUP(AJ13,ráták!$A$10:$AX$13,MATCH(Q13+T13+W13,ráták!$C$9:$AX$9,1)+2,FALSE),\"\")","v":""},{"$f":"IFERROR(VLOOKUP(AJ13,ráták!$A$10:$AX$13,MATCH(#REF!+#REF!+#REF!,ráták!$C$9:$AX$9,1)+2,FALSE),\"\")","v":""}]
[null,null,null,null,null,null,null,null,null,null,null,null,"",null,null,null,null,null,null,null,null,null,null,null,null,null,null,null,"",null,null,null,null,null,{"$f":"IFERROR(\nIF(VLOOKUP($M14,Partnerek!$A$9:$K$106,11,FALSE)=\"\",\"\",VLOOKUP($M14,Partnerek!$A$9:$K$106,11,FALSE)),\"\")","v":""},{"$f":"IFERROR(\nIF(RIGHT($A14,2)=\"BE\",\"HU\",\nIF(VLOOKUP($N14,Partnerek!$A$9:$K$106,11,FALSE)=\"\",\"\",VLOOKUP($N14,Partnerek!$A$9:$K$106,11,FALSE))),\"\")","v":""},{"$f":"IFERROR(VLOOKUP(AJ14,ráták!$A$10:$AX$13,MATCH(Q14+T14+W14,ráták!$C$9:$AX$9,1)+2,FALSE),\"\")","v":""},{"$f":"IFERROR(VLOOKUP(AJ14,ráták!$A$10:$AX$13,MATCH(#REF!+#REF!+#REF!,ráták!$C$9:$AX$9,1)+2,FALSE),\"\")","v":""}]
[null,null,null,null,null,null,null,null,null,null,null,null,"",null,null,null,null,null,null,null,null,null,null,null,null,null,null,null,"",null,null,null,null,null,{"$f":"IFERROR(\nIF(VLOOKUP($M15,Partnerek!$A$9:$K$106,11,FALSE)=\"\",\"\",VLOOKUP($M15,Partnerek!$A$9:$K$106,11,FALSE)),\"\")","v":""},{"$f":"IFERROR(\nIF(RIGHT($A15,2)=\"BE\",\"HU\",\nIF(VLOOKUP($N15,Partnerek!$A$9:$K$106,11,FALSE)=\"\",\"\",VLOOKUP($N15,Partnerek!$A$9:$K$106,11,FALSE))),\"\")","v":""},{"$f":"IFERROR(VLOOKUP(AJ15,ráták!$A$10:$AX$13,MATCH(Q15+T15+W15,ráták!$C$9:$AX$9,1)+2,FALSE),\"\")","v":""},{"$f":"IFERROR(VLOOKUP(AJ15,ráták!$A$10:$AX$13,MATCH(#REF!+#REF!+#REF!,ráták!$C$9:$AX$9,1)+2,FALSE),\"\")","v":""}]
[null,null,null,null,null,null,null,null,null,null,null,null,"",null,null,null,null,null,null,null,null,null,null,null,null,null,null,null,"",null,null,null,null,null,{"$f":"IFERROR(\nIF(VLOOKUP($M16,Partnerek!$A$9:$K$106,11,FALSE)=\"\",\"\",VLOOKUP($M16,Partnerek!$A$9:$K$106,11,FALSE)),\"\")","v":""},{"$f":"IFERROR(\nIF(RIGHT($A16,2)=\"BE\",\"HU\",\nIF(VLOOKUP($N16,Partnerek!$A$9:$K$106,11,FALSE)=\"\",\"\",VLOOKUP($N16,Partnerek!$A$9:$K$106,11,FALSE))),\"\")","v":""},{"$f":"IFERROR(VLOOKUP(AJ16,ráták!$A$10:$AX$13,MATCH(Q16+T16+W16,ráták!$C$9:$AX$9,1)+2,FALSE),\"\")","v":""},{"$f":"IFERROR(VLOOKUP(AJ16,ráták!$A$10:$AX$13,MATCH(#REF!+#REF!+#REF!,ráták!$C$9:$AX$9,1)+2,FALSE),\"\")","v":""}]
[null,null,null,null,null,null,null,null,null,null,null,null,"",null,null,null,null,null,null,null,null,null,null,null,null,null,null,null,"",null,null,null,null,null,{"$f":"IFERROR(\nIF(VLOOKUP($M17,Partnerek!$A$9:$K$106,11,FALSE)=\"\",\"\",VLOOKUP($M17,Partnerek!$A$9:$K$106,11,FALSE)),\"\")","v":""},{"$f":"IFERROR(\nIF(RIGHT($A17,2)=\"BE\",\"HU\",\nIF(VLOOKUP($N17,Partnerek!$A$9:$K$106,11,FALSE)=\"\",\"\",VLOOKUP($N17,Partnerek!$A$9:$K$106,11,FALSE))),\"\")","v":""},{"$f":"IFERROR(VLOOKUP(AJ17,ráták!$A$10:$AX$13,MATCH(Q17+T17+W17,ráták!$C$9:$AX$9,1)+2,FALSE),\"\")","v":""},{"$f":"IFERROR(VLOOKUP(AJ17,ráták!$A$10:$AX$13,MATCH(#REF!+#REF!+#REF!,ráták!$C$9:$AX$9,1)+2,FALSE),\"\")","v":""}]
[null,null,null,null,null,null,null,null,null,null,null,null,"",null,null,null,null,null,null,null,null,null,null,null,null,null,null,null,"",null,null,null,null,null,{"$f":"IFERROR(\nIF(VLOOKUP($M18,Partnerek!$A$9:$K$106,11,FALSE)=\"\",\"\",VLOOKUP($M18,Partnerek!$A$9:$K$106,11,FALSE)),\"\")","v":""},{"$f":"IFERROR(\nIF(RIGHT($A18,2)=\"BE\",\"HU\",\nIF(VLOOKUP($N18,Partnerek!$A$9:$K$106,11,FALSE)=\"\",\"\",VLOOKUP($N18,Partnerek!$A$9:$K$106,11,FALSE))),\"\")","v":""},{"$f":"IFERROR(VLOOKUP(AJ18,ráták!$A$10:$AX$13,MATCH(Q18+T18+W18,ráták!$C$9:$AX$9,1)+2,FALSE),\"\")","v":""},{"$f":"IFERROR(VLOOKUP(AJ18,ráták!$A$10:$AX$13,MATCH(#REF!+#REF!+#REF!,ráták!$C$9:$AX$9,1)+2,FALSE),\"\")","v":""}]
[null,null,null,null,null,null,null,null,null,null,null,null,null,null,null,null,null,null,null,null,null,null,null,null,null,null,null,null,"",null,null,null,null,null,{"$f":"IFERROR(\nIF(VLOOKUP($M19,Partnerek!$A$9:$K$106,11,FALSE)=\"\",\"\",VLOOKUP($M19,Partnerek!$A$9:$K$106,11,FALSE)),\"\")","v":""},{"$f":"IFERROR(\nIF(RIGHT($A19,2)=\"BE\",\"HU\",\nIF(VLOOKUP($N19,Partnerek!$A$9:$K$106,11,FALSE)=\"\",\"\",VLOOKUP($N19,Partnerek!$A$9:$K$106,11,FALSE))),\"\")","v":""},{"$f":"IFERROR(VLOOKUP(AJ19,ráták!$A$10:$AX$13,MATCH(Q19+T19+W19,ráták!$C$9:$AX$9,1)+2,FALSE),\"\")","v":""},{"$f":"IFERROR(VLOOKUP(AJ19,ráták!$A$10:$AX$13,MATCH(#REF!+#REF!+#REF!,ráták!$C$9:$AX$9,1)+2,FALSE),\"\")","v":""}]
[null,null,null,null,null,null,null,null,null,null,null,null,null,null,null,null,null,null,null,null,null,null,null,null,null,null,null,null,"",null,null,null,null,null,{"$f":"IFERROR(\nIF(VLOOKUP($M20,Partnerek!$A$9:$K$106,11,FALSE)=\"\",\"\",VLOOKUP($M20,Partnerek!$A$9:$K$106,11,FALSE)),\"\")","v":""},{"$f":"IFERROR(\nIF(RIGHT($A20,2)=\"BE\",\"HU\",\nIF(VLOOKUP($N20,Partnerek!$A$9:$K$106,11,FALSE)=\"\",\"\",VLOOKUP($N20,Partnerek!$A$9:$K$106,11,FALSE))),\"\")","v":""},{"$f":"IFERROR(VLOOKUP(AJ20,ráták!$A$10:$AX$13,MATCH(Q20+T20+W20,ráták!$C$9:$AX$9,1)+2,FALSE),\"\")","v":""},{"$f":"IFERROR(VLOOKUP(AJ20,ráták!$A$10:$AX$13,MATCH(#REF!+#REF!+#REF!,ráták!$C$9:$AX$9,1)+2,FALSE),\"\")","v":""}]
[null,null,null,null,null,null,null,null,null,null,null,null,null,null,null,null,null,null,null,null,null,null,null,null,null,null,null,null,"",null,null,null,null,null,{"$f":"IFERROR(\nIF(VLOOKUP($M21,Partnerek!$A$9:$K$106,11,FALSE)=\"\",\"\",VLOOKUP($M21,Partnerek!$A$9:$K$106,11,FALSE)),\"\")","v":""},{"$f":"IFERROR(\nIF(RIGHT($A21,2)=\"BE\",\"HU\",\nIF(VLOOKUP($N21,Partnerek!$A$9:$K$106,11,FALSE)=\"\",\"\",VLOOKUP($N21,Partnerek!$A$9:$K$106,11,FALSE))),\"\")","v":""},{"$f":"IFERROR(VLOOKUP(AJ21,ráták!$A$10:$AX$13,MATCH(Q21+T21+W21,ráták!$C$9:$AX$9,1)+2,FALSE),\"\")","v":""},{"$f":"IFERROR(VLOOKUP(AJ21,ráták!$A$10:$AX$13,MATCH(#REF!+#REF!+#REF!,ráták!$C$9:$AX$9,1)+2,FALSE),\"\")","v":""}]
[null,null,null,null,null,null,null,null,null,null,null,null,"",null,null,null,null,null,null,null,null,null,null,null,null,null,null,null,"",null,null,null,null,null,{"$f":"IFERROR(\nIF(VLOOKUP($M22,Partnerek!$A$9:$K$106,11,FALSE)=\"\",\"\",VLOOKUP($M22,Partnerek!$A$9:$K$106,11,FALSE)),\"\")","v":""},{"$f":"IFERROR(\nIF(RIGHT($A22,2)=\"BE\",\"HU\",\nIF(VLOOKUP($N22,Partnerek!$A$9:$K$106,11,FALSE)=\"\",\"\",VLOOKUP($N22,Partnerek!$A$9:$K$106,11,FALSE))),\"\")","v":""},{"$f":"IFERROR(VLOOKUP(AJ22,ráták!$A$10:$AX$13,MATCH(Q22+T22+W22,ráták!$C$9:$AX$9,1)+2,FALSE),\"\")","v":""},{"$f":"IFERROR(VLOOKUP(AJ22,ráták!$A$10:$AX$13,MATCH(#REF!+#REF!+#REF!,ráták!$C$9:$AX$9,1)+2,FALSE),\"\")","v":""}]
[null,null,null,null,null,null,null,null,null,null,null,null,"",null,null,null,null,null,null,null,null,null,null,null,null,null,null,null,"",null,null,null,null,null,{"$f":"IFERROR(\nIF(VLOOKUP($M23,Partnerek!$A$9:$K$106,11,FALSE)=\"\",\"\",VLOOKUP($M23,Partnerek!$A$9:$K$106,11,FALSE)),\"\")","v":""},{"$f":"IFERROR(\nIF(RIGHT($A23,2)=\"BE\",\"HU\",\nIF(VLOOKUP($N23,Partnerek!$A$9:$K$106,11,FALSE)=\"\",\"\",VLOOKUP($N23,Partnerek!$A$9:$K$106,11,FALSE))),\"\")","v":""},{"$f":"IFERROR(VLOOKUP(AJ23,ráták!$A$10:$AX$13,MATCH(Q23+T23+W23,ráták!$C$9:$AX$9,1)+2,FALSE),\"\")","v":""},{"$f":"IFERROR(VLOOKUP(AJ23,ráták!$A$10:$AX$13,MATCH(#REF!+#REF!+#REF!,ráták!$C$9:$AX$9,1)+2,FALSE),\"\")","v":""}]
[null,null,null,null,null,null,null,null,null,null,null,null,"",null,null,null,null,null,null,null,null,null,null,null,null,null,null,null,"",null,null,null,null,null,{"$f":"IFERROR(\nIF(VLOOKUP($M24,Partnerek!$A$9:$K$106,11,FALSE)=\"\",\"\",VLOOKUP($M24,Partnerek!$A$9:$K$106,11,FALSE)),\"\")","v":""},{"$f":"IFERROR(\nIF(RIGHT($A24,2)=\"BE\",\"HU\",\nIF(VLOOKUP($N24,Partnerek!$A$9:$K$106,11,FALSE)=\"\",\"\",VLOOKUP($N24,Partnerek!$A$9:$K$106,11,FALSE))),\"\")","v":""},{"$f":"IFERROR(VLOOKUP(AJ24,ráták!$A$10:$AX$13,MATCH(Q24+T24+W24,ráták!$C$9:$AX$9,1)+2,FALSE),\"\")","v":""},{"$f":"IFERROR(VLOOKUP(AJ24,ráták!$A$10:$AX$13,MATCH(#REF!+#REF!+#REF!,ráták!$C$9:$AX$9,1)+2,FALSE),\"\")","v":""}]
[null,null,null,null,null,null,null,null,null,null,null,null,"",null,null,null,null,null,null,null,null,null,null,null,null,null,null,null,"",null,null,null,null,null,{"$f":"IFERROR(\nIF(VLOOKUP($M25,Partnerek!$A$9:$K$106,11,FALSE)=\"\",\"\",VLOOKUP($M25,Partnerek!$A$9:$K$106,11,FALSE)),\"\")","v":""},{"$f":"IFERROR(\nIF(RIGHT($A25,2)=\"BE\",\"HU\",\nIF(VLOOKUP($N25,Partnerek!$A$9:$K$106,11,FALSE)=\"\",\"\",VLOOKUP($N25,Partnerek!$A$9:$K$106,11,FALSE))),\"\")","v":""},{"$f":"IFERROR(VLOOKUP(AJ25,ráták!$A$10:$AX$13,MATCH(Q25+T25+W25,ráták!$C$9:$AX$9,1)+2,FALSE),\"\")","v":""},{"$f":"IFERROR(VLOOKUP(AJ25,ráták!$A$10:$AX$13,MATCH(#REF!+#REF!+#REF!,ráták!$C$9:$AX$9,1)+2,FALSE),\"\")","v":""}]
[null,null,null,null,null,null,null,null,null,null,null,null,"",null,null,null,null,null,null,null,null,null,null,null,null,null,null,null,"",null,null,null,null,null,{"$f":"IFERROR(\nIF(VLOOKUP($M26,Partnerek!$A$9:$K$106,11,FALSE)=\"\",\"\",VLOOKUP($M26,Partnerek!$A$9:$K$106,11,FALSE)),\"\")","v":""},{"$f":"IFERROR(\nIF(RIGHT($A26,2)=\"BE\",\"HU\",\nIF(VLOOKUP($N26,Partnerek!$A$9:$K$106,11,FALSE)=\"\",\"\",VLOOKUP($N26,Partnerek!$A$9:$K$106,11,FALSE))),\"\")","v":""},{"$f":"IFERROR(VLOOKUP(AJ26,ráták!$A$10:$AX$13,MATCH(Q26+T26+W26,ráták!$C$9:$AX$9,1)+2,FALSE),\"\")","v":""},{"$f":"IFERROR(VLOOKUP(AJ26,ráták!$A$10:$AX$13,MATCH(#REF!+#REF!+#REF!,ráták!$C$9:$AX$9,1)+2,FALSE),\"\")","v":""}]
[null,null,null,null,null,null,null,null,null,null,null,null,"",null,null,null,null,null,null,null,null,null,null,null,null,null,null,null,"",null,null,null,null,null,{"$f":"IFERROR(\nIF(VLOOKUP($M27,Partnerek!$A$9:$K$106,11,FALSE)=\"\",\"\",VLOOKUP($M27,Partnerek!$A$9:$K$106,11,FALSE)),\"\")","v":""},{"$f":"IFERROR(\nIF(RIGHT($A27,2)=\"BE\",\"HU\",\nIF(VLOOKUP($N27,Partnerek!$A$9:$K$106,11,FALSE)=\"\",\"\",VLOOKUP($N27,Partnerek!$A$9:$K$106,11,FALSE))),\"\")","v":""},{"$f":"IFERROR(VLOOKUP(AJ27,ráták!$A$10:$AX$13,MATCH(Q27+T27+W27,ráták!$C$9:$AX$9,1)+2,FALSE),\"\")","v":""},{"$f":"IFERROR(VLOOKUP(AJ27,ráták!$A$10:$AX$13,MATCH(#REF!+#REF!+#REF!,ráták!$C$9:$AX$9,1)+2,FALSE),\"\")","v":""}]
[null,null,null,null,null,null,null,null,null,null,null,null,"",null,null,null,null,null,null,null,null,null,null,null,null,null,null,null,"",null,null,null,null,null,{"$f":"IFERROR(\nIF(VLOOKUP($M28,Partnerek!$A$9:$K$106,11,FALSE)=\"\",\"\",VLOOKUP($M28,Partnerek!$A$9:$K$106,11,FALSE)),\"\")","v":""},{"$f":"IFERROR(\nIF(RIGHT($A28,2)=\"BE\",\"HU\",\nIF(VLOOKUP($N28,Partnerek!$A$9:$K$106,11,FALSE)=\"\",\"\",VLOOKUP($N28,Partnerek!$A$9:$K$106,11,FALSE))),\"\")","v":""},{"$f":"IFERROR(VLOOKUP(AJ28,ráták!$A$10:$AX$13,MATCH(Q28+T28+W28,ráták!$C$9:$AX$9,1)+2,FALSE),\"\")","v":""},{"$f":"IFERROR(VLOOKUP(AJ28,ráták!$A$10:$AX$13,MATCH(#REF!+#REF!+#REF!,ráták!$C$9:$AX$9,1)+2,FALSE),\"\")","v":""}]
[null,null,null,null,null,null,null,null,null,null,null,null,"",null,null,null,null,null,null,null,null,null,null,null,null,null,null,null,"",null,null,null,null,null,{"$f":"IFERROR(\nIF(VLOOKUP($M29,Partnerek!$A$9:$K$106,11,FALSE)=\"\",\"\",VLOOKUP($M29,Partnerek!$A$9:$K$106,11,FALSE)),\"\")","v":""},{"$f":"IFERROR(\nIF(RIGHT($A29,2)=\"BE\",\"HU\",\nIF(VLOOKUP($N29,Partnerek!$A$9:$K$106,11,FALSE)=\"\",\"\",VLOOKUP($N29,Partnerek!$A$9:$K$106,11,FALSE))),\"\")","v":""},{"$f":"IFERROR(VLOOKUP(AJ29,ráták!$A$10:$AX$13,MATCH(Q29+T29+W29,ráták!$C$9:$AX$9,1)+2,FALSE),\"\")","v":""},{"$f":"IFERROR(VLOOKUP(AJ29,ráták!$A$10:$AX$13,MATCH(#REF!+#REF!+#REF!,ráták!$C$9:$AX$9,1)+2,FALSE),\"\")","v":""}]
[null,null,null,null,null,null,null,null,null,null,null,null,"",null,null,null,null,null,null,null,null,null,null,null,null,null,null,null,"",null,null,null,null,null,{"$f":"IFERROR(\nIF(VLOOKUP($M30,Partnerek!$A$9:$K$106,11,FALSE)=\"\",\"\",VLOOKUP($M30,Partnerek!$A$9:$K$106,11,FALSE)),\"\")","v":""},{"$f":"IFERROR(\nIF(RIGHT($A30,2)=\"BE\",\"HU\",\nIF(VLOOKUP($N30,Partnerek!$A$9:$K$106,11,FALSE)=\"\",\"\",VLOOKUP($N30,Partnerek!$A$9:$K$106,11,FALSE))),\"\")","v":""},{"$f":"IFERROR(VLOOKUP(AJ30,ráták!$A$10:$AX$13,MATCH(Q30+T30+W30,ráták!$C$9:$AX$9,1)+2,FALSE),\"\")","v":""},{"$f":"IFERROR(VLOOKUP(AJ30,ráták!$A$10:$AX$13,MATCH(#REF!+#REF!+#REF!,ráták!$C$9:$AX$9,1)+2,FALSE),\"\")","v":""}]
[null,null,null,null,null,null,null,null,null,null,null,null,"",null,null,null,null,null,null,null,null,null,null,null,null,null,null,null,"",null,null,null,null,null,{"$f":"IFERROR(\nIF(VLOOKUP($M31,Partnerek!$A$9:$K$106,11,FALSE)=\"\",\"\",VLOOKUP($M31,Partnerek!$A$9:$K$106,11,FALSE)),\"\")","v":""},{"$f":"IFERROR(\nIF(RIGHT($A31,2)=\"BE\",\"HU\",\nIF(VLOOKUP($N31,Partnerek!$A$9:$K$106,11,FALSE)=\"\",\"\",VLOOKUP($N31,Partnerek!$A$9:$K$106,11,FALSE))),\"\")","v":""},{"$f":"IFERROR(VLOOKUP(AJ31,ráták!$A$10:$AX$13,MATCH(Q31+T31+W31,ráták!$C$9:$AX$9,1)+2,FALSE),\"\")","v":""},{"$f":"IFERROR(VLOOKUP(AJ31,ráták!$A$10:$AX$13,MATCH(#REF!+#REF!+#REF!,ráták!$C$9:$AX$9,1)+2,FALSE),\"\")","v":""}]
[null,null,null,null,null,null,null,null,null,null,null,null,"",null,null,null,null,null,null,null,null,null,null,null,null,null,null,null,"",null,null,null,null,null,{"$f":"IFERROR(\nIF(VLOOKUP($M32,Partnerek!$A$9:$K$106,11,FALSE)=\"\",\"\",VLOOKUP($M32,Partnerek!$A$9:$K$106,11,FALSE)),\"\")","v":""},{"$f":"IFERROR(\nIF(RIGHT($A32,2)=\"BE\",\"HU\",\nIF(VLOOKUP($N32,Partnerek!$A$9:$K$106,11,FALSE)=\"\",\"\",VLOOKUP($N32,Partnerek!$A$9:$K$106,11,FALSE))),\"\")","v":""},{"$f":"IFERROR(VLOOKUP(AJ32,ráták!$A$10:$AX$13,MATCH(Q32+T32+W32,ráták!$C$9:$AX$9,1)+2,FALSE),\"\")","v":""},{"$f":"IFERROR(VLOOKUP(AJ32,ráták!$A$10:$AX$13,MATCH(#REF!+#REF!+#REF!,ráták!$C$9:$AX$9,1)+2,FALSE),\"\")","v":""}]
[null,null,null,null,null,null,null,null,null,null,null,null,"",null,null,null,null,null,null,null,null,null,null,null,null,null,null,null,"",null,null,null,null,null,{"$f":"IFERROR(\nIF(VLOOKUP($M33,Partnerek!$A$9:$K$106,11,FALSE)=\"\",\"\",VLOOKUP($M33,Partnerek!$A$9:$K$106,11,FALSE)),\"\")","v":""},{"$f":"IFERROR(\nIF(RIGHT($A33,2)=\"BE\",\"HU\",\nIF(VLOOKUP($N33,Partnerek!$A$9:$K$106,11,FALSE)=\"\",\"\",VLOOKUP($N33,Partnerek!$A$9:$K$106,11,FALSE))),\"\")","v":""},{"$f":"IFERROR(VLOOKUP(AJ33,ráták!$A$10:$AX$13,MATCH(Q33+T33+W33,ráták!$C$9:$AX$9,1)+2,FALSE),\"\")","v":""},{"$f":"IFERROR(VLOOKUP(AJ33,ráták!$A$10:$AX$13,MATCH(#REF!+#REF!+#REF!,ráták!$C$9:$AX$9,1)+2,FALSE),\"\")","v":""}]
[null,null,null,null,null,null,null,null,null,null,null,null,"",null,null,null,null,null,null,null,null,null,null,null,null,null,null,null,"",null,null,null,null,null,{"$f":"IFERROR(\nIF(VLOOKUP($M34,Partnerek!$A$9:$K$106,11,FALSE)=\"\",\"\",VLOOKUP($M34,Partnerek!$A$9:$K$106,11,FALSE)),\"\")","v":""},{"$f":"IFERROR(\nIF(RIGHT($A34,2)=\"BE\",\"HU\",\nIF(VLOOKUP($N34,Partnerek!$A$9:$K$106,11,FALSE)=\"\",\"\",VLOOKUP($N34,Partnerek!$A$9:$K$106,11,FALSE))),\"\")","v":""},{"$f":"IFERROR(VLOOKUP(AJ34,ráták!$A$10:$AX$13,MATCH(Q34+T34+W34,ráták!$C$9:$AX$9,1)+2,FALSE),\"\")","v":""},{"$f":"IFERROR(VLOOKUP(AJ34,ráták!$A$10:$AX$13,MATCH(#REF!+#REF!+#REF!,ráták!$C$9:$AX$9,1)+2,FALSE),\"\")","v":""}]
[null,null,null,null,null,null,null,null,null,null,null,null,"",null,null,null,null,null,null,null,null,null,null,null,null,null,null,null,"",null,null,null,null,null,{"$f":"IFERROR(\nIF(VLOOKUP($M35,Partnerek!$A$9:$K$106,11,FALSE)=\"\",\"\",VLOOKUP($M35,Partnerek!$A$9:$K$106,11,FALSE)),\"\")","v":""},{"$f":"IFERROR(\nIF(RIGHT($A35,2)=\"BE\",\"HU\",\nIF(VLOOKUP($N35,Partnerek!$A$9:$K$106,11,FALSE)=\"\",\"\",VLOOKUP($N35,Partnerek!$A$9:$K$106,11,FALSE))),\"\")","v":""},{"$f":"IFERROR(VLOOKUP(AJ35,ráták!$A$10:$AX$13,MATCH(Q35+T35+W35,ráták!$C$9:$AX$9,1)+2,FALSE),\"\")","v":""},{"$f":"IFERROR(VLOOKUP(AJ35,ráták!$A$10:$AX$13,MATCH(#REF!+#REF!+#REF!,ráták!$C$9:$AX$9,1)+2,FALSE),\"\")","v":""}]
[null,null,null,null,null,null,null,null,null,null,null,null,"",null,null,null,null,null,null,null,null,null,null,null,null,null,null,null,"",null,null,null,null,null,{"$f":"IFERROR(\nIF(VLOOKUP($M36,Partnerek!$A$9:$K$106,11,FALSE)=\"\",\"\",VLOOKUP($M36,Partnerek!$A$9:$K$106,11,FALSE)),\"\")","v":""},{"$f":"IFERROR(\nIF(RIGHT($A36,2)=\"BE\",\"HU\",\nIF(VLOOKUP($N36,Partnerek!$A$9:$K$106,11,FALSE)=\"\",\"\",VLOOKUP($N36,Partnerek!$A$9:$K$106,11,FALSE))),\"\")","v":""},{"$f":"IFERROR(VLOOKUP(AJ36,ráták!$A$10:$AX$13,MATCH(Q36+T36+W36,ráták!$C$9:$AX$9,1)+2,FALSE),\"\")","v":""},{"$f":"IFERROR(VLOOKUP(AJ36,ráták!$A$10:$AX$13,MATCH(#REF!+#REF!+#REF!,ráták!$C$9:$AX$9,1)+2,FALSE),\"\")","v":""}]
[null,null,null,null,null,null,null,null,null,null,null,null,"",null,null,null,null,null,null,null,null,null,null,null,null,null,null,null,"",null,null,null,null,null,{"$f":"IFERROR(\nIF(VLOOKUP($M37,Partnerek!$A$9:$K$106,11,FALSE)=\"\",\"\",VLOOKUP($M37,Partnerek!$A$9:$K$106,11,FALSE)),\"\")","v":""},{"$f":"IFERROR(\nIF(RIGHT($A37,2)=\"BE\",\"HU\",\nIF(VLOOKUP($N37,Partnerek!$A$9:$K$106,11,FALSE)=\"\",\"\",VLOOKUP($N37,Partnerek!$A$9:$K$106,11,FALSE))),\"\")","v":""},{"$f":"IFERROR(VLOOKUP(AJ37,ráták!$A$10:$AX$13,MATCH(Q37+T37+W37,ráták!$C$9:$AX$9,1)+2,FALSE),\"\")","v":""},{"$f":"IFERROR(VLOOKUP(AJ37,ráták!$A$10:$AX$13,MATCH(#REF!+#REF!+#REF!,ráták!$C$9:$AX$9,1)+2,FALSE),\"\")","v":""}]
[null,null,null,null,null,null,null,null,null,null,null,null,"",null,null,null,null,null,null,null,null,null,null,null,null,null,null,null,"",null,null,null,null,null,{"$f":"IFERROR(\nIF(VLOOKUP($M38,Partnerek!$A$9:$K$106,11,FALSE)=\"\",\"\",VLOOKUP($M38,Partnerek!$A$9:$K$106,11,FALSE)),\"\")","v":""},{"$f":"IFERROR(\nIF(RIGHT($A38,2)=\"BE\",\"HU\",\nIF(VLOOKUP($N38,Partnerek!$A$9:$K$106,11,FALSE)=\"\",\"\",VLOOKUP($N38,Partnerek!$A$9:$K$106,11,FALSE))),\"\")","v":""},{"$f":"IFERROR(VLOOKUP(AJ38,ráták!$A$10:$AX$13,MATCH(Q38+T38+W38,ráták!$C$9:$AX$9,1)+2,FALSE),\"\")","v":""},{"$f":"IFERROR(VLOOKUP(AJ38,ráták!$A$10:$AX$13,MATCH(#REF!+#REF!+#REF!,ráták!$C$9:$AX$9,1)+2,FALSE),\"\")","v":""}]
[null,null,null,null,null,null,null,null,null,null,null,null,"",null,null,null,null,null,null,null,null,null,null,null,null,null,null,null,"",null,null,null,null,null,{"$f":"IFERROR(\nIF(VLOOKUP($M39,Partnerek!$A$9:$K$106,11,FALSE)=\"\",\"\",VLOOKUP($M39,Partnerek!$A$9:$K$106,11,FALSE)),\"\")","v":""},{"$f":"IFERROR(\nIF(RIGHT($A39,2)=\"BE\",\"HU\",\nIF(VLOOKUP($N39,Partnerek!$A$9:$K$106,11,FALSE)=\"\",\"\",VLOOKUP($N39,Partnerek!$A$9:$K$106,11,FALSE))),\"\")","v":""},{"$f":"IFERROR(VLOOKUP(AJ39,ráták!$A$10:$AX$13,MATCH(Q39+T39+W39,ráták!$C$9:$AX$9,1)+2,FALSE),\"\")","v":""},{"$f":"IFERROR(VLOOKUP(AJ39,ráták!$A$10:$AX$13,MATCH(#REF!+#REF!+#REF!,ráták!$C$9:$AX$9,1)+2,FALSE),\"\")","v":""}]
[null,null,null,null,null,null,null,null,null,null,null,null,"",null,null,null,null,null,null,null,null,null,null,null,null,null,null,null,"",null,null,null,null,null,{"$f":"IFERROR(\nIF(VLOOKUP($M40,Partnerek!$A$9:$K$106,11,FALSE)=\"\",\"\",VLOOKUP($M40,Partnerek!$A$9:$K$106,11,FALSE)),\"\")","v":""},{"$f":"IFERROR(\nIF(RIGHT($A40,2)=\"BE\",\"HU\",\nIF(VLOOKUP($N40,Partnerek!$A$9:$K$106,11,FALSE)=\"\",\"\",VLOOKUP($N40,Partnerek!$A$9:$K$106,11,FALSE))),\"\")","v":""},{"$f":"IFERROR(VLOOKUP(AJ40,ráták!$A$10:$AX$13,MATCH(Q40+T40+W40,ráták!$C$9:$AX$9,1)+2,FALSE),\"\")","v":""},{"$f":"IFERROR(VLOOKUP(AJ40,ráták!$A$10:$AX$13,MATCH(#REF!+#REF!+#REF!,ráták!$C$9:$AX$9,1)+2,FALSE),\"\")","v":""}]
[null,null,null,null,null,null,null,null,null,null,null,null,"",null,null,null,null,null,null,null,null,null,null,null,null,null,null,null,{"$f":"IFERROR(\n   IF( ((RIGHT(A41,2)=\"KI\")*(AI41=\"HU\")*(AJ41<>\"HU\"))+((RIGHT(A41,2)=\"BE\")*(AJ41=\"HU\")*(AJ41=\"HU\")),  IF(A41<>\"\",AK41,\"\"),\"\"),\"\")","v":""},null,null,null,null,null,{"$f":"IFERROR(\nIF(VLOOKUP($M41,Partnerek!$A$9:$K$106,11,FALSE)=\"\",\"\",VLOOKUP($M41,Partnerek!$A$9:$K$106,11,FALSE)),\"\")","v":""},{"$f":"IFERROR(\nIF(RIGHT($A41,2)=\"BE\",\"HU\",\nIF(VLOOKUP($N41,Partnerek!$A$9:$K$106,11,FALSE)=\"\",\"\",VLOOKUP($N41,Partnerek!$A$9:$K$106,11,FALSE))),\"\")","v":""},{"$f":"IFERROR(VLOOKUP(AJ41,ráták!$A$10:$AX$13,MATCH(Q41+T41+W41,ráták!$C$9:$AX$9,1)+2,FALSE),\"\")","v":""},{"$f":"IFERROR(VLOOKUP(AJ41,ráták!$A$10:$AX$13,MATCH(#REF!+#REF!+#REF!,ráták!$C$9:$AX$9,1)+2,FALSE),\"\")","v":""}]
[null,null,null,null,null,null,null,null,null,null,null,null,"",null,null,null,null,null,null,null,null,null,null,null,null,null,null,null,"",null,null,null,null,null,{"$f":"IFERROR(\nIF(VLOOKUP($M42,Partnerek!$A$9:$K$106,11,FALSE)=\"\",\"\",VLOOKUP($M42,Partnerek!$A$9:$K$106,11,FALSE)),\"\")","v":""},{"$f":"IFERROR(\nIF(RIGHT($A42,2)=\"BE\",\"HU\",\nIF(VLOOKUP($N42,Partnerek!$A$9:$K$106,11,FALSE)=\"\",\"\",VLOOKUP($N42,Partnerek!$A$9:$K$106,11,FALSE))),\"\")","v":""},{"$f":"IFERROR(VLOOKUP(AJ42,ráták!$A$10:$AX$13,MATCH(Q42+T42+W42,ráták!$C$9:$AX$9,1)+2,FALSE),\"\")","v":""},{"$f":"IFERROR(VLOOKUP(AJ42,ráták!$A$10:$AX$13,MATCH(#REF!+#REF!+#REF!,ráták!$C$9:$AX$9,1)+2,FALSE),\"\")","v":""}]
[null,null,null,null,null,null,null,null,null,null,null,null,"",null,null,null,null,null,null,null,null,null,null,null,null,null,null,null,"",null,null,null,null,null,{"$f":"IFERROR(\nIF(VLOOKUP($M43,Partnerek!$A$9:$K$106,11,FALSE)=\"\",\"\",VLOOKUP($M43,Partnerek!$A$9:$K$106,11,FALSE)),\"\")","v":""},{"$f":"IFERROR(\nIF(RIGHT($A43,2)=\"BE\",\"HU\",\nIF(VLOOKUP($N43,Partnerek!$A$9:$K$106,11,FALSE)=\"\",\"\",VLOOKUP($N43,Partnerek!$A$9:$K$106,11,FALSE))),\"\")","v":""},{"$f":"IFERROR(VLOOKUP(AJ43,ráták!$A$10:$AX$13,MATCH(Q43+T43+W43,ráták!$C$9:$AX$9,1)+2,FALSE),\"\")","v":""},{"$f":"IFERROR(VLOOKUP(AJ43,ráták!$A$10:$AX$13,MATCH(#REF!+#REF!+#REF!,ráták!$C$9:$AX$9,1)+2,FALSE),\"\")","v":""}]
[null,null,null,null,null,null,null,null,null,null,null,null,"",null,null,null,null,null,null,null,null,null,null,null,null,null,null,null,"",null,null,null,null,null,{"$f":"IFERROR(\nIF(VLOOKUP($M44,Partnerek!$A$9:$K$106,11,FALSE)=\"\",\"\",VLOOKUP($M44,Partnerek!$A$9:$K$106,11,FALSE)),\"\")","v":""},{"$f":"IFERROR(\nIF(RIGHT($A44,2)=\"BE\",\"HU\",\nIF(VLOOKUP($N44,Partnerek!$A$9:$K$106,11,FALSE)=\"\",\"\",VLOOKUP($N44,Partnerek!$A$9:$K$106,11,FALSE))),\"\")","v":""},{"$f":"IFERROR(VLOOKUP(AJ44,ráták!$A$10:$AX$13,MATCH(Q44+T44+W44,ráták!$C$9:$AX$9,1)+2,FALSE),\"\")","v":""},{"$f":"IFERROR(VLOOKUP(AJ44,ráták!$A$10:$AX$13,MATCH(#REF!+#REF!+#REF!,ráták!$C$9:$AX$9,1)+2,FALSE),\"\")","v":""}]
[null,null,null,null,null,null,null,null,null,null,null,null,"",null,null,null,null,null,null,null,null,null,null,null,null,null,null,null,"",null,null,null,null,null,{"$f":"IFERROR(\nIF(VLOOKUP($M45,Partnerek!$A$9:$K$106,11,FALSE)=\"\",\"\",VLOOKUP($M45,Partnerek!$A$9:$K$106,11,FALSE)),\"\")","v":""},{"$f":"IFERROR(\nIF(RIGHT($A45,2)=\"BE\",\"HU\",\nIF(VLOOKUP($N45,Partnerek!$A$9:$K$106,11,FALSE)=\"\",\"\",VLOOKUP($N45,Partnerek!$A$9:$K$106,11,FALSE))),\"\")","v":""},{"$f":"IFERROR(VLOOKUP(AJ45,ráták!$A$10:$AX$13,MATCH(Q45+T45+W45,ráták!$C$9:$AX$9,1)+2,FALSE),\"\")","v":""},{"$f":"IFERROR(VLOOKUP(AJ45,ráták!$A$10:$AX$13,MATCH(#REF!+#REF!+#REF!,ráták!$C$9:$AX$9,1)+2,FALSE),\"\")","v":""}]
[null,null,null,null,null,null,null,null,null,null,null,null,"",null,null,null,null,null,null,null,null,null,null,null,null,null,null,null,"",null,null,null,null,null,{"$f":"IFERROR(\nIF(VLOOKUP($M46,Partnerek!$A$9:$K$106,11,FALSE)=\"\",\"\",VLOOKUP($M46,Partnerek!$A$9:$K$106,11,FALSE)),\"\")","v":""},{"$f":"IFERROR(\nIF(RIGHT($A46,2)=\"BE\",\"HU\",\nIF(VLOOKUP($N46,Partnerek!$A$9:$K$106,11,FALSE)=\"\",\"\",VLOOKUP($N46,Partnerek!$A$9:$K$106,11,FALSE))),\"\")","v":""},{"$f":"IFERROR(VLOOKUP(AJ46,ráták!$A$10:$AX$13,MATCH(Q46+T46+W46,ráták!$C$9:$AX$9,1)+2,FALSE),\"\")","v":""},{"$f":"IFERROR(VLOOKUP(AJ46,ráták!$A$10:$AX$13,MATCH(#REF!+#REF!+#REF!,ráták!$C$9:$AX$9,1)+2,FALSE),\"\")","v":""}]
[null,null,null,null,null,null,null,null,null,null,null,null,"",null,null,null,null,null,null,null,null,null,null,null,null,null,null,null,"",null,null,null,null,null,{"$f":"IFERROR(\nIF(VLOOKUP($M47,Partnerek!$A$9:$K$106,11,FALSE)=\"\",\"\",VLOOKUP($M47,Partnerek!$A$9:$K$106,11,FALSE)),\"\")","v":""},{"$f":"IFERROR(\nIF(RIGHT($A47,2)=\"BE\",\"HU\",\nIF(VLOOKUP($N47,Partnerek!$A$9:$K$106,11,FALSE)=\"\",\"\",VLOOKUP($N47,Partnerek!$A$9:$K$106,11,FALSE))),\"\")","v":""},{"$f":"IFERROR(VLOOKUP(AJ47,ráták!$A$10:$AX$13,MATCH(Q47+T47+W47,ráták!$C$9:$AX$9,1)+2,FALSE),\"\")","v":""},{"$f":"IFERROR(VLOOKUP(AJ47,ráták!$A$10:$AX$13,MATCH(#REF!+#REF!+#REF!,ráták!$C$9:$AX$9,1)+2,FALSE),\"\")","v":""}]
[null,null,null,null,null,null,null,null,null,null,null,null,"",null,null,null,null,null,null,null,null,null,null,null,null,null,null,null,"",null,null,null,null,null,{"$f":"IFERROR(\nIF(VLOOKUP($M48,Partnerek!$A$9:$K$106,11,FALSE)=\"\",\"\",VLOOKUP($M48,Partnerek!$A$9:$K$106,11,FALSE)),\"\")","v":""},{"$f":"IFERROR(\nIF(RIGHT($A48,2)=\"BE\",\"HU\",\nIF(VLOOKUP($N48,Partnerek!$A$9:$K$106,11,FALSE)=\"\",\"\",VLOOKUP($N48,Partnerek!$A$9:$K$106,11,FALSE))),\"\")","v":""},{"$f":"IFERROR(VLOOKUP(AJ48,ráták!$A$10:$AX$13,MATCH(Q48+T48+W48,ráták!$C$9:$AX$9,1)+2,FALSE),\"\")","v":""},{"$f":"IFERROR(VLOOKUP(AJ48,ráták!$A$10:$AX$13,MATCH(#REF!+#REF!+#REF!,ráták!$C$9:$AX$9,1)+2,FALSE),\"\")","v":""}]
[null,null,null,null,null,null,null,null,null,null,null,null,"",null,null,null,null,null,null,null,null,null,null,null,null,null,null,null,"",null,null,null,null,null,{"$f":"IFERROR(\nIF(VLOOKUP($M49,Partnerek!$A$9:$K$106,11,FALSE)=\"\",\"\",VLOOKUP($M49,Partnerek!$A$9:$K$106,11,FALSE)),\"\")","v":""},{"$f":"IFERROR(\nIF(RIGHT($A49,2)=\"BE\",\"HU\",\nIF(VLOOKUP($N49,Partnerek!$A$9:$K$106,11,FALSE)=\"\",\"\",VLOOKUP($N49,Partnerek!$A$9:$K$106,11,FALSE))),\"\")","v":""},{"$f":"IFERROR(VLOOKUP(AJ49,ráták!$A$10:$AX$13,MATCH(Q49+T49+W49,ráták!$C$9:$AX$9,1)+2,FALSE),\"\")","v":""},{"$f":"IFERROR(VLOOKUP(AJ49,ráták!$A$10:$AX$13,MATCH(#REF!+#REF!+#REF!,ráták!$C$9:$AX$9,1)+2,FALSE),\"\")","v":""}]
[null,null,null,null,null,null,null,null,null,null,null,null,"",null,null,null,null,null,null,null,null,null,null,null,null,null,null,null,"",null,null,null,null,null,{"$f":"IFERROR(\nIF(VLOOKUP($M50,Partnerek!$A$9:$K$106,11,FALSE)=\"\",\"\",VLOOKUP($M50,Partnerek!$A$9:$K$106,11,FALSE)),\"\")","v":""},{"$f":"IFERROR(\nIF(RIGHT($A50,2)=\"BE\",\"HU\",\nIF(VLOOKUP($N50,Partnerek!$A$9:$K$106,11,FALSE)=\"\",\"\",VLOOKUP($N50,Partnerek!$A$9:$K$106,11,FALSE))),\"\")","v":""},{"$f":"IFERROR(VLOOKUP(AJ50,ráták!$A$10:$AX$13,MATCH(Q50+T50+W50,ráták!$C$9:$AX$9,1)+2,FALSE),\"\")","v":""},{"$f":"IFERROR(VLOOKUP(AJ50,ráták!$A$10:$AX$13,MATCH(#REF!+#REF!+#REF!,ráták!$C$9:$AX$9,1)+2,FALSE),\"\")","v":""}]
[null,null,null,null,null,null,null,null,null,null,null,null,"",null,null,null,null,null,null,null,null,null,null,null,null,null,null,null,"",null,null,null,null,null,{"$f":"IFERROR(\nIF(VLOOKUP($M51,Partnerek!$A$9:$K$106,11,FALSE)=\"\",\"\",VLOOKUP($M51,Partnerek!$A$9:$K$106,11,FALSE)),\"\")","v":""},{"$f":"IFERROR(\nIF(RIGHT($A51,2)=\"BE\",\"HU\",\nIF(VLOOKUP($N51,Partnerek!$A$9:$K$106,11,FALSE)=\"\",\"\",VLOOKUP($N51,Partnerek!$A$9:$K$106,11,FALSE))),\"\")","v":""},{"$f":"IFERROR(VLOOKUP(AJ51,ráták!$A$10:$AX$13,MATCH(Q51+T51+W51,ráták!$C$9:$AX$9,1)+2,FALSE),\"\")","v":""},{"$f":"IFERROR(VLOOKUP(AJ51,ráták!$A$10:$AX$13,MATCH(#REF!+#REF!+#REF!,ráták!$C$9:$AX$9,1)+2,FALSE),\"\")","v":""}]
[null,null,null,null,null,null,null,null,null,null,null,null,"",null,null,null,null,null,null,null,null,null,null,null,null,null,null,null,"",null,null,null,null,null,{"$f":"IFERROR(\nIF(VLOOKUP($M52,Partnerek!$A$9:$K$106,11,FALSE)=\"\",\"\",VLOOKUP($M52,Partnerek!$A$9:$K$106,11,FALSE)),\"\")","v":""},{"$f":"IFERROR(\nIF(RIGHT($A52,2)=\"BE\",\"HU\",\nIF(VLOOKUP($N52,Partnerek!$A$9:$K$106,11,FALSE)=\"\",\"\",VLOOKUP($N52,Partnerek!$A$9:$K$106,11,FALSE))),\"\")","v":""},{"$f":"IFERROR(VLOOKUP(AJ52,ráták!$A$10:$AX$13,MATCH(Q52+T52+W52,ráták!$C$9:$AX$9,1)+2,FALSE),\"\")","v":""},{"$f":"IFERROR(VLOOKUP(AJ52,ráták!$A$10:$AX$13,MATCH(#REF!+#REF!+#REF!,ráták!$C$9:$AX$9,1)+2,FALSE),\"\")","v":""}]
[null,null,null,null,null,null,null,null,null,null,null,null,"",null,null,null,null,null,null,null,null,null,null,null,null,null,null,null,"",null,null,null,null,null,{"$f":"IFERROR(\nIF(VLOOKUP($M53,Partnerek!$A$9:$K$106,11,FALSE)=\"\",\"\",VLOOKUP($M53,Partnerek!$A$9:$K$106,11,FALSE)),\"\")","v":""},{"$f":"IFERROR(\nIF(RIGHT($A53,2)=\"BE\",\"HU\",\nIF(VLOOKUP($N53,Partnerek!$A$9:$K$106,11,FALSE)=\"\",\"\",VLOOKUP($N53,Partnerek!$A$9:$K$106,11,FALSE))),\"\")","v":""},{"$f":"IFERROR(VLOOKUP(AJ53,ráták!$A$10:$AX$13,MATCH(Q53+T53+W53,ráták!$C$9:$AX$9,1)+2,FALSE),\"\")","v":""},{"$f":"IFERROR(VLOOKUP(AJ53,ráták!$A$10:$AX$13,MATCH(#REF!+#REF!+#REF!,ráták!$C$9:$AX$9,1)+2,FALSE),\"\")","v":""}]
[null,null,null,null,null,null,null,null,null,null,null,null,"",null,null,null,null,null,null,null,null,null,null,null,null,null,null,null,"",null,null,null,null,null,{"$f":"IFERROR(\nIF(VLOOKUP($M54,Partnerek!$A$9:$K$106,11,FALSE)=\"\",\"\",VLOOKUP($M54,Partnerek!$A$9:$K$106,11,FALSE)),\"\")","v":""},{"$f":"IFERROR(\nIF(RIGHT($A54,2)=\"BE\",\"HU\",\nIF(VLOOKUP($N54,Partnerek!$A$9:$K$106,11,FALSE)=\"\",\"\",VLOOKUP($N54,Partnerek!$A$9:$K$106,11,FALSE))),\"\")","v":""},{"$f":"IFERROR(VLOOKUP(AJ54,ráták!$A$10:$AX$13,MATCH(Q54+T54+W54,ráták!$C$9:$AX$9,1)+2,FALSE),\"\")","v":""},{"$f":"IFERROR(VLOOKUP(AJ54,ráták!$A$10:$AX$13,MATCH(#REF!+#REF!+#REF!,ráták!$C$9:$AX$9,1)+2,FALSE),\"\")","v":""}]
[null,null,null,null,null,null,null,null,null,null,null,null,"",null,null,null,null,null,null,null,null,null,null,null,null,null,null,null,"",null,null,null,null,null,{"$f":"IFERROR(\nIF(VLOOKUP($M55,Partnerek!$A$9:$K$106,11,FALSE)=\"\",\"\",VLOOKUP($M55,Partnerek!$A$9:$K$106,11,FALSE)),\"\")","v":""},{"$f":"IFERROR(\nIF(RIGHT($A55,2)=\"BE\",\"HU\",\nIF(VLOOKUP($N55,Partnerek!$A$9:$K$106,11,FALSE)=\"\",\"\",VLOOKUP($N55,Partnerek!$A$9:$K$106,11,FALSE))),\"\")","v":""},{"$f":"IFERROR(VLOOKUP(AJ55,ráták!$A$10:$AX$13,MATCH(Q55+T55+W55,ráták!$C$9:$AX$9,1)+2,FALSE),\"\")","v":""},{"$f":"IFERROR(VLOOKUP(AJ55,ráták!$A$10:$AX$13,MATCH(#REF!+#REF!+#REF!,ráták!$C$9:$AX$9,1)+2,FALSE),\"\")","v":""}]
[null,null,null,null,null,null,null,null,null,null,null,null,"",null,null,null,null,null,null,null,null,null,null,null,null,null,null,null,"",null,null,null,null,null,{"$f":"IFERROR(\nIF(VLOOKUP($M56,Partnerek!$A$9:$K$106,11,FALSE)=\"\",\"\",VLOOKUP($M56,Partnerek!$A$9:$K$106,11,FALSE)),\"\")","v":""},{"$f":"IFERROR(\nIF(RIGHT($A56,2)=\"BE\",\"HU\",\nIF(VLOOKUP($N56,Partnerek!$A$9:$K$106,11,FALSE)=\"\",\"\",VLOOKUP($N56,Partnerek!$A$9:$K$106,11,FALSE))),\"\")","v":""},{"$f":"IFERROR(VLOOKUP(AJ56,ráták!$A$10:$AX$13,MATCH(Q56+T56+W56,ráták!$C$9:$AX$9,1)+2,FALSE),\"\")","v":""},{"$f":"IFERROR(VLOOKUP(AJ56,ráták!$A$10:$AX$13,MATCH(#REF!+#REF!+#REF!,ráták!$C$9:$AX$9,1)+2,FALSE),\"\")","v":""}]
[null,null,null,null,null,null,null,null,null,null,null,null,"",null,null,null,null,null,null,null,null,null,null,null,null,null,null,null,"",null,null,null,null,null,{"$f":"IFERROR(\nIF(VLOOKUP($M57,Partnerek!$A$9:$K$106,11,FALSE)=\"\",\"\",VLOOKUP($M57,Partnerek!$A$9:$K$106,11,FALSE)),\"\")","v":""},{"$f":"IFERROR(\nIF(RIGHT($A57,2)=\"BE\",\"HU\",\nIF(VLOOKUP($N57,Partnerek!$A$9:$K$106,11,FALSE)=\"\",\"\",VLOOKUP($N57,Partnerek!$A$9:$K$106,11,FALSE))),\"\")","v":""},{"$f":"IFERROR(VLOOKUP(AJ57,ráták!$A$10:$AX$13,MATCH(Q57+T57+W57,ráták!$C$9:$AX$9,1)+2,FALSE),\"\")","v":""},{"$f":"IFERROR(VLOOKUP(AJ57,ráták!$A$10:$AX$13,MATCH(#REF!+#REF!+#REF!,ráták!$C$9:$AX$9,1)+2,FALSE),\"\")","v":""}]
[null,null,null,null,null,null,null,null,null,null,null,null,"",null,null,null,null,null,null,null,null,null,null,null,null,null,null,null,"",null,null,null,null,null,{"$f":"IFERROR(\nIF(VLOOKUP($M58,Partnerek!$A$9:$K$106,11,FALSE)=\"\",\"\",VLOOKUP($M58,Partnerek!$A$9:$K$106,11,FALSE)),\"\")","v":""},{"$f":"IFERROR(\nIF(RIGHT($A58,2)=\"BE\",\"HU\",\nIF(VLOOKUP($N58,Partnerek!$A$9:$K$106,11,FALSE)=\"\",\"\",VLOOKUP($N58,Partnerek!$A$9:$K$106,11,FALSE))),\"\")","v":""},{"$f":"IFERROR(VLOOKUP(AJ58,ráták!$A$10:$AX$13,MATCH(Q58+T58+W58,ráták!$C$9:$AX$9,1)+2,FALSE),\"\")","v":""},{"$f":"IFERROR(VLOOKUP(AJ58,ráták!$A$10:$AX$13,MATCH(#REF!+#REF!+#REF!,ráták!$C$9:$AX$9,1)+2,FALSE),\"\")","v":""}]
[null,null,null,null,null,null,null,null,null,null,null,null,"",null,null,null,null,null,null,null,null,null,null,null,null,null,null,null,"",null,null,null,null,null,{"$f":"IFERROR(\nIF(VLOOKUP($M59,Partnerek!$A$9:$K$106,11,FALSE)=\"\",\"\",VLOOKUP($M59,Partnerek!$A$9:$K$106,11,FALSE)),\"\")","v":""},{"$f":"IFERROR(\nIF(RIGHT($A59,2)=\"BE\",\"HU\",\nIF(VLOOKUP($N59,Partnerek!$A$9:$K$106,11,FALSE)=\"\",\"\",VLOOKUP($N59,Partnerek!$A$9:$K$106,11,FALSE))),\"\")","v":""},{"$f":"IFERROR(VLOOKUP(AJ59,ráták!$A$10:$AX$13,MATCH(Q59+T59+W59,ráták!$C$9:$AX$9,1)+2,FALSE),\"\")","v":""},{"$f":"IFERROR(VLOOKUP(AJ59,ráták!$A$10:$AX$13,MATCH(#REF!+#REF!+#REF!,ráták!$C$9:$AX$9,1)+2,FALSE),\"\")","v":""}]
[null,null,null,null,null,null,null,null,null,null,null,null,"",null,null,null,null,null,null,null,null,null,null,null,null,null,null,null,"",null,null,null,null,null,{"$f":"IFERROR(\nIF(VLOOKUP($M60,Partnerek!$A$9:$K$106,11,FALSE)=\"\",\"\",VLOOKUP($M60,Partnerek!$A$9:$K$106,11,FALSE)),\"\")","v":""},{"$f":"IFERROR(\nIF(RIGHT($A60,2)=\"BE\",\"HU\",\nIF(VLOOKUP($N60,Partnerek!$A$9:$K$106,11,FALSE)=\"\",\"\",VLOOKUP($N60,Partnerek!$A$9:$K$106,11,FALSE))),\"\")","v":""},{"$f":"IFERROR(VLOOKUP(AJ60,ráták!$A$10:$AX$13,MATCH(Q60+T60+W60,ráták!$C$9:$AX$9,1)+2,FALSE),\"\")","v":""},{"$f":"IFERROR(VLOOKUP(AJ60,ráták!$A$10:$AX$13,MATCH(#REF!+#REF!+#REF!,ráták!$C$9:$AX$9,1)+2,FALSE),\"\")","v":""}]
[null,null,null,null,null,null,null,null,null,null,null,null,"",null,null,null,null,null,null,null,null,null,null,null,null,null,null,null,"",null,null,null,null,null,{"$f":"IFERROR(\nIF(VLOOKUP($M61,Partnerek!$A$9:$K$106,11,FALSE)=\"\",\"\",VLOOKUP($M61,Partnerek!$A$9:$K$106,11,FALSE)),\"\")","v":""},{"$f":"IFERROR(\nIF(RIGHT($A61,2)=\"BE\",\"HU\",\nIF(VLOOKUP($N61,Partnerek!$A$9:$K$106,11,FALSE)=\"\",\"\",VLOOKUP($N61,Partnerek!$A$9:$K$106,11,FALSE))),\"\")","v":""},{"$f":"IFERROR(VLOOKUP(AJ61,ráták!$A$10:$AX$13,MATCH(Q61+T61+W61,ráták!$C$9:$AX$9,1)+2,FALSE),\"\")","v":""},{"$f":"IFERROR(VLOOKUP(AJ61,ráták!$A$10:$AX$13,MATCH(#REF!+#REF!+#REF!,ráták!$C$9:$AX$9,1)+2,FALSE),\"\")","v":""}]
[null,null,null,null,null,null,null,null,null,null,null,null,"",null,null,null,null,null,null,null,null,null,null,null,null,null,null,null,"",null,null,null,null,null,{"$f":"IFERROR(\nIF(VLOOKUP($M62,Partnerek!$A$9:$K$106,11,FALSE)=\"\",\"\",VLOOKUP($M62,Partnerek!$A$9:$K$106,11,FALSE)),\"\")","v":""},{"$f":"IFERROR(\nIF(RIGHT($A62,2)=\"BE\",\"HU\",\nIF(VLOOKUP($N62,Partnerek!$A$9:$K$106,11,FALSE)=\"\",\"\",VLOOKUP($N62,Partnerek!$A$9:$K$106,11,FALSE))),\"\")","v":""},{"$f":"IFERROR(VLOOKUP(AJ62,ráták!$A$10:$AX$13,MATCH(Q62+T62+W62,ráták!$C$9:$AX$9,1)+2,FALSE),\"\")","v":""},{"$f":"IFERROR(VLOOKUP(AJ62,ráták!$A$10:$AX$13,MATCH(#REF!+#REF!+#REF!,ráták!$C$9:$AX$9,1)+2,FALSE),\"\")","v":""}]
[null,null,null,null,null,null,null,null,null,null,null,null,"",null,null,null,null,null,null,null,null,null,null,null,null,null,null,null,"",null,null,null,null,null,{"$f":"IFERROR(\nIF(VLOOKUP($M63,Partnerek!$A$9:$K$106,11,FALSE)=\"\",\"\",VLOOKUP($M63,Partnerek!$A$9:$K$106,11,FALSE)),\"\")","v":""},{"$f":"IFERROR(\nIF(RIGHT($A63,2)=\"BE\",\"HU\",\nIF(VLOOKUP($N63,Partnerek!$A$9:$K$106,11,FALSE)=\"\",\"\",VLOOKUP($N63,Partnerek!$A$9:$K$106,11,FALSE))),\"\")","v":""},{"$f":"IFERROR(VLOOKUP(AJ63,ráták!$A$10:$AX$13,MATCH(Q63+T63+W63,ráták!$C$9:$AX$9,1)+2,FALSE),\"\")","v":""},{"$f":"IFERROR(VLOOKUP(AJ63,ráták!$A$10:$AX$13,MATCH(#REF!+#REF!+#REF!,ráták!$C$9:$AX$9,1)+2,FALSE),\"\")","v":""}]
[null,null,null,null,null,null,null,null,null,null,null,null,"",null,null,null,null,null,null,null,null,null,null,null,null,null,null,null,"",null,null,null,null,null,{"$f":"IFERROR(\nIF(VLOOKUP($M64,Partnerek!$A$9:$K$106,11,FALSE)=\"\",\"\",VLOOKUP($M64,Partnerek!$A$9:$K$106,11,FALSE)),\"\")","v":""},{"$f":"IFERROR(\nIF(RIGHT($A64,2)=\"BE\",\"HU\",\nIF(VLOOKUP($N64,Partnerek!$A$9:$K$106,11,FALSE)=\"\",\"\",VLOOKUP($N64,Partnerek!$A$9:$K$106,11,FALSE))),\"\")","v":""},{"$f":"IFERROR(VLOOKUP(AJ64,ráták!$A$10:$AX$13,MATCH(Q64+T64+W64,ráták!$C$9:$AX$9,1)+2,FALSE),\"\")","v":""},{"$f":"IFERROR(VLOOKUP(AJ64,ráták!$A$10:$AX$13,MATCH(#REF!+#REF!+#REF!,ráták!$C$9:$AX$9,1)+2,FALSE),\"\")","v":""}]
[null,null,null,null,null,null,null,null,null,null,null,null,"",null,null,null,null,null,null,null,null,null,null,null,null,null,null,null,"",null,null,null,null,null,{"$f":"IFERROR(\nIF(VLOOKUP($M65,Partnerek!$A$9:$K$106,11,FALSE)=\"\",\"\",VLOOKUP($M65,Partnerek!$A$9:$K$106,11,FALSE)),\"\")","v":""},{"$f":"IFERROR(\nIF(RIGHT($A65,2)=\"BE\",\"HU\",\nIF(VLOOKUP($N65,Partnerek!$A$9:$K$106,11,FALSE)=\"\",\"\",VLOOKUP($N65,Partnerek!$A$9:$K$106,11,FALSE))),\"\")","v":""},{"$f":"IFERROR(VLOOKUP(AJ65,ráták!$A$10:$AX$13,MATCH(Q65+T65+W65,ráták!$C$9:$AX$9,1)+2,FALSE),\"\")","v":""},{"$f":"IFERROR(VLOOKUP(AJ65,ráták!$A$10:$AX$13,MATCH(#REF!+#REF!+#REF!,ráták!$C$9:$AX$9,1)+2,FALSE),\"\")","v":""}]
[null,null,null,null,null,null,null,null,null,null,null,null,"",null,null,null,null,null,null,null,null,null,null,null,null,null,null,null,"",null,null,null,null,null,{"$f":"IFERROR(\nIF(VLOOKUP($M66,Partnerek!$A$9:$K$106,11,FALSE)=\"\",\"\",VLOOKUP($M66,Partnerek!$A$9:$K$106,11,FALSE)),\"\")","v":""},{"$f":"IFERROR(\nIF(RIGHT($A66,2)=\"BE\",\"HU\",\nIF(VLOOKUP($N66,Partnerek!$A$9:$K$106,11,FALSE)=\"\",\"\",VLOOKUP($N66,Partnerek!$A$9:$K$106,11,FALSE))),\"\")","v":""},{"$f":"IFERROR(VLOOKUP(AJ66,ráták!$A$10:$AX$13,MATCH(Q66+T66+W66,ráták!$C$9:$AX$9,1)+2,FALSE),\"\")","v":""},{"$f":"IFERROR(VLOOKUP(AJ66,ráták!$A$10:$AX$13,MATCH(#REF!+#REF!+#REF!,ráták!$C$9:$AX$9,1)+2,FALSE),\"\")","v":""}]
[null,null,null,null,null,null,null,null,null,null,null,null,"",null,null,null,null,null,null,null,null,null,null,null,null,null,null,null,"",null,null,null,null,null,{"$f":"IFERROR(\nIF(VLOOKUP($M67,Partnerek!$A$9:$K$106,11,FALSE)=\"\",\"\",VLOOKUP($M67,Partnerek!$A$9:$K$106,11,FALSE)),\"\")","v":""},{"$f":"IFERROR(\nIF(RIGHT($A67,2)=\"BE\",\"HU\",\nIF(VLOOKUP($N67,Partnerek!$A$9:$K$106,11,FALSE)=\"\",\"\",VLOOKUP($N67,Partnerek!$A$9:$K$106,11,FALSE))),\"\")","v":""},{"$f":"IFERROR(VLOOKUP(AJ67,ráták!$A$10:$AX$13,MATCH(Q67+T67+W67,ráták!$C$9:$AX$9,1)+2,FALSE),\"\")","v":""},{"$f":"IFERROR(VLOOKUP(AJ67,ráták!$A$10:$AX$13,MATCH(#REF!+#REF!+#REF!,ráták!$C$9:$AX$9,1)+2,FALSE),\"\")","v":""}]
[null,null,null,null,null,null,null,null,null,null,null,null,"",null,null,null,null,null,null,null,null,null,null,null,null,null,null,null,"",null,null,null,null,null,{"$f":"IFERROR(\nIF(VLOOKUP($M68,Partnerek!$A$9:$K$106,11,FALSE)=\"\",\"\",VLOOKUP($M68,Partnerek!$A$9:$K$106,11,FALSE)),\"\")","v":""},{"$f":"IFERROR(\nIF(RIGHT($A68,2)=\"BE\",\"HU\",\nIF(VLOOKUP($N68,Partnerek!$A$9:$K$106,11,FALSE)=\"\",\"\",VLOOKUP($N68,Partnerek!$A$9:$K$106,11,FALSE))),\"\")","v":""},{"$f":"IFERROR(VLOOKUP(AJ68,ráták!$A$10:$AX$13,MATCH(Q68+T68+W68,ráták!$C$9:$AX$9,1)+2,FALSE),\"\")","v":""},{"$f":"IFERROR(VLOOKUP(AJ68,ráták!$A$10:$AX$13,MATCH(#REF!+#REF!+#REF!,ráták!$C$9:$AX$9,1)+2,FALSE),\"\")","v":""}]
[null,null,null,null,null,null,null,null,null,null,null,null,"",null,null,null,null,null,null,null,null,null,null,null,null,null,null,null,"",null,null,null,null,null,{"$f":"IFERROR(\nIF(VLOOKUP($M69,Partnerek!$A$9:$K$106,11,FALSE)=\"\",\"\",VLOOKUP($M69,Partnerek!$A$9:$K$106,11,FALSE)),\"\")","v":""},{"$f":"IFERROR(\nIF(RIGHT($A69,2)=\"BE\",\"HU\",\nIF(VLOOKUP($N69,Partnerek!$A$9:$K$106,11,FALSE)=\"\",\"\",VLOOKUP($N69,Partnerek!$A$9:$K$106,11,FALSE))),\"\")","v":""},{"$f":"IFERROR(VLOOKUP(AJ69,ráták!$A$10:$AX$13,MATCH(Q69+T69+W69,ráták!$C$9:$AX$9,1)+2,FALSE),\"\")","v":""},{"$f":"IFERROR(VLOOKUP(AJ69,ráták!$A$10:$AX$13,MATCH(#REF!+#REF!+#REF!,ráták!$C$9:$AX$9,1)+2,FALSE),\"\")","v":""}]
[null,null,null,null,null,null,null,null,null,null,null,null,"",null,null,null,null,null,null,null,null,null,null,null,null,null,null,null,"",null,null,null,null,null,{"$f":"IFERROR(\nIF(VLOOKUP($M70,Partnerek!$A$9:$K$106,11,FALSE)=\"\",\"\",VLOOKUP($M70,Partnerek!$A$9:$K$106,11,FALSE)),\"\")","v":""},{"$f":"IFERROR(\nIF(RIGHT($A70,2)=\"BE\",\"HU\",\nIF(VLOOKUP($N70,Partnerek!$A$9:$K$106,11,FALSE)=\"\",\"\",VLOOKUP($N70,Partnerek!$A$9:$K$106,11,FALSE))),\"\")","v":""},{"$f":"IFERROR(VLOOKUP(AJ70,ráták!$A$10:$AX$13,MATCH(Q70+T70+W70,ráták!$C$9:$AX$9,1)+2,FALSE),\"\")","v":""},{"$f":"IFERROR(VLOOKUP(AJ70,ráták!$A$10:$AX$13,MATCH(#REF!+#REF!+#REF!,ráták!$C$9:$AX$9,1)+2,FALSE),\"\")","v":""}]
[null,null,null,null,null,null,null,null,null,null,null,null,"",null,null,null,null,null,null,null,null,null,null,null,null,null,null,null,"",null,null,null,null,null,{"$f":"IFERROR(\nIF(VLOOKUP($M71,Partnerek!$A$9:$K$106,11,FALSE)=\"\",\"\",VLOOKUP($M71,Partnerek!$A$9:$K$106,11,FALSE)),\"\")","v":""},{"$f":"IFERROR(\nIF(RIGHT($A71,2)=\"BE\",\"HU\",\nIF(VLOOKUP($N71,Partnerek!$A$9:$K$106,11,FALSE)=\"\",\"\",VLOOKUP($N71,Partnerek!$A$9:$K$106,11,FALSE))),\"\")","v":""},{"$f":"IFERROR(VLOOKUP(AJ71,ráták!$A$10:$AX$13,MATCH(Q71+T71+W71,ráták!$C$9:$AX$9,1)+2,FALSE),\"\")","v":""},{"$f":"IFERROR(VLOOKUP(AJ71,ráták!$A$10:$AX$13,MATCH(#REF!+#REF!+#REF!,ráták!$C$9:$AX$9,1)+2,FALSE),\"\")","v":""}]
[null,null,null,null,null,null,null,null,null,null,null,null,"",null,null,null,null,null,null,null,null,null,null,null,null,null,null,null,"",null,null,null,null,null,{"$f":"IFERROR(\nIF(VLOOKUP($M72,Partnerek!$A$9:$K$106,11,FALSE)=\"\",\"\",VLOOKUP($M72,Partnerek!$A$9:$K$106,11,FALSE)),\"\")","v":""},{"$f":"IFERROR(\nIF(RIGHT($A72,2)=\"BE\",\"HU\",\nIF(VLOOKUP($N72,Partnerek!$A$9:$K$106,11,FALSE)=\"\",\"\",VLOOKUP($N72,Partnerek!$A$9:$K$106,11,FALSE))),\"\")","v":""},{"$f":"IFERROR(VLOOKUP(AJ72,ráták!$A$10:$AX$13,MATCH(Q72+T72+W72,ráták!$C$9:$AX$9,1)+2,FALSE),\"\")","v":""},{"$f":"IFERROR(VLOOKUP(AJ72,ráták!$A$10:$AX$13,MATCH(#REF!+#REF!+#REF!,ráták!$C$9:$AX$9,1)+2,FALSE),\"\")","v":""}]
[null,null,null,null,null,null,null,null,null,null,null,null,{"$f":"IF((IFERROR(RIGHT($A73,2),\"\")=\"KI\"),Erasmus_kod,\"\")","v":""},null,null,null,null,null,null,null,null,null,null,null,null,null,null,null,{"$f":"IFERROR(\n   IF( ((RIGHT(A73,2)=\"KI\")*(AI73=\"HU\")*(AJ73<>\"HU\"))+((RIGHT(A73,2)=\"BE\")*(AJ73=\"HU\")*(AJ73=\"HU\")),  IF(A73<>\"\",AK73,\"\"),\"\"),\"\")","v":""},null,null,null,null,null,{"$f":"IFERROR(\nIF(VLOOKUP($M73,Partnerek!$A$9:$K$106,11,FALSE)=\"\",\"\",VLOOKUP($M73,Partnerek!$A$9:$K$106,11,FALSE)),\"\")","v":""},{"$f":"IFERROR(\nIF(RIGHT($A73,2)=\"BE\",\"HU\",\nIF(VLOOKUP($N73,Partnerek!$A$9:$K$106,11,FALSE)=\"\",\"\",VLOOKUP($N73,Partnerek!$A$9:$K$106,11,FALSE))),\"\")","v":""},{"$f":"IFERROR(VLOOKUP(AJ73,ráták!$A$10:$AX$13,MATCH(Q73+T73+W73,ráták!$C$9:$AX$9,1)+2,FALSE),\"\")","v":""},{"$f":"IFERROR(VLOOKUP(AJ73,ráták!$A$10:$AX$13,MATCH(#REF!+#REF!+#REF!,ráták!$C$9:$AX$9,1)+2,FALSE),\"\")","v":""}]
[null,null,null,null,null,null,null,null,null,null,null,null,"",null,null,null,null,null,null,null,null,null,null,null,null,null,null,null,"",null,null,null,null,null,{"$f":"IFERROR(\nIF(VLOOKUP($M74,Partnerek!$A$9:$K$106,11,FALSE)=\"\",\"\",VLOOKUP($M74,Partnerek!$A$9:$K$106,11,FALSE)),\"\")","v":""},{"$f":"IFERROR(\nIF(RIGHT($A74,2)=\"BE\",\"HU\",\nIF(VLOOKUP($N74,Partnerek!$A$9:$K$106,11,FALSE)=\"\",\"\",VLOOKUP($N74,Partnerek!$A$9:$K$106,11,FALSE))),\"\")","v":""},{"$f":"IFERROR(VLOOKUP(AJ74,ráták!$A$10:$AX$13,MATCH(Q74+T74+W74,ráták!$C$9:$AX$9,1)+2,FALSE),\"\")","v":""},{"$f":"IFERROR(VLOOKUP(AJ74,ráták!$A$10:$AX$13,MATCH(#REF!+#REF!+#REF!,ráták!$C$9:$AX$9,1)+2,FALSE),\"\")","v":""}]
[null,null,null,null,null,null,null,null,null,null,null,null,"",null,null,null,null,null,null,null,null,null,null,null,null,null,null,null,"",null,null,null,null,null,{"$f":"IFERROR(\nIF(VLOOKUP($M75,Partnerek!$A$9:$K$106,11,FALSE)=\"\",\"\",VLOOKUP($M75,Partnerek!$A$9:$K$106,11,FALSE)),\"\")","v":""},{"$f":"IFERROR(\nIF(RIGHT($A75,2)=\"BE\",\"HU\",\nIF(VLOOKUP($N75,Partnerek!$A$9:$K$106,11,FALSE)=\"\",\"\",VLOOKUP($N75,Partnerek!$A$9:$K$106,11,FALSE))),\"\")","v":""},{"$f":"IFERROR(VLOOKUP(AJ75,ráták!$A$10:$AX$13,MATCH(Q75+T75+W75,ráták!$C$9:$AX$9,1)+2,FALSE),\"\")","v":""},{"$f":"IFERROR(VLOOKUP(AJ75,ráták!$A$10:$AX$13,MATCH(#REF!+#REF!+#REF!,ráták!$C$9:$AX$9,1)+2,FALSE),\"\")","v":""}]
[null,null,null,null,null,null,null,null,null,null,null,null,"",null,null,null,null,null,null,null,null,null,null,null,null,null,null,null,"",null,null,null,null,null,{"$f":"IFERROR(\nIF(VLOOKUP($M76,Partnerek!$A$9:$K$106,11,FALSE)=\"\",\"\",VLOOKUP($M76,Partnerek!$A$9:$K$106,11,FALSE)),\"\")","v":""},{"$f":"IFERROR(\nIF(RIGHT($A76,2)=\"BE\",\"HU\",\nIF(VLOOKUP($N76,Partnerek!$A$9:$K$106,11,FALSE)=\"\",\"\",VLOOKUP($N76,Partnerek!$A$9:$K$106,11,FALSE))),\"\")","v":""},{"$f":"IFERROR(VLOOKUP(AJ76,ráták!$A$10:$AX$13,MATCH(Q76+T76+W76,ráták!$C$9:$AX$9,1)+2,FALSE),\"\")","v":""},{"$f":"IFERROR(VLOOKUP(AJ76,ráták!$A$10:$AX$13,MATCH(#REF!+#REF!+#REF!,ráták!$C$9:$AX$9,1)+2,FALSE),\"\")","v":""}]
[null,null,null,null,null,null,null,null,null,null,null,null,"",null,null,null,null,null,null,null,null,null,null,null,null,null,null,null,"",null,null,null,null,null,{"$f":"IFERROR(\nIF(VLOOKUP($M77,Partnerek!$A$9:$K$106,11,FALSE)=\"\",\"\",VLOOKUP($M77,Partnerek!$A$9:$K$106,11,FALSE)),\"\")","v":""},{"$f":"IFERROR(\nIF(RIGHT($A77,2)=\"BE\",\"HU\",\nIF(VLOOKUP($N77,Partnerek!$A$9:$K$106,11,FALSE)=\"\",\"\",VLOOKUP($N77,Partnerek!$A$9:$K$106,11,FALSE))),\"\")","v":""},{"$f":"IFERROR(VLOOKUP(AJ77,ráták!$A$10:$AX$13,MATCH(Q77+T77+W77,ráták!$C$9:$AX$9,1)+2,FALSE),\"\")","v":""},{"$f":"IFERROR(VLOOKUP(AJ77,ráták!$A$10:$AX$13,MATCH(#REF!+#REF!+#REF!,ráták!$C$9:$AX$9,1)+2,FALSE),\"\")","v":""}]
[null,null,null,null,null,null,null,null,null,null,null,null,"",null,null,null,null,null,null,null,null,null,null,null,null,null,null,null,"",null,null,null,null,null,{"$f":"IFERROR(\nIF(VLOOKUP($M78,Partnerek!$A$9:$K$106,11,FALSE)=\"\",\"\",VLOOKUP($M78,Partnerek!$A$9:$K$106,11,FALSE)),\"\")","v":""},{"$f":"IFERROR(\nIF(RIGHT($A78,2)=\"BE\",\"HU\",\nIF(VLOOKUP($N78,Partnerek!$A$9:$K$106,11,FALSE)=\"\",\"\",VLOOKUP($N78,Partnerek!$A$9:$K$106,11,FALSE))),\"\")","v":""},{"$f":"IFERROR(VLOOKUP(AJ78,ráták!$A$10:$AX$13,MATCH(Q78+T78+W78,ráták!$C$9:$AX$9,1)+2,FALSE),\"\")","v":""},{"$f":"IFERROR(VLOOKUP(AJ78,ráták!$A$10:$AX$13,MATCH(#REF!+#REF!+#REF!,ráták!$C$9:$AX$9,1)+2,FALSE),\"\")","v":""}]
[null,null,null,null,null,null,null,null,null,null,null,null,"",null,null,null,null,null,null,null,null,null,null,null,null,null,null,null,"",null,null,null,null,null,{"$f":"IFERROR(\nIF(VLOOKUP($M79,Partnerek!$A$9:$K$106,11,FALSE)=\"\",\"\",VLOOKUP($M79,Partnerek!$A$9:$K$106,11,FALSE)),\"\")","v":""},{"$f":"IFERROR(\nIF(RIGHT($A79,2)=\"BE\",\"HU\",\nIF(VLOOKUP($N79,Partnerek!$A$9:$K$106,11,FALSE)=\"\",\"\",VLOOKUP($N79,Partnerek!$A$9:$K$106,11,FALSE))),\"\")","v":""},{"$f":"IFERROR(VLOOKUP(AJ79,ráták!$A$10:$AX$13,MATCH(Q79+T79+W79,ráták!$C$9:$AX$9,1)+2,FALSE),\"\")","v":""},{"$f":"IFERROR(VLOOKUP(AJ79,ráták!$A$10:$AX$13,MATCH(#REF!+#REF!+#REF!,ráták!$C$9:$AX$9,1)+2,FALSE),\"\")","v":""}]
[null,null,null,null,null,null,null,null,null,null,null,null,"",null,null,null,null,null,null,null,null,null,null,null,null,null,null,null,"",null,null,null,null,null,{"$f":"IFERROR(\nIF(VLOOKUP($M80,Partnerek!$A$9:$K$106,11,FALSE)=\"\",\"\",VLOOKUP($M80,Partnerek!$A$9:$K$106,11,FALSE)),\"\")","v":""},{"$f":"IFERROR(\nIF(RIGHT($A80,2)=\"BE\",\"HU\",\nIF(VLOOKUP($N80,Partnerek!$A$9:$K$106,11,FALSE)=\"\",\"\",VLOOKUP($N80,Partnerek!$A$9:$K$106,11,FALSE))),\"\")","v":""},{"$f":"IFERROR(VLOOKUP(AJ80,ráták!$A$10:$AX$13,MATCH(Q80+T80+W80,ráták!$C$9:$AX$9,1)+2,FALSE),\"\")","v":""},{"$f":"IFERROR(VLOOKUP(AJ80,ráták!$A$10:$AX$13,MATCH(#REF!+#REF!+#REF!,ráták!$C$9:$AX$9,1)+2,FALSE),\"\")","v":""}]
[null,null,null,null,null,null,null,null,null,null,null,null,"",null,null,null,null,null,null,null,null,null,null,null,null,null,null,null,"",null,null,null,null,null,{"$f":"IFERROR(\nIF(VLOOKUP($M81,Partnerek!$A$9:$K$106,11,FALSE)=\"\",\"\",VLOOKUP($M81,Partnerek!$A$9:$K$106,11,FALSE)),\"\")","v":""},{"$f":"IFERROR(\nIF(RIGHT($A81,2)=\"BE\",\"HU\",\nIF(VLOOKUP($N81,Partnerek!$A$9:$K$106,11,FALSE)=\"\",\"\",VLOOKUP($N81,Partnerek!$A$9:$K$106,11,FALSE))),\"\")","v":""},{"$f":"IFERROR(VLOOKUP(AJ81,ráták!$A$10:$AX$13,MATCH(Q81+T81+W81,ráták!$C$9:$AX$9,1)+2,FALSE),\"\")","v":""},{"$f":"IFERROR(VLOOKUP(AJ81,ráták!$A$10:$AX$13,MATCH(#REF!+#REF!+#REF!,ráták!$C$9:$AX$9,1)+2,FALSE),\"\")","v":""}]
[null,null,null,null,null,null,null,null,null,null,null,null,"",null,null,null,null,null,null,null,null,null,null,null,null,null,null,null,"",null,null,null,null,null,{"$f":"IFERROR(\nIF(VLOOKUP($M82,Partnerek!$A$9:$K$106,11,FALSE)=\"\",\"\",VLOOKUP($M82,Partnerek!$A$9:$K$106,11,FALSE)),\"\")","v":""},{"$f":"IFERROR(\nIF(RIGHT($A82,2)=\"BE\",\"HU\",\nIF(VLOOKUP($N82,Partnerek!$A$9:$K$106,11,FALSE)=\"\",\"\",VLOOKUP($N82,Partnerek!$A$9:$K$106,11,FALSE))),\"\")","v":""},{"$f":"IFERROR(VLOOKUP(AJ82,ráták!$A$10:$AX$13,MATCH(Q82+T82+W82,ráták!$C$9:$AX$9,1)+2,FALSE),\"\")","v":""},{"$f":"IFERROR(VLOOKUP(AJ82,ráták!$A$10:$AX$13,MATCH(#REF!+#REF!+#REF!,ráták!$C$9:$AX$9,1)+2,FALSE),\"\")","v":""}]
[null,null,null,null,null,null,null,null,null,null,null,null,"",null,null,null,null,null,null,null,null,null,null,null,null,null,null,null,"",null,null,null,null,null,{"$f":"IFERROR(\nIF(VLOOKUP($M83,Partnerek!$A$9:$K$106,11,FALSE)=\"\",\"\",VLOOKUP($M83,Partnerek!$A$9:$K$106,11,FALSE)),\"\")","v":""},{"$f":"IFERROR(\nIF(RIGHT($A83,2)=\"BE\",\"HU\",\nIF(VLOOKUP($N83,Partnerek!$A$9:$K$106,11,FALSE)=\"\",\"\",VLOOKUP($N83,Partnerek!$A$9:$K$106,11,FALSE))),\"\")","v":""},{"$f":"IFERROR(VLOOKUP(AJ83,ráták!$A$10:$AX$13,MATCH(Q83+T83+W83,ráták!$C$9:$AX$9,1)+2,FALSE),\"\")","v":""},{"$f":"IFERROR(VLOOKUP(AJ83,ráták!$A$10:$AX$13,MATCH(#REF!+#REF!+#REF!,ráták!$C$9:$AX$9,1)+2,FALSE),\"\")","v":""}]
[null,null,null,null,null,null,null,null,null,null,null,null,"",null,null,null,null,null,null,null,null,null,null,null,null,null,null,null,"",null,null,null,null,null,{"$f":"IFERROR(\nIF(VLOOKUP($M84,Partnerek!$A$9:$K$106,11,FALSE)=\"\",\"\",VLOOKUP($M84,Partnerek!$A$9:$K$106,11,FALSE)),\"\")","v":""},{"$f":"IFERROR(\nIF(RIGHT($A84,2)=\"BE\",\"HU\",\nIF(VLOOKUP($N84,Partnerek!$A$9:$K$106,11,FALSE)=\"\",\"\",VLOOKUP($N84,Partnerek!$A$9:$K$106,11,FALSE))),\"\")","v":""},{"$f":"IFERROR(VLOOKUP(AJ84,ráták!$A$10:$AX$13,MATCH(Q84+T84+W84,ráták!$C$9:$AX$9,1)+2,FALSE),\"\")","v":""},{"$f":"IFERROR(VLOOKUP(AJ84,ráták!$A$10:$AX$13,MATCH(#REF!+#REF!+#REF!,ráták!$C$9:$AX$9,1)+2,FALSE),\"\")","v":""}]
[null,null,null,null,null,null,null,null,null,null,null,null,"",null,null,null,null,null,null,null,null,null,null,null,null,null,null,null,"",null,null,null,null,null,{"$f":"IFERROR(\nIF(VLOOKUP($M85,Partnerek!$A$9:$K$106,11,FALSE)=\"\",\"\",VLOOKUP($M85,Partnerek!$A$9:$K$106,11,FALSE)),\"\")","v":""},{"$f":"IFERROR(\nIF(RIGHT($A85,2)=\"BE\",\"HU\",\nIF(VLOOKUP($N85,Partnerek!$A$9:$K$106,11,FALSE)=\"\",\"\",VLOOKUP($N85,Partnerek!$A$9:$K$106,11,FALSE))),\"\")","v":""},{"$f":"IFERROR(VLOOKUP(AJ85,ráták!$A$10:$AX$13,MATCH(Q85+T85+W85,ráták!$C$9:$AX$9,1)+2,FALSE),\"\")","v":""},{"$f":"IFERROR(VLOOKUP(AJ85,ráták!$A$10:$AX$13,MATCH(#REF!+#REF!+#REF!,ráták!$C$9:$AX$9,1)+2,FALSE),\"\")","v":""}]
[null,null,null,null,null,null,null,null,null,null,null,null,"",null,null,null,null,null,null,null,null,null,null,null,null,null,null,null,"",null,null,null,null,null,{"$f":"IFERROR(\nIF(VLOOKUP($M86,Partnerek!$A$9:$K$106,11,FALSE)=\"\",\"\",VLOOKUP($M86,Partnerek!$A$9:$K$106,11,FALSE)),\"\")","v":""},{"$f":"IFERROR(\nIF(RIGHT($A86,2)=\"BE\",\"HU\",\nIF(VLOOKUP($N86,Partnerek!$A$9:$K$106,11,FALSE)=\"\",\"\",VLOOKUP($N86,Partnerek!$A$9:$K$106,11,FALSE))),\"\")","v":""},{"$f":"IFERROR(VLOOKUP(AJ86,ráták!$A$10:$AX$13,MATCH(Q86+T86+W86,ráták!$C$9:$AX$9,1)+2,FALSE),\"\")","v":""},{"$f":"IFERROR(VLOOKUP(AJ86,ráták!$A$10:$AX$13,MATCH(#REF!+#REF!+#REF!,ráták!$C$9:$AX$9,1)+2,FALSE),\"\")","v":""}]
[null,null,null,null,null,null,null,null,null,null,null,null,"",null,null,null,null,null,null,null,null,null,null,null,null,null,null,null,"",null,null,null,null,null,{"$f":"IFERROR(\nIF(VLOOKUP($M87,Partnerek!$A$9:$K$106,11,FALSE)=\"\",\"\",VLOOKUP($M87,Partnerek!$A$9:$K$106,11,FALSE)),\"\")","v":""},{"$f":"IFERROR(\nIF(RIGHT($A87,2)=\"BE\",\"HU\",\nIF(VLOOKUP($N87,Partnerek!$A$9:$K$106,11,FALSE)=\"\",\"\",VLOOKUP($N87,Partnerek!$A$9:$K$106,11,FALSE))),\"\")","v":""},{"$f":"IFERROR(VLOOKUP(AJ87,ráták!$A$10:$AX$13,MATCH(Q87+T87+W87,ráták!$C$9:$AX$9,1)+2,FALSE),\"\")","v":""},{"$f":"IFERROR(VLOOKUP(AJ87,ráták!$A$10:$AX$13,MATCH(#REF!+#REF!+#REF!,ráták!$C$9:$AX$9,1)+2,FALSE),\"\")","v":""}]
[null,null,null,null,null,null,null,null,null,null,null,null,"",null,null,null,null,null,null,null,null,null,null,null,null,null,null,null,"",null,null,null,null,null,{"$f":"IFERROR(\nIF(VLOOKUP($M88,Partnerek!$A$9:$K$106,11,FALSE)=\"\",\"\",VLOOKUP($M88,Partnerek!$A$9:$K$106,11,FALSE)),\"\")","v":""},{"$f":"IFERROR(\nIF(RIGHT($A88,2)=\"BE\",\"HU\",\nIF(VLOOKUP($N88,Partnerek!$A$9:$K$106,11,FALSE)=\"\",\"\",VLOOKUP($N88,Partnerek!$A$9:$K$106,11,FALSE))),\"\")","v":""},{"$f":"IFERROR(VLOOKUP(AJ88,ráták!$A$10:$AX$13,MATCH(Q88+T88+W88,ráták!$C$9:$AX$9,1)+2,FALSE),\"\")","v":""},{"$f":"IFERROR(VLOOKUP(AJ88,ráták!$A$10:$AX$13,MATCH(#REF!+#REF!+#REF!,ráták!$C$9:$AX$9,1)+2,FALSE),\"\")","v":""}]
[null,null,null,null,null,null,null,null,null,null,null,null,"",null,null,null,null,null,null,null,null,null,null,null,null,null,null,null,"",null,null,null,null,null,{"$f":"IFERROR(\nIF(VLOOKUP($M89,Partnerek!$A$9:$K$106,11,FALSE)=\"\",\"\",VLOOKUP($M89,Partnerek!$A$9:$K$106,11,FALSE)),\"\")","v":""},{"$f":"IFERROR(\nIF(RIGHT($A89,2)=\"BE\",\"HU\",\nIF(VLOOKUP($N89,Partnerek!$A$9:$K$106,11,FALSE)=\"\",\"\",VLOOKUP($N89,Partnerek!$A$9:$K$106,11,FALSE))),\"\")","v":""},{"$f":"IFERROR(VLOOKUP(AJ89,ráták!$A$10:$AX$13,MATCH(Q89+T89+W89,ráták!$C$9:$AX$9,1)+2,FALSE),\"\")","v":""},{"$f":"IFERROR(VLOOKUP(AJ89,ráták!$A$10:$AX$13,MATCH(#REF!+#REF!+#REF!,ráták!$C$9:$AX$9,1)+2,FALSE),\"\")","v":""}]
[null,null,null,null,null,null,null,null,null,null,null,null,"",null,null,null,null,null,null,null,null,null,null,null,null,null,null,null,"",null,null,null,null,null,{"$f":"IFERROR(\nIF(VLOOKUP($M90,Partnerek!$A$9:$K$106,11,FALSE)=\"\",\"\",VLOOKUP($M90,Partnerek!$A$9:$K$106,11,FALSE)),\"\")","v":""},{"$f":"IFERROR(\nIF(RIGHT($A90,2)=\"BE\",\"HU\",\nIF(VLOOKUP($N90,Partnerek!$A$9:$K$106,11,FALSE)=\"\",\"\",VLOOKUP($N90,Partnerek!$A$9:$K$106,11,FALSE))),\"\")","v":""},{"$f":"IFERROR(VLOOKUP(AJ90,ráták!$A$10:$AX$13,MATCH(Q90+T90+W90,ráták!$C$9:$AX$9,1)+2,FALSE),\"\")","v":""},{"$f":"IFERROR(VLOOKUP(AJ90,ráták!$A$10:$AX$13,MATCH(#REF!+#REF!+#REF!,ráták!$C$9:$AX$9,1)+2,FALSE),\"\")","v":""}]
[null,null,null,null,null,null,null,null,null,null,null,null,"",null,null,null,null,null,null,null,null,null,null,null,null,null,null,null,"",null,null,null,null,null,{"$f":"IFERROR(\nIF(VLOOKUP($M91,Partnerek!$A$9:$K$106,11,FALSE)=\"\",\"\",VLOOKUP($M91,Partnerek!$A$9:$K$106,11,FALSE)),\"\")","v":""},{"$f":"IFERROR(\nIF(RIGHT($A91,2)=\"BE\",\"HU\",\nIF(VLOOKUP($N91,Partnerek!$A$9:$K$106,11,FALSE)=\"\",\"\",VLOOKUP($N91,Partnerek!$A$9:$K$106,11,FALSE))),\"\")","v":""},{"$f":"IFERROR(VLOOKUP(AJ91,ráták!$A$10:$AX$13,MATCH(Q91+T91+W91,ráták!$C$9:$AX$9,1)+2,FALSE),\"\")","v":""},{"$f":"IFERROR(VLOOKUP(AJ91,ráták!$A$10:$AX$13,MATCH(#REF!+#REF!+#REF!,ráták!$C$9:$AX$9,1)+2,FALSE),\"\")","v":""}]
[null,null,null,null,null,null,null,null,null,null,null,null,"",null,null,null,null,null,null,null,null,null,null,null,null,null,null,null,"",null,null,null,null,null,{"$f":"IFERROR(\nIF(VLOOKUP($M92,Partnerek!$A$9:$K$106,11,FALSE)=\"\",\"\",VLOOKUP($M92,Partnerek!$A$9:$K$106,11,FALSE)),\"\")","v":""},{"$f":"IFERROR(\nIF(RIGHT($A92,2)=\"BE\",\"HU\",\nIF(VLOOKUP($N92,Partnerek!$A$9:$K$106,11,FALSE)=\"\",\"\",VLOOKUP($N92,Partnerek!$A$9:$K$106,11,FALSE))),\"\")","v":""},{"$f":"IFERROR(VLOOKUP(AJ92,ráták!$A$10:$AX$13,MATCH(Q92+T92+W92,ráták!$C$9:$AX$9,1)+2,FALSE),\"\")","v":""},{"$f":"IFERROR(VLOOKUP(AJ92,ráták!$A$10:$AX$13,MATCH(#REF!+#REF!+#REF!,ráták!$C$9:$AX$9,1)+2,FALSE),\"\")","v":""}]
[null,null,null,null,null,null,null,null,null,null,null,null,"",null,null,null,null,null,null,null,null,null,null,null,null,null,null,null,"",null,null,null,null,null,{"$f":"IFERROR(\nIF(VLOOKUP($M93,Partnerek!$A$9:$K$106,11,FALSE)=\"\",\"\",VLOOKUP($M93,Partnerek!$A$9:$K$106,11,FALSE)),\"\")","v":""},{"$f":"IFERROR(\nIF(RIGHT($A93,2)=\"BE\",\"HU\",\nIF(VLOOKUP($N93,Partnerek!$A$9:$K$106,11,FALSE)=\"\",\"\",VLOOKUP($N93,Partnerek!$A$9:$K$106,11,FALSE))),\"\")","v":""},{"$f":"IFERROR(VLOOKUP(AJ93,ráták!$A$10:$AX$13,MATCH(Q93+T93+W93,ráták!$C$9:$AX$9,1)+2,FALSE),\"\")","v":""},{"$f":"IFERROR(VLOOKUP(AJ93,ráták!$A$10:$AX$13,MATCH(#REF!+#REF!+#REF!,ráták!$C$9:$AX$9,1)+2,FALSE),\"\")","v":""}]
[null,null,null,null,null,null,null,null,null,null,null,null,"",null,null,null,null,null,null,null,null,null,null,null,null,null,null,null,"",null,null,null,null,null,{"$f":"IFERROR(\nIF(VLOOKUP($M94,Partnerek!$A$9:$K$106,11,FALSE)=\"\",\"\",VLOOKUP($M94,Partnerek!$A$9:$K$106,11,FALSE)),\"\")","v":""},{"$f":"IFERROR(\nIF(RIGHT($A94,2)=\"BE\",\"HU\",\nIF(VLOOKUP($N94,Partnerek!$A$9:$K$106,11,FALSE)=\"\",\"\",VLOOKUP($N94,Partnerek!$A$9:$K$106,11,FALSE))),\"\")","v":""},{"$f":"IFERROR(VLOOKUP(AJ94,ráták!$A$10:$AX$13,MATCH(Q94+T94+W94,ráták!$C$9:$AX$9,1)+2,FALSE),\"\")","v":""},{"$f":"IFERROR(VLOOKUP(AJ94,ráták!$A$10:$AX$13,MATCH(#REF!+#REF!+#REF!,ráták!$C$9:$AX$9,1)+2,FALSE),\"\")","v":""}]
[null,null,null,null,null,null,null,null,null,null,null,null,"",null,null,null,null,null,null,null,null,null,null,null,null,null,null,null,"",null,null,null,null,null,{"$f":"IFERROR(\nIF(VLOOKUP($M95,Partnerek!$A$9:$K$106,11,FALSE)=\"\",\"\",VLOOKUP($M95,Partnerek!$A$9:$K$106,11,FALSE)),\"\")","v":""},{"$f":"IFERROR(\nIF(RIGHT($A95,2)=\"BE\",\"HU\",\nIF(VLOOKUP($N95,Partnerek!$A$9:$K$106,11,FALSE)=\"\",\"\",VLOOKUP($N95,Partnerek!$A$9:$K$106,11,FALSE))),\"\")","v":""},{"$f":"IFERROR(VLOOKUP(AJ95,ráták!$A$10:$AX$13,MATCH(Q95+T95+W95,ráták!$C$9:$AX$9,1)+2,FALSE),\"\")","v":""},{"$f":"IFERROR(VLOOKUP(AJ95,ráták!$A$10:$AX$13,MATCH(#REF!+#REF!+#REF!,ráták!$C$9:$AX$9,1)+2,FALSE),\"\")","v":""}]
[null,null,null,null,null,null,null,null,null,null,null,null,"",null,null,null,null,null,null,null,null,null,null,null,null,null,null,null,"",null,null,null,null,null,{"$f":"IFERROR(\nIF(VLOOKUP($M96,Partnerek!$A$9:$K$106,11,FALSE)=\"\",\"\",VLOOKUP($M96,Partnerek!$A$9:$K$106,11,FALSE)),\"\")","v":""},{"$f":"IFERROR(\nIF(RIGHT($A96,2)=\"BE\",\"HU\",\nIF(VLOOKUP($N96,Partnerek!$A$9:$K$106,11,FALSE)=\"\",\"\",VLOOKUP($N96,Partnerek!$A$9:$K$106,11,FALSE))),\"\")","v":""},{"$f":"IFERROR(VLOOKUP(AJ96,ráták!$A$10:$AX$13,MATCH(Q96+T96+W96,ráták!$C$9:$AX$9,1)+2,FALSE),\"\")","v":""},{"$f":"IFERROR(VLOOKUP(AJ96,ráták!$A$10:$AX$13,MATCH(#REF!+#REF!+#REF!,ráták!$C$9:$AX$9,1)+2,FALSE),\"\")","v":""}]
[null,null,null,null,null,null,null,null,null,null,null,null,"",null,null,null,null,null,null,null,null,null,null,null,null,null,null,null,"",null,null,null,null,null,{"$f":"IFERROR(\nIF(VLOOKUP($M97,Partnerek!$A$9:$K$106,11,FALSE)=\"\",\"\",VLOOKUP($M97,Partnerek!$A$9:$K$106,11,FALSE)),\"\")","v":""},{"$f":"IFERROR(\nIF(RIGHT($A97,2)=\"BE\",\"HU\",\nIF(VLOOKUP($N97,Partnerek!$A$9:$K$106,11,FALSE)=\"\",\"\",VLOOKUP($N97,Partnerek!$A$9:$K$106,11,FALSE))),\"\")","v":""},{"$f":"IFERROR(VLOOKUP(AJ97,ráták!$A$10:$AX$13,MATCH(Q97+T97+W97,ráták!$C$9:$AX$9,1)+2,FALSE),\"\")","v":""},{"$f":"IFERROR(VLOOKUP(AJ97,ráták!$A$10:$AX$13,MATCH(#REF!+#REF!+#REF!,ráták!$C$9:$AX$9,1)+2,FALSE),\"\")","v":""}]
[null,null,null,null,null,null,null,null,null,null,null,null,"",null,null,null,null,null,null,null,null,null,null,null,null,null,null,null,"",null,null,null,null,null,{"$f":"IFERROR(\nIF(VLOOKUP($M98,Partnerek!$A$9:$K$106,11,FALSE)=\"\",\"\",VLOOKUP($M98,Partnerek!$A$9:$K$106,11,FALSE)),\"\")","v":""},{"$f":"IFERROR(\nIF(RIGHT($A98,2)=\"BE\",\"HU\",\nIF(VLOOKUP($N98,Partnerek!$A$9:$K$106,11,FALSE)=\"\",\"\",VLOOKUP($N98,Partnerek!$A$9:$K$106,11,FALSE))),\"\")","v":""},{"$f":"IFERROR(VLOOKUP(AJ98,ráták!$A$10:$AX$13,MATCH(Q98+T98+W98,ráták!$C$9:$AX$9,1)+2,FALSE),\"\")","v":""},{"$f":"IFERROR(VLOOKUP(AJ98,ráták!$A$10:$AX$13,MATCH(#REF!+#REF!+#REF!,ráták!$C$9:$AX$9,1)+2,FALSE),\"\")","v":""}]
[null,null,null,null,null,null,null,null,null,null,null,null,"",null,null,null,null,null,null,null,null,null,null,null,null,null,null,null,"",null,null,null,null,null,{"$f":"IFERROR(\nIF(VLOOKUP($M99,Partnerek!$A$9:$K$106,11,FALSE)=\"\",\"\",VLOOKUP($M99,Partnerek!$A$9:$K$106,11,FALSE)),\"\")","v":""},{"$f":"IFERROR(\nIF(RIGHT($A99,2)=\"BE\",\"HU\",\nIF(VLOOKUP($N99,Partnerek!$A$9:$K$106,11,FALSE)=\"\",\"\",VLOOKUP($N99,Partnerek!$A$9:$K$106,11,FALSE))),\"\")","v":""},{"$f":"IFERROR(VLOOKUP(AJ99,ráták!$A$10:$AX$13,MATCH(Q99+T99+W99,ráták!$C$9:$AX$9,1)+2,FALSE),\"\")","v":""},{"$f":"IFERROR(VLOOKUP(AJ99,ráták!$A$10:$AX$13,MATCH(#REF!+#REF!+#REF!,ráták!$C$9:$AX$9,1)+2,FALSE),\"\")","v":""}]
[null,null,null,null,null,null,null,null,null,null,null,null,"",null,null,null,null,null,null,null,null,null,null,null,null,null,null,null,"",null,null,null,null,null,{"$f":"IFERROR(\nIF(VLOOKUP($M100,Partnerek!$A$9:$K$106,11,FALSE)=\"\",\"\",VLOOKUP($M100,Partnerek!$A$9:$K$106,11,FALSE)),\"\")","v":""},{"$f":"IFERROR(\nIF(RIGHT($A100,2)=\"BE\",\"HU\",\nIF(VLOOKUP($N100,Partnerek!$A$9:$K$106,11,FALSE)=\"\",\"\",VLOOKUP($N100,Partnerek!$A$9:$K$106,11,FALSE))),\"\")","v":""},{"$f":"IFERROR(VLOOKUP(AJ100,ráták!$A$10:$AX$13,MATCH(Q100+T100+W100,ráták!$C$9:$AX$9,1)+2,FALSE),\"\")","v":""},{"$f":"IFERROR(VLOOKUP(AJ100,ráták!$A$10:$AX$13,MATCH(#REF!+#REF!+#REF!,ráták!$C$9:$AX$9,1)+2,FALSE),\"\")","v":""}]
[null,null,null,null,null,null,null,null,null,null,null,null,"",null,null,null,null,null,null,null,null,null,null,null,null,null,null,null,"",null,null,null,null,null,{"$f":"IFERROR(\nIF(VLOOKUP($M101,Partnerek!$A$9:$K$106,11,FALSE)=\"\",\"\",VLOOKUP($M101,Partnerek!$A$9:$K$106,11,FALSE)),\"\")","v":""},{"$f":"IFERROR(\nIF(RIGHT($A101,2)=\"BE\",\"HU\",\nIF(VLOOKUP($N101,Partnerek!$A$9:$K$106,11,FALSE)=\"\",\"\",VLOOKUP($N101,Partnerek!$A$9:$K$106,11,FALSE))),\"\")","v":""},{"$f":"IFERROR(VLOOKUP(AJ101,ráták!$A$10:$AX$13,MATCH(Q101+T101+W101,ráták!$C$9:$AX$9,1)+2,FALSE),\"\")","v":""},{"$f":"IFERROR(VLOOKUP(AJ101,ráták!$A$10:$AX$13,MATCH(#REF!+#REF!+#REF!,ráták!$C$9:$AX$9,1)+2,FALSE),\"\")","v":""}]
[null,null,null,null,null,null,null,null,null,null,null,null,"",null,null,null,null,null,null,null,null,null,null,null,null,null,null,null,"",null,null,null,null,null,{"$f":"IFERROR(\nIF(VLOOKUP($M102,Partnerek!$A$9:$K$106,11,FALSE)=\"\",\"\",VLOOKUP($M102,Partnerek!$A$9:$K$106,11,FALSE)),\"\")","v":""},{"$f":"IFERROR(\nIF(RIGHT($A102,2)=\"BE\",\"HU\",\nIF(VLOOKUP($N102,Partnerek!$A$9:$K$106,11,FALSE)=\"\",\"\",VLOOKUP($N102,Partnerek!$A$9:$K$106,11,FALSE))),\"\")","v":""},{"$f":"IFERROR(VLOOKUP(AJ102,ráták!$A$10:$AX$13,MATCH(Q102+T102+W102,ráták!$C$9:$AX$9,1)+2,FALSE),\"\")","v":""},{"$f":"IFERROR(VLOOKUP(AJ102,ráták!$A$10:$AX$13,MATCH(#REF!+#REF!+#REF!,ráták!$C$9:$AX$9,1)+2,FALSE),\"\")","v":""}]
[null,null,null,null,null,null,null,null,null,null,null,null,"",null,null,null,null,null,null,null,null,null,null,null,null,null,null,null,"",null,null,null,null,null,{"$f":"IFERROR(\nIF(VLOOKUP($M103,Partnerek!$A$9:$K$106,11,FALSE)=\"\",\"\",VLOOKUP($M103,Partnerek!$A$9:$K$106,11,FALSE)),\"\")","v":""},{"$f":"IFERROR(\nIF(RIGHT($A103,2)=\"BE\",\"HU\",\nIF(VLOOKUP($N103,Partnerek!$A$9:$K$106,11,FALSE)=\"\",\"\",VLOOKUP($N103,Partnerek!$A$9:$K$106,11,FALSE))),\"\")","v":""},{"$f":"IFERROR(VLOOKUP(AJ103,ráták!$A$10:$AX$13,MATCH(Q103+T103+W103,ráták!$C$9:$AX$9,1)+2,FALSE),\"\")","v":""},{"$f":"IFERROR(VLOOKUP(AJ103,ráták!$A$10:$AX$13,MATCH(#REF!+#REF!+#REF!,ráták!$C$9:$AX$9,1)+2,FALSE),\"\")","v":""}]
[null,null,null,null,null,null,null,null,null,null,null,null,"",null,null,null,null,null,null,null,null,null,null,null,null,null,null,null,"",null,null,null,null,null,{"$f":"IFERROR(\nIF(VLOOKUP($M104,Partnerek!$A$9:$K$106,11,FALSE)=\"\",\"\",VLOOKUP($M104,Partnerek!$A$9:$K$106,11,FALSE)),\"\")","v":""},{"$f":"IFERROR(\nIF(RIGHT($A104,2)=\"BE\",\"HU\",\nIF(VLOOKUP($N104,Partnerek!$A$9:$K$106,11,FALSE)=\"\",\"\",VLOOKUP($N104,Partnerek!$A$9:$K$106,11,FALSE))),\"\")","v":""},{"$f":"IFERROR(VLOOKUP(AJ104,ráták!$A$10:$AX$13,MATCH(Q104+T104+W104,ráták!$C$9:$AX$9,1)+2,FALSE),\"\")","v":""},{"$f":"IFERROR(VLOOKUP(AJ104,ráták!$A$10:$AX$13,MATCH(#REF!+#REF!+#REF!,ráták!$C$9:$AX$9,1)+2,FALSE),\"\")","v":""}]
[null,null,null,null,null,null,null,null,null,null,null,null,"",null,null,null,null,null,null,null,null,null,null,null,null,null,null,null,"",null,null,null,null,null,{"$f":"IFERROR(\nIF(VLOOKUP($M105,Partnerek!$A$9:$K$106,11,FALSE)=\"\",\"\",VLOOKUP($M105,Partnerek!$A$9:$K$106,11,FALSE)),\"\")","v":""},{"$f":"IFERROR(\nIF(RIGHT($A105,2)=\"BE\",\"HU\",\nIF(VLOOKUP($N105,Partnerek!$A$9:$K$106,11,FALSE)=\"\",\"\",VLOOKUP($N105,Partnerek!$A$9:$K$106,11,FALSE))),\"\")","v":""},{"$f":"IFERROR(VLOOKUP(AJ105,ráták!$A$10:$AX$13,MATCH(Q105+T105+W105,ráták!$C$9:$AX$9,1)+2,FALSE),\"\")","v":""},{"$f":"IFERROR(VLOOKUP(AJ105,ráták!$A$10:$AX$13,MATCH(#REF!+#REF!+#REF!,ráták!$C$9:$AX$9,1)+2,FALSE),\"\")","v":""}]
[null,null,null,null,null,null,null,null,null,null,null,null,"",null,null,null,null,null,null,null,null,null,null,null,null,null,null,null,"",null,null,null,null,null,{"$f":"IFERROR(\nIF(VLOOKUP($M106,Partnerek!$A$9:$K$106,11,FALSE)=\"\",\"\",VLOOKUP($M106,Partnerek!$A$9:$K$106,11,FALSE)),\"\")","v":""},{"$f":"IFERROR(\nIF(RIGHT($A106,2)=\"BE\",\"HU\",\nIF(VLOOKUP($N106,Partnerek!$A$9:$K$106,11,FALSE)=\"\",\"\",VLOOKUP($N106,Partnerek!$A$9:$K$106,11,FALSE))),\"\")","v":""},{"$f":"IFERROR(VLOOKUP(AJ106,ráták!$A$10:$AX$13,MATCH(Q106+T106+W106,ráták!$C$9:$AX$9,1)+2,FALSE),\"\")","v":""},{"$f":"IFERROR(VLOOKUP(AJ106,ráták!$A$10:$AX$13,MATCH(#REF!+#REF!+#REF!,ráták!$C$9:$AX$9,1)+2,FALSE),\"\")","v":""}]
[null,null,null,null,null,null,null,null,null,null,null,null,"",null,null,null,null,null,null,null,null,null,null,null,null,null,null,null,"",null,null,null,null,null,{"$f":"IFERROR(\nIF(VLOOKUP($M107,Partnerek!$A$9:$K$106,11,FALSE)=\"\",\"\",VLOOKUP($M107,Partnerek!$A$9:$K$106,11,FALSE)),\"\")","v":""},{"$f":"IFERROR(\nIF(RIGHT($A107,2)=\"BE\",\"HU\",\nIF(VLOOKUP($N107,Partnerek!$A$9:$K$106,11,FALSE)=\"\",\"\",VLOOKUP($N107,Partnerek!$A$9:$K$106,11,FALSE))),\"\")","v":""},{"$f":"IFERROR(VLOOKUP(AJ107,ráták!$A$10:$AX$13,MATCH(Q107+T107+W107,ráták!$C$9:$AX$9,1)+2,FALSE),\"\")","v":""},{"$f":"IFERROR(VLOOKUP(AJ107,ráták!$A$10:$AX$13,MATCH(#REF!+#REF!+#REF!,ráták!$C$9:$AX$9,1)+2,FALSE),\"\")","v":""}]
[null,null,null,null,null,null,null,null,null,null,null,null,"",null,null,null,null,null,null,null,null,null,null,null,null,null,null,null,"",null,null,null,null,null,{"$f":"IFERROR(\nIF(VLOOKUP($M108,Partnerek!$A$9:$K$106,11,FALSE)=\"\",\"\",VLOOKUP($M108,Partnerek!$A$9:$K$106,11,FALSE)),\"\")","v":""},{"$f":"IFERROR(\nIF(RIGHT($A108,2)=\"BE\",\"HU\",\nIF(VLOOKUP($N108,Partnerek!$A$9:$K$106,11,FALSE)=\"\",\"\",VLOOKUP($N108,Partnerek!$A$9:$K$106,11,FALSE))),\"\")","v":""},{"$f":"IFERROR(VLOOKUP(AJ108,ráták!$A$10:$AX$13,MATCH(Q108+T108+W108,ráták!$C$9:$AX$9,1)+2,FALSE),\"\")","v":""},{"$f":"IFERROR(VLOOKUP(AJ108,ráták!$A$10:$AX$13,MATCH(#REF!+#REF!+#REF!,ráták!$C$9:$AX$9,1)+2,FALSE),\"\")","v":""}]

{"sheet":"Ki- és beutazó okt, személyzet","index":4,"n_rows":108,"n_cols":27,"rows_kept":108,"cut":false,"hidden":false,"merged":[[2,7,2,10],[3,7,3,10],[4,10,4,11]]}
[{"$f":"IF(Azonosítás!A3=\"\",\"\",Azonosítás!A3)","v":""}]
["Oktatói mobilitás - ki- és beutazó oktatók, személyzet"]
[]
["Intézmény neve:",null,{"$f":"IF(Azonosítás!A9=\"\",\"\",Azonosítás!A9)","v":""},null,null,null,null,"EGT koordinátor aláírása"]
["Szerződésszám:",null,{"$f":"Azonosítás!A6","v":0},null,null,null,null,null,null,null,{"$f":"TODAY()","v":"2016-10-13"}]
[]
[]
["Mobilitás jellege","Tevékenység jellege","Résztvétel jellege","Tevékenység besorolása","Egyéni támogatási szerződésszám","Családnév","Keresztnév","Születés időpontja\n(ÉÉÉÉ/HH/NN)","Neme","Állampolgárság","Szakterület kódja","Tapasztaltság\n(csak  oktatás!)","Küldő partner azonosítója","Fogadó partner azonosítója","Mobilitás kezdete\n (ÉÉÉÉ/HH/NN)","Mobilitás vége\n (ÉÉÉÉ/HH/NN)","Mobilitás\nidőtartama napokban \n(utazással együtt)","Oktatott órák száma összesen","Kétoldalú megállapodás","Oktatás vagy munka \nnyelve","EGT támogatás összesen (euró)","Intézményi forrás (HUF), ha volt","Résztvevő e-mail címe ","Megjegyzés","Küldő ország","Fogadó ország","TÁMOGATÁS"]
[null,null,null,null,null,null,null,null,null,null,null,null,{"$f":"IF((IFERROR(RIGHT($A9,2),\"\")=\"KI\"),Erasmus_kod,\"\")","v":""},null,null,null,{"$f":"IFERROR(IF((ISBLANK(O9)*ISBLANK(P9)),\"\",IF(P9<O9,\"\",IF( (P9-O9+1)>42,\"\",P9-O9+1))),\"\")","v":""},null,null,null,{"$f":"IFERROR(\n   IF( ((RIGHT(A9,2)=\"KI\")*(Y9=\"HU\")*(Z9<>\"HU\"))+((RIGHT(A9,2)=\"BE\")*(Y9<>\"HU\")*(Z9=\"HU\")),  IF(A9<>\"\",AA9,\"\"),\"\"),\"\")","v":""},null,null,null,{"$f":"IFERROR(\nIF(VLOOKUP($M9,Partnerek!$A$9:$K$106,11,FALSE)=\"\",\"\",VLOOKUP($M9,Partnerek!$A$9:$K$106,11,FALSE)),\"\")","v":""},{"$f":"IFERROR(\nIF(VLOOKUP($N9,Partnerek!$A$9:$K$106,11,FALSE)=\"\",\"\",VLOOKUP($N9,Partnerek!$A$9:$K$106,11,FALSE)),\"\")","v":""},{"$f":"IFERROR(VLOOKUP(Z9,ráták!$A$3:$AR$6,MATCH($Q9,ráták!$C$2:$AR$2,1)+2,FALSE),\"\")","v":""}]
[null,null,null,null,null,null,null,null,null,null,null,null,"",null,null,null,{"$f":"IFERROR(IF((ISBLANK(O10)*ISBLANK(P10)),\"\",\nIF(P10<O10,\"\",IF( (P10-O10+1)>42,\"\",P10-O10+1))),\"\")","v":""},null,null,null,"",null,null,null,{"$f":"IFERROR(\nIF(VLOOKUP($M10,Partnerek!$A$9:$K$106,11,FALSE)=\"\",\"\",VLOOKUP($M10,Partnerek!$A$9:$K$106,11,FALSE)),\"\")","v":""},{"$f":"IFERROR(\nIF(VLOOKUP($N10,Partnerek!$A$9:$K$106,11,FALSE)=\"\",\"\",VLOOKUP($N10,Partnerek!$A$9:$K$106,11,FALSE)),\"\")","v":""},{"$f":"IFERROR(VLOOKUP(Z10,ráták!$A$3:$AR$6,MATCH($Q10,ráták!$C$2:$AR$2,1)+2,FALSE),\"\")","v":""}]
[null,null,null,null,null,null,null,null,null,null,null,null,"",null,null,null,"",null,null,null,"",null,null,null,{"$f":"IFERROR(\nIF(VLOOKUP($M11,Partnerek!$A$9:$K$106,11,FALSE)=\"\",\"\",VLOOKUP($M11,Partnerek!$A$9:$K$106,11,FALSE)),\"\")","v":""},{"$f":"IFERROR(\nIF(VLOOKUP($N11,Partnerek!$A$9:$K$106,11,FALSE)=\"\",\"\",VLOOKUP($N11,Partnerek!$A$9:$K$106,11,FALSE)),\"\")","v":""},{"$f":"IFERROR(VLOOKUP(Z11,ráták!$A$3:$AR$6,MATCH($Q11,ráták!$C$2:$AR$2,1)+2,FALSE),\"\")","v":""}]
[null,null,null,null,null,null,null,null,null,null,null,null,"",null,null,null,"",null,null,null,"",null,null,null,{"$f":"IFERROR(\nIF(VLOOKUP($M12,Partnerek!$A$9:$K$106,11,FALSE)=\"\",\"\",VLOOKUP($M12,Partnerek!$A$9:$K$106,11,FALSE)),\"\")","v":""},{"$f":"IFERROR(\nIF(VLOOKUP($N12,Partnerek!$A$9:$K$106,11,FALSE)=\"\",\"\",VLOOKUP($N12,Partnerek!$A$9:$K$106,11,FALSE)),\"\")","v":""},{"$f":"IFERROR(VLOOKUP(Z12,ráták!$A$3:$AR$6,MATCH($Q12,ráták!$C$2:$AR$2,1)+2,FALSE),\"\")","v":""}]
[null,null,null,null,null,null,null,null,null,null,null,null,"",null,null,null,"",null,null,null,"",null,null,null,{"$f":"IFERROR(\nIF(VLOOKUP($M13,Partnerek!$A$9:$K$106,11,FALSE)=\"\",\"\",VLOOKUP($M13,Partnerek!$A$9:$K$106,11,FALSE)),\"\")","v":""},{"$f":"IFERROR(\nIF(VLOOKUP($N13,Partnerek!$A$9:$K$106,11,FALSE)=\"\",\"\",VLOOKUP($N13,Partnerek!$A$9:$K$106,11,FALSE)),\"\")","v":""},{"$f":"IFERROR(VLOOKUP(Z13,ráták!$A$3:$AR$6,MATCH($Q13,ráták!$C$2:$AR$2,1)+2,FALSE),\"\")","v":""}]
[null,null,null,null,null,null,null,null,null,null,null,null,"",null,null,null,"",null,null,null,"",null,null,null,{"$f":"IFERROR(\nIF(VLOOKUP($M14,Partnerek!$A$9:$K$106,11,FALSE)=\"\",\"\",VLOOKUP($M14,Partnerek!$A$9:$K$106,11,FALSE)),\"\")","v":""},{"$f":"IFERROR(\nIF(VLOOKUP($N14,Partnerek!$A$9:$K$106,11,FALSE)=\"\",\"\",VLOOKUP($N14,Partnerek!$A$9:$K$106,11,FALSE)),\"\")","v":""},{"$f":"IFERROR(VLOOKUP(Z14,ráták!$A$3:$AR$6,MATCH($Q14,ráták!$C$2:$AR$2,1)+2,FALSE),\"\")","v":""}]
[null,null,null,null,null,null,null,null,null,null,null,null,"",null,null,null,"",null,null,null,"",null,null,null,{"$f":"IFERROR(\nIF(VLOOKUP($M15,Partnerek!$A$9:$K$106,11,FALSE)=\"\",\"\",VLOOKUP($M15,Partnerek!$A$9:$K$106,11,FALSE)),\"\")","v":""},{"$f":"IFERROR(\nIF(VLOOKUP($N15,Partnerek!$A$9:$K$106,11,FALSE)=\"\",\"\",VLOOKUP($N15,Partnerek!$A$9:$K$106,11,FALSE)),\"\")","v":""},{"$f":"IFERROR(VLOOKUP(Z15,ráták!$A$3:$AR$6,MATCH($Q15,ráták!$C$2:$AR$2,1)+2,FALSE),\"\")","v":""}]
[null,null,null,null,null,null,null,null,null,null,null,null,"",null,null,null,"",null,null,null,"",null,null,null,{"$f":"IFERROR(\nIF(VLOOKUP($M16,Partnerek!$A$9:$K$106,11,FALSE)=\"\",\"\",VLOOKUP($M16,Partnerek!$A$9:$K$106,11,FALSE)),\"\")","v":""},{"$f":"IFERROR(\nIF(VLOOKUP($N16,Partnerek!$A$9:$K$106,11,FALSE)=\"\",\"\",VLOOKUP($N16,Partnerek!$A$9:$K$106,11,FALSE)),\"\")","v":""},{"$f":"IFERROR(VLOOKUP(Z16,ráták!$A$3:$AR$6,MATCH($Q16,ráták!$C$2:$AR$2,1)+2,FALSE),\"\")","v":""}]
[null,null,null,null,null,null,null,null,null,null,null,null,"",null,null,null,"",null,null,null,"",null,null,null,{"$f":"IFERROR(\nIF(VLOOKUP($M17,Partnerek!$A$9:$K$106,11,FALSE)=\"\",\"\",VLOOKUP($M17,Partnerek!$A$9:$K$106,11,FALSE)),\"\")","v":""},{"$f":"IFERROR(\nIF(VLOOKUP($N17,Partnerek!$A$9:$K$106,11,FALSE)=\"\",\"\",VLOOKUP($N17,Partnerek!$A$9:$K$106,11,FALSE)),\"\")","v":""},{"$f":"IFERROR(VLOOKUP(Z17,ráták!$A$3:$AR$6,MATCH($Q17,ráták!$C$2:$AR$2,1)+2,FALSE),\"\")","v":""}]
[null,null,null,null,null,null,null,null,null,null,null,null,"",null,null,null,"",null,null,null,"",null,null,null,{"$f":"IFERROR(\nIF(VLOOKUP($M18,Partnerek!$A$9:$K$106,11,FALSE)=\"\",\"\",VLOOKUP($M18,Partnerek!$A$9:$K$106,11,FALSE)),\"\")","v":""},{"$f":"IFERROR(\nIF(VLOOKUP($N18,Partnerek!$A$9:$K$106,11,FALSE)=\"\",\"\",VLOOKUP($N18,Partnerek!$A$9:$K$106,11,FALSE)),\"\")","v":""},{"$f":"IFERROR(VLOOKUP(Z18,ráták!$A$3:$AR$6,MATCH($Q18,ráták!$C$2:$AR$2,1)+2,FALSE),\"\")","v":""}]
[null,null,null,null,null,null,null,null,null,null,null,null,"",null,null,null,"",null,null,null,"",null,null,null,{"$f":"IFERROR(\nIF(VLOOKUP($M19,Partnerek!$A$9:$K$106,11,FALSE)=\"\",\"\",VLOOKUP($M19,Partnerek!$A$9:$K$106,11,FALSE)),\"\")","v":""},{"$f":"IFERROR(\nIF(VLOOKUP($N19,Partnerek!$A$9:$K$106,11,FALSE)=\"\",\"\",VLOOKUP($N19,Partnerek!$A$9:$K$106,11,FALSE)),\"\")","v":""},{"$f":"IFERROR(VLOOKUP(Z19,ráták!$A$3:$AR$6,MATCH($Q19,ráták!$C$2:$AR$2,1)+2,FALSE),\"\")","v":""}]
[null,null,null,null,null,null,null,null,null,null,null,null,"",null,null,null,"",null,null,null,"",null,null,null,{"$f":"IFERROR(\nIF(VLOOKUP($M20,Partnerek!$A$9:$K$106,11,FALSE)=\"\",\"\",VLOOKUP($M20,Partnerek!$A$9:$K$106,11,FALSE)),\"\")","v":""},{"$f":"IFERROR(\nIF(VLOOKUP($N20,Partnerek!$A$9:$K$106,11,FALSE)=\"\",\"\",VLOOKUP($N20,Partnerek!$A$9:$K$106,11,FALSE)),\"\")","v":""},{"$f":"IFERROR(VLOOKUP(Z20,ráták!$A$3:$AR$6,MATCH($Q20,ráták!$C$2:$AR$2,1)+2,FALSE),\"\")","v":""}]
[null,null,null,null,null,null,null,null,null,null,null,null,"",null,null,null,"",null,null,null,"",null,null,null,{"$f":"IFERROR(\nIF(VLOOKUP($M21,Partnerek!$A$9:$K$106,11,FALSE)=\"\",\"\",VLOOKUP($M21,Partnerek!$A$9:$K$106,11,FALSE)),\"\")","v":""},{"$f":"IFERROR(\nIF(VLOOKUP($N21,Partnerek!$A$9:$K$106,11,FALSE)=\"\",\"\",VLOOKUP($N21,Partnerek!$A$9:$K$106,11,FALSE)),\"\")","v":""},{"$f":"IFERROR(VLOOKUP(Z21,ráták!$A$3:$AR$6,MATCH($Q21,ráták!$C$2:$AR$2,1)+2,FALSE),\"\")","v":""}]
[null,null,null,null,null,null,null,null,null,null,null,null,"",null,null,null,"",null,null,null,"",null,null,null,{"$f":"IFERROR(\nIF(VLOOKUP($M22,Partnerek!$A$9:$K$106,11,FALSE)=\"\",\"\",VLOOKUP($M22,Partnerek!$A$9:$K$106,11,FALSE)),\"\")","v":""},{"$f":"IFERROR(\nIF(VLOOKUP($N22,Partnerek!$A$9:$K$106,11,FALSE)=\"\",\"\",VLOOKUP($N22,Partnerek!$A$9:$K$106,11,FALSE)),\"\")","v":""},{"$f":"IFERROR(VLOOKUP(Z22,ráták!$A$3:$AR$6,MATCH($Q22,ráták!$C$2:$AR$2,1)+2,FALSE),\"\")","v":""}]
[null,null,null,null,null,null,null,null,null,null,null,null,"",null,null,null,"",null,null,null,"",null,null,null,{"$f":"IFERROR(\nIF(VLOOKUP($M23,Partnerek!$A$9:$K$106,11,FALSE)=\"\",\"\",VLOOKUP($M23,Partnerek!$A$9:$K$106,11,FALSE)),\"\")","v":""},{"$f":"IFERROR(\nIF(VLOOKUP($N23,Partnerek!$A$9:$K$106,11,FALSE)=\"\",\"\",VLOOKUP($N23,Partnerek!$A$9:$K$106,11,FALSE)),\"\")","v":""},{"$f":"IFERROR(VLOOKUP(Z23,ráták!$A$3:$AR$6,MATCH($Q23,ráták!$C$2:$AR$2,1)+2,FALSE),\"\")","v":""}]
[null,null,null,null,null,null,null,null,null,null,null,null,"",null,null,null,"",null,null,null,"",null,null,null,{"$f":"IFERROR(\nIF(VLOOKUP($M24,Partnerek!$A$9:$K$106,11,FALSE)=\"\",\"\",VLOOKUP($M24,Partnerek!$A$9:$K$106,11,FALSE)),\"\")","v":""},{"$f":"IFERROR(\nIF(VLOOKUP($N24,Partnerek!$A$9:$K$106,11,FALSE)=\"\",\"\",VLOOKUP($N24,Partnerek!$A$9:$K$106,11,FALSE)),\"\")","v":""},{"$f":"IFERROR(VLOOKUP(Z24,ráták!$A$3:$AR$6,MATCH($Q24,ráták!$C$2:$AR$2,1)+2,FALSE),\"\")","v":""}]
[null,null,null,null,null,null,null,null,null,null,null,null,"",null,null,null,"",null,null,null,"",null,null,null,{"$f":"IFERROR(\nIF(VLOOKUP($M25,Partnerek!$A$9:$K$106,11,FALSE)=\"\",\"\",VLOOKUP($M25,Partnerek!$A$9:$K$106,11,FALSE)),\"\")","v":""},{"$f":"IFERROR(\nIF(VLOOKUP($N25,Partnerek!$A$9:$K$106,11,FALSE)=\"\",\"\",VLOOKUP($N25,Partnerek!$A$9:$K$106,11,FALSE)),\"\")","v":""},{"$f":"IFERROR(VLOOKUP(Z25,ráták!$A$3:$AR$6,MATCH($Q25,ráták!$C$2:$AR$2,1)+2,FALSE),\"\")","v":""}]
[null,null,null,null,null,null,null,null,null,null,null,null,"",null,null,null,"",null,null,null,"",null,null,null,{"$f":"IFERROR(\nIF(VLOOKUP($M26,Partnerek!$A$9:$K$106,11,FALSE)=\"\",\"\",VLOOKUP($M26,Partnerek!$A$9:$K$106,11,FALSE)),\"\")","v":""},{"$f":"IFERROR(\nIF(VLOOKUP($N26,Partnerek!$A$9:$K$106,11,FALSE)=\"\",\"\",VLOOKUP($N26,Partnerek!$A$9:$K$106,11,FALSE)),\"\")","v":""},{"$f":"IFERROR(VLOOKUP(Z26,ráták!$A$3:$AR$6,MATCH($Q26,ráták!$C$2:$AR$2,1)+2,FALSE),\"\")","v":""}]
[null,null,null,null,null,null,null,null,null,null,null,null,"",null,null,null,"",null,null,null,"",null,null,null,{"$f":"IFERROR(\nIF(VLOOKUP($M27,Partnerek!$A$9:$K$106,11,FALSE)=\"\",\"\",VLOOKUP($M27,Partnerek!$A$9:$K$106,11,FALSE)),\"\")","v":""},{"$f":"IFERROR(\nIF(VLOOKUP($N27,Partnerek!$A$9:$K$106,11,FALSE)=\"\",\"\",VLOOKUP($N27,Partnerek!$A$9:$K$106,11,FALSE)),\"\")","v":""},{"$f":"IFERROR(VLOOKUP(Z27,ráták!$A$3:$AR$6,MATCH($Q27,ráták!$C$2:$AR$2,1)+2,FALSE),\"\")","v":""}]
[null,null,null,null,null,null,null,null,null,null,null,null,"",null,null,null,"",null,null,null,"",null,null,null,{"$f":"IFERROR(\nIF(VLOOKUP($M28,Partnerek!$A$9:$K$106,11,FALSE)=\"\",\"\",VLOOKUP($M28,Partnerek!$A$9:$K$106,11,FALSE)),\"\")","v":""},{"$f":"IFERROR(\nIF(VLOOKUP($N28,Partnerek!$A$9:$K$106,11,FALSE)=\"\",\"\",VLOOKUP($N28,Partnerek!$A$9:$K$106,11,FALSE)),\"\")","v":""},{"$f":"IFERROR(VLOOKUP(Z28,ráták!$A$3:$AR$6,MATCH($Q28,ráták!$C$2:$AR$2,1)+2,FALSE),\"\")","v":""}]
[null,null,null,null,null,null,null,null,null,null,null,null,"",null,null,null,"",null,null,null,"",null,null,null,{"$f":"IFERROR(\nIF(VLOOKUP($M29,Partnerek!$A$9:$K$106,11,FALSE)=\"\",\"\",VLOOKUP($M29,Partnerek!$A$9:$K$106,11,FALSE)),\"\")","v":""},{"$f":"IFERROR(\nIF(VLOOKUP($N29,Partnerek!$A$9:$K$106,11,FALSE)=\"\",\"\",VLOOKUP($N29,Partnerek!$A$9:$K$106,11,FALSE)),\"\")","v":""},{"$f":"IFERROR(VLOOKUP(Z29,ráták!$A$3:$AR$6,MATCH($Q29,ráták!$C$2:$AR$2,1)+2,FALSE),\"\")","v":""}]
[null,null,null,null,null,null,null,null,null,null,null,null,"",null,null,null,"",null,null,null,"",null,null,null,{"$f":"IFERROR(\nIF(VLOOKUP($M30,Partnerek!$A$9:$K$106,11,FALSE)=\"\",\"\",VLOOKUP($M30,Partnerek!$A$9:$K$106,11,FALSE)),\"\")","v":""},{"$f":"IFERROR(\nIF(VLOOKUP($N30,Partnerek!$A$9:$K$106,11,FALSE)=\"\",\"\",VLOOKUP($N30,Partnerek!$A$9:$K$106,11,FALSE)),\"\")","v":""},{"$f":"IFERROR(VLOOKUP(Z30,ráták!$A$3:$AR$6,MATCH($Q30,ráták!$C$2:$AR$2,1)+2,FALSE),\"\")","v":""}]
[null,null,null,null,null,null,null,null,null,null,null,null,"",null,null,null,"",null,null,null,"",null,null,null,{"$f":"IFERROR(\nIF(VLOOKUP($M31,Partnerek!$A$9:$K$106,11,FALSE)=\"\",\"\",VLOOKUP($M31,Partnerek!$A$9:$K$106,11,FALSE)),\"\")","v":""},{"$f":"IFERROR(\nIF(VLOOKUP($N31,Partnerek!$A$9:$K$106,11,FALSE)=\"\",\"\",VLOOKUP($N31,Partnerek!$A$9:$K$106,11,FALSE)),\"\")","v":""},{"$f":"IFERROR(VLOOKUP(Z31,ráták!$A$3:$AR$6,MATCH($Q31,ráták!$C$2:$AR$2,1)+2,FALSE),\"\")","v":""}]
[null,null,null,null,null,null,null,null,null,null,null,null,"",null,null,null,"",null,null,null,"",null,null,null,{"$f":"IFERROR(\nIF(VLOOKUP($M32,Partnerek!$A$9:$K$106,11,FALSE)=\"\",\"\",VLOOKUP($M32,Partnerek!$A$9:$K$106,11,FALSE)),\"\")","v":""},{"$f":"IFERROR(\nIF(VLOOKUP($N32,Partnerek!$A$9:$K$106,11,FALSE)=\"\",\"\",VLOOKUP($N32,Partnerek!$A$9:$K$106,11,FALSE)),\"\")","v":""},{"$f":"IFERROR(VLOOKUP(Z32,ráták!$A$3:$AR$6,MATCH($Q32,ráták!$C$2:$AR$2,1)+2,FALSE),\"\")","v":""}]
[null,null,null,null,null,null,null,null,null,null,null,null,"",null,null,null,"",null,null,null,"",null,null,null,{"$f":"IFERROR(\nIF(VLOOKUP($M33,Partnerek!$A$9:$K$106,11,FALSE)=\"\",\"\",VLOOKUP($M33,Partnerek!$A$9:$K$106,11,FALSE)),\"\")","v":""},{"$f":"IFERROR(\nIF(VLOOKUP($N33,Partnerek!$A$9:$K$106,11,FALSE)=\"\",\"\",VLOOKUP($N33,Partnerek!$A$9:$K$106,11,FALSE)),\"\")","v":""},{"$f":"IFERROR(VLOOKUP(Z33,ráták!$A$3:$AR$6,MATCH($Q33,ráták!$C$2:$AR$2,1)+2,FALSE),\"\")","v":""}]
[null,null,null,null,null,null,null,null,null,null,null,null,"",null,null,null,"",null,null,null,"",null,null,null,{"$f":"IFERROR(\nIF(VLOOKUP($M34,Partnerek!$A$9:$K$106,11,FALSE)=\"\",\"\",VLOOKUP($M34,Partnerek!$A$9:$K$106,11,FALSE)),\"\")","v":""},{"$f":"IFERROR(\nIF(VLOOKUP($N34,Partnerek!$A$9:$K$106,11,FALSE)=\"\",\"\",VLOOKUP($N34,Partnerek!$A$9:$K$106,11,FALSE)),\"\")","v":""},{"$f":"IFERROR(VLOOKUP(Z34,ráták!$A$3:$AR$6,MATCH($Q34,ráták!$C$2:$AR$2,1)+2,FALSE),\"\")","v":""}]
[null,null,null,null,null,null,null,null,null,null,null,null,"",null,null,null,"",null,null,null,"",null,null,null,{"$f":"IFERROR(\nIF(VLOOKUP($M35,Partnerek!$A$9:$K$106,11,FALSE)=\"\",\"\",VLOOKUP($M35,Partnerek!$A$9:$K$106,11,FALSE)),\"\")","v":""},{"$f":"IFERROR(\nIF(VLOOKUP($N35,Partnerek!$A$9:$K$106,11,FALSE)=\"\",\"\",VLOOKUP($N35,Partnerek!$A$9:$K$106,11,FALSE)),\"\")","v":""},{"$f":"IFERROR(VLOOKUP(Z35,ráták!$A$3:$AR$6,MATCH($Q35,ráták!$C$2:$AR$2,1)+2,FALSE),\"\")","v":""}]
[null,null,null,null,null,null,null,null,null,null,null,null,"",null,null,null,"",null,null,null,"",null,null,null,{"$f":"IFERROR(\nIF(VLOOKUP($M36,Partnerek!$A$9:$K$106,11,FALSE)=\"\",\"\",VLOOKUP($M36,Partnerek!$A$9:$K$106,11,FALSE)),\"\")","v":""},{"$f":"IFERROR(\nIF(VLOOKUP($N36,Partnerek!$A$9:$K$106,11,FALSE)=\"\",\"\",VLOOKUP($N36,Partnerek!$A$9:$K$106,11,FALSE)),\"\")","v":""},{"$f":"IFERROR(VLOOKUP(Z36,ráták!$A$3:$AR$6,MATCH($Q36,ráták!$C$2:$AR$2,1)+2,FALSE),\"\")","v":""}]
[null,null,null,null,null,null,null,null,null,null,null,null,"",null,null,null,"",null,null,null,"",null,null,null,{"$f":"IFERROR(\nIF(VLOOKUP($M37,Partnerek!$A$9:$K$106,11,FALSE)=\"\",\"\",VLOOKUP($M37,Partnerek!$A$9:$K$106,11,FALSE)),\"\")","v":""},{"$f":"IFERROR(\nIF(VLOOKUP($N37,Partnerek!$A$9:$K$106,11,FALSE)=\"\",\"\",VLOOKUP($N37,Partnerek!$A$9:$K$106,11,FALSE)),\"\")","v":""},{"$f":"IFERROR(VLOOKUP(Z37,ráták!$A$3:$AR$6,MATCH($Q37,ráták!$C$2:$AR$2,1)+2,FALSE),\"\")","v":""}]
[null,null,null,null,null,null,null,null,null,null,null,null,"",null,null,null,"",null,null,null,"",null,null,null,{"$f":"IFERROR(\nIF(VLOOKUP($M38,Partnerek!$A$9:$K$106,11,FALSE)=\"\",\"\",VLOOKUP($M38,Partnerek!$A$9:$K$106,11,FALSE)),\"\")","v":""},{"$f":"IFERROR(\nIF(VLOOKUP($N38,Partnerek!$A$9:$K$106,11,FALSE)=\"\",\"\",VLOOKUP($N38,Partnerek!$A$9:$K$106,11,FALSE)),\"\")","v":""},{"$f":"IFERROR(VLOOKUP(Z38,ráták!$A$3:$AR$6,MATCH($Q38,ráták!$C$2:$AR$2,1)+2,FALSE),\"\")","v":""}]
[null,null,null,null,null,null,null,null,null,null,null,null,"",null,null,null,"",null,null,null,"",null,null,null,{"$f":"IFERROR(\nIF(VLOOKUP($M39,Partnerek!$A$9:$K$106,11,FALSE)=\"\",\"\",VLOOKUP($M39,Partnerek!$A$9:$K$106,11,FALSE)),\"\")","v":""},{"$f":"IFERROR(\nIF(VLOOKUP($N39,Partnerek!$A$9:$K$106,11,FALSE)=\"\",\"\",VLOOKUP($N39,Partnerek!$A$9:$K$106,11,FALSE)),\"\")","v":""},{"$f":"IFERROR(VLOOKUP(Z39,ráták!$A$3:$AR$6,MATCH($Q39,ráták!$C$2:$AR$2,1)+2,FALSE),\"\")","v":""}]
[null,null,null,null,null,null,null,null,null,null,null,null,"",null,null,null,"",null,null,null,"",null,null,null,{"$f":"IFERROR(\nIF(VLOOKUP($M40,Partnerek!$A$9:$K$106,11,FALSE)=\"\",\"\",VLOOKUP($M40,Partnerek!$A$9:$K$106,11,FALSE)),\"\")","v":""},{"$f":"IFERROR(\nIF(VLOOKUP($N40,Partnerek!$A$9:$K$106,11,FALSE)=\"\",\"\",VLOOKUP($N40,Partnerek!$A$9:$K$106,11,FALSE)),\"\")","v":""},{"$f":"IFERROR(VLOOKUP(Z40,ráták!$A$3:$AR$6,MATCH($Q40,ráták!$C$2:$AR$2,1)+2,FALSE),\"\")","v":""}]
[null,null,null,null,null,null,null,null,null,null,null,null,{"$f":"IF((IFERROR(RIGHT($A41,2),\"\")=\"KI\"),Erasmus_kod,\"\")","v":""},null,null,null,"",null,null,null,{"$f":"IFERROR(\n   IF( ((RIGHT(A41,2)=\"KI\")*(Y41=\"HU\")*(Z41<>\"HU\"))+((RIGHT(A41,2)=\"BE\")*(Y41<>\"HU\")*(Z41=\"HU\")),  IF(A41<>\"\",AA41,\"\"),\"\"),\"\")","v":""},null,null,null,{"$f":"IFERROR(\nIF(VLOOKUP($M41,Partnerek!$A$9:$K$106,11,FALSE)=\"\",\"\",VLOOKUP($M41,Partnerek!$A$9:$K$106,11,FALSE)),\"\")","v":""},{"$f":"IFERROR(\nIF(VLOOKUP($N41,Partnerek!$A$9:$K$106,11,FALSE)=\"\",\"\",VLOOKUP($N41,Partnerek!$A$9:$K$106,11,FALSE)),\"\")","v":""},{"$f":"IFERROR(VLOOKUP(Z41,ráták!$A$3:$AR$6,MATCH($Q41,ráták!$C$2:$AR$2,1)+2,FALSE),\"\")","v":""}]
[null,null,null,null,null,null,null,null,null,null,null,null,"",null,null,null,"",null,null,null,"",null,null,null,{"$f":"IFERROR(\nIF(VLOOKUP($M42,Partnerek!$A$9:$K$106,11,FALSE)=\"\",\"\",VLOOKUP($M42,Partnerek!$A$9:$K$106,11,FALSE)),\"\")","v":""},{"$f":"IFERROR(\nIF(VLOOKUP($N42,Partnerek!$A$9:$K$106,11,FALSE)=\"\",\"\",VLOOKUP($N42,Partnerek!$A$9:$K$106,11,FALSE)),\"\")","v":""},{"$f":"IFERROR(VLOOKUP(Z42,ráták!$A$3:$AR$6,MATCH($Q42,ráták!$C$2:$AR$2,1)+2,FALSE),\"\")","v":""}]
[null,null,null,null,null,null,null,null,null,null,null,null,"",null,null,null,"",null,null,null,"",null,null,null,{"$f":"IFERROR(\nIF(VLOOKUP($M43,Partnerek!$A$9:$K$106,11,FALSE)=\"\",\"\",VLOOKUP($M43,Partnerek!$A$9:$K$106,11,FALSE)),\"\")","v":""},{"$f":"IFERROR(\nIF(VLOOKUP($N43,Partnerek!$A$9:$K$106,11,FALSE)=\"\",\"\",VLOOKUP($N43,Partnerek!$A$9:$K$106,11,FALSE)),\"\")","v":""},{"$f":"IFERROR(VLOOKUP(Z43,ráták!$A$3:$AR$6,MATCH($Q43,ráták!$C$2:$AR$2,1)+2,FALSE),\"\")","v":""}]
[null,null,null,null,null,null,null,null,null,null,null,null,"",null,null,null,"",null,null,null,"",null,null,null,{"$f":"IFERROR(\nIF(VLOOKUP($M44,Partnerek!$A$9:$K$106,11,FALSE)=\"\",\"\",VLOOKUP($M44,Partnerek!$A$9:$K$106,11,FALSE)),\"\")","v":""},{"$f":"IFERROR(\nIF(VLOOKUP($N44,Partnerek!$A$9:$K$106,11,FALSE)=\"\",\"\",VLOOKUP($N44,Partnerek!$A$9:$K$106,11,FALSE)),\"\")","v":""},{"$f":"IFERROR(VLOOKUP(Z44,ráták!$A$3:$AR$6,MATCH($Q44,ráták!$C$2:$AR$2,1)+2,FALSE),\"\")","v":""}]
[null,null,null,null,null,null,null,null,null,null,null,null,"",null,null,null,"",null,null,null,"",null,null,null,{"$f":"IFERROR(\nIF(VLOOKUP($M45,Partnerek!$A$9:$K$106,11,FALSE)=\"\",\"\",VLOOKUP($M45,Partnerek!$A$9:$K$106,11,FALSE)),\"\")","v":""},{"$f":"IFERROR(\nIF(VLOOKUP($N45,Partnerek!$A$9:$K$106,11,FALSE)=\"\",\"\",VLOOKUP($N45,Partnerek!$A$9:$K$106,11,FALSE)),\"\")","v":""},{"$f":"IFERROR(VLOOKUP(Z45,ráták!$A$3:$AR$6,MATCH($Q45,ráták!$C$2:$AR$2,1)+2,FALSE),\"\")","v":""}]
[null,null,null,null,null,null,null,null,null,null,null,null,"",null,null,null,"",null,null,null,"",null,null,null,{"$f":"IFERROR(\nIF(VLOOKUP($M46,Partnerek!$A$9:$K$106,11,FALSE)=\"\",\"\",VLOOKUP($M46,Partnerek!$A$9:$K$106,11,FALSE)),\"\")","v":""},{"$f":"IFERROR(\nIF(VLOOKUP($N46,Partnerek!$A$9:$K$106,11,FALSE)=\"\",\"\",VLOOKUP($N46,Partnerek!$A$9:$K$106,11,FALSE)),\"\")","v":""},{"$f":"IFERROR(VLOOKUP(Z46,ráták!$A$3:$AR$6,MATCH($Q46,ráták!$C$2:$AR$2,1)+2,FALSE),\"\")","v":""}]
[null,null,null,null,null,null,null,null,null,null,null,null,"",null,null,null,"",null,null,null,"",null,null,null,{"$f":"IFERROR(\nIF(VLOOKUP($M47,Partnerek!$A$9:$K$106,11,FALSE)=\"\",\"\",VLOOKUP($M47,Partnerek!$A$9:$K$106,11,FALSE)),\"\")","v":""},{"$f":"IFERROR(\nIF(VLOOKUP($N47,Partnerek!$A$9:$K$106,11,FALSE)=\"\",\"\",VLOOKUP($N47,Partnerek!$A$9:$K$106,11,FALSE)),\"\")","v":""},{"$f":"IFERROR(VLOOKUP(Z47,ráták!$A$3:$AR$6,MATCH($Q47,ráták!$C$2:$AR$2,1)+2,FALSE),\"\")","v":""}]
[null,null,null,null,null,null,null,null,null,null,null,null,"",null,null,null,"",null,null,null,"",null,null,null,{"$f":"IFERROR(\nIF(VLOOKUP($M48,Partnerek!$A$9:$K$106,11,FALSE)=\"\",\"\",VLOOKUP($M48,Partnerek!$A$9:$K$106,11,FALSE)),\"\")","v":""},{"$f":"IFERROR(\nIF(VLOOKUP($N48,Partnerek!$A$9:$K$106,11,FALSE)=\"\",\"\",VLOOKUP($N48,Partnerek!$A$9:$K$106,11,FALSE)),\"\")","v":""},{"$f":"IFERROR(VLOOKUP(Z48,ráták!$A$3:$AR$6,MATCH($Q48,ráták!$C$2:$AR$2,1)+2,FALSE),\"\")","v":""}]
[null,null,null,null,null,null,null,null,null,null,null,null,"",null,null,null,"",null,null,null,"",null,null,null,{"$f":"IFERROR(\nIF(VLOOKUP($M49,Partnerek!$A$9:$K$106,11,FALSE)=\"\",\"\",VLOOKUP($M49,Partnerek!$A$9:$K$106,11,FALSE)),\"\")","v":""},{"$f":"IFERROR(\nIF(VLOOKUP($N49,Partnerek!$A$9:$K$106,11,FALSE)=\"\",\"\",VLOOKUP($N49,Partnerek!$A$9:$K$106,11,FALSE)),\"\")","v":""},{"$f":"IFERROR(VLOOKUP(Z49,ráták!$A$3:$AR$6,MATCH($Q49,ráták!$C$2:$AR$2,1)+2,FALSE),\"\")","v":""}]
[null,null,null,null,null,null,null,null,null,null,null,null,"",null,null,null,"",null,null,null,"",null,null,null,{"$f":"IFERROR(\nIF(VLOOKUP($M50,Partnerek!$A$9:$K$106,11,FALSE)=\"\",\"\",VLOOKUP($M50,Partnerek!$A$9:$K$106,11,FALSE)),\"\")","v":""},{"$f":"IFERROR(\nIF(VLOOKUP($N50,Partnerek!$A$9:$K$106,11,FALSE)=\"\",\"\",VLOOKUP($N50,Partnerek!$A$9:$K$106,11,FALSE)),\"\")","v":""},{"$f":"IFERROR(VLOOKUP(Z50,ráták!$A$3:$AR$6,MATCH($Q50,ráták!$C$2:$AR$2,1)+2,FALSE),\"\")","v":""}]
[null,null,null,null,null,null,null,null,null,null,null,null,"",null,null,null,"",null,null,null,"",null,null,null,{"$f":"IFERROR(\nIF(VLOOKUP($M51,Partnerek!$A$9:$K$106,11,FALSE)=\"\",\"\",VLOOKUP($M51,Partnerek!$A$9:$K$106,11,FALSE)),\"\")","v":""},{"$f":"IFERROR(\nIF(VLOOKUP($N51,Partnerek!$A$9:$K$106,11,FALSE)=\"\",\"\",VLOOKUP($N51,Partnerek!$A$9:$K$106,11,FALSE)),\"\")","v":""},{"$f":"IFERROR(VLOOKUP(Z51,ráták!$A$3:$AR$6,MATCH($Q51,ráták!$C$2:$AR$2,1)+2,FALSE),\"\")","v":""}]
[null,null,null,null,null,null,null,null,null,null,null,null,"",null,null,null,"",null,null,null,"",null,null,null,{"$f":"IFERROR(\nIF(VLOOKUP($M52,Partnerek!$A$9:$K$106,11,FALSE)=\"\",\"\",VLOOKUP($M52,Partnerek!$A$9:$K$106,11,FALSE)),\"\")","v":""},{"$f":"IFERROR(\nIF(VLOOKUP($N52,Partnerek!$A$9:$K$106,11,FALSE)=\"\",\"\",VLOOKUP($N52,Partnerek!$A$9:$K$106,11,FALSE)),\"\")","v":""},{"$f":"IFERROR(VLOOKUP(Z52,ráták!$A$3:$AR$6,MATCH($Q52,ráták!$C$2:$AR$2,1)+2,FALSE),\"\")","v":""}]
[null,null,null,null,null,null,null,null,null,null,null,null,"",null,null,null,"",null,null,null,"",null,null,null,{"$f":"IFERROR(\nIF(VLOOKUP($M53,Partnerek!$A$9:$K$106,11,FALSE)=\"\",\"\",VLOOKUP($M53,Partnerek!$A$9:$K$106,11,FALSE)),\"\")","v":""},{"$f":"IFERROR(\nIF(VLOOKUP($N53,Partnerek!$A$9:$K$106,11,FALSE)=\"\",\"\",VLOOKUP($N53,Partnerek!$A$9:$K$106,11,FALSE)),\"\")","v":""},{"$f":"IFERROR(VLOOKUP(Z53,ráták!$A$3:$AR$6,MATCH($Q53,ráták!$C$2:$AR$2,1)+2,FALSE),\"\")","v":""}]
[null,null,null,null,null,null,null,null,null,null,null,null,"",null,null,null,"",null,null,null,"",null,null,null,{"$f":"IFERROR(\nIF(VLOOKUP($M54,Partnerek!$A$9:$K$106,11,FALSE)=\"\",\"\",VLOOKUP($M54,Partnerek!$A$9:$K$106,11,FALSE)),\"\")","v":""},{"$f":"IFERROR(\nIF(VLOOKUP($N54,Partnerek!$A$9:$K$106,11,FALSE)=\"\",\"\",VLOOKUP($N54,Partnerek!$A$9:$K$106,11,FALSE)),\"\")","v":""},{"$f":"IFERROR(VLOOKUP(Z54,ráták!$A$3:$AR$6,MATCH($Q54,ráták!$C$2:$AR$2,1)+2,FALSE),\"\")","v":""}]
[null,null,null,null,null,null,null,null,null,null,null,null,"",null,null,null,"",null,null,null,"",null,null,null,{"$f":"IFERROR(\nIF(VLOOKUP($M55,Partnerek!$A$9:$K$106,11,FALSE)=\"\",\"\",VLOOKUP($M55,Partnerek!$A$9:$K$106,11,FALSE)),\"\")","v":""},{"$f":"IFERROR(\nIF(VLOOKUP($N55,Partnerek!$A$9:$K$106,11,FALSE)=\"\",\"\",VLOOKUP($N55,Partnerek!$A$9:$K$106,11,FALSE)),\"\")","v":""},{"$f":"IFERROR(VLOOKUP(Z55,ráták!$A$3:$AR$6,MATCH($Q55,ráták!$C$2:$AR$2,1)+2,FALSE),\"\")","v":""}]
[null,null,null,null,null,null,null,null,null,null,null,null,"",null,null,null,"",null,null,null,"",null,null,null,{"$f":"IFERROR(\nIF(VLOOKUP($M56,Partnerek!$A$9:$K$106,11,FALSE)=\"\",\"\",VLOOKUP($M56,Partnerek!$A$9:$K$106,11,FALSE)),\"\")","v":""},{"$f":"IFERROR(\nIF(VLOOKUP($N56,Partnerek!$A$9:$K$106,11,FALSE)=\"\",\"\",VLOOKUP($N56,Partnerek!$A$9:$K$106,11,FALSE)),\"\")","v":""},{"$f":"IFERROR(VLOOKUP(Z56,ráták!$A$3:$AR$6,MATCH($Q56,ráták!$C$2:$AR$2,1)+2,FALSE),\"\")","v":""}]
[null,null,null,null,null,null,null,null,null,null,null,null,"",null,null,null,"",null,null,null,"",null,null,null,{"$f":"IFERROR(\nIF(VLOOKUP($M57,Partnerek!$A$9:$K$106,11,FALSE)=\"\",\"\",VLOOKUP($M57,Partnerek!$A$9:$K$106,11,FALSE)),\"\")","v":""},{"$f":"IFERROR(\nIF(VLOOKUP($N57,Partnerek!$A$9:$K$106,11,FALSE)=\"\",\"\",VLOOKUP($N57,Partnerek!$A$9:$K$106,11,FALSE)),\"\")","v":""},{"$f":"IFERROR(VLOOKUP(Z57,ráták!$A$3:$AR$6,MATCH($Q57,ráták!$C$2:$AR$2,1)+2,FALSE),\"\")","v":""}]
[null,null,null,null,null,null,null,null,null,null,null,null,"",null,null,null,"",null,null,null,"",null,null,null,{"$f":"IFERROR(\nIF(VLOOKUP($M58,Partnerek!$A$9:$K$106,11,FALSE)=\"\",\"\",VLOOKUP($M58,Partnerek!$A$9:$K$106,11,FALSE)),\"\")","v":""},{"$f":"IFERROR(\nIF(VLOOKUP($N58,Partnerek!$A$9:$K$106,11,FALSE)=\"\",\"\",VLOOKUP($N58,Partnerek!$A$9:$K$106,11,FALSE)),\"\")","v":""},{"$f":"IFERROR(VLOOKUP(Z58,ráták!$A$3:$AR$6,MATCH($Q58,ráták!$C$2:$AR$2,1)+2,FALSE),\"\")","v":""}]
[null,null,null,null,null,null,null,null,null,null,null,null,"",null,null,null,"",null,null,null,"",null,null,null,{"$f":"IFERROR(\nIF(VLOOKUP($M59,Partnerek!$A$9:$K$106,11,FALSE)=\"\",\"\",VLOOKUP($M59,Partnerek!$A$9:$K$106,11,FALSE)),\"\")","v":""},{"$f":"IFERROR(\nIF(VLOOKUP($N59,Partnerek!$A$9:$K$106,11,FALSE)=\"\",\"\",VLOOKUP($N59,Partnerek!$A$9:$K$106,11,FALSE)),\"\")","v":""},{"$f":"IFERROR(VLOOKUP(Z59,ráták!$A$3:$AR$6,MATCH($Q59,ráták!$C$2:$AR$2,1)+2,FALSE),\"\")","v":""}]
[null,null,null,null,null,null,null,null,null,null,null,null,"",null,null,null,"",null,null,null,"",null,null,null,{"$f":"IFERROR(\nIF(VLOOKUP($M60,Partnerek!$A$9:$K$106,11,FALSE)=\"\",\"\",VLOOKUP($M60,Partnerek!$A$9:$K$106,11,FALSE)),\"\")","v":""},{"$f":"IFERROR(\nIF(VLOOKUP($N60,Partnerek!$A$9:$K$106,11,FALSE)=\"\",\"\",VLOOKUP($N60,Partnerek!$A$9:$K$106,11,FALSE)),\"\")","v":""},{"$f":"IFERROR(VLOOKUP(Z60,ráták!$A$3:$AR$6,MATCH($Q60,ráták!$C$2:$AR$2,1)+2,FALSE),\"\")","v":""}]
[null,null,null,null,null,null,null,null,null,null,null,null,"",null,null,null,"",null,null,null,"",null,null,null,{"$f":"IFERROR(\nIF(VLOOKUP($M61,Partnerek!$A$9:$K$106,11,FALSE)=\"\",\"\",VLOOKUP($M61,Partnerek!$A$9:$K$106,11,FALSE)),\"\")","v":""},{"$f":"IFERROR(\nIF(VLOOKUP($N61,Partnerek!$A$9:$K$106,11,FALSE)=\"\",\"\",VLOOKUP($N61,Partnerek!$A$9:$K$106,11,FALSE)),\"\")","v":""},{"$f":"IFERROR(VLOOKUP(Z61,ráták!$A$3:$AR$6,MATCH($Q61,ráták!$C$2:$AR$2,1)+2,FALSE),\"\")","v":""}]
[null,null,null,null,null,null,null,null,null,null,null,null,"",null,null,null,"",null,null,null,"",null,null,null,{"$f":"IFERROR(\nIF(VLOOKUP($M62,Partnerek!$A$9:$K$106,11,FALSE)=\"\",\"\",VLOOKUP($M62,Partnerek!$A$9:$K$106,11,FALSE)),\"\")","v":""},{"$f":"IFERROR(\nIF(VLOOKUP($N62,Partnerek!$A$9:$K$106,11,FALSE)=\"\",\"\",VLOOKUP($N62,Partnerek!$A$9:$K$106,11,FALSE)),\"\")","v":""},{"$f":"IFERROR(VLOOKUP(Z62,ráták!$A$3:$AR$6,MATCH($Q62,ráták!$C$2:$AR$2,1)+2,FALSE),\"\")","v":""}]
[null,null,null,null,null,null,null,null,null,null,null,null,"",null,null,null,"",null,null,null,"",null,null,null,{"$f":"IFERROR(\nIF(VLOOKUP($M63,Partnerek!$A$9:$K$106,11,FALSE)=\"\",\"\",VLOOKUP($M63,Partnerek!$A$9:$K$106,11,FALSE)),\"\")","v":""},{"$f":"IFERROR(\nIF(VLOOKUP($N63,Partnerek!$A$9:$K$106,11,FALSE)=\"\",\"\",VLOOKUP($N63,Partnerek!$A$9:$K$106,11,FALSE)),\"\")","v":""},{"$f":"IFERROR(VLOOKUP(Z63,ráták!$A$3:$AR$6,MATCH($Q63,ráták!$C$2:$AR$2,1)+2,FALSE),\"\")","v":""}]
[null,null,null,null,null,null,null,null,null,null,null,null,"",null,null,null,"",null,null,null,"",null,null,null,{"$f":"IFERROR(\nIF(VLOOKUP($M64,Partnerek!$A$9:$K$106,11,FALSE)=\"\",\"\",VLOOKUP($M64,Partnerek!$A$9:$K$106,11,FALSE)),\"\")","v":""},{"$f":"IFERROR(\nIF(VLOOKUP($N64,Partnerek!$A$9:$K$106,11,FALSE)=\"\",\"\",VLOOKUP($N64,Partnerek!$A$9:$K$106,11,FALSE)),\"\")","v":""},{"$f":"IFERROR(VLOOKUP(Z64,ráták!$A$3:$AR$6,MATCH($Q64,ráták!$C$2:$AR$2,1)+2,FALSE),\"\")","v":""}]
[null,null,null,null,null,null,null,null,null,null,null,null,"",null,null,null,"",null,null,null,"",null,null,null,{"$f":"IFERROR(\nIF(VLOOKUP($M65,Partnerek!$A$9:$K$106,11,FALSE)=\"\",\"\",VLOOKUP($M65,Partnerek!$A$9:$K$106,11,FALSE)),\"\")","v":""},{"$f":"IFERROR(\nIF(VLOOKUP($N65,Partnerek!$A$9:$K$106,11,FALSE)=\"\",\"\",VLOOKUP($N65,Partnerek!$A$9:$K$106,11,FALSE)),\"\")","v":""},{"$f":"IFERROR(VLOOKUP(Z65,ráták!$A$3:$AR$6,MATCH($Q65,ráták!$C$2:$AR$2,1)+2,FALSE),\"\")","v":""}]
[null,null,null,null,null,null,null,null,null,null,null,null,"",null,null,null,"",null,null,null,"",null,null,null,{"$f":"IFERROR(\nIF(VLOOKUP($M66,Partnerek!$A$9:$K$106,11,FALSE)=\"\",\"\",VLOOKUP($M66,Partnerek!$A$9:$K$106,11,FALSE)),\"\")","v":""},{"$f":"IFERROR(\nIF(VLOOKUP($N66,Partnerek!$A$9:$K$106,11,FALSE)=\"\",\"\",VLOOKUP($N66,Partnerek!$A$9:$K$106,11,FALSE)),\"\")","v":""},{"$f":"IFERROR(VLOOKUP(Z66,ráták!$A$3:$AR$6,MATCH($Q66,ráták!$C$2:$AR$2,1)+2,FALSE),\"\")","v":""}]
[null,null,null,null,null,null,null,null,null,null,null,null,"",null,null,null,"",null,null,null,"",null,null,null,{"$f":"IFERROR(\nIF(VLOOKUP($M67,Partnerek!$A$9:$K$106,11,FALSE)=\"\",\"\",VLOOKUP($M67,Partnerek!$A$9:$K$106,11,FALSE)),\"\")","v":""},{"$f":"IFERROR(\nIF(VLOOKUP($N67,Partnerek!$A$9:$K$106,11,FALSE)=\"\",\"\",VLOOKUP($N67,Partnerek!$A$9:$K$106,11,FALSE)),\"\")","v":""},{"$f":"IFERROR(VLOOKUP(Z67,ráták!$A$3:$AR$6,MATCH($Q67,ráták!$C$2:$AR$2,1)+2,FALSE),\"\")","v":""}]
[null,null,null,null,null,null,null,null,null,null,null,null,"",null,null,null,"",null,null,null,"",null,null,null,{"$f":"IFERROR(\nIF(VLOOKUP($M68,Partnerek!$A$9:$K$106,11,FALSE)=\"\",\"\",VLOOKUP($M68,Partnerek!$A$9:$K$106,11,FALSE)),\"\")","v":""},{"$f":"IFERROR(\nIF(VLOOKUP($N68,Partnerek!$A$9:$K$106,11,FALSE)=\"\",\"\",VLOOKUP($N68,Partnerek!$A$9:$K$106,11,FALSE)),\"\")","v":""},{"$f":"IFERROR(VLOOKUP(Z68,ráták!$A$3:$AR$6,MATCH($Q68,ráták!$C$2:$AR$2,1)+2,FALSE),\"\")","v":""}]
[null,null,null,null,null,null,null,null,null,null,null,null,"",null,null,null,"",null,null,null,"",null,null,null,{"$f":"IFERROR(\nIF(VLOOKUP($M69,Partnerek!$A$9:$K$106,11,FALSE)=\"\",\"\",VLOOKUP($M69,Partnerek!$A$9:$K$106,11,FALSE)),\"\")","v":""},{"$f":"IFERROR(\nIF(VLOOKUP($N69,Partnerek!$A$9:$K$106,11,FALSE)=\"\",\"\",VLOOKUP($N69,Partnerek!$A$9:$K$106,11,FALSE)),\"\")","v":""},{"$f":"IFERROR(VLOOKUP(Z69,ráták!$A$3:$AR$6,MATCH($Q69,ráták!$C$2:$AR$2,1)+2,FALSE),\"\")","v":""}]
[null,null,null,null,null,null,null,null,null,null,null,null,"",null,null,null,"",null,null,null,"",null,null,null,{"$f":"IFERROR(\nIF(VLOOKUP($M70,Partnerek!$A$9:$K$106,11,FALSE)=\"\",\"\",VLOOKUP($M70,Partnerek!$A$9:$K$106,11,FALSE)),\"\")","v":""},{"$f":"IFERROR(\nIF(VLOOKUP($N70,Partnerek!$A$9:$K$106,11,FALSE)=\"\",\"\",VLOOKUP($N70,Partnerek!$A$9:$K$106,11,FALSE)),\"\")","v":""},{"$f":"IFERROR(VLOOKUP(Z70,ráták!$A$3:$AR$6,MATCH($Q70,ráták!$C$2:$AR$2,1)+2,FALSE),\"\")","v":""}]
[null,null,null,null,null,null,null,null,null,null,null,null,"",null,null,null,"",null,null,null,"",null,null,null,{"$f":"IFERROR(\nIF(VLOOKUP($M71,Partnerek!$A$9:$K$106,11,FALSE)=\"\",\"\",VLOOKUP($M71,Partnerek!$A$9:$K$106,11,FALSE)),\"\")","v":""},{"$f":"IFERROR(\nIF(VLOOKUP($N71,Partnerek!$A$9:$K$106,11,FALSE)=\"\",\"\",VLOOKUP($N71,Partnerek!$A$9:$K$106,11,FALSE)),\"\")","v":""},{"$f":"IFERROR(VLOOKUP(Z71,ráták!$A$3:$AR$6,MATCH($Q71,ráták!$C$2:$AR$2,1)+2,FALSE),\"\")","v":""}]
[null,null,null,null,null,null,null,null,null,null,null,null,"",null,null,null,"",null,null,null,"",null,null,null,{"$f":"IFERROR(\nIF(VLOOKUP($M72,Partnerek!$A$9:$K$106,11,FALSE)=\"\",\"\",VLOOKUP($M72,Partnerek!$A$9:$K$106,11,FALSE)),\"\")","v":""},{"$f":"IFERROR(\nIF(VLOOKUP($N72,Partnerek!$A$9:$K$106,11,FALSE)=\"\",\"\",VLOOKUP($N72,Partnerek!$A$9:$K$106,11,FALSE)),\"\")","v":""},{"$f":"IFERROR(VLOOKUP(Z72,ráták!$A$3:$AR$6,MATCH($Q72,ráták!$C$2:$AR$2,1)+2,FALSE),\"\")","v":""}]
[null,null,null,null,null,null,null,null,null,null,null,null,{"$f":"IF((IFERROR(RIGHT($A73,2),\"\")=\"KI\"),Erasmus_kod,\"\")","v":""},null,null,null,"",null,null,null,{"$f":"IFERROR(\n   IF( ((RIGHT(A73,2)=\"KI\")*(Y73=\"HU\")*(Z73<>\"HU\"))+((RIGHT(A73,2)=\"BE\")*(Y73<>\"HU\")*(Z73=\"HU\")),  IF(A73<>\"\",AA73,\"\"),\"\"),\"\")","v":""},null,null,null,{"$f":"IFERROR(\nIF(VLOOKUP($M73,Partnerek!$A$9:$K$106,11,FALSE)=\"\",\"\",VLOOKUP($M73,Partnerek!$A$9:$K$106,11,FALSE)),\"\")","v":""},{"$f":"IFERROR(\nIF(VLOOKUP($N73,Partnerek!$A$9:$K$106,11,FALSE)=\"\",\"\",VLOOKUP($N73,Partnerek!$A$9:$K$106,11,FALSE)),\"\")","v":""},{"$f":"IFERROR(VLOOKUP(Z73,ráták!$A$3:$AR$6,MATCH($Q73,ráták!$C$2:$AR$2,1)+2,FALSE),\"\")","v":""}]
[null,null,null,null,null,null,null,null,null,null,null,null,"",null,null,null,{"$f":"IFERROR(IF((ISBLANK(O74)*ISBLANK(P74)),\"\",\nIF(P74<O74,\"\",IF( (P74-O74+1)>42,\"\",P74-O74+1))),\"\")","v":""},null,null,null,"",null,null,null,{"$f":"IFERROR(\nIF(VLOOKUP($M74,Partnerek!$A$9:$K$106,11,FALSE)=\"\",\"\",VLOOKUP($M74,Partnerek!$A$9:$K$106,11,FALSE)),\"\")","v":""},{"$f":"IFERROR(\nIF(VLOOKUP($N74,Partnerek!$A$9:$K$106,11,FALSE)=\"\",\"\",VLOOKUP($N74,Partnerek!$A$9:$K$106,11,FALSE)),\"\")","v":""},{"$f":"IFERROR(VLOOKUP(Z74,ráták!$A$3:$AR$6,MATCH($Q74,ráták!$C$2:$AR$2,1)+2,FALSE),\"\")","v":""}]
[null,null,null,null,null,null,null,null,null,null,null,null,"",null,null,null,"",null,null,null,"",null,null,null,{"$f":"IFERROR(\nIF(VLOOKUP($M75,Partnerek!$A$9:$K$106,11,FALSE)=\"\",\"\",VLOOKUP($M75,Partnerek!$A$9:$K$106,11,FALSE)),\"\")","v":""},{"$f":"IFERROR(\nIF(VLOOKUP($N75,Partnerek!$A$9:$K$106,11,FALSE)=\"\",\"\",VLOOKUP($N75,Partnerek!$A$9:$K$106,11,FALSE)),\"\")","v":""},{"$f":"IFERROR(VLOOKUP(Z75,ráták!$A$3:$AR$6,MATCH($Q75,ráták!$C$2:$AR$2,1)+2,FALSE),\"\")","v":""}]
[null,null,null,null,null,null,null,null,null,null,null,null,"",null,null,null,"",null,null,null,"",null,null,null,{"$f":"IFERROR(\nIF(VLOOKUP($M76,Partnerek!$A$9:$K$106,11,FALSE)=\"\",\"\",VLOOKUP($M76,Partnerek!$A$9:$K$106,11,FALSE)),\"\")","v":""},{"$f":"IFERROR(\nIF(VLOOKUP($N76,Partnerek!$A$9:$K$106,11,FALSE)=\"\",\"\",VLOOKUP($N76,Partnerek!$A$9:$K$106,11,FALSE)),\"\")","v":""},{"$f":"IFERROR(VLOOKUP(Z76,ráták!$A$3:$AR$6,MATCH($Q76,ráták!$C$2:$AR$2,1)+2,FALSE),\"\")","v":""}]
[null,null,null,null,null,null,null,null,null,null,null,null,"",null,null,null,"",null,null,null,"",null,null,null,{"$f":"IFERROR(\nIF(VLOOKUP($M77,Partnerek!$A$9:$K$106,11,FALSE)=\"\",\"\",VLOOKUP($M77,Partnerek!$A$9:$K$106,11,FALSE)),\"\")","v":""},{"$f":"IFERROR(\nIF(VLOOKUP($N77,Partnerek!$A$9:$K$106,11,FALSE)=\"\",\"\",VLOOKUP($N77,Partnerek!$A$9:$K$106,11,FALSE)),\"\")","v":""},{"$f":"IFERROR(VLOOKUP(Z77,ráták!$A$3:$AR$6,MATCH($Q77,ráták!$C$2:$AR$2,1)+2,FALSE),\"\")","v":""}]
[null,null,null,null,null,null,null,null,null,null,null,null,"",null,null,null,"",null,null,null,"",null,null,null,{"$f":"IFERROR(\nIF(VLOOKUP($M78,Partnerek!$A$9:$K$106,11,FALSE)=\"\",\"\",VLOOKUP($M78,Partnerek!$A$9:$K$106,11,FALSE)),\"\")","v":""},{"$f":"IFERROR(\nIF(VLOOKUP($N78,Partnerek!$A$9:$K$106,11,FALSE)=\"\",\"\",VLOOKUP($N78,Partnerek!$A$9:$K$106,11,FALSE)),\"\")","v":""},{"$f":"IFERROR(VLOOKUP(Z78,ráták!$A$3:$AR$6,MATCH($Q78,ráták!$C$2:$AR$2,1)+2,FALSE),\"\")","v":""}]
[null,null,null,null,null,null,null,null,null,null,null,null,"",null,null,null,"",null,null,null,"",null,null,null,{"$f":"IFERROR(\nIF(VLOOKUP($M79,Partnerek!$A$9:$K$106,11,FALSE)=\"\",\"\",VLOOKUP($M79,Partnerek!$A$9:$K$106,11,FALSE)),\"\")","v":""},{"$f":"IFERROR(\nIF(VLOOKUP($N79,Partnerek!$A$9:$K$106,11,FALSE)=\"\",\"\",VLOOKUP($N79,Partnerek!$A$9:$K$106,11,FALSE)),\"\")","v":""},{"$f":"IFERROR(VLOOKUP(Z79,ráták!$A$3:$AR$6,MATCH($Q79,ráták!$C$2:$AR$2,1)+2,FALSE),\"\")","v":""}]
[null,null,null,null,null,null,null,null,null,null,null,null,"",null,null,null,"",null,null,null,"",null,null,null,{"$f":"IFERROR(\nIF(VLOOKUP($M80,Partnerek!$A$9:$K$106,11,FALSE)=\"\",\"\",VLOOKUP($M80,Partnerek!$A$9:$K$106,11,FALSE)),\"\")","v":""},{"$f":"IFERROR(\nIF(VLOOKUP($N80,Partnerek!$A$9:$K$106,11,FALSE)=\"\",\"\",VLOOKUP($N80,Partnerek!$A$9:$K$106,11,FALSE)),\"\")","v":""},{"$f":"IFERROR(VLOOKUP(Z80,ráták!$A$3:$AR$6,MATCH($Q80,ráták!$C$2:$AR$2,1)+2,FALSE),\"\")","v":""}]
[null,null,null,null,null,null,null,null,null,null,null,null,"",null,null,null,"",null,null,null,"",null,null,null,{"$f":"IFERROR(\nIF(VLOOKUP($M81,Partnerek!$A$9:$K$106,11,FALSE)=\"\",\"\",VLOOKUP($M81,Partnerek!$A$9:$K$106,11,FALSE)),\"\")","v":""},{"$f":"IFERROR(\nIF(VLOOKUP($N81,Partnerek!$A$9:$K$106,11,FALSE)=\"\",\"\",VLOOKUP($N81,Partnerek!$A$9:$K$106,11,FALSE)),\"\")","v":""},{"$f":"IFERROR(VLOOKUP(Z81,ráták!$A$3:$AR$6,MATCH($Q81,ráták!$C$2:$AR$2,1)+2,FALSE),\"\")","v":""}]
[null,null,null,null,null,null,null,null,null,null,null,null,"",null,null,null,"",null,null,null,"",null,null,null,{"$f":"IFERROR(\nIF(VLOOKUP($M82,Partnerek!$A$9:$K$106,11,FALSE)=\"\",\"\",VLOOKUP($M82,Partnerek!$A$9:$K$106,11,FALSE)),\"\")","v":""},{"$f":"IFERROR(\nIF(VLOOKUP($N82,Partnerek!$A$9:$K$106,11,FALSE)=\"\",\"\",VLOOKUP($N82,Partnerek!$A$9:$K$106,11,FALSE)),\"\")","v":""},{"$f":"IFERROR(VLOOKUP(Z82,ráták!$A$3:$AR$6,MATCH($Q82,ráták!$C$2:$AR$2,1)+2,FALSE),\"\")","v":""}]
[null,null,null,null,null,null,null,null,null,null,null,null,"",null,null,null,"",null,null,null,"",null,null,null,{"$f":"IFERROR(\nIF(VLOOKUP($M83,Partnerek!$A$9:$K$106,11,FALSE)=\"\",\"\",VLOOKUP($M83,Partnerek!$A$9:$K$106,11,FALSE)),\"\")","v":""},{"$f":"IFERROR(\nIF(VLOOKUP($N83,Partnerek!$A$9:$K$106,11,FALSE)=\"\",\"\",VLOOKUP($N83,Partnerek!$A$9:$K$106,11,FALSE)),\"\")","v":""},{"$f":"IFERROR(VLOOKUP(Z83,ráták!$A$3:$AR$6,MATCH($Q83,ráták!$C$2:$AR$2,1)+2,FALSE),\"\")","v":""}]
[null,null,null,null,null,null,null,null,null,null,null,null,"",null,null,null,"",null,null,null,"",null,null,null,{"$f":"IFERROR(\nIF(VLOOKUP($M84,Partnerek!$A$9:$K$106,11,FALSE)=\"\",\"\",VLOOKUP($M84,Partnerek!$A$9:$K$106,11,FALSE)),\"\")","v":""},{"$f":"IFERROR(\nIF(VLOOKUP($N84,Partnerek!$A$9:$K$106,11,FALSE)=\"\",\"\",VLOOKUP($N84,Partnerek!$A$9:$K$106,11,FALSE)),\"\")","v":""},{"$f":"IFERROR(VLOOKUP(Z84,ráták!$A$3:$AR$6,MATCH($Q84,ráták!$C$2:$AR$2,1)+2,FALSE),\"\")","v":""}]
[null,null,null,null,null,null,null,null,null,null,null,null,"",null,null,null,"",null,null,null,"",null,null,null,{"$f":"IFERROR(\nIF(VLOOKUP($M85,Partnerek!$A$9:$K$106,11,FALSE)=\"\",\"\",VLOOKUP($M85,Partnerek!$A$9:$K$106,11,FALSE)),\"\")","v":""},{"$f":"IFERROR(\nIF(VLOOKUP($N85,Partnerek!$A$9:$K$106,11,FALSE)=\"\",\"\",VLOOKUP($N85,Partnerek!$A$9:$K$106,11,FALSE)),\"\")","v":""},{"$f":"IFERROR(VLOOKUP(Z85,ráták!$A$3:$AR$6,MATCH($Q85,ráták!$C$2:$AR$2,1)+2,FALSE),\"\")","v":""}]
[null,null,null,null,null,null,null,null,null,null,null,null,"",null,null,null,"",null,null,null,"",null,null,null,{"$f":"IFERROR(\nIF(VLOOKUP($M86,Partnerek!$A$9:$K$106,11,FALSE)=\"\",\"\",VLOOKUP($M86,Partnerek!$A$9:$K$106,11,FALSE)),\"\")","v":""},{"$f":"IFERROR(\nIF(VLOOKUP($N86,Partnerek!$A$9:$K$106,11,FALSE)=\"\",\"\",VLOOKUP($N86,Partnerek!$A$9:$K$106,11,FALSE)),\"\")","v":""},{"$f":"IFERROR(VLOOKUP(Z86,ráták!$A$3:$AR$6,MATCH($Q86,ráták!$C$2:$AR$2,1)+2,FALSE),\"\")","v":""}]
[null,null,null,null,null,null,null,null,null,null,null,null,"",null,null,null,"",null,null,null,"",null,null,null,{"$f":"IFERROR(\nIF(VLOOKUP($M87,Partnerek!$A$9:$K$106,11,FALSE)=\"\",\"\",VLOOKUP($M87,Partnerek!$A$9:$K$106,11,FALSE)),\"\")","v":""},{"$f":"IFERROR(\nIF(VLOOKUP($N87,Partnerek!$A$9:$K$106,11,FALSE)=\"\",\"\",VLOOKUP($N87,Partnerek!$A$9:$K$106,11,FALSE)),\"\")","v":""},{"$f":"IFERROR(VLOOKUP(Z87,ráták!$A$3:$AR$6,MATCH($Q87,ráták!$C$2:$AR$2,1)+2,FALSE),\"\")","v":""}]
[null,null,null,null,null,null,null,null,null,null,null,null,"",null,null,null,"",null,null,null,"",null,null,null,{"$f":"IFERROR(\nIF(VLOOKUP($M88,Partnerek!$A$9:$K$106,11,FALSE)=\"\",\"\",VLOOKUP($M88,Partnerek!$A$9:$K$106,11,FALSE)),\"\")","v":""},{"$f":"IFERROR(\nIF(VLOOKUP($N88,Partnerek!$A$9:$K$106,11,FALSE)=\"\",\"\",VLOOKUP($N88,Partnerek!$A$9:$K$106,11,FALSE)),\"\")","v":""},{"$f":"IFERROR(VLOOKUP(Z88,ráták!$A$3:$AR$6,MATCH($Q88,ráták!$C$2:$AR$2,1)+2,FALSE),\"\")","v":""}]
[null,null,null,null,null,null,null,null,null,null,null,null,"",null,null,null,"",null,null,null,"",null,null,null,{"$f":"IFERROR(\nIF(VLOOKUP($M89,Partnerek!$A$9:$K$106,11,FALSE)=\"\",\"\",VLOOKUP($M89,Partnerek!$A$9:$K$106,11,FALSE)),\"\")","v":""},{"$f":"IFERROR(\nIF(VLOOKUP($N89,Partnerek!$A$9:$K$106,11,FALSE)=\"\",\"\",VLOOKUP($N89,Partnerek!$A$9:$K$106,11,FALSE)),\"\")","v":""},{"$f":"IFERROR(VLOOKUP(Z89,ráták!$A$3:$AR$6,MATCH($Q89,ráták!$C$2:$AR$2,1)+2,FALSE),\"\")","v":""}]
[null,null,null,null,null,null,null,null,null,null,null,null,"",null,null,null,"",null,null,null,"",null,null,null,{"$f":"IFERROR(\nIF(VLOOKUP($M90,Partnerek!$A$9:$K$106,11,FALSE)=\"\",\"\",VLOOKUP($M90,Partnerek!$A$9:$K$106,11,FALSE)),\"\")","v":""},{"$f":"IFERROR(\nIF(VLOOKUP($N90,Partnerek!$A$9:$K$106,11,FALSE)=\"\",\"\",VLOOKUP($N90,Partnerek!$A$9:$K$106,11,FALSE)),\"\")","v":""},{"$f":"IFERROR(VLOOKUP(Z90,ráták!$A$3:$AR$6,MATCH($Q90,ráták!$C$2:$AR$2,1)+2,FALSE),\"\")","v":""}]
[null,null,null,null,null,null,null,null,null,null,null,null,"",null,null,null,"",null,null,null,"",null,null,null,{"$f":"IFERROR(\nIF(VLOOKUP($M91,Partnerek!$A$9:$K$106,11,FALSE)=\"\",\"\",VLOOKUP($M91,Partnerek!$A$9:$K$106,11,FALSE)),\"\")","v":""},{"$f":"IFERROR(\nIF(VLOOKUP($N91,Partnerek!$A$9:$K$106,11,FALSE)=\"\",\"\",VLOOKUP($N91,Partnerek!$A$9:$K$106,11,FALSE)),\"\")","v":""},{"$f":"IFERROR(VLOOKUP(Z91,ráták!$A$3:$AR$6,MATCH($Q91,ráták!$C$2:$AR$2,1)+2,FALSE),\"\")","v":""}]
[null,null,null,null,null,null,null,null,null,null,null,null,"",null,null,null,"",null,null,null,"",null,null,null,{"$f":"IFERROR(\nIF(VLOOKUP($M92,Partnerek!$A$9:$K$106,11,FALSE)=\"\",\"\",VLOOKUP($M92,Partnerek!$A$9:$K$106,11,FALSE)),\"\")","v":""},{"$f":"IFERROR(\nIF(VLOOKUP($N92,Partnerek!$A$9:$K$106,11,FALSE)=\"\",\"\",VLOOKUP($N92,Partnerek!$A$9:$K$106,11,FALSE)),\"\")","v":""},{"$f":"IFERROR(VLOOKUP(Z92,ráták!$A$3:$AR$6,MATCH($Q92,ráták!$C$2:$AR$2,1)+2,FALSE),\"\")","v":""}]
[null,null,null,null,null,null,null,null,null,null,null,null,"",null,null,null,"",null,null,null,"",null,null,null,{"$f":"IFERROR(\nIF(VLOOKUP($M93,Partnerek!$A$9:$K$106,11,FALSE)=\"\",\"\",VLOOKUP($M93,Partnerek!$A$9:$K$106,11,FALSE)),\"\")","v":""},{"$f":"IFERROR(\nIF(VLOOKUP($N93,Partnerek!$A$9:$K$106,11,FALSE)=\"\",\"\",VLOOKUP($N93,Partnerek!$A$9:$K$106,11,FALSE)),\"\")","v":""},{"$f":"IFERROR(VLOOKUP(Z93,ráták!$A$3:$AR$6,MATCH($Q93,ráták!$C$2:$AR$2,1)+2,FALSE),\"\")","v":""}]
[null,null,null,null,null,null,null,null,null,null,null,null,"",null,null,null,"",null,null,null,"",null,null,null,{"$f":"IFERROR(\nIF(VLOOKUP($M94,Partnerek!$A$9:$K$106,11,FALSE)=\"\",\"\",VLOOKUP($M94,Partnerek!$A$9:$K$106,11,FALSE)),\"\")","v":""},{"$f":"IFERROR(\nIF(VLOOKUP($N94,Partnerek!$A$9:$K$106,11,FALSE)=\"\",\"\",VLOOKUP($N94,Partnerek!$A$9:$K$106,11,FALSE)),\"\")","v":""},{"$f":"IFERROR(VLOOKUP(Z94,ráták!$A$3:$AR$6,MATCH($Q94,ráták!$C$2:$AR$2,1)+2,FALSE),\"\")","v":""}]
[null,null,null,null,null,null,null,null,null,null,null,null,"",null,null,null,"",null,null,null,"",null,null,null,{"$f":"IFERROR(\nIF(VLOOKUP($M95,Partnerek!$A$9:$K$106,11,FALSE)=\"\",\"\",VLOOKUP($M95,Partnerek!$A$9:$K$106,11,FALSE)),\"\")","v":""},{"$f":"IFERROR(\nIF(VLOOKUP($N95,Partnerek!$A$9:$K$106,11,FALSE)=\"\",\"\",VLOOKUP($N95,Partnerek!$A$9:$K$106,11,FALSE)),\"\")","v":""},{"$f":"IFERROR(VLOOKUP(Z95,ráták!$A$3:$AR$6,MATCH($Q95,ráták!$C$2:$AR$2,1)+2,FALSE),\"\")","v":""}]
[null,null,null,null,null,null,null,null,null,null,null,null,"",null,null,null,"",null,null,null,"",null,null,null,{"$f":"IFERROR(\nIF(VLOOKUP($M96,Partnerek!$A$9:$K$106,11,FALSE)=\"\",\"\",VLOOKUP($M96,Partnerek!$A$9:$K$106,11,FALSE)),\"\")","v":""},{"$f":"IFERROR(\nIF(VLOOKUP($N96,Partnerek!$A$9:$K$106,11,FALSE)=\"\",\"\",VLOOKUP($N96,Partnerek!$A$9:$K$106,11,FALSE)),\"\")","v":""},{"$f":"IFERROR(VLOOKUP(Z96,ráták!$A$3:$AR$6,MATCH($Q96,ráták!$C$2:$AR$2,1)+2,FALSE),\"\")","v":""}]
[null,null,null,null,null,null,null,null,null,null,null,null,"",null,null,null,"",null,null,null,"",null,null,null,{"$f":"IFERROR(\nIF(VLOOKUP($M97,Partnerek!$A$9:$K$106,11,FALSE)=\"\",\"\",VLOOKUP($M97,Partnerek!$A$9:$K$106,11,FALSE)),\"\")","v":""},{"$f":"IFERROR(\nIF(VLOOKUP($N97,Partnerek!$A$9:$K$106,11,FALSE)=\"\",\"\",VLOOKUP($N97,Partnerek!$A$9:$K$106,11,FALSE)),\"\")","v":""},{"$f":"IFERROR(VLOOKUP(Z97,ráták!$A$3:$AR$6,MATCH($Q97,ráták!$C$2:$AR$2,1)+2,FALSE),\"\")","v":""}]
[null,null,null,null,null,null,null,null,null,null,null,null,"",null,null,null,"",null,null,null,"",null,null,null,{"$f":"IFERROR(\nIF(VLOOKUP($M98,Partnerek!$A$9:$K$106,11,FALSE)=\"\",\"\",VLOOKUP($M98,Partnerek!$A$9:$K$106,11,FALSE)),\"\")","v":""},{"$f":"IFERROR(\nIF(VLOOKUP($N98,Partnerek!$A$9:$K$106,11,FALSE)=\"\",\"\",VLOOKUP($N98,Partnerek!$A$9:$K$106,11,FALSE)),\"\")","v":""},{"$f":"IFERROR(VLOOKUP(Z98,ráták!$A$3:$AR$6,MATCH($Q98,ráták!$C$2:$AR$2,1)+2,FALSE),\"\")","v":""}]
[null,null,null,null,null,null,null,null,null,null,null,null,"",null,null,null,"",null,null,null,"",null,null,null,{"$f":"IFERROR(\nIF(VLOOKUP($M99,Partnerek!$A$9:$K$106,11,FALSE)=\"\",\"\",VLOOKUP($M99,Partnerek!$A$9:$K$106,11,FALSE)),\"\")","v":""},{"$f":"IFERROR(\nIF(VLOOKUP($N99,Partnerek!$A$9:$K$106,11,FALSE)=\"\",\"\",VLOOKUP($N99,Partnerek!$A$9:$K$106,11,FALSE)),\"\")","v":""},{"$f":"IFERROR(VLOOKUP(Z99,ráták!$A$3:$AR$6,MATCH($Q99,ráták!$C$2:$AR$2,1)+2,FALSE),\"\")","v":""}]
[null,null,null,null,null,null,null,null,null,null,null,null,"",null,null,null,"",null,null,null,"",null,null,null,{"$f":"IFERROR(\nIF(VLOOKUP($M100,Partnerek!$A$9:$K$106,11,FALSE)=\"\",\"\",VLOOKUP($M100,Partnerek!$A$9:$K$106,11,FALSE)),\"\")","v":""},{"$f":"IFERROR(\nIF(VLOOKUP($N100,Partnerek!$A$9:$K$106,11,FALSE)=\"\",\"\",VLOOKUP($N100,Partnerek!$A$9:$K$106,11,FALSE)),\"\")","v":""},{"$f":"IFERROR(VLOOKUP(Z100,ráták!$A$3:$AR$6,MATCH($Q100,ráták!$C$2:$AR$2,1)+2,FALSE),\"\")","v":""}]
[null,null,null,null,null,null,null,null,null,null,null,null,"",null,null,null,"",null,null,null,"",null,null,null,{"$f":"IFERROR(\nIF(VLOOKUP($M101,Partnerek!$A$9:$K$106,11,FALSE)=\"\",\"\",VLOOKUP($M101,Partnerek!$A$9:$K$106,11,FALSE)),\"\")","v":""},{"$f":"IFERROR(\nIF(VLOOKUP($N101,Partnerek!$A$9:$K$106,11,FALSE)=\"\",\"\",VLOOKUP($N101,Partnerek!$A$9:$K$106,11,FALSE)),\"\")","v":""},{"$f":"IFERROR(VLOOKUP(Z101,ráták!$A$3:$AR$6,MATCH($Q101,ráták!$C$2:$AR$2,1)+2,FALSE),\"\")","v":""}]
[null,null,null,null,null,null,null,null,null,null,null,null,"",null,null,null,"",null,null,null,"",null,null,null,{"$f":"IFERROR(\nIF(VLOOKUP($M102,Partnerek!$A$9:$K$106,11,FALSE)=\"\",\"\",VLOOKUP($M102,Partnerek!$A$9:$K$106,11,FALSE)),\"\")","v":""},{"$f":"IFERROR(\nIF(VLOOKUP($N102,Partnerek!$A$9:$K$106,11,FALSE)=\"\",\"\",VLOOKUP($N102,Partnerek!$A$9:$K$106,11,FALSE)),\"\")","v":""},{"$f":"IFERROR(VLOOKUP(Z102,ráták!$A$3:$AR$6,MATCH($Q102,ráták!$C$2:$AR$2,1)+2,FALSE),\"\")","v":""}]
[null,null,null,null,null,null,null,null,null,null,null,null,"",null,null,null,"",null,null,null,"",null,null,null,{"$f":"IFERROR(\nIF(VLOOKUP($M103,Partnerek!$A$9:$K$106,11,FALSE)=\"\",\"\",VLOOKUP($M103,Partnerek!$A$9:$K$106,11,FALSE)),\"\")","v":""},{"$f":"IFERROR(\nIF(VLOOKUP($N103,Partnerek!$A$9:$K$106,11,FALSE)=\"\",\"\",VLOOKUP($N103,Partnerek!$A$9:$K$106,11,FALSE)),\"\")","v":""},{"$f":"IFERROR(VLOOKUP(Z103,ráták!$A$3:$AR$6,MATCH($Q103,ráták!$C$2:$AR$2,1)+2,FALSE),\"\")","v":""}]
[null,null,null,null,null,null,null,null,null,null,null,null,"",null,null,null,"",null,null,null,"",null,null,null,{"$f":"IFERROR(\nIF(VLOOKUP($M104,Partnerek!$A$9:$K$106,11,FALSE)=\"\",\"\",VLOOKUP($M104,Partnerek!$A$9:$K$106,11,FALSE)),\"\")","v":""},{"$f":"IFERROR(\nIF(VLOOKUP($N104,Partnerek!$A$9:$K$106,11,FALSE)=\"\",\"\",VLOOKUP($N104,Partnerek!$A$9:$K$106,11,FALSE)),\"\")","v":""},{"$f":"IFERROR(VLOOKUP(Z104,ráták!$A$3:$AR$6,MATCH($Q104,ráták!$C$2:$AR$2,1)+2,FALSE),\"\")","v":""}]
[null,null,null,null,null,null,null,null,null,null,null,null,"",null,null,null,"",null,null,null,"",null,null,null,{"$f":"IFERROR(\nIF(VLOOKUP($M105,Partnerek!$A$9:$K$106,11,FALSE)=\"\",\"\",VLOOKUP($M105,Partnerek!$A$9:$K$106,11,FALSE)),\"\")","v":""},{"$f":"IFERROR(\nIF(VLOOKUP($N105,Partnerek!$A$9:$K$106,11,FALSE)=\"\",\"\",VLOOKUP($N105,Partnerek!$A$9:$K$106,11,FALSE)),\"\")","v":""},{"$f":"IFERROR(VLOOKUP(Z105,ráták!$A$3:$AR$6,MATCH($Q105,ráták!$C$2:$AR$2,1)+2,FALSE),\"\")","v":""}]
[null,null,null,null,null,null,null,null,null,null,null,null,"",null,null,null,"",null,null,null,"",null,null,null,{"$f":"IFERROR(\nIF(VLOOKUP($M106,Partnerek!$A$9:$K$106,11,FALSE)=\"\",\"\",VLOOKUP($M106,Partnerek!$A$9:$K$106,11,FALSE)),\"\")","v":""},{"$f":"IFERROR(\nIF(VLOOKUP($N106,Partnerek!$A$9:$K$106,11,FALSE)=\"\",\"\",VLOOKUP($N106,Partnerek!$A$9:$K$106,11,FALSE)),\"\")","v":""},{"$f":"IFERROR(VLOOKUP(Z106,ráták!$A$3:$AR$6,MATCH($Q106,ráták!$C$2:$AR$2,1)+2,FALSE),\"\")","v":""}]
[null,null,null,null,null,null,null,null,null,null,null,null,"",null,null,null,"",null,null,null,"",null,null,null,{"$f":"IFERROR(\nIF(VLOOKUP($M107,Partnerek!$A$9:$K$106,11,FALSE)=\"\",\"\",VLOOKUP($M107,Partnerek!$A$9:$K$106,11,FALSE)),\"\")","v":""},{"$f":"IFERROR(\nIF(VLOOKUP($N107,Partnerek!$A$9:$K$106,11,FALSE)=\"\",\"\",VLOOKUP($N107,Partnerek!$A$9:$K$106,11,FALSE)),\"\")","v":""},{"$f":"IFERROR(VLOOKUP(Z107,ráták!$A$3:$AR$6,MATCH($Q107,ráták!$C$2:$AR$2,1)+2,FALSE),\"\")","v":""}]
[null,null,null,null,null,null,null,null,null,null,null,null,"",null,null,null,"",null,null,null,"",null,null,null,{"$f":"IFERROR(\nIF(VLOOKUP($M108,Partnerek!$A$9:$K$106,11,FALSE)=\"\",\"\",VLOOKUP($M108,Partnerek!$A$9:$K$106,11,FALSE)),\"\")","v":""},{"$f":"IFERROR(\nIF(VLOOKUP($N108,Partnerek!$A$9:$K$106,11,FALSE)=\"\",\"\",VLOOKUP($N108,Partnerek!$A$9:$K$106,11,FALSE)),\"\")","v":""},{"$f":"IFERROR(VLOOKUP(Z108,ráták!$A$3:$AR$6,MATCH($Q108,ráták!$C$2:$AR$2,1)+2,FALSE),\"\")","v":""}]

{"sheet":"Pénzügyi elszámolás","index":5,"n_rows":49,"n_cols":14,"rows_kept":49,"cut":false,"hidden":false,"merged":[[0,1,0,11],[2,1,2,2],[2,3,2,9],[4,11,5,11],[4,10,5,10],[1,3,1,9],[4,12,5,12],[3,1,3,2],[4,7,4,9],[38,1,38,3],[33,7,33,8],[31,7,31,9],[32,7,32,9],[28,1,29,3],[28,4,29,9],[4,4,4,6],[45,1,45,3],[47,1,47,3],[46,1,46,3],[48,1,48,3],[39,1,39,3],[40,1,40,3],[41,1,41,3],[42,1,42,3],[44,1,44,3],[43,1,43,3]]}
[null,{"$f":"IF(Azonosítás!A3=\"\",\"\",Azonosítás!A3)","v":""}]
[null,null,null,{"$f":"Erasmus_kod","v":""}]
[null,"Intézmény neve:",null,{"$f":"IF(Azonosítás!A9=\"\",\"\",Azonosítás!A9)","v":""}]
[null,"Szerződésszám:",null,{"$f":"Azonosítás!A6","v":0}]
[null,null,null,null,"Hallgatók",null,null,"Oktatói, személyzeti mobilitás",null,null,"Felkészítés","Mobilitás \nszervezése","Összesen"]
[null,"Szerződéses adatok",null,null,"Tanulmányok","Gyakorlat","Nyári egyetem","Oktatás","Konferencia, tréning","Intézménylátogatás"]
[null,"Megítélt támogatás összege",null,null,{"$f":"VLOOKUP($D$4,Alapadatok,6,FALSE)","v":{"$error":"#N/A"}},{"$f":"VLOOKUP($D$4,Alapadatok,7,FALSE)","v":{"$error":"#N/A"}},{"$f":"VLOOKUP($D$4,Alapadatok,8,FALSE)","v":{"$error":"#N/A"}},{"$f":"VLOOKUP($D$4,Alapadatok,9,FALSE)","v":{"$error":"#N/A"}},{"$f":"VLOOKUP($D$4,Alapadatok,10,FALSE)","v":{"$error":"#N/A"}},{"$f":"VLOOKUP($D$4,Alapadatok,11,FALSE)","v":{"$error":"#N/A"}},{"$f":"VLOOKUP($D$4,Alapadatok,12,FALSE)","v":{"$error":"#N/A"}},{"$f":"VLOOKUP($D$4,Alapadatok,13,FALSE)","v":{"$error":"#N/A"}},{"$f":"VLOOKUP($D$4,Alapadatok,14,FALSE)","v":{"$error":"#N/A"}}]
[null,"Évközi módosítás összege (+/-)",null,null,0,0,0,0,0,0,0,0,{"$f":"SUM(E8:L8)","v":0}]
[null,"Megítélt összesen",null,null,{"$f":"E7+E8","v":{"$error":"#N/A"}},{"$error":"#N/A"},{"$error":"#N/A"},{"$error":"#N/A"},{"$error":"#N/A"},{"$error":"#N/A"},{"$error":"#N/A"},{"$error":"#N/A"},{"$error":"#N/A"}]
[null,"Megkötött szerződés(ek) összege (FOI - TKA)",null,null,null,null,null,null,null,null,null,null,{"$f":"SUM(E10:L10)","v":0}]
[null,null,{"$f":"\"-ig a Miniszterelnökségtől átutalt összesen\"","v":"-ig a Miniszterelnökségtől átutalt összesen"}]
[]
[null,"Jóváhagyott be- és kiutazói létszám",null,null,{"$f":"VLOOKUP($D$4,Alapadatok,18,FALSE)+VLOOKUP($D$4,Alapadatok,20,FALSE)","v":{"$error":"#N/A"}},{"$f":"VLOOKUP($D$4,Alapadatok,22,FALSE)+VLOOKUP($D$4,Alapadatok,24,FALSE)","v":{"$error":"#N/A"}},{"$f":"VLOOKUP($D$4,Alapadatok,26,FALSE)+VLOOKUP($D$4,Alapadatok,28,FALSE)","v":{"$error":"#N/A"}},{"$f":"VLOOKUP($D$4,Alapadatok,30,FALSE)+VLOOKUP($D$4,Alapadatok,32,FALSE)","v":{"$error":"#N/A"}},{"$f":"VLOOKUP($D$4,Alapadatok,34,FALSE)+VLOOKUP($D$4,Alapadatok,36,FALSE)","v":{"$error":"#N/A"}},{"$f":"VLOOKUP($D$4,Alapadatok,38,FALSE)+VLOOKUP($D$4,Alapadatok,40,FALSE)","v":{"$error":"#N/A"}},{"$f":"VLOOKUP($D$4,Alapadatok,59,FALSE)","v":{"$error":"#N/A"}},null,{"$f":"SUM(E13:J13)","v":{"$error":"#N/A"}}]
[null,"Megkötött szerződések szerinti be- és kiutazói létszám",null,null,{"$f":"SUM(IF((('Ki- és beutazó hallgatók'!$A$9:$A$108=\"SMS_KI\")+('Ki- és beutazó hallgatók'!$A$9:$A$108=\"SMS_BE\"))*('Ki- és beutazó hallgatók'!$B$9:$B$108<>\"\"),1,0))","v":0},{"$f":"SUM(IF((('Ki- és beutazó hallgatók'!$A$9:$A$108=\"SMP_KI\")+('Ki- és beutazó hallgatók'!$A$9:$A$108=\"SMP_BE\"))*('Ki- és beutazó hallgatók'!$B$9:$B$108<>\"\"),1,0))","v":0},{"$f":"SUM(IF((('Ki- és beutazó hallgatók'!$A$9:$A$108=\"SMS_SU_KI\")+('Ki- és beutazó hallgatók'!$A$9:$A$108=\"SMS_SU_BE\"))*('Ki- és beutazó hallgatók'!$B$9:$B$108<>\"\"),1,0))","v":0},{"$f":"SUM(IF((('Ki- és beutazó okt, személyzet'!$A$9:$A$108=\"STA_KI\")+('Ki- és beutazó okt, személyzet'!$A$9:$A$108=\"STA_BE\"))*('Ki- és beutazó okt, személyzet'!$B$9:$B$108=\"Oktatás\")*('Ki- és beutazó okt, személyzet'!$E$9:$E$108<>\"\"),1,0))","v":0},{"$f":"SUM(IF(('Ki- és beutazó okt, személyzet'!$A$9:$A$108<>\"\")*('Ki- és beutazó okt, személyzet'!$B$9:$B$108=\"Konferencia/Szeminárium/Tréning\")*('Ki- és beutazó okt, személyzet'!$E$9:$E$108<>\"\"),1,0))","v":0},{"$f":"SUM(IF(('Ki- és beutazó okt, személyzet'!$A$9:$A$108<>\"\")*('Ki- és beutazó okt, személyzet'!$B$9:$B$108=\"Intézménylátogatás\")*('Ki- és beutazó okt, személyzet'!$E$9:$E$108<>\"\"),1,0))","v":0},{"$f":"SUM(IF(('Ki- és beutazó hallgatók'!$AB$9:$AB$108=\"Yes\")*('Ki- és beutazó hallgatók'!$B$9:$B$108<>\"\"),1,0))","v":0},null,{"$f":"SUM(E14:J14)","v":0}]
[null,"További tervezett be- és kiutazói létszám",null,null,{"$f":"SUM(IF((('Ki- és beutazó hallgatók'!$A$9:$A$108=\"SMS_KI\")+('Ki- és beutazó hallgatók'!$A$9:$A$108=\"SMS_BE\")),1,0))","v":0},{"$f":"SUM(IF((('Ki- és beutazó hallgatók'!$A$9:$A$108=\"SMP_KI\")+('Ki- és beutazó hallgatók'!$A$9:$A$108=\"SMP_BE\")),1,0))","v":0},{"$f":"SUM(IF((('Ki- és beutazó hallgatók'!$A$9:$A$108=\"SMS_SU_KI\")+('Ki- és beutazó hallgatók'!$A$9:$A$108=\"SMS_SU_BE\")),1,0))","v":0},{"$f":"SUM(IF((('Ki- és beutazó okt, személyzet'!$A$9:$A$108=\"STA_KI\")+('Ki- és beutazó okt, személyzet'!$A$9:$A$108=\"STA_BE\"))*('Ki- és beutazó okt, személyzet'!$B$9:$B$108=\"Oktatás\"),1,0))","v":0},{"$f":"SUM(IF(('Ki- és beutazó okt, személyzet'!$A$9:$A$108<>\"\")*('Ki- és beutazó okt, személyzet'!$B$9:$B$108=\"Konferencia,Szeminárium,Tréning\"),1,0))","v":0},{"$f":"SUM(IF(('Ki- és beutazó okt, személyzet'!$A$9:$A$108<>\"\")*('Ki- és beutazó okt, személyzet'!$B$9:$B$108=\"Intézménylátogatás\"),1,0))","v":0},{"$f":"SUM(IF(('Ki- és beutazó hallgatók'!$AB$9:$AB$108=\"Y\"),1,0))","v":0},null,{"$f":"SUM(E15:J15)","v":0}]
[null,"Továbbiakban tervezett be- és kiutazók száma",null,null,null,null,null,null,null,null,null,null,{"$f":"SUM($E$16:$J$16)","v":0}]
[]
[null,"Felhasználható támogatás",null,null,{"$f":"E9","v":{"$error":"#N/A"}},{"$error":"#N/A"},{"$error":"#N/A"},{"$error":"#N/A"},{"$error":"#N/A"},{"$error":"#N/A"},{"$error":"#N/A"},{"$error":"#N/A"},{"$error":"#N/A"}]
[]
[null,"Elszámolás",null,null,null,null,null,null,null,null,null,{"$f":"IF(((M14+M16)*100)>L18,\"Támogatási szerződésen túli mobilitás-szervezési igény:\",\"Nem jogosult mobilitásszervezési költség:\")","v":{"$error":"#N/A"}},{"$f":"IF(((M14+M16)*100)>L18,(M16+M14-M13)*100,(M13-M14-M16)*100)","v":{"$error":"#N/A"}}]
[null,"Elszámolható támogatás",null,null,{"$f":"E18","v":{"$error":"#N/A"}},{"$error":"#N/A"},{"$error":"#N/A"},{"$error":"#N/A"},{"$error":"#N/A"},{"$error":"#N/A"},{"$f":"K18","v":{"$error":"#N/A"}},{"$f":"IF((M14+M16)>M13,L18,L18-M20)","v":{"$error":"#N/A"}},{"$f":"SUM(E21:L21)","v":{"$error":"#N/A"}}]
[null,"Megkötött szerződésben elszámolt támogatás",null,null,{"$f":"SUM(IF((('Ki- és beutazó hallgatók'!$A$9:$A$108=\"SMS_KI\")+('Ki- és beutazó hallgatók'!$A$9:$A$108=\"SMS_BE\"))*('Ki- és beutazó hallgatók'!$B$9:$B$108<>\"\"),'Ki- és beutazó hallgatók'!$AC$9:$AC$108,0))","v":0},{"$f":"SUM(IF((('Ki- és beutazó hallgatók'!$A$9:$A$108=\"SMP_KI\")+('Ki- és beutazó hallgatók'!$A$9:$A$108=\"SMP_BE\"))*('Ki- és beutazó hallgatók'!$B$9:$B$108<>\"\"),'Ki- és beutazó hallgatók'!$AC$9:$AC$108,0))","v":0},{"$f":"SUM(IF((('Ki- és beutazó hallgatók'!$A$9:$A$108=\"SMS_SU_KI\")+('Ki- és beutazó hallgatók'!$A$9:$A$108=\"SMS_SU_BE\"))*('Ki- és beutazó hallgatók'!$B$9:$B$108<>\"\"),'Ki- és beutazó hallgatók'!$AC$9:$AC$108,0))","v":0},{"$f":"SUM(IF((('Ki- és beutazó okt, személyzet'!$A$9:$A$108=\"STA_KI\")+('Ki- és beutazó okt, személyzet'!$A$9:$A$108=\"STA_BE\"))*('Ki- és beutazó okt, személyzet'!$B$9:$B$108=\"Oktatás\")*('Ki- és beutazó okt, személyzet'!$E$9:$E$108<>\"\"),'Ki- és beutazó okt, személyzet'!$U$9:$U$108,0))","v":0},{"$f":"SUM(IF(('Ki- és beutazó okt, személyzet'!$A$9:$A$108<>\"\")*('Ki- és beutazó okt, személyzet'!$B$9:$B$108=\"Konferencia/Szeminárium/Tréning\")*('Ki- és beutazó okt, személyzet'!$E$9:$E$108<>\"\"),'Ki- és beutazó okt, személyzet'!$U$9:$U$108,0))","v":0},{"$f":"SUM(IF(('Ki- és beutazó okt, személyzet'!$A$9:$A$108<>\"\")*('Ki- és beutazó okt, személyzet'!$B$9:$B$108=\"Intézménylátogatás\")*('Ki- és beutazó okt, személyzet'!$E$9:$E$108<>\"\"),'Ki- és beutazó okt, személyzet'!$U$9:$U$108,0))","v":0},{"$f":"SUM(IF(('Ki- és beutazó hallgatók'!$AB$9:$AB$108=\"Yes\")*('Ki- és beutazó hallgatók'!$B$9:$B$108<>\"\"),100,0))","v":0},{"$f":"M14*100","v":0},{"$f":"SUM(E22:L22)","v":0}]
[null,"További felhasználni tervezett összeg",null,null,null,null,null,null,null,null,null,null,{"$f":"SUM(E23:L23)","v":0}]
[null,{"$f":"IF(B1=\"Erasmus éves beszámoló 2013/2014\",\"Felhasznált összeg\",\"Elszámolt + felhasználni tervezett összege\")","v":"Elszámolt + felhasználni tervezett összege"},null,null,{"$f":"E22+E23","v":0},0,0,0,0,0,0,0,{"$f":"SUM(E24:L24)","v":0}]
[null,null,{"$f":"\"-ig ténylegesen kifizetett\"","v":"-ig ténylegesen kifizetett"},null,null,null,null,null,null,null,null,null,{"$f":"SUM(E25:L25)","v":0}]
[null,"Átutalási kérelem összege",null,null,null,null,null,null,null,null,null,null,{"$f":"IF(AND(M25>(M11*0.7),M11<M9),M7*0.1,0)","v":{"$error":"#N/A"}}]
[null,{"$f":"IF(OR(B1=\"Erasmus évközi beszámoló 2013/2014\", B1=\"Erasmus módosított évközi beszámoló 2013/2014\"), \"Várható maradvány\",\"Maradvány\")","v":"Maradvány"},null,null,{"$f":"(E21-E22)-E23","v":{"$error":"#N/A"}},{"$error":"#N/A"},{"$error":"#N/A"},{"$error":"#N/A"},{"$error":"#N/A"},{"$error":"#N/A"},{"$error":"#N/A"},{"$f":"(L21-L22)-L23","v":{"$error":"#N/A"}},{"$f":"SUM(E27:L27)","v":{"$error":"#N/A"}}]
[]
[null,"Megjegyzés:"]
[]
[null,null,null,null,null,null,null,null,null,null,null,null,null," "]
[null,null,null,null,null,"Hivatalos képviselő:"]
[null,null,{"$f":"IF(COUNTBLANK(B39:B49)<11,\"HIBÁS BESZÁMOLÓ NEM KÜLDHETŐ BE!\",\"\")","v":"HIBÁS BESZÁMOLÓ NEM KÜLDHETŐ BE!"},null,null,"Beosztása:"]
[null,null,null,null,null,"Kelt:"]
[null,null,null,null,null,null,null,null,null,"P.H."]
[]
[]
[null,{"$f":"IF(COUNTBLANK(B39:B49)<11,\"HIBALISTA\",\"\")","v":"HIBALISTA"}]
[null,{"$f":"IF('Pénzügyi elszámolás'!B11=\"\",\"Dátum hiányzik a B11-es cellában\",\"\")","v":"Dátum hiányzik a B11-es cellában"}]
[null,{"$f":"IF('Pénzügyi elszámolás'!M11=\"\",\"Miniszterelnökségtől átutalt összeg hiányzik a M11-es cellában\", \"\")","v":"Miniszterelnökségtől átutalt összeg hiányzik a M11-es cellában"}]
[null,{"$f":"IF('Pénzügyi elszámolás'!B25=\"\",\"Dátum hiányzik a B25-ös cellában\", \"\")","v":"Dátum hiányzik a B25-ös cellában"}]
[null,{"$f":"IF('Pénzügyi elszámolás'!E25=\"\",\"A ténylegesen kifizetett összeg hiányzik az E25-ös cellában\", \"\")","v":"A ténylegesen kifizetett összeg hiányzik az E25-ös cellában"}]
[null,{"$f":"IF('Pénzügyi elszámolás'!F25=\"\",\"A ténylegesen kifizetett összeg hiányzik az F25-ös cellában\", \"\")","v":"A ténylegesen kifizetett összeg hiányzik az F25-ös cellában"}]
[null,{"$f":"IF('Pénzügyi elszámolás'!G25=\"\",\"A ténylegesen kifizetett összeg hiányzik az G25-ös cellában\", \"\")","v":"A ténylegesen kifizetett összeg hiányzik az G25-ös cellában"}]
[null,{"$f":"IF('Pénzügyi elszámolás'!H25=\"\",\"A ténylegesen kifizetett összeg hiányzik az H25-ös cellában\", \"\")","v":"A ténylegesen kifizetett összeg hiányzik az H25-ös cellában"}]
[null,{"$f":"IF('Pénzügyi elszámolás'!I25=\"\",\"A ténylegesen kifizetett összeg hiányzik az I25-ös cellában\", \"\")","v":"A ténylegesen kifizetett összeg hiányzik az I25-ös cellában"}]
[null,{"$f":"IF('Pénzügyi elszámolás'!J25=\"\",\"A ténylegesen kifizetett összeg hiányzik az J25-ös cellában\", \"\")","v":"A ténylegesen kifizetett összeg hiányzik az J25-ös cellában"}]
[null,{"$f":"IF('Pénzügyi elszámolás'!K25=\"\",\"A ténylegesen kifizetett összeg hiányzik az K25-ös cellában\", \"\")","v":"A ténylegesen kifizetett összeg hiányzik az K25-ös cellában"}]
[null,{"$f":"IF('Pénzügyi elszámolás'!L25=\"\",\"A ténylegesen kifizetett összeg hiányzik az L25-ös cellában\", \"\")","v":"A ténylegesen kifizetett összeg hiányzik az L25-ös cellában"}]

{"sheet":"Pályázói adatok","index":6,"n_rows":11,"n_cols":63,"rows_kept":11,"cut":false,"hidden":true,"merged":[]}
["Szerzodesszam","Erasmus_ID","Intezmeny","Város","EUC_szam","SMS","SMP","SMS SU","Oktatás","Konferencia, szeminárium, tréning","Intézmény-látogatás","Felkészítési ktg","Mobilitás-szervezés","Összes elnyert","80%",0.1,"Utolsó részlet","Jóváhagyott fő (SMS_KI)","Elvárt hó \n(SMS_KI)","Jóváhagyott fő (SMS_BE)","Elvárt hó \n(SMS_BE)","Jóváhagyott fő (SMP_KI)","Elvárt hó \n(SMP_KI)","Jóváhagyott fő (SMP_BE)","Elvárt hó \n(SMP_BE)","Jóváhagyott fő (SMS_SU_KI)","Elvárt hó \n(SMS_SU_ki)","Jóváhagyott fő (SMS_SU_BE)","Elvárt hó \n(SMS_SU_BE)","Jóváhagyott fő \n(oktatás_ki)","Elvárt nap \n(oktatás_ki)","Jóváhagyott fő \n(oktatás_be)","Elvárt nap \n(oktatás_be)","Jóváhagyott fő (konf_ki)","Elvárt nap \n(konf_ki)","Jóváhagyott fő (konf_be)","Elvárt nap \n(konf_be)","Jóváhagyott fő (int.lát_ki)","Elvárt nap \n(int.lát_ki)","Jóváhagyott fő (int.lát_be)","Elvárt nap \n(int.lát_be)","Jóváhagyott fő\nÖSSZES","Mobilitas\nAzonosito","Eloiranyzat\nAzonosito","Appid","Intézmény-\ntípus","Működési\nforma","Jogi\nstátusz","Gazdasági\nszektor","Méret \n(dolgozók)","Méret\n(tanulók)  ","Kapcsolattartó telefon","Kapcsolattartó E-mail","Irányítószám","Város","Ország","Régió","Projektkód","Felkészítés","NUTS_kod","Partner kontaktszemély neve","Partner kontaktszemély telefonszáma","Partner kontaktszemély e-mailcíme"]
["EGT/156/M2-0011","HU BUDAPES02","Budapesti Műszaki és Gazdaságtudományi Egyetem","Budapest",null,61800,0,0,13458,9600,7472,1600,4100,98030,78424,9803,9803,12,48,6,24,0,0,0,0,0,0,0,0,6,60,4,28,6,42,2,14,4,40,1,7,41,null,null,null,"EDU-UNIV","NP","PB","P",null,null,"06-30-461-4603","ebaku@epitesz.bme.hu",1111,"Budapest","HU","HU10",null,16,"HU101","Baku Eszter",36304614603,"ebaku@epitesz.bme.hu"]
["EGT/156/M2-0012","HU BUDAPES25","Liszt Ferenc Zeneművészeti Egyetem","Budapest",null,0,0,11500,0,5086,0,0,1400,17986,14388.800000000001,1798.6000000000001,1798.6000000000001,0,0,0,0,0,0,0,0,5,5,5,5,0,0,0,0,2,16,2,22,0,0,0,0,14,null,null,null,"EDU-UNIV","NP","PB","P",null,null,"06-30-409-6731","kirkosa.adam@lisztakademia.hu",1061,"Budapest","HU","HU10",null,0,"HU101","Kirkósa Ádám",36304096731,"kirkosa.adam@lisztakademia.hu"]
["EGT/156/M2-0013","HU BUDAPES03","Budapesti Corvinus Egyetem","Budapest",null,71000,12400,5900,2029,2029,2029,0,4000,99387,79509.600000000006,9938.7000000000007,9938.7000000000007,14,56,8,24,5,2,1,1,1,1,5,5,1,6,1,6,1,6,1,6,1,6,1,6,40,null,null,null,"EDU-UNIV","NP","PB","P",null,null,"06-1-482-5189  ","gabor.szalai@uni-corvinus.hu",1093,"Budapest","HU","HU10",null,0,"HU101","Szalai Gábor","3614825189  ","gabor.szalai@uni-corvinus.hu"]
["EGT/156/M2-0014","HU SOPRON01","Nyugat-magyarországi Egyetem","Sopron",null,0,0,0,0,0,7645,0,500,8145,6516,814.5,814.5,0,0,0,0,0,0,0,0,0,0,0,0,0,0,0,0,0,0,0,0,5,45,0,0,5,null,null,null,"EDU-UNIV","NP","PB","P",null,null,"06-30-316-0653","Kitzinger.Arianna@bpk.nyme.hu",9400,"Sopron","HU","HU22",null,0,"HU221","Kitzinger Arianna",36303160653,"Kitzinger.Arianna@bpk.nyme.hu"]
["EGT/156/M2-0015","HU SZEGED01","Szegedi Tudományegyetem","Szeged",null,33000,0,8400,22432,20712,6927,1000,6700,99771,79816.800000000003,9977.1,9977.1,6,24,4,16,0,0,0,0,6,6,0,0,10,70,12,60,12,60,10,50,5,25,2,10,67,null,null,null,"EDU-UNIV","NP","PB","P",null,null,"06-62-420-895","gabriella.balog.molnar@rekt.szte.hu",6720,"Szeged","HU","HU33",null,10,"HU333","Balogné Molnár Gabriella",3662420895,"gabriella.balog.molnar@rekt.szte.hu"]
["EGT/156/M2-0016","HU BUDAPES20","Budapesti Gazdasági Egyetem","Budapest",null,0,0,0,0,0,7900,0,700,8600,6880,860,860,0,0,0,0,0,0,0,0,0,0,0,0,0,0,0,0,0,0,0,0,4,28,3,21,7,null,null,null,"EDU-UNIV","NP","PB","P",null,null,"06-30-525-0691","kovatsneloch.agnes@uni-bge.hu ",1149,"Budapest","HU","HU10",null,0,"HU101","Kovátsné dr. Loch Ágnes",36305250691,"kovatsneloch.agnes@uni-bge.hu "]
["EGT/156/M2-0017","HU BUDAPES16","Óbudai Egyetem","Budapest",null,41200,16400,3200,11712,6471,3213,1200,4100,88096,70476.800000000003,8809.6,8809.6,8,32,4,16,4,4,0,0,1,1,2,2,8,40,4,20,4,20,3,12,3,15,0,0,41,null,null,null,"EDU-UNIV","NP","PB","P",null,null,"06-30-650-2368","marosi.ildiko@kgk.uni-obuda.hu",1034,"Budapest","HU","HU10",null,12,"HU101","Marosi Ildikó",36306502368,"marosi.ildiko@kgk.uni-obuda.hu"]
["EGT/156/M2-0018","HU BUDAPES01","Eötvös Loránd Tudományegyetem","Budapest",null,45000,0,2300,0,0,3500,1000,1500,53500,42800,5350,5350,8,40,2,10,0,0,0,0,1,1,1,1,0,0,0,0,0,0,0,0,2,14,1,7,15,null,null,null,"EDU-UNIV","NP","PB","P",null,null,"06-30-961-1311","aniko.szontagh@rk.elte.hu",1053,"Budapest","HU","HU10",null,10,"HU101","Szontágh Anikó",36309611311,"aniko.szontagh@rk.elte.hu"]
["EGT/156/M2-0019","HU BUDAPES27","Moholy-Nagy Művészeti Egyetem","Budapest",null,0,0,0,0,0,36600,0,1400,38000,30400,3800,3800,0,0,0,0,0,0,0,0,0,0,0,0,0,0,0,0,0,0,0,0,12,252,2,14,14,null,null,null,"EDU-UNIV","NP","PB","P",null,null,"06-20-247-1669","feher.bori@mome.hu",1121,"Budapest","HU","HU10",null,0,"HU101","Fehér Borbála",36202471669,"feher.bori@mome.hu"]
["EGT/156/M2-0020","HU GODOLLO01","Szent István Egyetem","Gödöllő",null,42900,5900,6900,11501,10400,16001,900,4000,98902,79121.600000000006,9890.2000000000007,9890.2000000000007,6,36,3,15,1,6,0,0,3,6,0,0,7,70,0,0,8,56,0,0,7,70,5,35,40,null,null,null,"EDU-UNIV","NP","PB","P",null,null,"06-70-219-9239","tarr.zsuzsanna@fh.szie.hu",2100,"Gödöllő","HU","HU10",null,9,"HU102","dr. Tarr Zsuzsanna",36702199239,"tarr.zsuzsanna@fh.szie.hu"]

{"sheet":"Kieg.tám.","index":7,"n_rows":52,"n_cols":14,"rows_kept":52,"cut":false,"hidden":false,"merged":[[47,0,47,3],[15,0,15,3],[9,1,9,3],[44,0,45,3],[10,1,10,3],[42,0,43,3],[46,0,46,3],[38,0,38,3],[14,0,14,3],[39,0,39,3],[41,8,42,8],[33,0,36,0],[41,4,41,5],[41,6,41,7],[33,1,33,3],[41,0,41,3],[37,0,37,3],[34,1,34,3],[35,1,35,3],[36,1,36,3],[28,8,29,8],[29,0,29,3],[28,6,28,7],[30,0,32,0],[19,1,19,3],[20,1,20,3],[22,0,25,0],[31,1,31,3],[32,1,32,3],[17,8,18,8],[18,0,18,3],[17,6,17,7],[17,4,17,5],[19,0,21,0],[4,6,4,7],[4,4,4,5],[30,1,30,3],[6,0,8,0],[9,0,12,0],[27,6,27,7],[28,4,28,5],[24,1,24,3],[21,1,21,3],[23,1,23,3],[27,4,27,5],[26,0,26,3],[1,11,1,14],[2,11,2,14],[11,1,11,3],[12,1,12,3],[25,1,25,3],[9,11,9,14],[11,11,11,14],[5,11,5,14],[6,11,6,14],[3,4,3,5],[3,6,3,7],[16,6,16,7],[16,4,16,5],[13,0,13,3],[8,1,8,3],[4,8,5,8],[0,0,0,3],[1,2,1,3],[5,0,5,3],[6,1,6,3],[7,1,7,3]]}
[{"$f":"Azonosítás!A9","v":""}]
["Szerződésszám: ",null,{"$f":"Azonosítás!A6","v":0},null,null,null,null,null,null,null,null,"________________________________"]
[null,null,null,null,null,null,null,null,null,null,null,"intézményi koordinátor aláírása"]
[]
[null,null,null,null,"Bejövő",null,"Kimenő",null,"Támogatási összeg"]
["Eddigi támogatott mobilitások",null,null,null,"Fő","Hónap","Fő","Hónap",null,null,null,"________________________________"]
["HALLGATÓI","tanulmányi",null,null,{"$f":"SUM(IF((('Ki- és beutazó hallgatók'!$A$9:$A$108=\"SMS_BE\"))*('Ki- és beutazó hallgatók'!$B$9:$B$108<>\"\"),1,0))","v":0},{"$f":"SUM(IF((('Ki- és beutazó hallgatók'!$A$9:$A$108=\"SMS_BE\"))*('Ki- és beutazó hallgatók'!$B$9:$B$108<>\"\"),'Ki- és beutazó hallgatók'!$Q$9:$Q$108,0))","v":0},{"$f":"SUM(IF(('Ki- és beutazó hallgatók'!$A$9:$A$108=\"SMS_KI\")*('Ki- és beutazó hallgatók'!$B$9:$B$108<>\"\"),1,0))","v":0},{"$f":"SUM(IF(('Ki- és beutazó hallgatók'!$A$9:$A$108=\"SMS_KI\")*('Ki- és beutazó hallgatók'!$B$9:$B$108<>\"\"),'Ki- és beutazó hallgatók'!$Q$9:$Q$108,0))","v":0},{"$f":"SUM(IF((IFERROR(LEN('Ki- és beutazó hallgatók'!$A$9:$A$108),0)<8)*(LEFT('Ki- és beutazó hallgatók'!$A$9:$A$108,3)=\"SMS\")*('Ki- és beutazó hallgatók'!$B$9:$B$108<>\"\"),'Ki- és beutazó hallgatók'!$AC$9:$AC$108,0))","v":0},null,null,"rektor aláírása"]
[null,"szakmai gyakorlat",null,null,{"$f":"SUM(IF((('Ki- és beutazó hallgatók'!$A$9:$A$108=\"SMP_BE\"))*('Ki- és beutazó hallgatók'!$B$9:$B$108<>\"\"),1,0))","v":0},{"$f":"SUM(IF((('Ki- és beutazó hallgatók'!$A$9:$A$108=\"SMP_BE\"))*('Ki- és beutazó hallgatók'!$B$9:$B$108<>\"\"),'Ki- és beutazó hallgatók'!$T$9:$T$108,0))","v":0},{"$f":"SUM(IF(('Ki- és beutazó hallgatók'!$A$9:$A$108=\"SMP_KI\")*('Ki- és beutazó hallgatók'!$B$9:$B$108<>\"\"),1,0))","v":0},{"$f":"SUM(IF(('Ki- és beutazó hallgatók'!$A$9:$A$108=\"SMP_KI\")*('Ki- és beutazó hallgatók'!$B$9:$B$108<>\"\"),'Ki- és beutazó hallgatók'!$T$9:$T$108,0))","v":0},{"$f":"SUM(IF((LEFT('Ki- és beutazó hallgatók'!$A$9:$A$108,3)=\"SMP\")*('Ki- és beutazó hallgatók'!$B$9:$B$108<>\"\"),'Ki- és beutazó hallgatók'!$AC$9:$AC$108,0))","v":0}]
[null,"nyári egyetem",null,null,{"$f":"SUM(IF((('Ki- és beutazó hallgatók'!$A$9:$A$108=\"SMS_SU_BE\"))*('Ki- és beutazó hallgatók'!$B$9:$B$108<>\"\"),1,0))","v":0},{"$f":"SUM(IF((('Ki- és beutazó hallgatók'!$A$9:$A$108=\"SMS_SU_BE\"))*('Ki- és beutazó hallgatók'!$B$9:$B$108<>\"\"),'Ki- és beutazó hallgatók'!$W$9:$W$108,0))","v":0},{"$f":"SUM(IF(('Ki- és beutazó hallgatók'!$A$9:$A$108=\"SMS_SU_KI\")*('Ki- és beutazó hallgatók'!$B$9:$B$108<>\"\"),1,0))","v":0},{"$f":"SUM(IF(('Ki- és beutazó hallgatók'!$A$9:$A$108=\"SMS_SU_KI\")*('Ki- és beutazó hallgatók'!$B$9:$B$108<>\"\"),'Ki- és beutazó hallgatók'!$W$9:$W$108,0))","v":0},{"$f":"SUM(IF((IFERROR(LEN('Ki- és beutazó hallgatók'!$A$9:$A$108),0)>8)*('Ki- és beutazó hallgatók'!$B$9:$B$108<>\"\"),'Ki- és beutazó hallgatók'!$AC$9:$AC$108,0))","v":0}]
["OKTATÓI / SZEMÉLYZETI",null,null,null,"Fő","Nap","Fő","Nap","Támogatási összeg",null," ","________________________________"]
[null,"oktatási célú",null,null,{"$f":"SUM(IF(('Ki- és beutazó okt, személyzet'!$A$9:$A$108=\"STA_BE\")*('Ki- és beutazó okt, személyzet'!$E$9:$E$108<>\"\"),1,0))","v":0},{"$f":"SUM(IF(('Ki- és beutazó okt, személyzet'!$A$9:$A$108=\"STA_BE\")*('Ki- és beutazó okt, személyzet'!$E$9:$E$108<>\"\"),'Ki- és beutazó okt, személyzet'!$Q$9:$Q$108,0))","v":0},{"$f":"SUM(IF(('Ki- és beutazó okt, személyzet'!$A$9:$A$108=\"STA_KI\")*('Ki- és beutazó okt, személyzet'!$E$9:$E$108<>\"\"),1,0))","v":0},{"$f":"SUM(IF(('Ki- és beutazó okt, személyzet'!$A$9:$A$108=\"STA_KI\")*('Ki- és beutazó okt, személyzet'!$E$9:$E$108<>\"\"),'Ki- és beutazó okt, személyzet'!$Q$9:$Q$108,0))","v":0},{"$f":"SUM(IF((LEFT('Ki- és beutazó okt, személyzet'!$A$9:$A$108,3)=\"STA\")*('Ki- és beutazó okt, személyzet'!$E$9:$E$108<>\"\"),'Ki- és beutazó okt, személyzet'!$U$9:$U$108,0))","v":0}]
[null,"konferencia/egyéb részvétel",null,null,{"$f":"SUM(IF(('Ki- és beutazó okt, személyzet'!$A$9:$A$108=\"STT_BE\")*('Ki- és beutazó okt, személyzet'!$B$9:$B$108=\"Konferencia\")*('Ki- és beutazó okt, személyzet'!$E$9:$E$108<>\"\"),1,0))","v":0},{"$f":"SUM(IF(('Ki- és beutazó okt, személyzet'!$A$9:$A$108=\"STT_BE\")*('Ki- és beutazó okt, személyzet'!$B$9:$B$108=\"Konferencia\")*('Ki- és beutazó okt, személyzet'!$E$9:$E$108<>\"\"),'Ki- és beutazó okt, személyzet'!$Q$9:$Q$108,0))","v":0},{"$f":"SUM(IF(('Ki- és beutazó okt, személyzet'!$A$9:$A$108=\"STT_KI\")*('Ki- és beutazó okt, személyzet'!$B$9:$B$108=\"Konferencia\")*('Ki- és beutazó okt, személyzet'!$E$9:$E$108<>\"\"),1,0))","v":0},{"$f":"SUM(IF(('Ki- és beutazó okt, személyzet'!$A$9:$A$108=\"STT_KI\")*('Ki- és beutazó okt, személyzet'!$B$9:$B$108=\"Konferencia\")*('Ki- és beutazó okt, személyzet'!$E$9:$E$108<>\"\"),'Ki- és beutazó okt, személyzet'!$Q$9:$Q$108,0))","v":0},{"$f":"SUM(IF((LEFT('Ki- és beutazó okt, személyzet'!$A$9:$A$108,3)=\"STT\")*('Ki- és beutazó okt, személyzet'!$B$9:$B$108=\"Konferencia\")*('Ki- és beutazó okt, személyzet'!$E$9:$E$108<>\"\"),'Ki- és beutazó okt, személyzet'!$U$9:$U$108,0))","v":0},null,null,"szakmai ellenjegyző (ha szükséges)"]
[null,"intézménylátogatás",null,null,{"$f":"SUM(IF(('Ki- és beutazó okt, személyzet'!$A$9:$A$108=\"STT_BE\")*('Ki- és beutazó okt, személyzet'!$B$9:$B$108=\"Intézménylátogatás\")*('Ki- és beutazó okt, személyzet'!$E$9:$E$108<>\"\"),1,0))","v":0},{"$f":"SUM(IF(('Ki- és beutazó okt, személyzet'!$A$9:$A$108=\"STT_BE\")*('Ki- és beutazó okt, személyzet'!$B$9:$B$108=\"Intézménylátogatás\")*('Ki- és beutazó okt, személyzet'!$E$9:$E$108<>\"\"),'Ki- és beutazó okt, személyzet'!$Q$9:$Q$108,0))","v":0},{"$f":"SUM(IF(('Ki- és beutazó okt, személyzet'!$A$9:$A$108=\"STT_KI\")*('Ki- és beutazó okt, személyzet'!$B$9:$B$108=\"Intézménylátogatás\")*('Ki- és beutazó okt, személyzet'!$E$9:$E$108<>\"\"),1,0))","v":0},{"$f":"SUM(IF(('Ki- és beutazó okt, személyzet'!$A$9:$A$108=\"STT_KI\")*('Ki- és beutazó okt, személyzet'!$B$9:$B$108=\"Intézménylátogatás\")*('Ki- és beutazó okt, személyzet'!$E$9:$E$108<>\"\"),'Ki- és beutazó okt, személyzet'!$Q$9:$Q$108,0))","v":0},{"$f":"SUM(IF((LEFT('Ki- és beutazó okt, személyzet'!$A$9:$A$108,3)=\"STT\")*('Ki- és beutazó okt, személyzet'!$B$9:$B$108=\"Konferencia\")*('Ki- és beutazó okt, személyzet'!$E$9:$E$108<>\"\"),'Ki- és beutazó okt, személyzet'!$U$9:$U$108,0))","v":0}]
["Eddigi támogatott mobilitások összesen:",null,null,null,{"$f":"SUM(E7:E9,E11:E13)","v":0},null,{"$f":"SUM(G7:G9,G11:G13)","v":0},null,{"$f":"SUM(I7:I9,I11:I13)","v":0}]
["eddigi igényelt mobilitás szervezés összesen",null,null,null,{"$f":"E14*100","v":0},null,{"$f":"G14*100","v":0},null,{"$f":"SUM(E15+G15)","v":0}]
["eddigi igényelt hallgatói felkészítés",null,null,null,null,null,null,null,{"$f":"IFERROR( INDEX('Pályázói adatok'!$L$2:$L$11, MATCH(Azonosítás!$A$6,'Pályázói adatok'!$A$2:$A$11,0)),0)","v":0}]
[]
[null,null,null,null,"Bejövő",null,"Kimenő",null,"Támogatási összeg"]
["Tervezett mobilitás-hosszabbítások",null,null,null,"Fő","Hónap","Fő","Hónap"]
["HALLGATÓI","tanulmányi",null,null,null,null,null,null,{"$f":"F20*400+E20*500+H20*900+G20*500","v":0},null,null,null," "]
[null,"szakmai gyakorlat",null,null,null,null,null,null,{"$f":"F21*400+E21*500+H21*900+G21*500","v":0}]
[null,"nyári egyetem",null,null,null,null,null,null,{"$f":"F22*400+E22*500+H22*900+G22*500","v":0},null,null," "]
["OKTATÓI / SZEMÉLYZETI",null,null,null,"Fő","Nap","Fő","Nap","Támogatási összeg"]
[null,"oktatási célú",null,null,null,null,null,null,{"$f":"IFERROR(INDEX(NORA!$L$2:$L$91,MATCH(F24,NORA!$A$2:$A$91,0)),0)+IFERROR(INDEX(NORA!$C$2:$C$91,MATCH(H24,NORA!$A$2:$A$91,0)),0)+E24*500+G24*500","v":0}]
[null,"konferencia/egyéb részvétel",null,null,null,null,null,null,{"$f":"IFERROR(INDEX(NORA!$L$2:$L$91,MATCH(F25,NORA!$A$2:$A$91,0)),0)+IFERROR(INDEX(NORA!$C$2:$C$91,MATCH(H25,NORA!$A$2:$A$91,0)),0)+E25*500+G25*500","v":0}]
[null,"intézménylátogatás",null,null,null,null,null,null,{"$f":"IFERROR(INDEX(NORA!$L$2:$L$91,MATCH(F26,NORA!$A$2:$A$91,0)),0)+IFERROR(INDEX(NORA!$C$2:$C$91,MATCH(H26,NORA!$A$2:$A$91,0)),0)+E26*500+G26*500","v":0}]
["Tervezett mobilitás-hosszabbítások összesen:",null,null,null,{"$f":"SUM(E20,E21,E22,E24,E25,E26)","v":0},null,{"$f":"SUM(G20,G21,G22,G24,G25,G26)","v":0},null,{"$f":"SUM(I20,I21,I22,I24,I25,I26)","v":0}]
[]
[null,null,null,null,"Bejövő",null,"Kimenő",null,"Támogatási összeg"]
["Tervezett új mobilitások",null,null,null,"Fő","Hónap","Fő","Hónap"]
["HALLGATÓI","tanulmányi",null,null,null,null,null,null,{"$f":"F31*400+E31*500+H31*900+G31*500","v":0}]
[null,"szakmai gyakorlat",null,null,null,null,null,null,{"$f":"F32*400+E32*500+H32*900+G32*500","v":0}]
[null,"nyári egyetem",null,null,null,null,null,null,{"$f":"F33*400+E33*500+H33*900+G33*500","v":0}]
["OKTATÓI / SZEMÉLYZETI",null,null,null,"Fő","Nap","Fő","Nap","Támogatási összeg"]
[null,"oktatási célú",null,null,null,null,null,null,{"$f":"IFERROR(INDEX(NORA!$L$2:$L$91,MATCH(F35,NORA!$A$2:$A$91,0)),0)+IFERROR(INDEX(NORA!$C$2:$C$91,MATCH(H35,NORA!$A$2:$A$91,0)),0)+E35*500+G35*500","v":0}]
[null,"konferencia/egyéb részvétel",null,null,null,null,null,null,{"$f":"IFERROR(INDEX(NORA!$L$2:$L$91,MATCH(F36,NORA!$A$2:$A$91,0)),0)+IFERROR(INDEX(NORA!$C$2:$C$91,MATCH(H36,NORA!$A$2:$A$91,0)),0)+E36*500+G36*500","v":0}]
[null,"intézménylátogatás",null,null,null,null,null,null,{"$f":"IFERROR(INDEX(NORA!$L$2:$L$91,MATCH(F37,NORA!$A$2:$A$91,0)),0)+IFERROR(INDEX(NORA!$C$2:$C$91,MATCH(H37,NORA!$A$2:$A$91,0)),0)+E37*500+G37*500","v":0}]
["Tervezett új mobilitások összesen:",null,null,null,{"$f":"SUM(E31,E32,E33,E35,E36,E37)","v":0},null,{"$f":"SUM(G31,G32,G33,G35,G36,G37)","v":0},null,{"$f":"SUM(I31,I32,I33,I35,I36,I37)","v":0}]
["igényelt mobilitás szervezés",null,null,null,{"$f":"E38","v":0},null,{"$f":"G38","v":0},null,{"$f":"SUM(E39,G39)*100","v":0}]
["igényelt hallgatói felkészítés (fő)",null,null,null,null,null,null,null,{"$f":"(E40+G40)*100","v":0}]
[]
["Kiegészítő támogatási igény összesen: ",null,null,null,"Bejövő",null,"Kimenő",null,"Támogatási összeg"]
["HALLGATÓI",null,null,null,"Fő","Hónap","Fő","Hónap"]
[null,null,null,null,{"$f":"SUM(E20:E22,E31:E33)","v":0},{"$f":"SUM(F20:F22,F31:F33)","v":0},{"$f":"SUM(G20:G22,G31:G33)","v":0},{"$f":"SUM(H20:H22,H31:H33)","v":0},{"$f":"SUM(I20:I22,I31:I33)","v":0},null,null,null," "]
["OKTATÓI / SZEMÉLYZETI",null,null,null,"Fő","Nap","Fő","Nap"]
[null,null,null,null,{"$f":"SUM(E37,E36,E35,E24,E25,E26)","v":0},{"$f":"SUM(F24:F26,F35:F37)","v":0},{"$f":"SUM(G37,G36,G35,G26,G25,G24)","v":0},{"$f":"SUM(H24:H26,H35:H37)","v":0},{"$f":"SUM(I24:I26,I35:I37)","v":0}]
["igényelt mobilitás szervezés összesen",null,null,null,{"$f":"(E44+E46)","v":0},null,{"$f":"(G44+G46)","v":0},null,{"$f":"SUM(E47,G47)*100","v":0}]
["igényelt hallgatói felkészítés összesen",null,null,null,{"$f":"E40","v":0},null,{"$f":"G40","v":0},null,{"$f":"(E48+G48)*100","v":0}]
[null,null,null,null,null,null,null,null," "]
[]
[null,null,null,null,null,null,null,null,null,null,null,null,null," "]
[null,null,null,null,null,null,null," "]

{"sheet":"Segédadatok","index":8,"n_rows":1009,"n_cols":17,"rows_kept":1009,"cut":false,"hidden":false,"merged":[[7,6,7,8],[13,6,13,8]]}
[null,null,"MOBILITY TYPE","Description",null,"Erasmus országkód","Országkód","Ország","Country","Code","Description","Code","Lang","ISO_orszagkodok","NACE1","Description","Napkezdes"]
[null,null,"SMS","ERASMUS Student Mobility for Studies",null,"HU","HU","Magyarország","Hungary","HU","Hungary","EN","English","AT","A","AGRICULTURE, FORESTRY AND FISHING","2015-11-26"]
[null,null,"SMP","ERASMUS Student Mobility for Placements",null,"IS","IS","Izland","Iceland","IS","Iceland","DE","German","BE","B","MINING AND QUARRYING","2015-11-27"]
[null,null,"STA","ERASMUS Staff Mobility",null,"LI","LI","Lichtenstein","Liechtenstein","LI","Liechtenstein","IS","Icelandic","BG","C","MANUFACTURING","2015-11-28"]
[null,null,"STT","ERASMUS Staff Mobility",null,"NO","NO","Norvégia","Norway","NO","Norway","NO","Norwegian","CH","D","ELECTRICITY,  GAS, STEAM AND AIR CONDITIONING SUPPLY","2015-11-29"]
[null,null,null,null,null,null,null,null,null,"XX","other","HU","Hungarian","CY","E","WATER SUPPLY; SEWERAGE, WASTE MANAGEMENT AND REMEDIATION ACTIVITIES","2015-11-30"]
[null,null,"GENDER","Description",null,null,null,null,null,null,null,"AA","Afar","CZ","F","CONSTRUCTION","2015-12-01"]
[null,null,"F","Female",null,"Type of Participant DoRIS","Description",null,null,null,null,"AB","Abkhazian","DE","G","WHOLESALE AND RETAIL TRADE; REPAIR OF MOTOR VEHICLES AND MOTORCYCLES","2015-12-02"]
[null,null,"M","Male",null,"TM - Teacher mobility","Teacher mobility",null,null,null,null,"AE","Avestan","DK","H","TRANSPORTATION AND STORAGE","2015-12-03"]
[null,null,null,null,null,"AM - Administrative staff mobility","Administrative staff mobility",null,null,null,null,"AF","Afrikaans","EE","I","ACCOMMODATION AND FOOD SERVICE ACTIVITIES","2015-12-04"]
[null,null,"TYPE OF PARTICIPANT","Description",null,"RM - Researcher mobility","Researcher mobility",null,null,null,null,"AK","Akan","ES","J","INFORMATION AND COMMUNICATION","2015-12-05"]
[null,null,"STA_KI","Teaching staff out",null,"EM - Expert mobility","Expert mobility",null,null,null,null,"AM","Amharic","FI","K","FINANCIAL AND INSURANCE ACTIVITIES","2015-12-06"]
[null,null,"STA_BE","Teaching staff in",null,"GEM - Government employee mobility","Government employee mobility",null,null,null,null,"AN","Aragonese","FL","L","REAL ESTATE ACTIVITIES","2015-12-07"]
[null,null,"STT_KI","Non-teaching staff out",null,"Other","Other (Please avoid using this category if not absolutely necessary)",null,null,null,null,"AR","Arabic","FR","M","PROFESSIONAL, SCIENTIFIC AND TECHNICAL ACTIVITIES","2015-12-08"]
[null,null,"STT_BE","Non-teaching staff in",null,null,null,null,null,null,null,"AS","Assamese","GR","N","ADMINISTRATIVE AND SUPPORT SERVICE ACTIVITIES","2015-12-09"]
[null,null,null,null,null,null,null,null,null,null,null,"AV","Avaric","HR","O","PUBLIC ADMINISTRATION AND DEFENCE; COMPULSORY SOCIAL SECURITY","2015-12-10"]
[null,null,"Level of Study or Teaching","Description",null,null,null,null,null,null,null,"AY","Aymara","HU","P","EDUCATION","2015-12-11"]
[null,null,"BA - Bachelor Level","Bachelor Level",null,null,null,null,null,null,null,"AZ","Azerbaijani","IE","Q","HUMAN HEALTH AND SOCIAL WORK ACTIVITIES","2015-12-12"]
[null,null,"MA - Master Level","Master Level",null,null,null,null,null,null,null,"BA","Bashkir","IS","R","ARTS, ENTERTAINMENT AND RECREATION","2015-12-13"]
[null,null,"Doc. - Doctoral level","Doctoral level",null,null,null,null,null,null,null,"BE","Belarusian","IT","S","OTHER SERVICE ACTIVITIES","2015-12-14"]
[null,null,"Post. Doc. - Post doc. Level ","Post doc. Level",null,null,null,null,null,null,null,"BG","Bulgarian","LT","T","ACTIVITIES OF HOUSEHOLDS AS EMPLOYERS; UNDIFFERENTIATED GOODS- AND SERVICES-PRODUCING ACTIVITIES OF HOUSEHOLDS FOR OWN USE","2015-12-15"]
[null,null,"N/A - Non applicable","Non applicable",null,null,null,null,null,null,null,"BH","Bihari","LU","U","ACTIVITIES OF EXTRATERRITORIAL ORGANIZATIONS AND BODIES","2015-12-16"]
[null,null,"R - Research","Research",null,null,null,null,null,null,null,"BI","Bislama","LV",null,null,"2015-12-17"]
[null,null,null,null,null,null,null,null,null,null,null,"BM","Bambara","MK",null,null,"2015-12-18"]
[null,null,null,null,null,null,null,null,null,null,null,"BN","Bengali","MT",null,null,"2015-12-19"]
[null,null,"Type of Activity","Description",null,null,null,null,null,null,null,"BO","Tibetan","NL",null,null,"2015-12-20"]
[null,null,"Oktatás","Oktatás",null,null,null,null,null,null,null,"BR","Breton","NO",null,null,"2015-12-21"]
[null,null,"Konferencia,Szeminárium,Tréning","Konferencia,Szeminárium,Tréning",null,null,null,null,null,null,null,"BS","Bosnian","PL",null,null,"2015-12-22"]
[null,null,"Intézménylátogatás","Intézménylátogatás",null,null,null,null,null,null,null,"CA","Catalan","PT",null,null,"2015-12-23"]
[null,null,"Category of Work","Description",null,null,null,null,null,null,null,"CE","Chechen","RO",null,null,"2015-12-24"]
[null,null,"Cont.Edu","Continuing Education",null,null,null,null,null,null,null,"CH","Chamorro","SE",null,null,"2015-12-25"]
[null,null,"Fin","Finance",null,null,null,null,null,null,null,"CO","Corsican","SI",null,null,"2015-12-26"]
[null,null,"Gen.Adm","General Admin and Technical",null,null,null,null,null,null,null,"CR","Cree","SK",null,null,"2015-12-27"]
[null,null,"Int.Off","International Office",null,null,null,null,null,null,null,"CU","Church Slavic","TR",null,null,"2015-12-28"]
[null,null,"Oth","Other",null,null,null,null,null,null,null,"CV","Chuvash","UK",null,null,"2015-12-29"]
[null,null,"Stud.Inf","Student Information",null,null,null,null,null,null,null,"CY","Welsh","XX",null,null,"2015-12-30"]
[null,null,"Man","Manager",null,null,null,null,null,null,null,"CS","Czech",null,null,null,"2015-12-31"]
[null,null,"Res/Teach/Tr","Researcher/Teacher/Trainer",null,null,null,null,null,null,null,"DA","Danish",null,null,null,"2016-01-01"]
[null,null,"Techn","Technical",null,null,null,null,null,null,null,"DV","Divehi",null,null,null,"2016-01-02"]
[null,null,"Admin","Administrative",null,null,null,null,null,null,null,"DZ","Dzongkha",null,null,null,"2016-01-03"]
[null,null,"Activities","Description",null,null,null,null,null,null,null,"EE","Ewe",null,null,null,"2016-01-04"]
[null,null,"E","Workshop",null,null,null,null,null,null,null,"EL","Greek",null,null,null,"2016-01-05"]
[null,null,"O","Other",null,null,null,null,null,null,null,"EO","Esperanto",null,null,null,"2016-01-06"]
[null,null,"W","Job shadowing or work placement",null,null,null,null,null,null,null,"ES","Spanish",null,null,null,"2016-01-07"]
[null,null,"T","Training",null,null,null,null,null,null,null,"ET","Estonian",null,null,null,"2016-01-08"]
[null,null,"A","Teaching",null,null,null,null,null,null,null,"EU","Basque",null,null,null,"2016-01-09"]
[null,null,null,null,null,null,null,null,null,null,null,"FA","Persian",null,null,null,"2016-01-10"]
[null,null,"Seniority","Description",null,null,null,null,null,null,null,"FF","Fulah",null,null,null,"2016-01-11"]
[null,null,"J","Junior (approx. < 10 years of experience)",null,null,null,null,null,null,null,"FI","Finnish",null,null,null,"2016-01-12"]
[null,null,"I","Intermediate (approx. > 10 and < 20 years of experience)",null,null,null,null,null,null,null,"FJ","Fijian",null,null,null,"2016-01-13"]
[null,null,"S","Senior (approx. > 20 years of experience)",null,null,null,null,null,null,null,"FO","Faroese",null,null,null,"2016-01-14"]
[null,null,null,null,null,null,null,null,null,null,null,"FR","French",null,null,null,"2016-01-15"]
[null,null,"Type of Organisation","Description",null,null,null,null,null,null,null,"FY","Frisian",null,null,null,"2016-01-16"]
[null,null,"EDU.2","Primary school",null,null,null,null,null,null,null,"GA","Irish",null,null,null,"2016-01-17"]
[null,null,"EDU.3","Secondary school (including Vocational / technical)",null,null,null,null,null,null,null,"GD","Gaelic (Scots)",null,null,null,"2016-01-18"]
[null,null,"EDU.4","Higher education institution",null,null,null,null,null,null,null,"GL","Gallegan",null,null,null,"2016-01-19"]
[null,null,"EDU.5","Adult or continuing education provider",null,null,null,null,null,null,null,"GN","Guarani",null,null,null,"2016-01-20"]
[null,null,"ASS.1","Non-profit association (regional / national)",null,null,null,null,null,null,null,"GU","Gujarati",null,null,null,"2016-01-21"]
[null,null,"ASS.2","Non-profit association (European / international)",null,null,null,null,null,null,null,"HR","Croatian",null,null,null,"2016-01-22"]
[null,null,"ASS.3","Association of Universities",null,null,null,null,null,null,null,"IA","Interlingua (International Auxiliary Language Association)",null,null,null,"2016-01-23"]
[null,null,"RES","Research institute",null,null,null,null,null,null,null,"II","Sichuan Yi",null,null,null,"2016-01-24"]
[null,null,"PUB.1","Public authority (local)",null,null,null,null,null,null,null,"IK","Inupiaq",null,null,null,"2016-01-25"]
[null,null,"PUB.2","Public authority (regional)",null,null,null,null,null,null,null,"IO","Ido",null,null,null,"2016-01-26"]
[null,null,"PUB.3","Public authority (national)",null,null,null,null,null,null,null,"IT","Italian",null,null,null,"2016-01-27"]
[null,null,"IND","Private company (manufacturing)",null,null,null,null,null,null,null,"IU","Inuktitut",null,null,null,"2016-01-28"]
[null,null,"SER","Private company (services)",null,null,null,null,null,null,null,"JA","Japanese",null,null,null,"2016-01-29"]
[null,null,"OTH","Other type of organisation (Please avoid using this category if not absolutely necessary)",null,null,null,null,null,null,null,"JV","Javanese",null,null,null,"2016-01-30"]
[null,null,"EPLUS-SOCIAL","Social partner or other representative of working life (chambers of commerce, trade union, trade association)",null,null,null,null,null,null,null,"KA","Georgian",null,null,null,"2016-01-31"]
[null,null,"EPLUS-RES","Research Institute/Centre",null,null,null,null,null,null,null,"KG","Kongo",null,null,null,"2016-02-01"]
[null,null,"EPLUS-YOUTH-COUNCIL","National Youth Council",null,null,null,null,null,null,null,"KI","Kikuyu",null,null,null,"2016-02-02"]
[null,null,"EPLUS-ENGO","European NGO",null,null,null,null,null,null,null,"KJ","Kuanyama",null,null,null,"2016-02-03"]
[null,null,"EPLUS-NET-EU","EU-wide network",null,null,null,null,null,null,null,"KK","Kazakh",null,null,null,"2016-02-04"]
[null,null,"EPLUS-YOUTH-GROUP","Group of young people active in youth work",null,null,null,null,null,null,null,"KL","Kalaallisut",null,null,null,"2016-02-05"]
[null,null,"EPLUS-EURO-GROUP-COOP","European grouping of territorial cooperation",null,null,null,null,null,null,null,"KM","Khmer",null,null,null,"2016-02-06"]
[null,null,"EPLUS-BODY-ACCRED","Accreditation, certification or qualification body",null,null,null,null,null,null,null,"KN","Kannada",null,null,null,"2016-02-07"]
[null,null,"EPLUS-BODY-CONS","Counselling body",null,null,null,null,null,null,null,"KO","Korean",null,null,null,"2016-02-08"]
[null,null,"EPLUS-INTER","International organisation under public law",null,null,null,null,null,null,null,"KR","Kanuri",null,null,null,"2016-02-09"]
[null,null,"EPLUS-SPORT-PARTIAL","Organisation or association representing (parts of) the sport sector",null,null,null,null,null,null,null,"KS","Kashmiri",null,null,null,"2016-02-10"]
[null,null,"EPLUS-SPORT-FED","Sport federation",null,null,null,null,null,null,null,"KU","Kurdish",null,null,null,"2016-02-11"]
[null,null,"EPLUS-SPORT-LEAGUE","Sport league",null,null,null,null,null,null,null,"KV","Komi",null,null,null,"2016-02-12"]
[null,null,"EPLUS-SPORT-CLUB","Sport club",null,null,null,null,null,null,null,"KW","Cornish",null,null,null,"2016-02-13"]
[null,null,"OTH","Other",null,null,null,null,null,null,null,"KY","Kirghiz",null,null,null,"2016-02-14"]
[null,null,null,null,null,null,null,null,null,null,null,"LA","Latin",null,null,null,"2016-02-15"]
[null,null,"Commercial Orientation","Description",null,null,null,null,null,null,null,"LB","Letzeburgesch",null,null,null,"2016-02-16"]
[null,null,"P","Profit",null,null,null,null,null,null,null,"LG","Ganda",null,null,null,"2016-02-17"]
[null,null,"NP","Not for profit",null,null,null,null,null,null,null,"LI","Limburgan; Limburger; Limburgish",null,null,null,"2016-02-18"]
[null,null,null,null,null,null,null,null,null,null,null,"LN","Lingala",null,null,null,"2016-02-19"]
[null,null,"Legal Status","Description",null,null,null,null,null,null,null,"LO","Lao",null,null,null,"2016-02-20"]
[null,null,"PR","Private",null,null,null,null,null,null,null,"LT","Lithuanian",null,null,null,"2016-02-21"]
[null,null,"PB","Public",null,null,null,null,null,null,null,"LU","Luba-Katanga",null,null,null,"2016-02-22"]
[null,null,null,null,null,null,null,null,null,null,null,"LV","Latvian",null,null,null,"2016-02-23"]
[null,null,"Type of work at Enterprise","Description",null,null,null,null,null,null,null,"ME","Montenegrin",null,null,null,"2016-02-24"]
[null,null,"M","Manager",null,null,null,null,null,null,null,"MG","Malagasy",null,null,null,"2016-02-25"]
[null,null,"R","Researcher/Teacher/Trainer",null,null,null,null,null,null,null,"MH","Marshall",null,null,null,"2016-02-26"]
[null,null,"T","Technical",null,null,null,null,null,null,null,"MI","Maori",null,null,null,"2016-02-27"]
[null,null,"A","Administrativ",null,null,null,null,null,null,null,"MK","Macedonian",null,null,null,"2016-02-28"]
[null,null,null,null,null,null,null,null,null,null,null,"ML","Malayalam",null,null,null,"2016-02-29"]
[null,null,"Hallgatói mobilitás jellege","Description",null,null,null,null,null,null,null,"MN","Mongolian",null,null,null,"2016-03-01"]
[null,null,"SMS_KI","Kiutazó tanulmányi célú",null,null,null,null,null,null,null,"MO","Moldavian",null,null,null,"2016-03-02"]
[null,null,"SMS_BE","Beutazó tanulmányi célú",null,null,null,null,null,null,null,"MR","Marathi",null,null,null,"2016-03-03"]
[null,null,"SMP_KI","Kiutazó szakmai gyakorlat",null,null,null,null,null,null,null,"MS","Malay",null,null,null,"2016-03-04"]
[null,null,"SMP_BE","Beutazó szakmai gyakorlat",null,null,null,null,null,null,null,"MT","Maltese",null,null,null,"2016-03-05"]
[null,null,"SMS_SU_KI","Kiutazó nyári egyetem",null,null,null,null,null,null,null,"MY","Burmese",null,null,null,"2016-03-06"]
[null,null,"SMS_SU_BE","Beutazó nyári egyetem",null,null,null,null,null,null,null,"NA","Nauru",null,null,null,"2016-03-07"]
[null,null,null,null,null,null,null,null,null,null,null,"NB","Norwegian Bokmael",null,null,null,"2016-03-08"]
[null,null,"NUTS code","Description","Description total",null,null,null,null,null,null,"ND","Ndebele, North",null,null,null,"2016-03-09"]
[null,null,"HU1","KÖZÉP-MAGYARORSZÁG","HU1 - KÖZÉP-MAGYARORSZÁG",null,null,null,null,null,null,"NE","Nepali",null,null,null,"2016-03-10"]
[null,null,"HU10","Közép-Magyarország","HU10 - Közép-Magyarország",null,null,null,null,null,null,"NG","Ndonga",null,null,null,"2016-03-11"]
[null,null,"HU101","Budapest","HU101 - Budapest",null,null,null,null,null,null,"NL","Dutch",null,null,null,"2016-03-12"]
[null,null,"HU102","Pest","HU102 - Pest",null,null,null,null,null,null,"NN","Norwegian Nynorsk",null,null,null,"2016-03-13"]
[null,null,"HU2","DUNÁNTÚL","HU2 - DUNÁNTÚL",null,null,null,null,null,null,"NR","Ndebele, South",null,null,null,"2016-03-14"]
[null,null,"HU21","Közép-Dunántúl","HU21 - Közép-Dunántúl",null,null,null,null,null,null,"NV","Navajo",null,null,null,"2016-03-15"]
[null,null,"HU211","Fejér","HU211 - Fejér",null,null,null,null,null,null,"NY","Chichewa",null,null,null,"2016-03-16"]
[null,null,"HU212","Komárom-Esztergom","HU212 - Komárom-Esztergom",null,null,null,null,null,null,"OC","Occitan (post 1500)",null,null,null,"2016-03-17"]
[null,null,"HU213","Veszprém","HU213 - Veszprém",null,null,null,null,null,null,"OJ","Ojibwa",null,null,null,"2016-03-18"]
[null,null,"HU22","Nyugat-Dunántúl","HU22 - Nyugat-Dunántúl",null,null,null,null,null,null,"OM","Oromo",null,null,null,"2016-03-19"]
[null,null,"HU221","Győr-Moson-Sopron","HU221 - Győr-Moson-Sopron",null,null,null,null,null,null,"OR","Oriya",null,null,null,"2016-03-20"]
[null,null,"HU222","Vas","HU222 - Vas",null,null,null,null,null,null,"OS","Ossetian",null,null,null,"2016-03-21"]
[null,null,"HU223","Zala","HU223 - Zala",null,null,null,null,null,null,"PA","Panjabi",null,null,null,"2016-03-22"]
[null,null,"HU23","Dél-Dunántúl","HU23 - Dél-Dunántúl",null,null,null,null,null,null,"PI","Pali",null,null,null,"2016-03-23"]
[null,null,"HU231","Baranya","HU231 - Baranya",null,null,null,null,null,null,"PL","Polish",null,null,null,"2016-03-24"]
[null,null,"HU232","Somogy","HU232 - Somogy",null,null,null,null,null,null,"PS","Pushto",null,null,null,"2016-03-25"]
[null,null,"HU233","Tolna","HU233 - Tolna",null,null,null,null,null,null,"PT","Portuguese",null,null,null,"2016-03-26"]
[null,null,"HU3","ALFÖLD ÉS ÉSZAK","HU3 - ALFÖLD ÉS ÉSZAK",null,null,null,null,null,null,"QU","Quechua",null,null,null,"2016-03-27"]
[null,null,"HU31","Észak-Magyarország","HU31 - Észak-Magyarország",null,null,null,null,null,null,"RM","Raeto-Romance",null,null,null,"2016-03-28"]
[null,null,"HU311","Borsod-Abaúj-Zemplén","HU311 - Borsod-Abaúj-Zemplén",null,null,null,null,null,null,"RN","Rundi",null,null,null,"2016-03-29"]
[null,null,"HU312","Heves","HU312 - Heves",null,null,null,null,null,null,"RO","Romanian",null,null,null,"2016-03-30"]
[null,null,"HU313","Nógrád","HU313 - Nógrád",null,null,null,null,null,null,"RU","Russian",null,null,null,"2016-03-31"]
[null,null,"HU32","Észak-Alföld","HU32 - Észak-Alföld",null,null,null,null,null,null,"RW","Kinyarwanda",null,null,null,"2016-04-01"]
[null,null,"HU321","Hajdú-Bihar","HU321 - Hajdú-Bihar",null,null,null,null,null,null,"SA","Sanskrit",null,null,null,"2016-04-02"]
[null,null,"HU322","Jász-Nagykun-Szolnok","HU322 - Jász-Nagykun-Szolnok",null,null,null,null,null,null,"SC","Sardinian",null,null,null,"2016-04-03"]
[null,null,"HU323","Szabolcs-Szatmár-Bereg","HU323 - Szabolcs-Szatmár-Bereg",null,null,null,null,null,null,"SD","Sindhi",null,null,null,"2016-04-04"]
[null,null,"HU33","Dél-Alföld","HU33 - Dél-Alföld",null,null,null,null,null,null,"SE","Northern Sami",null,null,null,"2016-04-05"]
[null,null,"HU331","Bács-Kiskun","HU331 - Bács-Kiskun",null,null,null,null,null,null,"SG","Sango",null,null,null,"2016-04-06"]
[null,null,"HU332","Békés","HU332 - Békés",null,null,null,null,null,null,"SH","Serbo-Croatian",null,null,null,"2016-04-07"]
[null,null,"HU333","Csongrád","HU333 - Csongrád",null,null,null,null,null,null,"SI","Sinhalese",null,null,null,"2016-04-08"]
[null,null,"HUZ","EXTRA-REGIO NUTS 1","HUZ - EXTRA-REGIO NUTS 1",null,null,null,null,null,null,"SK","Slovak",null,null,null,"2016-04-09"]
[null,null,"HUZZ","Extra-Regio NUTS 2","HUZZ - Extra-Regio NUTS 2",null,null,null,null,null,null,"SL","Slovenian",null,null,null,"2016-04-10"]
[null,null,"HUZZZ","Extra-Regio","HUZZZ - Extra-Regio",null,null,null,null,null,null,"SM","Samoan",null,null,null,"2016-04-11"]
[null,null,"IS","Iceland","IS - Iceland",null,null,null,null,null,null,"SN","Shona",null,null,null,"2016-04-12"]
[null,null,"IS0","ÍSLAND","IS0 - ÍSLAND",null,null,null,null,null,null,"SO","Somali",null,null,null,"2016-04-13"]
[null,null,"IS00","Ísland","IS00 - Ísland",null,null,null,null,null,null,"SQ","Albanian",null,null,null,"2016-04-14"]
[null,null,"IS001","Höfuðborgarsvæði","IS001 - Höfuðborgarsvæði",null,null,null,null,null,null,"SS","Swati",null,null,null,"2016-04-15"]
[null,null,"IS002","Landsbyggð","IS002 - Landsbyggð",null,null,null,null,null,null,"ST","Sotho, Southern",null,null,null,"2016-04-16"]
[null,null,"NO","Norway","NO - Norway",null,null,null,null,null,null,"SU","Sundanese",null,null,null,"2016-04-17"]
[null,null,"NO0","NORGE","NO0 - NORGE",null,null,null,null,null,null,"SV","Swedish",null,null,null,"2016-04-18"]
[null,null,"NO01","Oslo og Akershus","NO01 - Oslo og Akershus",null,null,null,null,null,null,"SW","Swahili",null,null,null,"2016-04-19"]
[null,null,"NO011","Oslo","NO011 - Oslo",null,null,null,null,null,null,"TA","Tamil",null,null,null,"2016-04-20"]
[null,null,"NO012","Akershus","NO012 - Akershus",null,null,null,null,null,null,"TE","Telugu",null,null,null,"2016-04-21"]
[null,null,"NO02","Hedmark og Oppland","NO02 - Hedmark og Oppland",null,null,null,null,null,null,"TG","Tajik",null,null,null,"2016-04-22"]
[null,null,"NO021","Hedmark","NO021 - Hedmark",null,null,null,null,null,null,"TH","Thai",null,null,null,"2016-04-23"]
[null,null,"NO022","Oppland","NO022 - Oppland",null,null,null,null,null,null,"TK","Turkmen",null,null,null,"2016-04-24"]
[null,null,"NO03","Sør-Østlandet","NO03 - Sør-Østlandet",null,null,null,null,null,null,"TL","Tagalog",null,null,null,"2016-04-25"]
[null,null,"NO031","Østfold","NO031 - Østfold",null,null,null,null,null,null,"TN","Tswana",null,null,null,"2016-04-26"]
[null,null,"NO032","Buskerud","NO032 - Buskerud",null,null,null,null,null,null,"TR","Turkish",null,null,null,"2016-04-27"]
[null,null,"NO033","Vestfold","NO033 - Vestfold",null,null,null,null,null,null,"TS","Tsonga",null,null,null,"2016-04-28"]
[null,null,"NO034","Telemark","NO034 - Telemark",null,null,null,null,null,null,"TT","Tatar",null,null,null,"2016-04-29"]
[null,null,"NO04","Agder og Rogaland","NO04 - Agder og Rogaland",null,null,null,null,null,null,"TW","Twi",null,null,null,"2016-04-30"]
[null,null,"NO041","Aust-Agder","NO041 - Aust-Agder",null,null,null,null,null,null,"TY","Tahitian",null,null,null,"2016-05-01"]
[null,null,"NO042","Vest-Agder","NO042 - Vest-Agder",null,null,null,null,null,null,"UG","Uighur",null,null,null,"2016-05-02"]
[null,null,"NO043","Rogaland","NO043 - Rogaland",null,null,null,null,null,null,"UK","Ukrainian",null,null,null,"2016-05-03"]
[null,null,"NO05","Vestlandet","NO05 - Vestlandet",null,null,null,null,null,null,"UN","Un-identified",null,null,null,"2016-05-04"]
[null,null,"NO051","Hordaland","NO051 - Hordaland",null,null,null,null,null,null,"UR","Urdu",null,null,null,"2016-05-05"]
[null,null,"NO052","Sogn og Fjordane","NO052 - Sogn og Fjordane",null,null,null,null,null,null,"UZ","Uzbek",null,null,null,"2016-05-06"]
[null,null,"NO053","Møre og Romsdal","NO053 - Møre og Romsdal",null,null,null,null,null,null,"VE","Venda",null,null,null,"2016-05-07"]
[null,null,"NO06","Trøndelag","NO06 - Trøndelag",null,null,null,null,null,null,"VI","Vietnamese",null,null,null,"2016-05-08"]
[null,null,"NO061","Sør-Trøndelag","NO061 - Sør-Trøndelag",null,null,null,null,null,null,"VO","Volapok",null,null,null,"2016-05-09"]
[null,null,"NO062","Nord-Trøndelag","NO062 - Nord-Trøndelag",null,null,null,null,null,null,"WA","Walloon",null,null,null,"2016-05-10"]
[null,null,"NO07","Nord-Norge","NO07 - Nord-Norge",null,null,null,null,null,null,"WO","Wolof",null,null,null,"2016-05-11"]
[null,null,"NO071","Nordland","NO071 - Nordland",null,null,null,null,null,null,"XH","Xhosa",null,null,null,"2016-05-12"]
[null,null,"NO072","Troms","NO072 - Troms",null,null,null,null,null,null,"YI","Yiddish",null,null,null,"2016-05-13"]
[null,null,"NO073","Finnmark","NO073 - Finnmark",null,null,null,null,null,null,"ZA","Zhuang",null,null,null,"2016-05-14"]
[null,null,"LI","Liechtenstein","LI - Liechtenstein",null,null,null,null,null,null,"ZH","Chinese",null,null,null,"2016-05-15"]
[null,null,"LI0","LIECHTENSTEIN","LI0 - LIECHTENSTEIN",null,null,null,null,null,null,"ZU","Zulu",null,null,null,"2016-05-16"]
[null,null,"LI00","Liechtenstein","LI00 - Liechtenstein",null,null,null,null,null,null,null,null,null,null,null,"2016-05-17"]
[null,null,"LI000","Liechtenstein","LI000 - Liechtenstein",null,null,null,null,null,null,null,null,null,null,null,"2016-05-18"]
[null,null,null,null,null,null,null,null,null,null,null,null,null,null,null,null,"2016-05-19"]
[null,null,null,null,null,null,null,null,null,null,null,null,null,null,null,null,"2016-05-20"]
[null,null,null,null,null,null,null,null,null,null,null,null,null,null,null,null,"2016-05-21"]
[null,null,null,null,null,null,null,null,null,null,null,null,null,null,null,null,"2016-05-22"]
[null,null,null,null,null,null,null,null,null,null,null,null,null,null,null,null,"2016-05-23"]
[null,null,null,null,null,null,null,null,null,null,null,null,null,null,null,null,"2016-05-24"]
[null,null,null,null,null,null,null,null,null,null,null,null,null,null,null,null,"2016-05-25"]
[null,null,null,null,null,null,null,null,null,null,null,null,null,null,null,null,"2016-05-26"]
[null,null,null,null,null,null,null,null,null,null,null,null,null,null,null,null,"2016-05-27"]
[null,null,null,null,null,null,null,null,null,null,null,null,null,null,null,null,"2016-05-28"]
[null,null,null,null,null,null,null,null,null,null,null,null,null,null,null,null,"2016-05-29"]
[null,null,null,null,null,null,null,null,null,null,null,null,null,null,null,null,"2016-05-30"]
[null,null,null,null,null,null,null,null,null,null,null,null,null,null,null,null,"2016-05-31"]
[null,null,null,null,null,null,null,null,null,null,null,null,null,null,null,null,"2016-06-01"]
[null,null,null,null,null,null,null,null,null,null,null,null,null,null,null,null,"2016-06-02"]
[null,null,null,null,null,null,null,null,null,null,null,null,null,null,null,null,"2016-06-03"]
[null,null,null,null,null,null,null,null,null,null,null,null,null,null,null,null,"2016-06-04"]
[null,null,null,null,null,null,null,null,null,null,null,null,null,null,null,null,"2016-06-05"]
[null,null,null,null,null,null,null,null,null,null,null,null,null,null,null,null,"2016-06-06"]
[null,null,null,null,null,null,null,null,null,null,null,null,null,null,null,null,"2016-06-07"]
[null,null,null,null,null,null,null,null,null,null,null,null,null,null,null,null,"2016-06-08"]
[null,null,null,null,null,null,null,null,null,null,null,null,null,null,null,null,"2016-06-09"]
[null,null,null,null,null,null,null,null,null,null,null,null,null,null,null,null,"2016-06-10"]
[null,null,null,null,null,null,null,null,null,null,null,null,null,null,null,null,"2016-06-11"]
[null,null,null,null,null,null,null,null,null,null,null,null,null,null,null,null,"2016-06-12"]
[null,null,null,null,null,null,null,null,null,null,null,null,null,null,null,null,"2016-06-13"]
[null,null,null,null,null,null,null,null,null,null,null,null,null,null,null,null,"2016-06-14"]
[null,null,null,null,null,null,null,null,null,null,null,null,null,null,null,null,"2016-06-15"]
[null,null,null,null,null,null,null,null,null,null,null,null,null,null,null,null,"2016-06-16"]
[null,null,null,null,null,null,null,null,null,null,null,null,null,null,null,null,"2016-06-17"]
[null,null,null,null,null,null,null,null,null,null,null,null,null,null,null,null,"2016-06-18"]
[null,null,null,null,null,null,null,null,null,null,null,null,null,null,null,null,"2016-06-19"]
[null,null,null,null,null,null,null,null,null,null,null,null,null,null,null,null,"2016-06-20"]
[null,null,null,null,null,null,null,null,null,null,null,null,null,null,null,null,"2016-06-21"]
[null,null,null,null,null,null,null,null,null,null,null,null,null,null,null,null,"2016-06-22"]
[null,null,null,null,null,null,null,null,null,null,null,null,null,null,null,null,"2016-06-23"]
[null,null,null,null,null,null,null,null,null,null,null,null,null,null,null,null,"2016-06-24"]
[null,null,null,null,null,null,null,null,null,null,null,null,null,null,null,null,"2016-06-25"]
[null,null,null,null,null,null,null,null,null,null,null,null,null,null,null,null,"2016-06-26"]
[null,null,null,null,null,null,null,null,null,null,null,null,null,null,null,null,"2016-06-27"]
[null,null,null,null,null,null,null,null,null,null,null,null,null,null,null,null,"2016-06-28"]
[null,null,null,null,null,null,null,null,null,null,null,null,null,null,null,null,"2016-06-29"]
[null,null,null,null,null,null,null,null,null,null,null,null,null,null,null,null,"2016-06-30"]
[null,null,null,null,null,null,null,null,null,null,null,null,null,null,null,null,"2016-07-01"]
[null,null,null,null,null,null,null,null,null,null,null,null,null,null,null,null,"2016-07-02"]
[null,null,null,null,null,null,null,null,null,null,null,null,null,null,null,null,"2016-07-03"]
[null,null,null,null,null,null,null,null,null,null,null,null,null,null,null,null,"2016-07-04"]
[null,null,null,null,null,null,null,null,null,null,null,null,null,null,null,null,"2016-07-05"]
[null,null,null,null,null,null,null,null,null,null,null,null,null,null,null,null,"2016-07-06"]
[null,null,null,null,null,null,null,null,null,null,null,null,null,null,null,null,"2016-07-07"]
[null,null,null,null,null,null,null,null,null,null,null,null,null,null,null,null,"2016-07-08"]
[null,null,null,null,null,null,null,null,null,null,null,null,null,null,null,null,"2016-07-09"]
[null,null,null,null,null,null,null,null,null,null,null,null,null,null,null,null,"2016-07-10"]
[null,null,null,null,null,null,null,null,null,null,null,null,null,null,null,null,"2016-07-11"]
[null,null,null,null,null,null,null,null,null,null,null,null,null,null,null,null,"2016-07-12"]
[null,null,null,null,null,null,null,null,null,null,null,null,null,null,null,null,"2016-07-13"]
[null,null,null,null,null,null,null,null,null,null,null,null,null,null,null,null,"2016-07-14"]
[null,null,null,null,null,null,null,null,null,null,null,null,null,null,null,null,"2016-07-15"]
[null,null,null,null,null,null,null,null,null,null,null,null,null,null,null,null,"2016-07-16"]
[null,null,null,null,null,null,null,null,null,null,null,null,null,null,null,null,"2016-07-17"]
[null,null,null,null,null,null,null,null,null,null,null,null,null,null,null,null,"2016-07-18"]
[null,null,null,null,null,null,null,null,null,null,null,null,null,null,null,null,"2016-07-19"]
[null,null,null,null,null,null,null,null,null,null,null,null,null,null,null,null,"2016-07-20"]
[null,null,null,null,null,null,null,null,null,null,null,null,null,null,null,null,"2016-07-21"]
[null,null,null,null,null,null,null,null,null,null,null,null,null,null,null,null,"2016-07-22"]
[null,null,null,null,null,null,null,null,null,null,null,null,null,null,null,null,"2016-07-23"]
[null,null,null,null,null,null,null,null,null,null,null,null,null,null,null,null,"2016-07-24"]
[null,null,null,null,null,null,null,null,null,null,null,null,null,null,null,null,"2016-07-25"]
[null,null,null,null,null,null,null,null,null,null,null,null,null,null,null,null,"2016-07-26"]
[null,null,null,null,null,null,null,null,null,null,null,null,null,null,null,null,"2016-07-27"]
[null,null,null,null,null,null,null,null,null,null,null,null,null,null,null,null,"2016-07-28"]
[null,null,null,null,null,null,null,null,null,null,null,null,null,null,null,null,"2016-07-29"]
[null,null,null,null,null,null,null,null,null,null,null,null,null,null,null,null,"2016-07-30"]
[null,null,null,null,null,null,null,null,null,null,null,null,null,null,null,null,"2016-07-31"]
[null,null,null,null,null,null,null,null,null,null,null,null,null,null,null,null,"2016-08-01"]
[null,null,null,null,null,null,null,null,null,null,null,null,null,null,null,null,"2016-08-02"]
[null,null,null,null,null,null,null,null,null,null,null,null,null,null,null,null,"2016-08-03"]
[null,null,null,null,null,null,null,null,null,null,null,null,null,null,null,null,"2016-08-04"]
[null,null,null,null,null,null,null,null,null,null,null,null,null,null,null,null,"2016-08-05"]
[null,null,null,null,null,null,null,null,null,null,null,null,null,null,null,null,"2016-08-06"]
[null,null,null,null,null,null,null,null,null,null,null,null,null,null,null,null,"2016-08-07"]
[null,null,null,null,null,null,null,null,null,null,null,null,null,null,null,null,"2016-08-08"]
[null,null,null,null,null,null,null,null,null,null,null,null,null,null,null,null,"2016-08-09"]
[null,null,null,null,null,null,null,null,null,null,null,null,null,null,null,null,"2016-08-10"]
[null,null,null,null,null,null,null,null,null,null,null,null,null,null,null,null,"2016-08-11"]
[null,null,null,null,null,null,null,null,null,null,null,null,null,null,null,null,"2016-08-12"]
[null,null,null,null,null,null,null,null,null,null,null,null,null,null,null,null,"2016-08-13"]
[null,null,null,null,null,null,null,null,null,null,null,null,null,null,null,null,"2016-08-14"]
[null,null,null,null,null,null,null,null,null,null,null,null,null,null,null,null,"2016-08-15"]
[null,null,null,null,null,null,null,null,null,null,null,null,null,null,null,null,"2016-08-16"]
[null,null,null,null,null,null,null,null,null,null,null,null,null,null,null,null,"2016-08-17"]
[null,null,null,null,null,null,null,null,null,null,null,null,null,null,null,null,"2016-08-18"]
[null,null,null,null,null,null,null,null,null,null,null,null,null,null,null,null,"2016-08-19"]
[null,null,null,null,null,null,null,null,null,null,null,null,null,null,null,null,"2016-08-20"]
[null,null,null,null,null,null,null,null,null,null,null,null,null,null,null,null,"2016-08-21"]
[null,null,null,null,null,null,null,null,null,null,null,null,null,null,null,null,"2016-08-22"]
[null,null,null,null,null,null,null,null,null,null,null,null,null,null,null,null,"2016-08-23"]
[null,null,null,null,null,null,null,null,null,null,null,null,null,null,null,null,"2016-08-24"]
[null,null,null,null,null,null,null,null,null,null,null,null,null,null,null,null,"2016-08-25"]
[null,null,null,null,null,null,null,null,null,null,null,null,null,null,null,null,"2016-08-26"]
[null,null,null,null,null,null,null,null,null,null,null,null,null,null,null,null,"2016-08-27"]
[null,null,null,null,null,null,null,null,null,null,null,null,null,null,null,null,"2016-08-28"]
[null,null,null,null,null,null,null,null,null,null,null,null,null,null,null,null,"2016-08-29"]
[null,null,null,null,null,null,null,null,null,null,null,null,null,null,null,null,"2016-08-30"]
[null,null,null,null,null,null,null,null,null,null,null,null,null,null,null,null,"2016-08-31"]
[null,null,null,null,null,null,null,null,null,null,null,null,null,null,null,null,"2016-09-01"]
[null,null,null,null,null,null,null,null,null,null,null,null,null,null,null,null,"2016-09-02"]
[null,null,null,null,null,null,null,null,null,null,null,null,null,null,null,null,"2016-09-03"]
[null,null,null,null,null,null,null,null,null,null,null,null,null,null,null,null,"2016-09-04"]
[null,null,null,null,null,null,null,null,null,null,null,null,null,null,null,null,"2016-09-05"]
[null,null,null,null,null,null,null,null,null,null,null,null,null,null,null,null,"2016-09-06"]
[null,null,null,null,null,null,null,null,null,null,null,null,null,null,null,null,"2016-09-07"]
[null,null,null,null,null,null,null,null,null,null,null,null,null,null,null,null,"2016-09-08"]
[null,null,null,null,null,null,null,null,null,null,null,null,null,null,null,null,"2016-09-09"]
[null,null,null,null,null,null,null,null,null,null,null,null,null,null,null,null,"2016-09-10"]
[null,null,null,null,null,null,null,null,null,null,null,null,null,null,null,null,"2016-09-11"]
[null,null,null,null,null,null,null,null,null,null,null,null,null,null,null,null,"2016-09-12"]
[null,null,null,null,null,null,null,null,null,null,null,null,null,null,null,null,"2016-09-13"]
[null,null,null,null,null,null,null,null,null,null,null,null,null,null,null,null,"2016-09-14"]
[null,null,null,null,null,null,null,null,null,null,null,null,null,null,null,null,"2016-09-15"]
[null,null,null,null,null,null,null,null,null,null,null,null,null,null,null,null,"2016-09-16"]
[null,null,null,null,null,null,null,null,null,null,null,null,null,null,null,null,"2016-09-17"]
[null,null,null,null,null,null,null,null,null,null,null,null,null,null,null,null,"2016-09-18"]
[null,null,null,null,null,null,null,null,null,null,null,null,null,null,null,null,"2016-09-19"]
[null,null,null,null,null,null,null,null,null,null,null,null,null,null,null,null,"2016-09-20"]
[null,null,null,null,null,null,null,null,null,null,null,null,null,null,null,null,"2016-09-21"]
[null,null,null,null,null,null,null,null,null,null,null,null,null,null,null,null,"2016-09-22"]
[null,null,null,null,null,null,null,null,null,null,null,null,null,null,null,null,"2016-09-23"]
[null,null,null,null,null,null,null,null,null,null,null,null,null,null,null,null,"2016-09-24"]
[null,null,null,null,null,null,null,null,null,null,null,null,null,null,null,null,"2016-09-25"]
[null,null,null,null,null,null,null,null,null,null,null,null,null,null,null,null,"2016-09-26"]
[null,null,null,null,null,null,null,null,null,null,null,null,null,null,null,null,"2016-09-27"]
[null,null,null,null,null,null,null,null,null,null,null,null,null,null,null,null,"2016-09-28"]
[null,null,null,null,null,null,null,null,null,null,null,null,null,null,null,null,"2016-09-29"]
[null,null,null,null,null,null,null,null,null,null,null,null,null,null,null,null,"2016-09-30"]
[null,null,null,null,null,null,null,null,null,null,null,null,null,null,null,null,"2016-10-01"]
[null,null,null,null,null,null,null,null,null,null,null,null,null,null,null,null,"2016-10-02"]
[null,null,null,null,null,null,null,null,null,null,null,null,null,null,null,null,"2016-10-03"]
[null,null,null,null,null,null,null,null,null,null,null,null,null,null,null,null,"2016-10-04"]
[null,null,null,null,null,null,null,null,null,null,null,null,null,null,null,null,"2016-10-05"]
[null,null,null,null,null,null,null,null,null,null,null,null,null,null,null,null,"2016-10-06"]
[null,null,null,null,null,null,null,null,null,null,null,null,null,null,null,null,"2016-10-07"]
[null,null,null,null,null,null,null,null,null,null,null,null,null,null,null,null,"2016-10-08"]
[null,null,null,null,null,null,null,null,null,null,null,null,null,null,null,null,"2016-10-09"]
[null,null,null,null,null,null,null,null,null,null,null,null,null,null,null,null,"2016-10-10"]
[null,null,null,null,null,null,null,null,null,null,null,null,null,null,null,null,"2016-10-11"]
[null,null,null,null,null,null,null,null,null,null,null,null,null,null,null,null,"2016-10-12"]
[null,null,null,null,null,null,null,null,null,null,null,null,null,null,null,null,"2016-10-13"]
[null,null,null,null,null,null,null,null,null,null,null,null,null,null,null,null,"2016-10-14"]
[null,null,null,null,null,null,null,null,null,null,null,null,null,null,null,null,"2016-10-15"]
[null,null,null,null,null,null,null,null,null,null,null,null,null,null,null,null,"2016-10-16"]
[null,null,null,null,null,null,null,null,null,null,null,null,null,null,null,null,"2016-10-17"]
[null,null,null,null,null,null,null,null,null,null,null,null,null,null,null,null,"2016-10-18"]
[null,null,null,null,null,null,null,null,null,null,null,null,null,null,null,null,"2016-10-19"]
[null,null,null,null,null,null,null,null,null,null,null,null,null,null,null,null,"2016-10-20"]
[null,null,null,null,null,null,null,null,null,null,null,null,null,null,null,null,"2016-10-21"]
[null,null,null,null,null,null,null,null,null,null,null,null,null,null,null,null,"2016-10-22"]
[null,null,null,null,null,null,null,null,null,null,null,null,null,null,null,null,"2016-10-23"]
[null,null,null,null,null,null,null,null,null,null,null,null,null,null,null,null,"2016-10-24"]
[null,null,null,null,null,null,null,null,null,null,null,null,null,null,null,null,"2016-10-25"]
[null,null,null,null,null,null,null,null,null,null,null,null,null,null,null,null,"2016-10-26"]
[null,null,null,null,null,null,null,null,null,null,null,null,null,null,null,null,"2016-10-27"]
[null,null,null,null,null,null,null,null,null,null,null,null,null,null,null,null,"2016-10-28"]
[null,null,null,null,null,null,null,null,null,null,null,null,null,null,null,null,"2016-10-29"]
[null,null,null,null,null,null,null,null,null,null,null,null,null,null,null,null,"2016-10-30"]
[null,null,null,null,null,null,null,null,null,null,null,null,null,null,null,null,"2016-10-31"]
[null,null,null,null,null,null,null,null,null,null,null,null,null,null,null,null,"2016-11-01"]
[null,null,null,null,null,null,null,null,null,null,null,null,null,null,null,null,"2016-11-02"]
[null,null,null,null,null,null,null,null,null,null,null,null,null,null,null,null,"2016-11-03"]
[null,null,null,null,null,null,null,null,null,null,null,null,null,null,null,null,"2016-11-04"]
[null,null,null,null,null,null,null,null,null,null,null,null,null,null,null,null,"2016-11-05"]
[null,null,null,null,null,null,null,null,null,null,null,null,null,null,null,null,"2016-11-06"]
[null,null,null,null,null,null,null,null,null,null,null,null,null,null,null,null,"2016-11-07"]
[null,null,null,null,null,null,null,null,null,null,null,null,null,null,null,null,"2016-11-08"]
[null,null,null,null,null,null,null,null,null,null,null,null,null,null,null,null,"2016-11-09"]
[null,null,null,null,null,null,null,null,null,null,null,null,null,null,null,null,"2016-11-10"]
[null,null,null,null,null,null,null,null,null,null,null,null,null,null,null,null,"2016-11-11"]
[null,null,null,null,null,null,null,null,null,null,null,null,null,null,null,null,"2016-11-12"]
[null,null,null,null,null,null,null,null,null,null,null,null,null,null,null,null,"2016-11-13"]
[null,null,null,null,null,null,null,null,null,null,null,null,null,null,null,null,"2016-11-14"]
[null,null,null,null,null,null,null,null,null,null,null,null,null,null,null,null,"2016-11-15"]
[null,null,null,null,null,null,null,null,null,null,null,null,null,null,null,null,"2016-11-16"]
[null,null,null,null,null,null,null,null,null,null,null,null,null,null,null,null,"2016-11-17"]
[null,null,null,null,null,null,null,null,null,null,null,null,null,null,null,null,"2016-11-18"]
[null,null,null,null,null,null,null,null,null,null,null,null,null,null,null,null,"2016-11-19"]
[null,null,null,null,null,null,null,null,null,null,null,null,null,null,null,null,"2016-11-20"]
[null,null,null,null,null,null,null,null,null,null,null,null,null,null,null,null,"2016-11-21"]
[null,null,null,null,null,null,null,null,null,null,null,null,null,null,null,null,"2016-11-22"]
[null,null,null,null,null,null,null,null,null,null,null,null,null,null,null,null,"2016-11-23"]
[null,null,null,null,null,null,null,null,null,null,null,null,null,null,null,null,"2016-11-24"]
[null,null,null,null,null,null,null,null,null,null,null,null,null,null,null,null,"2016-11-25"]
[null,null,null,null,null,null,null,null,null,null,null,null,null,null,null,null,"2016-11-26"]
[null,null,null,null,null,null,null,null,null,null,null,null,null,null,null,null,"2016-11-27"]
[null,null,null,null,null,null,null,null,null,null,null,null,null,null,null,null,"2016-11-28"]
[null,null,null,null,null,null,null,null,null,null,null,null,null,null,null,null,"2016-11-29"]
[null,null,null,null,null,null,null,null,null,null,null,null,null,null,null,null,"2016-11-30"]
[null,null,null,null,null,null,null,null,null,null,null,null,null,null,null,null,"2016-12-01"]
[null,null,null,null,null,null,null,null,null,null,null,null,null,null,null,null,"2016-12-02"]
[null,null,null,null,null,null,null,null,null,null,null,null,null,null,null,null,"2016-12-03"]
[null,null,null,null,null,null,null,null,null,null,null,null,null,null,null,null,"2016-12-04"]
[null,null,null,null,null,null,null,null,null,null,null,null,null,null,null,null,"2016-12-05"]
[null,null,null,null,null,null,null,null,null,null,null,null,null,null,null,null,"2016-12-06"]
[null,null,null,null,null,null,null,null,null,null,null,null,null,null,null,null,"2016-12-07"]
[null,null,null,null,null,null,null,null,null,null,null,null,null,null,null,null,"2016-12-08"]
[null,null,null,null,null,null,null,null,null,null,null,null,null,null,null,null,"2016-12-09"]
[null,null,null,null,null,null,null,null,null,null,null,null,null,null,null,null,"2016-12-10"]
[null,null,null,null,null,null,null,null,null,null,null,null,null,null,null,null,"2016-12-11"]
[null,null,null,null,null,null,null,null,null,null,null,null,null,null,null,null,"2016-12-12"]
[null,null,null,null,null,null,null,null,null,null,null,null,null,null,null,null,"2016-12-13"]
[null,null,null,null,null,null,null,null,null,null,null,null,null,null,null,null,"2016-12-14"]
[null,null,null,null,null,null,null,null,null,null,null,null,null,null,null,null,"2016-12-15"]
[null,null,null,null,null,null,null,null,null,null,null,null,null,null,null,null,"2016-12-16"]
[null,null,null,null,null,null,null,null,null,null,null,null,null,null,null,null,"2016-12-17"]
[null,null,null,null,null,null,null,null,null,null,null,null,null,null,null,null,"2016-12-18"]
[null,null,null,null,null,null,null,null,null,null,null,null,null,null,null,null,"2016-12-19"]
[null,null,null,null,null,null,null,null,null,null,null,null,null,null,null,null,"2016-12-20"]
[null,null,null,null,null,null,null,null,null,null,null,null,null,null,null,null,"2016-12-21"]
[null,null,null,null,null,null,null,null,null,null,null,null,null,null,null,null,"2016-12-22"]
[null,null,null,null,null,null,null,null,null,null,null,null,null,null,null,null,"2016-12-23"]
[null,null,null,null,null,null,null,null,null,null,null,null,null,null,null,null,"2016-12-24"]
[null,null,null,null,null,null,null,null,null,null,null,null,null,null,null,null,"2016-12-25"]
[null,null,null,null,null,null,null,null,null,null,null,null,null,null,null,null,"2016-12-26"]
[null,null,null,null,null,null,null,null,null,null,null,null,null,null,null,null,"2016-12-27"]
[null,null,null,null,null,null,null,null,null,null,null,null,null,null,null,null,"2016-12-28"]
[null,null,null,null,null,null,null,null,null,null,null,null,null,null,null,null,"2016-12-29"]
[null,null,null,null,null,null,null,null,null,null,null,null,null,null,null,null,"2016-12-30"]
[null,null,null,null,null,null,null,null,null,null,null,null,null,null,null,null,"2016-12-31"]
[null,null,null,null,null,null,null,null,null,null,null,null,null,null,null,null,"2017-01-01"]
[null,null,null,null,null,null,null,null,null,null,null,null,null,null,null,null,"2017-01-02"]
[null,null,null,null,null,null,null,null,null,null,null,null,null,null,null,null,"2017-01-03"]
[null,null,null,null,null,null,null,null,null,null,null,null,null,null,null,null,"2017-01-04"]
[null,null,null,null,null,null,null,null,null,null,null,null,null,null,null,null,"2017-01-05"]
[null,null,null,null,null,null,null,null,null,null,null,null,null,null,null,null,"2017-01-06"]
[null,null,null,null,null,null,null,null,null,null,null,null,null,null,null,null,"2017-01-07"]
[null,null,null,null,null,null,null,null,null,null,null,null,null,null,null,null,"2017-01-08"]
[null,null,null,null,null,null,null,null,null,null,null,null,null,null,null,null,"2017-01-09"]
[null,null,null,null,null,null,null,null,null,null,null,null,null,null,null,null,"2017-01-10"]
[null,null,null,null,null,null,null,null,null,null,null,null,null,null,null,null,"2017-01-11"]
[null,null,null,null,null,null,null,null,null,null,null,null,null,null,null,null,"2017-01-12"]
[null,null,null,null,null,null,null,null,null,null,null,null,null,null,null,null,"2017-01-13"]
[null,null,null,null,null,null,null,null,null,null,null,null,null,null,null,null,"2017-01-14"]
[null,null,null,null,null,null,null,null,null,null,null,null,null,null,null,null,"2017-01-15"]
[null,null,null,null,null,null,null,null,null,null,null,null,null,null,null,null,"2017-01-16"]
[null,null,null,null,null,null,null,null,null,null,null,null,null,null,null,null,"2017-01-17"]
[null,null,null,null,null,null,null,null,null,null,null,null,null,null,null,null,"2017-01-18"]
[null,null,null,null,null,null,null,null,null,null,null,null,null,null,null,null,"2017-01-19"]
[null,null,null,null,null,null,null,null,null,null,null,null,null,null,null,null,"2017-01-20"]
[null,null,null,null,null,null,null,null,null,null,null,null,null,null,null,null,"2017-01-21"]
[null,null,null,null,null,null,null,null,null,null,null,null,null,null,null,null,"2017-01-22"]
[null,null,null,null,null,null,null,null,null,null,null,null,null,null,null,null,"2017-01-23"]
[null,null,null,null,null,null,null,null,null,null,null,null,null,null,null,null,"2017-01-24"]
[null,null,null,null,null,null,null,null,null,null,null,null,null,null,null,null,"2017-01-25"]
[null,null,null,null,null,null,null,null,null,null,null,null,null,null,null,null,"2017-01-26"]
[null,null,null,null,null,null,null,null,null,null,null,null,null,null,null,null,"2017-01-27"]
[null,null,null,null,null,null,null,null,null,null,null,null,null,null,null,null,"2017-01-28"]
[null,null,null,null,null,null,null,null,null,null,null,null,null,null,null,null,"2017-01-29"]
[null,null,null,null,null,null,null,null,null,null,null,null,null,null,null,null,"2017-01-30"]
[null,null,null,null,null,null,null,null,null,null,null,null,null,null,null,null,"2017-01-31"]
[null,null,null,null,null,null,null,null,null,null,null,null,null,null,null,null,"2017-02-01"]
[null,null,null,null,null,null,null,null,null,null,null,null,null,null,null,null,"2017-02-02"]
[null,null,null,null,null,null,null,null,null,null,null,null,null,null,null,null,"2017-02-03"]
[null,null,null,null,null,null,null,null,null,null,null,null,null,null,null,null,"2017-02-04"]
[null,null,null,null,null,null,null,null,null,null,null,null,null,null,null,null,"2017-02-05"]
[null,null,null,null,null,null,null,null,null,null,null,null,null,null,null,null,"2017-02-06"]
[null,null,null,null,null,null,null,null,null,null,null,null,null,null,null,null,"2017-02-07"]
[null,null,null,null,null,null,null,null,null,null,null,null,null,null,null,null,"2017-02-08"]
[null,null,null,null,null,null,null,null,null,null,null,null,null,null,null,null,"2017-02-09"]
[null,null,null,null,null,null,null,null,null,null,null,null,null,null,null,null,"2017-02-10"]
[null,null,null,null,null,null,null,null,null,null,null,null,null,null,null,null,"2017-02-11"]
[null,null,null,null,null,null,null,null,null,null,null,null,null,null,null,null,"2017-02-12"]
[null,null,null,null,null,null,null,null,null,null,null,null,null,null,null,null,"2017-02-13"]
[null,null,null,null,null,null,null,null,null,null,null,null,null,null,null,null,"2017-02-14"]
[null,null,null,null,null,null,null,null,null,null,null,null,null,null,null,null,"2017-02-15"]
[null,null,null,null,null,null,null,null,null,null,null,null,null,null,null,null,"2017-02-16"]
[null,null,null,null,null,null,null,null,null,null,null,null,null,null,null,null,"2017-02-17"]
[null,null,null,null,null,null,null,null,null,null,null,null,null,null,null,null,"2017-02-18"]
[null,null,null,null,null,null,null,null,null,null,null,null,null,null,null,null,"2017-02-19"]
[null,null,null,null,null,null,null,null,null,null,null,null,null,null,null,null,"2017-02-20"]
[null,null,null,null,null,null,null,null,null,null,null,null,null,null,null,null,"2017-02-21"]
[null,null,null,null,null,null,null,null,null,null,null,null,null,null,null,null,"2017-02-22"]
[null,null,null,null,null,null,null,null,null,null,null,null,null,null,null,null,"2017-02-23"]
[null,null,null,null,null,null,null,null,null,null,null,null,null,null,null,null,"2017-02-24"]
[null,null,null,null,null,null,null,null,null,null,null,null,null,null,null,null,"2017-02-25"]
[null,null,null,null,null,null,null,null,null,null,null,null,null,null,null,null,"2017-02-26"]
[null,null,null,null,null,null,null,null,null,null,null,null,null,null,null,null,"2017-02-27"]
[null,null,null,null,null,null,null,null,null,null,null,null,null,null,null,null,"2017-02-28"]
[null,null,null,null,null,null,null,null,null,null,null,null,null,null,null,null,"2017-03-01"]
[null,null,null,null,null,null,null,null,null,null,null,null,null,null,null,null,"2017-03-02"]
[null,null,null,null,null,null,null,null,null,null,null,null,null,null,null,null,"2017-03-03"]
[null,null,null,null,null,null,null,null,null,null,null,null,null,null,null,null,"2017-03-04"]
[null,null,null,null,null,null,null,null,null,null,null,null,null,null,null,null,"2017-03-05"]
[null,null,null,null,null,null,null,null,null,null,null,null,null,null,null,null,"2017-03-06"]
[null,null,null,null,null,null,null,null,null,null,null,null,null,null,null,null,"2017-03-07"]
[null,null,null,null,null,null,null,null,null,null,null,null,null,null,null,null,"2017-03-08"]
[null,null,null,null,null,null,null,null,null,null,null,null,null,null,null,null,"2017-03-09"]
[null,null,null,null,null,null,null,null,null,null,null,null,null,null,null,null,"2017-03-10"]
[null,null,null,null,null,null,null,null,null,null,null,null,null,null,null,null,"2017-03-11"]
[null,null,null,null,null,null,null,null,null,null,null,null,null,null,null,null,"2017-03-12"]
[null,null,null,null,null,null,null,null,null,null,null,null,null,null,null,null,"2017-03-13"]
[null,null,null,null,null,null,null,null,null,null,null,null,null,null,null,null,"2017-03-14"]
[null,null,null,null,null,null,null,null,null,null,null,null,null,null,null,null,"2017-03-15"]
[null,null,null,null,null,null,null,null,null,null,null,null,null,null,null,null,"2017-03-16"]
[null,null,null,null,null,null,null,null,null,null,null,null,null,null,null,null,"2017-03-17"]
[null,null,null,null,null,null,null,null,null,null,null,null,null,null,null,null,"2017-03-18"]
[null,null,null,null,null,null,null,null,null,null,null,null,null,null,null,null,"2017-03-19"]
[null,null,null,null,null,null,null,null,null,null,null,null,null,null,null,null,"2017-03-20"]
[null,null,null,null,null,null,null,null,null,null,null,null,null,null,null,null,"2017-03-21"]
[null,null,null,null,null,null,null,null,null,null,null,null,null,null,null,null,"2017-03-22"]
[null,null,null,null,null,null,null,null,null,null,null,null,null,null,null,null,"2017-03-23"]
[null,null,null,null,null,null,null,null,null,null,null,null,null,null,null,null,"2017-03-24"]
[null,null,null,null,null,null,null,null,null,null,null,null,null,null,null,null,"2017-03-25"]
[null,null,null,null,null,null,null,null,null,null,null,null,null,null,null,null,"2017-03-26"]
[null,null,null,null,null,null,null,null,null,null,null,null,null,null,null,null,"2017-03-27"]
[null,null,null,null,null,null,null,null,null,null,null,null,null,null,null,null,"2017-03-28"]
[null,null,null,null,null,null,null,null,null,null,null,null,null,null,null,null,"2017-03-29"]
[null,null,null,null,null,null,null,null,null,null,null,null,null,null,null,null,"2017-03-30"]
[null,null,null,null,null,null,null,null,null,null,null,null,null,null,null,null,"2017-03-31"]
[null,null,null,null,null,null,null,null,null,null,null,null,null,null,null,null,"2017-04-01"]
[null,null,null,null,null,null,null,null,null,null,null,null,null,null,null,null,"2017-04-02"]
[null,null,null,null,null,null,null,null,null,null,null,null,null,null,null,null,"2017-04-03"]
[null,null,null,null,null,null,null,null,null,null,null,null,null,null,null,null,"2017-04-04"]
[null,null,null,null,null,null,null,null,null,null,null,null,null,null,null,null,"2017-04-05"]
[null,null,null,null,null,null,null,null,null,null,null,null,null,null,null,null,"2017-04-06"]
[null,null,null,null,null,null,null,null,null,null,null,null,null,null,null,null,"2017-04-07"]
[null,null,null,null,null,null,null,null,null,null,null,null,null,null,null,null,"2017-04-08"]
[null,null,null,null,null,null,null,null,null,null,null,null,null,null,null,null,"2017-04-09"]
[null,null,null,null,null,null,null,null,null,null,null,null,null,null,null,null,"2017-04-10"]
[null,null,null,null,null,null,null,null,null,null,null,null,null,null,null,null,"2017-04-11"]
[null,null,null,null,null,null,null,null,null,null,null,null,null,null,null,null,"2017-04-12"]
[null,null,null,null,null,null,null,null,null,null,null,null,null,null,null,null,"2017-04-13"]
[null,null,null,null,null,null,null,null,null,null,null,null,null,null,null,null,"2017-04-14"]
[null,null,null,null,null,null,null,null,null,null,null,null,null,null,null,null,"2017-04-15"]
[null,null,null,null,null,null,null,null,null,null,null,null,null,null,null,null,"2017-04-16"]
[null,null,null,null,null,null,null,null,null,null,null,null,null,null,null,null,"2017-04-17"]
[null,null,null,null,null,null,null,null,null,null,null,null,null,null,null,null,"2017-04-18"]
[null,null,null,null,null,null,null,null,null,null,null,null,null,null,null,null,"2017-04-19"]
[null,null,null,null,null,null,null,null,null,null,null,null,null,null,null,null,"2017-04-20"]
[null,null,null,null,null,null,null,null,null,null,null,null,null,null,null,null,"2017-04-21"]
[null,null,null,null,null,null,null,null,null,null,null,null,null,null,null,null,"2017-04-22"]
[null,null,null,null,null,null,null,null,null,null,null,null,null,null,null,null,"2017-04-23"]
[null,null,null,null,null,null,null,null,null,null,null,null,null,null,null,null,"2017-04-24"]
[null,null,null,null,null,null,null,null,null,null,null,null,null,null,null,null,"2017-04-25"]
[null,null,null,null,null,null,null,null,null,null,null,null,null,null,null,null,"2017-04-26"]
[null,null,null,null,null,null,null,null,null,null,null,null,null,null,null,null,"2017-04-27"]
[null,null,null,null,null,null,null,null,null,null,null,null,null,null,null,null,"2017-04-28"]
[null,null,null,null,null,null,null,null,null,null,null,null,null,null,null,null,"2017-04-29"]
[null,null,null,null,null,null,null,null,null,null,null,null,null,null,null,null,"2017-04-30"]
[]
[]
[]
[]
[]
[]
[]
[]
[]
[]
[]
[]
[]
[]
[]
[]
[]
[]
[]
[]
[]
[]
[]
[]
[]
[]
[]
[]
[]
[]
[]
[]
[]
[]
[]
[]
[]
[]
[]
[]
[]
[]
[]
[]
[]
[]
[]
[]
[]
[]
[]
[]
[]
[]
[]
[]
[]
[]
[]
[]
[]
[]
[]
[]
[]
[]
[]
[]
[]
[]
[]
[]
[]
[]
[]
[]
[]
[]
[]
[]
[]
[]
[]
[]
[]
[]
[]
[]
[]
[]
[]
[]
[]
[]
[]
[]
[]
[]
[]
[]
[]
[]
[]
[]
[]
[]
[]
[]
[]
[]
[]
[]
[]
[]
[]
[]
[]
[]
[]
[]
[]
[]
[]
[]
[]
[]
[]
[]
[]
[]
[]
[]
[]
[]
[]
[]
[]
[]
[]
[]
[]
[]
[]
[]
[]
[]
[]
[]
[]
[]
[]
[]
[]
[]
[]
[]
[]
[]
[]
[]
[]
[]
[]
[]
[]
[]
[]
[]
[]
[]
[]
[]
[]
[]
[]
[]
[]
[]
[]
[]
[]
[]
[]
[]
[]
[]
[]
[]
[]
[]
[]
[]
[]
[]
[]
[]
[]
[]
[]
[]
[]
[]
[]
[]
[]
[]
[]
[]
[]
[]
[]
[]
[]
[]
[]
[]
[]
[]
[]
[]
[]
[]
[]
[]
[]
[]
[]
[]
[]
[]
[]
[]
[]
[]
[]
[]
[]
[]
[]
[]
[]
[]
[]
[]
[]
[]
[]
[]
[]
[]
[]
[]
[]
[]
[]
[]
[]
[]
[]
[]
[]
[]
[]
[]
[]
[]
[]
[]
[]
[]
[]
[]
[]
[]
[]
[]
[]
[]
[]
[]
[]
[]
[]
[]
[]
[]
[]
[]
[]
[]
[]
[]
[]
[]
[]
[]
[]
[]
[]
[]
[]
[]
[]
[]
[]
[]
[]
[]
[]
[]
[]
[]
[]
[]
[]
[]
[]
[]
[]
[]
[]
[]
[]
[]
[]
[]
[]
[]
[]
[]
[]
[]
[]
[]
[]
[]
[]
[]
[]
[]
[]
[]
[]
[]
[]
[]
[]
[]
[]
[]
[]
[]
[]
[]
[]
[]
[]
[]
[]
[]
[]
[]
[]
[]
[]
[]
[]
[]
[]
[]
[]
[]
[]
[]
[]
[]
[]
[]
[]
[]
[]
[]
[]
[]
[]
[]
[]
[]
[]
[]
[]
[]
[]
[]
[]
[]
[]
[]
[]
[]
[]
[]
[]
[]
[]
[]
[]
[]
[]
[]
[]
[]
[]
[]
[]
[]
[]
[]
[]
[]
[]
[]
[]
[]
[]
[]
[]
[]
[]
[]
[]
[]
[]
[]
[]
[]
[]
[]
[]
[]
[]
[]
[]
[]
[]
[]
[]
[]
[]
[]
[]
[]
[]
[]
[]
[]
[]
[]
[]
[]
[]
[]
[]
[]
[]
[]
[]
[]
[]
[]
[]
[]
[]
[]
[]
[]
[]
[]
[]
[]
[]
[]
[]
[]
[]
[null,null,null,null,null,null,null,null,null,null,null,null,null,null,null,null," "]

{"sheet":"Segédadatok2","index":9,"n_rows":44,"n_cols":10,"rows_kept":44,"cut":false,"hidden":false,"merged":[]}
["Code","Description","Magyarul","Former ERASMUS Codes",null,"ERASMUS Code","Subject Area Description","Magyarul","EquivalentISCED97","ISCED"]
[0,"General Programmes","Általános program",null,null,"01.00","Agriculture","Mezőgazdaságtan, Mezőgazdasági tudományok","NO 001","6, 62, 620, 621, 622, 623, 624, 629, 64, 640"]
[1,"Basic/broad, general programmes","Alapozó, keretprogramok",null,null,"01.10","Anthropology","Antropológia","NO 002","31, 312"]
[10,"Basic/broad, general programmes","Alapozó, keretprogramok",null,null,"01.20","Archaeology","Régészet","NO 003",225]
[9,"Personal skills","Személyiségfejlesztés",null,null,"01.30","Architecture, design and applied arts","Építészet, dizájn és alkalmazott művészetek","NO 004","58, 581, 214, 215, 219"]
[90,"Personal skills","Személyiségfejlesztés",null,null,"01.40","Area studies","Regionális tanulmányok","NO 005","3, 310, 313, 319"]
[1,"Education","Oktatás",null,null,"01.50","Business","Üzleti tudományok","NO 006","34, 340, 341, 342, 343, 344, 345, 346, 347, 349"]
[14,"Teacher training and education science","Tanárképzés, oktatástudomány",null,null,"01.60","Chemistry","Kémia","NO 007","4, 442"]
[140,"Teacher training and education science (broad programmes)","Tanárképzés, oktatástudomány","05.0; 05.1",null,"01.70","Computer sciences","Informatika","NO 008","48, 481, 482, 489"]
[141,"Teaching and training","Tanárképzés",null,null,"01.80","Cultural studies and ethnic studies","Kulturális és etnikai tanulmányok","NO 009","3, 312"]
[142,"Education science","Oktatástudomány","05.7; 05.8",null,"01.90","Earth sciences","Földtudományok","NO 010","4, 443"]
[143,"Training for pre-school teachers","Óvodapedagógusok képzése",null,null,"02.00","Economics","Közgazdaságtan","NO 011","3, 314"]
[144,"Training for teachers at basic levels","Alapfokú oktatásban tanító pedagógusok képzése","05.2; 05.5; 05.6",null,"02.10","Education (including teacher training/education)","Oktatás (tanárképzés is)","NO 012","1, 14, 140,141, 142, 143, 144, 145, 146, 149"]
[145,"Training for teachers with subject specialisation","Szakosodott oktatók (szaktanárok) képzése","05.3",null,"02.20","Engineering","Mérnöktudományok","NO 013","5, 52, 520, 521, 522, 523, 524, 525, 529, 54, 540"]
[146,"Training for teachers of vocational subjects","Szakoktató képzés","05.4",null,"02.30","Environmental studies and Forestry","Környezetvédelem és erdészet","NO 014","422, 6, 62, 620, 623, 624, 629, 64, 640"]
[149,"Teacher training and education science (others)","Tanárképzés, oktatástudomány (egyéb)","05.9",null,"02.40","Family and consumer science","Család és háztartástan","NO 015","319, 729"]
[2,"Humanities and Arts","Humán tudományok és művészetek",null,null,"02.50","Gender and sexuality studies","Gender studies","NO 016",312]
[21,"Arts","Művészetek",null,null,"02.60","Geography","Földrajz, földtan","NO 017","4, 443"]
[210,"Arts (broad programmes)","Művészetek","03.0",null,"02.90","Health sciences (medicine, nursing, dentistry, etc.)","Egészségtudományok","NO 018","7, 72, 720, 721, 723, 724, 725, 726, 727, 729"]
[211,"Fine arts","Képzőművészet, szépművészet","03.1",null,"03.00","History","Történelem","NO 019","2, 225"]
[212,"Music and performing arts","Zene- és előadóművészetek","03.2; 03.3",null,"03.10","Journalism, media and communication","Média és kommunikáció","NO 020","32, 321, 322, 329"]
[213,"Audio-visual techniques and media production","Audiovizuális módszerek és szakismeretek, média","03.4",null,"03.20","Languages and linguistics","Nyelvek és nyelvészet","NO 021","22, 222, 223, 229"]
[214,"Design","Formatervezés","02.2; 03.5",null,"03.30","Law","Jog","NO 022","3, 38, 380"]
[215,"Craft skills","Kézművesség",null,null,"03.40","Library and museum studies","Könyvtári tudományok és muzeológia","NO 023","3, 322"]
[219,"Arts (others)","Művészetek (egyéb)","03.9",null,"03.50","Life science (including biology)","Természettudományok (biológia is)","NO 024","42, 421, 422, 429"]
[22,"Humanities","Humán tudományok",null,null,"03.60","Literature","Irodalom","NO 025","220, 222, 223, 229"]
[220,"Humanities (broad programmes)","Humán tudományok","08.0",null,"03.90","Mathematics","Matematika","NO 026","4, 46, 461, 462, 469"]
[221,"Religion","Vallási ismeretek","08.2",null,"04.00","Military sciences","Honvédelem","NO 027","86, 860, 861, 862, 863, 869"]
[222,"Foreign languages","Idegen nyelvek","09.0; 09.2; 09.5; 09.6; 09.9",null,"04.10","Performing arts","Előadóművészet","NO 028","2, 210, 212"]
[223,"Mother tongue","Anyanyelvi képzés","09.1; 09.3; 09.4; 09.7; 09.8",null,"04.20","Philosophy","Filozófia","NO 029","2, 226"]
[225,"History and archaeology","Történelem és régészet","03.6; 08.3; 08.4",null,"04.30","Physics","Fizika","NO 030","44, 440, 441, 449"]
[226,"Philosophy and ethics","Filozófia és etika","08.1",null,"04.40","Political science","Politikatudomány","NO 031",313]
[3,"Social sciences, Business and Law","Társadalomtudományok, gazdaság, jog",null,null,"04.50","Psychology","Pszichológia","NO 032","31, 311"]
[31,"Social and behavioural science","Társadalom- és viselkedéstudomány",null,null,"04.60","Public affairs","Közigazgatás","NO 033","38, 313"]
[310,"Social and behavioural science (broad programmes)","Társadalom- és viselkedéstudomány","14.0",null,"04.70","Religion","Vallás","NO 034",221]
[311,"Psychology","Pszichológia","14.4",null,"04.90","Social work","Szociális munka","NO 035","76, 761, 762, 769"]
[312,"Sociology and cultural studies","Szociológia és kulturális tanulmányok","14.2; 14.7; 14.8",null,"05.00","Sociology","Szociológia","NO 036",312]
[313,"Political science and civics","Politikai és civil társadalmi tanulmányok","14.1; 14.6",null,"05.10","Space sciences","Űrtudományok","NO 037",44]
[314,"Economics","Közgazdaságtan","14.3",null,"05.20","Systems science","Rendszertanulmányok","NO 038",481]
[319,"Social and behavioural science (others)",null,"14.9",null,"05.30","Theology","Teológia","NO 039",221]
[32,"Journalism and information","Újságírás és más információ szolgáltatás",null,null,"05.40","Transportation","Szállítás","NO 040","8, 84, 840"]
[321,"Journalism and reporting","Újságírás és riporter- képzés","15.0; 15.1; 15.2",null,"05.50","Visual arts","Képzőművészetek","NO 041","210, 211, 213, 214, 215"]
[869,"Security services (others)"]
[99,"Not known or unspecified",null,"16.0; 16.9"]

{"sheet":"Negyedhónapok","index":10,"n_rows":50,"n_cols":12,"rows_kept":50,"cut":false,"hidden":false,"merged":[[0,5,0,11]]}
["Mob. kezdete","Mob. vége","Mob. időtartam negyedhónapokban","Mob. időtartam napokban",null,"Hónap napjai"]
["2015-12-11","2015-12-22",{"$f":"ROUNDDOWN((B2-A2)/30,0)+ROUNDDOWN((((B2-A2)-(ROUNDDOWN((B2-A2)/30,0))*30)+3)/7,0)*0.25","v":0.5},{"$f":"B2-A2","v":11},null,1,2,3,4,5,6,7]
[null,null,0,0,null,{"$f":"F2+7","v":8},9,10,11,12,13,14]
[null,null,0,0,null,15,16,17,18,19,20,21]
[null,null,0,0,null,22,23,24,25,26,27,28]
[null,null,0,0,null,{"$f":"F5+7","v":29},{"$f":"G5+7","v":30},{"$f":"H5+7","v":31}]
[null,null,0,0]
[null,null,0,0,null,0,"3 nap"]
[null,null,0,0,null,0.25,"7 nap"]
[null,null,0,0,null,0.5,"7 nap"]
[null,null,0,0,null,0.75,"7 nap"]
[null,null,0,0,null,1,"4-7 nap"]
[null,null,0,0]
[null,null,0,0]
[null,null,0,0]
[null,null,0,0]
[null,null,0,0]
[null,null,0,0]
[null,null,0,0]
[null,null,0,0]
[null,null,0,0]
[null,null,0,0]
[null,null,0,0]
[null,null,0,0]
[null,null,0,0]
[null,null,0,0]
[null,null,0,0]
[null,null,0,0]
[null,null,0,0]
[null,null,0,0]
[null,null,0,0]
[null,null,0,0]
[null,null,0,0]
[null,null,{"$f":"ROUNDDOWN((B34-A34)/30,0)+ROUNDDOWN((((B34-A34)-(ROUNDDOWN((B34-A34)/30,0))*30)+3)/7,0)*0.25","v":0},{"$f":"B34-A34","v":0}]
[null,null,0,0]
[null,null,0,0]
[null,null,0,0]
[null,null,0,0]
[null,null,0,0]
[null,null,0,0]
[null,null,0,0]
[null,null,0,0]
[null,null,0,0]
[null,null,0,0]
[null,null,0,0]
[null,null,0,0]
[null,null,0,0]
[null,null,0,0]
[null,null,0,0]
[null,null,0,0]

{"sheet":"ráták","index":11,"n_rows":13,"n_cols":98,"rows_kept":13,"cut":false,"hidden":false,"merged":[]}
["Személyzet"]
["Célország","Heti ráta",1,2,3,4,5,6,7,8,9,10,11,12,13,14,15,16,17,18,19,20,21,22,23,24,25,26,27,28,29,30,31,32,33,34,35,36,37,38,39,40,41,42,43,44,45,46,47,48,49,50,51,52,53,54,55,56,57,58,59,60,61,62,63,64,65,66,67,68,69,70,71,72,73,74,75,76,77,78,79,80,81,82,83,84,85,86,87,88,89,90]
["IS",800,614,729,843,957,1071,1186,1300,1416,1530,1644,1758,1872,1986,2100,2216,2330,2444,2558,2672,2786,2900,3016,3130,3244,3358,3472,3586,3700,3816,3930,4044,4158,4272,4386,4500,4616,4730,4844,4958,5072,5186,5300]
["LI",800,614,729,843,957,1071,1186,1300,1416,1530,1644,1758,1872,1986,2100,2216,2330,2444,2558,2672,2786,2900,3016,3130,3244,3358,3472,3586,3700,3816,3930,4044,4158,4272,4386,4500,4616,4730,4844,4958,5072,5186,5300]
["NO",800,614,729,843,957,1071,1186,1300,1416,1530,1644,1758,1872,1986,2100,2216,2330,2444,2558,2672,2786,2900,3016,3130,3244,3358,3472,3586,3700,3816,3930,4044,4158,4272,4386,4500,4616,4730,4844,4958,5072,5186,5300]
["HU",400,557,614,671,729,786,843,900,957,1014,1071,1128,1185,1242,1300,1357,1414,1471,1528,1585,1642,1700,1757,1814,1871,1928,1985,2042,2100,2157,2214,2271,2328,2385,2442,2500,2557,2614,2671,2728,2785,2842,2900]
[]
["Hallgatók"]
["Célország","Havi ráta",0.25,0.5,0.75,1,1.25,1.5,1.75,2,2.25,2.5,2.75,3,3.25,3.5,3.75,4,4.25,4.5,4.75,5,5.25,5.5,5.75,6,6.25,6.5,6.75,7,7.25,7.5,7.75,8,8.25,8.5,8.75,9,9.25,9.5,9.75,10,10.25,10.5,10.75,11,11.25,11.5,11.75,12,12.25,12.5,12.75,13,13.25,13.5,13.75,14,14.25,14.5,14.75,15,15.25,15.5,15.75,16,16.25,16.5,16.75,17,17.25,17.5,17.75,18,18.25,18.5,18.75,19,19.25,19.5,19.75,20,20.25,20.5,20.75,21,21.25,21.5,21.75,22,22.25,22.5,22.75,23,23.25,23.5,23.75,24]
["IS",900,725,950,1175,1400,{"$f":"F10+C10-500","v":1625},{"$f":" F10+D10-500","v":1850},{"$f":"F10+E10-500","v":2075},2300,{"$f":"J10+C10-500","v":2525},{"$f":"J10+D10-500","v":2750},{"$f":"J10+E10-500","v":2975},3200,{"$f":"N10+C10-500","v":3425},{"$f":"N10+D10-500","v":3650},{"$f":"N10+E10-500","v":3875},4100,{"$f":"R10+C10-500","v":4325},{"$f":"R10+D10-500","v":4550},{"$f":"R10+E10-500","v":4775},5000,{"$f":"V10+C10-500","v":5225},{"$f":"V10+D10-500","v":5450},{"$f":"V10+E10-500","v":5675},5900,{"$f":"Z10+C10-500","v":6125},{"$f":"Z10+D10-500","v":6350},{"$f":"Z10+E10-500","v":6575},6800,{"$f":"AD10+C10-500","v":7025},{"$f":"AD10+D10-500","v":7250},{"$f":"AD10+E10-500","v":7475},7700,{"$f":"AH10+C10-500","v":7925},{"$f":"AH10+D10-500","v":8150},{"$f":"AH10+E10-500","v":8375},8600,{"$f":"AL10+C10-500","v":8825},{"$f":"AL10+D10-500","v":9050},{"$f":"AL10+E10-500","v":9275},9500,{"$f":"AP10+C10-500","v":9725},{"$f":"AP10+D10-500","v":9950},{"$f":"AP10+E10-500","v":10175},10400,{"$f":"AT10+C10-500","v":10625},{"$f":"AT10+D10-500","v":10850},{"$f":"AT10+E10-500","v":11075},11300]
["LI",900,725,950,1175,1400,{"$f":"F11+C11-500","v":1625},{"$f":" F11+D11-500","v":1850},{"$f":"F11+E11-500","v":2075},2300,{"$f":"J11+C11-500","v":2525},{"$f":"J11+D11-500","v":2750},{"$f":"J11+E11-500","v":2975},3200,{"$f":"N11+C11-500","v":3425},{"$f":"N11+D11-500","v":3650},{"$f":"N11+E11-500","v":3875},4100,{"$f":"R11+C11-500","v":4325},{"$f":"R11+D11-500","v":4550},{"$f":"R11+E11-500","v":4775},5000,{"$f":"V11+C11-500","v":5225},{"$f":"V11+D11-500","v":5450},{"$f":"V11+E11-500","v":5675},5900,{"$f":"Z11+C11-500","v":6125},{"$f":"Z11+D11-500","v":6350},{"$f":"Z11+E11-500","v":6575},6800,{"$f":"AD11+C11-500","v":7025},{"$f":"AD11+D11-500","v":7250},{"$f":"AD11+E11-500","v":7475},7700,{"$f":"AH11+C11-500","v":7925},{"$f":"AH11+D11-500","v":8150},{"$f":"AH11+E11-500","v":8375},8600,{"$f":"AL11+C11-500","v":8825},{"$f":"AL11+D11-500","v":9050},{"$f":"AL11+E11-500","v":9275},9500,{"$f":"AP11+C11-500","v":9725},{"$f":"AP11+D11-500","v":9950},{"$f":"AP11+E11-500","v":10175},10400,{"$f":"AT11+C11-500","v":10625},{"$f":"AT11+D11-500","v":10850},{"$f":"AT11+E11-500","v":11075},11300]
["NO",900,725,950,1175,1400,{"$f":"F12+C12-500","v":1625},{"$f":" F12+D12-500","v":1850},{"$f":"F12+E12-500","v":2075},2300,{"$f":"J12+C12-500","v":2525},{"$f":"J12+D12-500","v":2750},{"$f":"J12+E12-500","v":2975},3200,{"$f":"N12+C12-500","v":3425},{"$f":"N12+D12-500","v":3650},{"$f":"N12+E12-500","v":3875},4100,{"$f":"R12+C12-500","v":4325},{"$f":"R12+D12-500","v":4550},{"$f":"R12+E12-500","v":4775},5000,{"$f":"V12+C12-500","v":5225},{"$f":"V12+D12-500","v":5450},{"$f":"V12+E12-500","v":5675},5900,{"$f":"Z12+C12-500","v":6125},{"$f":"Z12+D12-500","v":6350},{"$f":"Z12+E12-500","v":6575},6800,{"$f":"AD12+C12-500","v":7025},{"$f":"AD12+D12-500","v":7250},{"$f":"AD12+E12-500","v":7475},7700,{"$f":"AH12+C12-500","v":7925},{"$f":"AH12+D12-500","v":8150},{"$f":"AH12+E12-500","v":8375},8600,{"$f":"AL12+C12-500","v":8825},{"$f":"AL12+D12-500","v":9050},{"$f":"AL12+E12-500","v":9275},9500,{"$f":"AP12+C12-500","v":9725},{"$f":"AP12+D12-500","v":9950},{"$f":"AP12+E12-500","v":10175},10400,{"$f":"AT12+C12-500","v":10625},{"$f":"AT12+D12-500","v":10850},{"$f":"AT12+E12-500","v":11075},11300]
["HU",400,600,700,800,900,{"$f":"F13+C13-500","v":1000},{"$f":" F13+D13-500","v":1100},{"$f":"F13+E13-500","v":1200},1300,{"$f":"J13+C13-500","v":1400},{"$f":"J13+D13-500","v":1500},{"$f":"J13+E13-500","v":1600},1700,{"$f":"N13+C13-500","v":1800},{"$f":"N13+D13-500","v":1900},{"$f":"N13+E13-500","v":2000},2100,{"$f":"R13+C13-500","v":2200},{"$f":"R13+D13-500","v":2300},{"$f":"R13+E13-500","v":2400},2500,{"$f":"V13+C13-500","v":2600},{"$f":"V13+D13-500","v":2700},{"$f":"V13+E13-500","v":2800},2900,{"$f":"Z13+C13-500","v":3000},{"$f":"Z13+D13-500","v":3100},{"$f":"Z13+E13-500","v":3200},3300,{"$f":"AD13+C13-500","v":3400},{"$f":"AD13+D13-500","v":3500},{"$f":"AD13+E13-500","v":3600},3700,{"$f":"AH13+C13-500","v":3800},{"$f":"AH13+D13-500","v":3900},{"$f":"AH13+E13-500","v":4000},4100,{"$f":"AL13+C13-500","v":4200},{"$f":"AL13+D13-500","v":4300},{"$f":"AL13+E13-500","v":4400},4500,{"$f":"AP13+C13-500","v":4600},{"$f":"AP13+D13-500","v":4700},{"$f":"AP13+E13-500","v":4800},4900,{"$f":"AT13+C13-500","v":5000},{"$f":"AT13+D13-500","v":5100},{"$f":"AT13+E13-500","v":5200},5300]

{"sheet":"Erasmus_kodok","index":12,"n_rows":52,"n_cols":7,"rows_kept":52,"cut":false,"hidden":false,"merged":[]}
["EUC Reference","Organisation","ID  CODE","PIC","Country","CITY CON","ID CODE-orig"]
["29904-EPP-1-2014-1-IS-EPPKA3-ECHE","HASKOLINN A AKUREYRI","IS AKUREYR01","998776409","IS","AKUREYRI","IS AKUREYR01"]
["28340-EPP-1-2014-1-IS-EPPKA3-ECHE","HASKOLINN A BIFROST","IS BORGARN01","949615451","IS","BORGARNES","IS BORGARN01"]
["219520-EPP-1-2014-1-IS-EPPKA3-ECHE","LANDBUNADARHASKOLI ISLANDS","IS BORGARN02","988542036","IS","BORGARNES","IS BORGARN02"]
["28332-EPP-1-2014-1-IS-EPPKA3-ECHE","HASKOLI ISLANDS","IS REYKJAV01","999884246","IS","REYKJAVIK","IS REYKJAV01"]
["210431-EPP-1-2014-1-IS-EPPKA3-ECHE","HASKOLINN I REYKJAVIK EHF","IS REYKJAV05","966834406","IS","REYKJAVIK","IS REYKJAV05"]
["28354-EPP-1-2014-1-IS-EPPKA3-ECHE","LISTAHASKOLI ISLANDS","IS REYKJAV06","950429378","IS","REYKJAVIK","IS REYKJAV06"]
["239835-EPP-1-2014-1-IS-EPPKA3-ECHE","HOLAR UNIVERSITY COLLEGE","IS SAUDARK01","969226426","IS","SAUDARKORKUR","IS SAUDARK01"]
["28700-EPP-1-2014-1-LI-EPPKA3-ECHE","UNIVERSITAT LIECHTENSTEIN","LI VADUZ01","974688496","LI","Liechtenstein","LI VADUZ01"]
["269986-EPP-1-2015-1-NO-EPPKA3-ECHE","Norwegian University of Life sciences","N  AS03","944678345","NO","Aas","N  AS03"]
["29643-EPP-1-2014-1-NO-EPPKA3-ECHE","UNIVERSITETET I BERGEN","N  BERGEN01","999974456","NO","BERGEN","N  BERGEN01"]
["29636-EPP-1-2014-1-NO-EPPKA3-ECHE","NORGES HANDELSHØYSKOLE","N  BERGEN02","949667443","NO","BERGEN","N  BERGEN02"]
["29669-EPP-1-2014-1-NO-EPPKA3-ECHE","KUNST- OG DESIGNHOEGSKOLEN I BERGEN","N  BERGEN04","949639216","NO","BERGEN","N  BERGEN04"]
["29630-EPP-1-2014-1-NO-EPPKA3-ECHE","HOGSKOLEN I BERGEN","N  BERGEN05","996081555","NO","BERGEN","N  BERGEN05"]
["46918-EPP-1-2014-1-NO-EPPKA3-ECHE","NLA HØGSKOLEN","N  BERGEN12","949671614","NO","BERGEN","N  BERGEN12"]
["210351-EPP-1-2014-1-NO-EPPKA3-ECHE","BERGEN ARKITEKTHØGSKOLE","N  BERGEN13","949634075","NO","BERGEN","N  BERGEN13"]
["29625-EPP-1-2014-1-NO-EPPKA3-ECHE","NORD UNIVERSITET","N  BODO04","998222927","NO","BODO","N  BODO04"]
["29682-EPP-1-2014-1-NO-EPPKA3-ECHE","HOGSKOLEN I HEDMARK (HIHM)","N  ELVERUM01","998027860","NO","ELVERUM","N  ELVERUM01"]
["29655-EPP-1-2014-1-NO-EPPKA3-ECHE","HOGSKOLEN I OSTFOLD","N  HALDEN02","975398439","NO","HALDEN","N  HALDEN02"]
["269728-EPP-1-2015-1-NO-EPPKA3-ECHE","HOGSKOLEN I SOROST NORGE","N  KONGSBE02","921767430","NO","PORSGRUNN","N  KONGSBE02"]
["29646-EPP-1-2014-1-NO-EPPKA3-ECHE","UNIVERSITETET I AGDER","N  KRISTIA01","949671711","NO","KRISTIANSAND","N  KRISTIA01"]
["228041-EPP-1-2014-1-NO-EPPKA3-ECHE","ANSGAR TEOLOGISKE HØGSKOLE","N  KRISTIA04","944123505","NO","KRISTIANSAND","N  KRISTIA04"]
["29627-EPP-1-2014-1-NO-EPPKA3-ECHE","HOGSKOLEN I LILLEHAMMER","N  LILLEHA01","997519386","NO","LILLEHAMMER","N  LILLEHA01"]
["29726-EPP-1-2014-1-NO-EPPKA3-ECHE","HØGSKOLEN I MOLDE - VITENSKAPELIG HØGSKOLE I LOGISTIKK","N  MOLDE01","949671420","NO","MOLDE","N  MOLDE01"]
["29714-EPP-1-2014-1-NO-EPPKA3-ECHE","UNIVERSITETET I OSLO","N  OSLO01","999975814","NO","OSLO","N  OSLO01"]
["29708-EPP-1-2014-1-NO-EPPKA3-ECHE","ARKITEKTUR- OG DESIGNHØGSKOLEN I OSLO","N  OSLO02","968780226","NO","OSLO","N  OSLO02"]
["29670-EPP-1-2014-1-NO-EPPKA3-ECHE","NORGES MUSIKKHØGSKOLE","N  OSLO03","949344336","NO","OSLO","N  OSLO03"]
["29663-EPP-1-2014-1-NO-EPPKA3-ECHE","NORGES IDRETTSHOGSKOLE","N  OSLO04","998301303","NO","OSLO","N  OSLO04"]
["29659-EPP-1-2014-1-NO-EPPKA3-ECHE","KUNSTHØGSKOLEN I OSLO (KHIO)","N  OSLO07","949598961","NO","OSLO","N  OSLO07"]
["29689-EPP-1-2014-1-NO-EPPKA3-ECHE","DET TEOLOGISKE MENIGHETSFAKULTET","N  OSLO40","960072245","NO","OSLO","N  OSLO40"]
["252954-EPP-1-2014-1-NO-EPPKA3-ECHE","NORGES DANSEHØYSKOLE","N  OSLO42","949089808","NO","OSLO","N  OSLO42"]
["252079-EPP-1-2014-1-NO-EPPKA3-ECHE","LOVISENBERG DEACONAL UNIVERSITY COLLEGE","N  OSLO53","949293314","NO","OSLO","N  OSLO53"]
["222731-EPP-1-2014-1-NO-EPPKA3-ECHE","WESTERDALS HØYSKOLE - OSLO SCHOOL OF ARTS, COMMUNICATION AND TECHNOLOGY AS","N  OSLO56","949450163","NO","OSLO","N  OSLO56"]
["253194-EPP-1-2014-1-NO-EPPKA3-ECHE","DIAKONOVA UNIVERSITY COLLEGE","N  OSLO57","946106767","NO","OSLO","N  OSLO57"]
["257489-EPP-1-2014-1-NO-EPPKA3-ECHE","HØYSKOLEN KRISTIANIA","N  OSLO58","949422324","NO","OSLO","N  OSLO58"]
["262768-EPP-1-2014-1-NO-EPPKA3-ECHE","HOGSKOLEN I OSLO OG AKERSHUS","N  OSLO60","954982461","NO","OSLO","N  OSLO60"]
["267345-EPP-1-2014-1-NO-EPPKA3-ECHE","HOYSKOLEN FOR LEDELSE OG TEOLOGI","N  OSLO61","949546775","NO","STABEKK","N  OSLO61"]
["269997-EPP-1-2015-1-NO-EPPKA3-ECHE","MUSIKKTEATERHØYSKOLEN","N  OSLO63","938958643","NO","Oslo","N  OSLO63"]
["270282-EPP-1-2015-1-NO-EPPKA3-ECHE","POLITIHØGSKOLEN (NORWEGIAN POLICE UNIVERSITY COLLEGE)","N  OSLO64","940703673","NO","OSLO ","N  OSLO64"]
["270986-EPP-1-2016-1-NO-EPPKA3-ECHE","FJELLHAUG INTERNASJONALE HØGSKOLE AS","N  OSLO65","929121582","NO","OSLO","N  OSLO65"]
["271303-EPP-1-2016-1-NO-EPPKA3-ECHE","Barratt Due musikkinstitutt","N  OSLO66","929407829","NO","OSLO","N  OSLO66"]
["399317-EPP-1-2016-1-NO-EPPKA3-ECHE","VID vitenskapelige høgskole","N  OSLO67","923477928","NO","OSLO","N  OSLO67"]
["29667-EPP-1-2014-1-NO-EPPKA3-ECHE","HØGSKOLEN STORD/HAUGESUND","N  ROMMETV01","997757036","NO","STORD","N  ROMMETV01"]
["29717-EPP-1-2014-1-NO-EPPKA3-ECHE","STIFTELSEN HANDELSHOYSKOLEN BI","N  SANDVIK02","986269617","NO","OSLO","N  SANDVIK02"]
["29626-EPP-1-2014-1-NO-EPPKA3-ECHE","HOGSKULEN I SOGN OG FJORDANE","N  SOGNDAL01","950046325","NO","SOGNDAL","N  SOGNDAL01"]
["29666-EPP-1-2014-1-NO-EPPKA3-ECHE","UNIVERSITETET I STAVANGER","N  STAVANG01","998023689","NO","STAVANGER","N  STAVANG01"]
["270165-EPP-1-2015-1-NO-EPPKA3-ECHE","HOGSKULEN FOR LANDBRUK OG BYGDENAERINGAR BA SELSKAP MED BEGRENSET ANSVAR","N  STAVANG09","968668288","NO","Klepp Stasjon","N  STAVANG09"]
["29652-EPP-1-2014-1-NO-EPPKA3-ECHE","HOGSKOLEN I NORD TRONDELAG","N  STEINKJ01","997461283","NO","STEINKJER","N  STEINKJ01"]
["29724-EPP-1-2014-1-NO-EPPKA3-ECHE","UNIVERSITETET I TROMSOE","N  TROMSO01","999874643","NO","TROMSO","N  TROMSO01"]
["29704-EPP-1-2014-1-NO-EPPKA3-ECHE","NORGES TEKNISK-NATURVITENSKAPELIGE UNIVERSITET NTNU","N  TRONDHE01","999977851","NO","TRONDHEIM","N  TRONDHE01"]
["29676-EPP-1-2014-1-NO-EPPKA3-ECHE","DRONNING MAUDS MINNE HØGSKOLE FOR BARNEHAGELÆRERUTDANNING","N  TRONDHE06","952744380","NO","TRONDHEIM","N  TRONDHE06"]
["66311-EPP-1-2014-1-NO-EPPKA3-ECHE","HØGSKULEN I VOLDA","N  VOLDA01","949661235","NO","VOLDA","N  VOLDA01"]

{"sheet":"NORA","index":13,"n_rows":99,"n_cols":17,"rows_kept":99,"cut":false,"hidden":true,"merged":[]}
["Nap","Kiutazó/beutazó","NORA1","Felhívás1","Felhívás kerekített1","Eltérés1","NORA2","Eltérés2",null,"Nap","Kiutazó/beutazó","NORA","Felhívás","Felhívás kerekített","Eltérés","NORA2"]
[1,"ki",114,114,{"$f":"EVEN(D2)","v":114},{"$f":"C2-E2","v":0},114,{"$f":"G2-E2","v":0},null,1,"be",57,57,{"$f":"ROUND(M2,0)","v":57},{"$f":"L2-N2","v":0},57,{"$f":"P2-N2","v":0}]
[2,"ki",229,229,{"$f":"ROUND(D3,0)","v":229},0,229,{"$f":"G3-E3","v":0},null,2,"be",114,114,{"$f":"ROUND(M3,0)","v":114},{"$f":"L3-N3","v":0},114,{"$f":"P3-N3","v":0}]
[3,"ki",343,343,343,0,343,0,null,3,"be",171,171,171,0,171,0]
[4,"ki",457,457,457,0,457,0,null,4,"be",229,229,229,0,229,0]
[5,"ki",571,571,571,0,571,0,null,5,"be",286,286,286,0,286,0]
[6,"ki",686,686,{"$f":"EVEN(D7)","v":686},0,686,0,null,6,"be",343,343,343,0,343,0]
[7,"ki",800,800,800,0,800,0,null,7,"be",400,400,400,0,400,0]
[8,"ki",916,{"$f":"800+800/7","v":914.28571428571433},{"$f":"EVEN(D9)","v":916},0,914,-2,null,8,"be",457,{"$f":"400+400/7","v":457.14285714285717},457,0,457,0]
[9,"ki",1030,{"$f":"800+800/7*2","v":1028.5714285714287},{"$f":"EVEN(D10)","v":1030},0,1029,-1,null,9,"be",514,{"$f":"400+400/7*2","v":514.28571428571433},514,0,514,0]
[10,"ki",1144,{"$f":"800+800/7*3","v":1142.8571428571429},1144,0,1143,-1,null,10,"be",571,{"$f":"400+400/7*3","v":571.42857142857144},571,0,571,0]
[11,"ki",1258,{"$f":"800+800/7*4","v":1257.1428571428571},1258,0,1257,-1,null,11,"be",628,{"$f":"400+400/7*4","v":628.57142857142856},{"$f":"ROUNDDOWN(M12,0)","v":628},0,629,1]
[12,"ki",1372,{"$f":"800+800/7*5","v":1371.4285714285716},1372,0,1371,-1,null,12,"be",685,{"$f":"400+400/7*5","v":685.71428571428578},{"$f":"ROUNDDOWN(M13,0)","v":685},0,686,1]
[13,"ki",1486,{"$f":"800+800/7*6","v":1485.7142857142858},1486,0,1486,0,null,13,"be",742,{"$f":"400+400/7*6","v":742.85714285714289},742,0,743,1]
[14,"ki",{"$f":"800+800","v":1600},{"$f":"800+800","v":1600},1600,0,1600,0,null,14,"be",800,{"$f":"400*2","v":800},800,0,800,0]
[15,"ki",1716,{"$f":"800*2+800/7","v":1714.2857142857142},1716,0,1714,-2,null,15,"be",857,{"$f":"400*2+400/7","v":857.14285714285711},857,0,857,0]
[16,"ki",1830,{"$f":"800*2+800/7*2","v":1828.5714285714287},1830,0,1829,-1,null,16,"be",914,{"$f":"400*2+400/7*2","v":914.28571428571433},914,0,914,0]
[17,"ki",1944,{"$f":"800*2+800/7*3","v":1942.8571428571429},1944,0,1943,-1,null,17,"be",971,{"$f":"400*2+400/7*3","v":971.42857142857144},971,0,971,0]
[18,"ki",2058,{"$f":"800*2+800/7*4","v":2057.1428571428573},2058,0,2057,-1,null,18,"be",1028,{"$f":"400*2+400/7*4","v":1028.5714285714287},1028,0,1029,1]
[19,"ki",2172,{"$f":"800*2+800/7*5","v":2171.4285714285716},2172,0,2171,-1,null,19,"be",1085,{"$f":"400*2+400/7*5","v":1085.7142857142858},1085,0,1086,1]
[20,"ki",2286,{"$f":"800*2+800/7*6","v":2285.7142857142858},2286,0,2286,0,null,20,"be",1142,{"$f":"400*2+400/7*6","v":1142.8571428571429},1142,0,1143,1]
[21,"ki",2400,{"$f":"800*3","v":2400},2400,0,2400,0,null,21,"be",1200,{"$f":"400*3","v":1200},1200,0,1200,0]
[22,"ki",2516,{"$f":"800*3+800/7","v":2514.2857142857142},2516,0,2514,-2,null,22,"be",1257,{"$f":"400*3+400/7","v":1257.1428571428571},1257,0,1257,0]
[23,"ki",2630,{"$f":"800*3+800/7*2","v":2628.5714285714284},2630,0,2629,-1,null,23,"be",1314,{"$f":"400*3+400/7*2","v":1314.2857142857142},1314,0,1314,0]
[24,"ki",2744,{"$f":"800*3+800/7*3","v":2742.8571428571431},2744,0,2743,-1,null,24,"be",1371,{"$f":"400*3+400/7*3","v":1371.4285714285716},1371,0,1371,0]
[25,"ki",2858,{"$f":"800*3+800/7*4","v":2857.1428571428573},2858,0,2857,-1,null,25,"be",1428,{"$f":"400*3+400/7*4","v":1428.5714285714287},1428,0,1429,1]
[26,"ki",2972,{"$f":"800*3+800/7*5","v":2971.4285714285716},2972,0,2971,-1,null,26,"be",1485,{"$f":"400*3+400/7*5","v":1485.7142857142858},1485,0,1486,1]
[27,"ki",3086,{"$f":"800*3+800/7*6","v":3085.7142857142858},3086,0,3086,0,null,27,"be",1542,{"$f":"400*3+400/7*6","v":1542.8571428571429},1542,0,1543,1]
[28,"ki",3200,{"$f":"800*4","v":3200},3200,0,3200,0,null,28,"be",1600,{"$f":"400*4","v":1600},1600,0,1600,0]
[29,"ki",3316,{"$f":"800*4+800/7","v":3314.2857142857142},3316,0,3314,-2,null,29,"be",1657,{"$f":"400*4+400/7","v":1657.1428571428571},1657,0,1657,0]
[30,"ki",3430,{"$f":"800*4+800/7*2","v":3428.5714285714284},3430,0,3429,-1,null,30,"be",1714,{"$f":"400*4+400/7*2","v":1714.2857142857142},1714,0,1714,0]
[31,"ki",3544,{"$f":"800*4+800/7*3","v":3542.8571428571431},3544,0,3543,-1,null,31,"be",1771,{"$f":"400*4+400/7*3","v":1771.4285714285716},1771,0,1771,0]
[32,"ki",3658,{"$f":"800*4+800/7*4","v":3657.1428571428573},3658,0,3657,-1,null,32,"be",1828,{"$f":"400*4+400/7*4","v":1828.5714285714287},1828,0,1829,1]
[33,"ki",3772,{"$f":"800*4+800/7*5","v":3771.4285714285716},3772,0,3771,-1,null,33,"be",1885,{"$f":"400*4+400/7*5","v":1885.7142857142858},1885,0,1886,1]
[34,"ki",3886,{"$f":"800*4+800/7*6","v":3885.7142857142858},3886,0,3886,0,null,34,"be",1942,{"$f":"400*4+400/7*6","v":1942.8571428571429},1942,0,1943,1]
[35,"ki",4000,{"$f":"800*5","v":4000},4000,0,4000,0,null,35,"be",2000,{"$f":"400*5","v":2000},2000,0,2000,0]
[36,"ki",4116,{"$f":"800*5+800/7","v":4114.2857142857147},4116,0,4114,-2,null,36,"be",2057,{"$f":"400*5+400/7","v":2057.1428571428573},2057,0,2057,0]
[37,"ki",4230,{"$f":"800*5+800/7*2","v":4228.5714285714284},4230,0,4229,-1,null,37,"be",2114,{"$f":"400*5+400/7*2","v":2114.2857142857142},2114,0,2114,0]
[38,"ki",4344,{"$f":"800*5+800/7*3","v":4342.8571428571431},4344,0,4343,-1,null,38,"be",2171,{"$f":"400*5+400/7*3","v":2171.4285714285716},2171,0,2171,0]
[39,"ki",4458,{"$f":"800*5+800/7*4","v":4457.1428571428569},4458,0,4457,-1,null,39,"be",2228,{"$f":"400*5+400/7*4","v":2228.5714285714284},2228,0,2229,1]
[40,"ki",4572,{"$f":"800*5+800/7*5","v":4571.4285714285716},4572,0,4571,-1,null,40,"be",2285,{"$f":"400*5+400/7*5","v":2285.7142857142858},2285,0,2286,1]
[41,"ki",4686,{"$f":"800*5+800/7*6","v":4685.7142857142862},4686,0,4686,0,null,41,"be",2342,{"$f":"400*5+400/7*6","v":2342.8571428571431},2342,0,2343,1]
[42,"ki",4800,{"$f":"800*6","v":4800},4800,0,4800,0,null,42,"be",2400,{"$f":"400*6","v":2400},2400,0,2400,0]
[{"$f":"A43+1","v":43},null,4916,{"$f":"EVEN((800*ROUNDDOWN(A44/7,0))+(A44-ROUNDDOWN(A44/7,0)*7)*800/7)","v":4916},null,null,null,null,null,null,null,2458,{"$f":"EVEN((400*ROUNDDOWN(A44/7,0))+(A44-ROUNDDOWN(A44/7,0)*7)*400/7)","v":2458}]
[{"$f":"A44+1","v":44},null,5030,{"$f":"EVEN((800*ROUNDDOWN(A45/7,0))+(A45-ROUNDDOWN(A45/7,0)*7)*800/7)","v":5030},{"$f":"A45-ROUNDDOWN(A45/7,0)*7","v":2},null,null,null,null,null,null,2516,{"$f":"EVEN((400*ROUNDDOWN(A45/7,0))+(A45-ROUNDDOWN(A45/7,0)*7)*400/7)","v":2516}]
[45,null,5144,5144,{"$f":"A46-ROUNDDOWN(A46/7,0)*7","v":3},null,null,null,null,null,null,2572,2572]
[46,null,5258,5258,{"$f":"A47-ROUNDDOWN(A47/7,0)*7","v":4},null,null,null,null,null,null,2630,2630]
[47,null,5372,5372,null,null,null,null,null,null,null,2686,2686]
[48,null,5486,5486,null,null,null,null,null,null,null,2744,2744]
[49,null,5600,5600,null,null,null,null,null,null,null,2800,2800]
[50,null,5716,5716,null,null,null,null,null,null,null,2858,2858]
[51,null,5830,5830,null,null,null,null,null,null,null,2916,2916]
[52,null,5944,5944,null,null,null,null,null,null,null,2972,2972]
[53,null,6058,6058,null,null,null,null,null,null,null,3030,3030]
[54,null,6172,6172,null,null,null," ",null,null,null,3086,3086]
[55,null,6286,6286,null,null,null,null,null,null,null,3144,3144]
[56,null,6400,6400,null,null,null,null,null,null,null,3200,3200]
[57,null,6516,6516,null,null,null,null,null,null,null,3258,3258]
[58,null,6630,6630,null,null,null,null,null,null,null,3316,3316]
[59,null,6744,6744,null,null,null,null,null,null,null,3372,3372]
[60,null,6858,6858,null,null,null,null,null,null,null,3430,3430]
[61,null,6972,6972,null,null,null,null,null,null,null,3486,3486]
[62,null,7086,7086,null,null,null,null,null,null,null,3544,3544]
[63,null,7200,7200,null,null,null,null,null,null,null,3600,3600]
[64,null,7316,7316,null,null,null,null,null,null,null,3658,3658]
[65,null,7430,7430,null,null,null,null,null,null,null,3716,3716]
[66,null,7544,7544,null,null,null,null,null,null,null,3772,3772]
[{"$f":"A67+1","v":67},null,7658,7658,null,null,null,null,null,null,null,3830,3830]
[68,null,7772,7772,null,null,null,null,null,null,null,3886,3886]
[69,null,7886,7886,null,null,null,null,null,null,null,3944,3944]
[70,null,8000,8000,null,null,null,null,null,null,null,4000,4000]
[71,null,8116,8116,null,null,null,null,null,null,null,4058,4058]
[72,null,8230,8230,null,null,null,null,null,null,null,4116,4116]
[73,null,8344,8344,null,null,null,null,null,null,null,4172,4172]
[74,null,8458,8458,null,null,null,null,null,null,null,4230,4230]
[75,null,8572,8572,null,null,null,null,null,null,null,4286,4286]
[76,null,8686,8686,null,null,null,null,null,null,null,4344,4344]
[77,null,8800,8800,null,null,null,null,null,null,null,4400,4400]
[78,null,8916,8916,null,null,null,null,null,null,null,4458,4458]
[79,null,9030,9030,null,null,null,null,null,null,null,4516,4516]
[80,null,9144,9144,null,null,null,null,null,null,null,4572,4572]
[81,null,9258,9258,null,null,null,null,null,null,null,4630,4630]
[82,null,9372,9372,null,null,null,null,null,null,null,4686,4686]
[83,null,9486,9486,null,null,null,null,null,null,null,4744,4744]
[84,null,9600,9600,null,null,null,null,null,null,null,4800,4800]
[85,null,9716,9716,null,null,null,null,null,null,null,4858,4858]
[86,null,9830,9830,null,null,null,null,null,null,null,4916,4916]
[87,null,9944,9944,null,null,null,null,null,null,null,4972,4972]
[88,null,10058,10058,null,null,null,null,null,null,null,5030,5030]
[89,null,10172,10172,null,null,null,null,null,null,null,5086,5086]
[90,null,10286,10286,null,null,null,null,null,null,null,5144,5144]
[]
[]
[]
[]
[]
[]
[]
[null,null,null,null,null,null,null,null,null,null," "]